Workbook

Sheet Notes
A2: Maternity Friends and Family Test (FFT) Data - December 2021

Sheet Summary
B7: FFT | C7: Number of organisations submitting | D7: Total responses to date | E7: Responses | G7: Percentage Positive | I7: Percentage Negative
C8: =[1]Instructions!$D$1 -> 2021-12-01 | D8: =[1]Instructions!$D$1 -> 2021-12-01 | E8: =[1]Instructions!$D$1 -> 2021-12-01 | F8: =[1]Instructions!$D$1-5 -> 2021-11-26 | G8: =[1]Instructions!$D$1 -> 2021-12-01 | H8: =[1]Instructions!$D$1-5 -> 2021-11-26 | I8: =[1]Instructions!$D$1 -> 2021-12-01 | J8: =[1]Instructions!$D$1-5 -> 2021-11-26
B9: Maternity Total | C9: NA | D9: 2890096 | E9: 12706 | F9: 15680 | G9: 0.9175192822 | H9: 0.9225127551 | I9: 0.04568287753 | J9: 0.0445323908
B10: Maternity NHS Total | C10: NA | D10: 2886693 | E10: 12706 | F10: 15680 | G10: 0.9175192822 | H10: 0.9225127551 | I10: 0.04568287753 | J10: 0.0445323908
B11: Maternity IS Total | C11: NA | D11: NA | E11: NA | F11: NA | G11: NA | H11: NA | I11: NA | J11: NA
B12: Antenatal Total | C12: 113 | D12: 583916 | E12: 3520 | F12: 4072 | G12: NA | H12: 0.9093811395 | I12: 0.04176136364 | J12: 0.05329076621
B13: Antenatal NHS | C13: 113 | D13: 582732 | E13: 3520 | F13: 4072 | G13: 0.9122159091 | H13: 0.9093811395 | I13: 0.04176136364 | J13: 0.05329076621
B14: Antenatal IS | C14: NA | D14: NA | E14: NA | F14: NA | G14: NA | H14: NA | I14: NA | J14: NA
B15: Birth Total | C15: 117 | D15: 901988 | E15: 3881 | F15: 4911 | G15: NA | H15: 0.9462431277 | I15: 0.03864983252 | J15: 0.03298717166
B16: Birth NHS | C16: 117 | D16: 901564 | E16: 3881 | F16: 4911 | G16: 0.9379026024 | H16: 0.9462431277 | I16: 0.03864983252 | J16: 0.03298717166
B17: Birth IS | C17: NA | D17: NA | E17: NA | F17: NA | G17: NA | H17: NA | I17: NA | J17: NA
B18: Postnatal Ward Total | C18: 116 | D18: 986733 | E18: 4352 | F18: 5549 | G18: NA | H18: 0.9169219679 | I18: 0.04250919118 | J18: 0.03784465669
B19: Postnatal Ward Total NHS | C19: 116 | D19: 986733 | E19: 4352 | F19: 5549 | G19: 0.9113051471 | H19: 0.9169219679 | I19: 0.04250919118 | J19: 0.03784465669
B20: Postnatal Ward Total IS | C20: NA | D20: NA | E20: NA | F20: NA | G20: NA | H20: NA | I20: NA | J20: NA
B21: Postnatal Community Total | C21: 119 | D21: 417459 | E21: 953 | F21: 1148 | G21: NA | H21: 0.8945993031 | I21: 0.05981112277 | J21: 0.05400696864
B22: Postnatal Community NHS | C22: 119 | D22: 415664 | E22: 953 | F22: 1148 | G22: 0.8824763903 | H22: 0.8945993031 | I22: 0.05981112277 | J22: 0.05400696864
B23: Postnatal Community IS | C23: NA | D23: NA | E23: NA | F23: NA | G23: NA | H23: NA | I23: NA | J23: NA

Sheet STP Q1
B6: Sort data by:
A9: STP Code | B9: STP Name | C9: Total Responses | D9: Percentage Positive | E9: Percentage Negative | F9: Breakdown of Responses
F10: Very Good | G10: Good | H10: Neither Good nor Poor | I10: Poor | J10: Very Poor | K10: Don't Know
B11: England (including Independent Sector providers) | C11: 3520 | D11: 0.9122159091 | E11: 0.04176136364 | F11: 2550 | G11: 661 | H11: 145 | I11: 65 | J11: 82 | K11: 17
B12: England (excluding Independent Sector providers) | C12: 3520 | D12: 0.9122159091 | E12: 0.04176136364 | F12: 2550 | G12: 661 | H12: 145 | I12: 65 | J12: 82 | K12: 17
B13: Selection (excluding suppressed data) | C13: =SUBTOTAL(9,C14:C55) -> 3520 | D13: =IFERROR((F13+G13)/SUM(F13:K13), "-") -> 0.9132896305 | E13: =IFERROR((I13+J13)/SUM(F13:K13), "-") -> 0.04022646007 | F13: =SUBTOTAL(9,F14:F55) -> 2434 | G13: 631 | H13: 141 | I13: 57 | J13: 78 | K13: 15
A14: QE1 | B14: HEALTHIER LANCASHIRE AND SOUTH CUMBRIA | C14: 107 | D14: 0.9252336449 | E14: 0.03738317757 | F14: 70 | G14: 29 | H14: 3 | I14: 1 | J14: 3 | K14: 1
A15: QF7 | B15: SOUTH YORKSHIRE AND BASSETLAW STP | C15: 31 | D15: 0.7096774194 | E15: 0.1935483871 | F15: * | G15: * | H15: * | I15: * | J15: * | K15: *
A16: QGH | B16: HEREFORDSHIRE AND WORCESTERSHIRE STP | C16: 2 | D16: * | E16: * | F16: * | G16: * | H16: * | I16: * | J16: * | K16: *
A17: QH8 | B17: MID AND SOUTH ESSEX STP | C17: 1 | D17: * | E17: * | F17: * | G17: * | H17: * | I17: * | J17: * | K17: *
A18: QHG | B18: BEDFORDSHIRE, LUTON AND MILTON KEYNES STP | C18: 343 | D18: 0.9271137026 | E18: 0.01749271137 | F18: 239 | G18: 79 | H18: 14 | I18: 2 | J18: 4 | K18: 5
A19: QHL | B19: BIRMINGHAM AND SOLIHULL STP | C19: 129 | D19: 0.8294573643 | E19: 0.07751937984 | F19: 69 | G19: 38 | H19: 12 | I19: 4 | J19: 6 | K19: 0
A20: QHM | B20: CUMBRIA AND NORTH EAST STP | C20: 81 | D20: 0.9382716049 | E20: 0.04938271605 | F20: * | G20: * | H20: * | I20: * | J20: * | K20: *
A21: QJ2 | B21: JOINED UP CARE DERBYSHIRE STP | C21: 4 | D21: * | E21: * | F21: * | G21: * | H21: * | I21: * | J21: * | K21: *
A22: QJG | B22: SUFFOLK AND NORTH EAST ESSEX ICS | C22: 40 | D22: 0.95 | E22: 0.05 | F22: 31 | G22: 7 | H22: 0 | I22: 2 | J22: 0 | K22: 0
A23: QJK | B23: DEVON STP | C23: 53 | D23: 0.4905660377 | E23: 0 | F23: 20 | G23: 6 | H23: 27 | I23: 0 | J23: 0 | K23: 0
A24: QJM | B24: LINCOLNSHIRE STP | C24: 0 | D24: NA | E24: NA | F24: 0 | G24: 0 | H24: 0 | I24: 0 | J24: 0 | K24: 0
A25: QK1 | B25: LEICESTER, LEICESTERSHIRE AND RUTLAND STP | C25: 76 | D25: 0.9868421053 | E25: 0 | F25: 57 | G25: 18 | H25: 1 | I25: 0 | J25: 0 | K25: 0
A26: QKK | B26: OUR HEALTHIER SOUTH EAST LONDON STP | C26: 105 | D26: 0.9238095238 | E26: 0.02857142857 | F26: 67 | G26: 30 | H26: 5 | I26: 0 | J26: 3 | K26: 0
A27: QKS | B27: KENT AND MEDWAY STP | C27: 407 | D27: 0.914004914 | E27: 0.04914004914 | F27: 297 | G27: 75 | H27: 15 | I27: 11 | J27: 9 | K27: 0
A28: QM7 | B28: HERTFORDSHIRE AND WEST ESSEX STP | C28: 16 | D28: 0.8125 | E28: 0 | F28: 7 | G28: 6 | H28: 3 | I28: 0 | J28: 0 | K28: 0
A29: QMF | B29: EAST LONDON HEALTH & CARE PARTNERSHIP (STP) | C29: 149 | D29: 0.932885906 | E29: 0.04697986577 | F29: 121 | G29: 18 | H29: 3 | I29: 2 | J29: 5 | K29: 0
A30: QMJ | B30: NORTH LONDON PARTNERS IN HEALTH & CARE (STP) | C30: 20 | D30: 0.55 | E30: 0.35 | F30: 7 | G30: 4 | H30: 1 | I30: 2 | J30: 5 | K30: 1
A31: QMM | B31: NORFOLK AND WAVENEY HEALTH & CARE PARTNERSHIP (STP) | C31: 74 | D31: 0.9054054054 | E31: 0.04054054054 | F31: 34 | G31: 33 | H31: 4 | I31: 1 | J31: 2 | K31: 0
A32: QNC | B32: STAFFORDSHIRE & STOKE ON TRENT STP | C32: 0 | D32: NA | E32: NA | F32: 0 | G32: 0 | H32: 0 | I32: 0 | J32: 0 | K32: 0
A33: QNQ | B33: FRIMLEY HEALTH & CARE (STP) | C33: 16 | D33: 0.9375 | E33: 0 | F33: * | G33: * | H33: * | I33: * | J33: * | K33: *
A34: QNX | B34: SUSSEX HEALTH AND CARE PARTNERSHIP | C34: 2 | D34: * | E34: * | F34: * | G34: * | H34: * | I34: * | J34: * | K34: *
A35: QOC | B35: SHROPSHIRE AND TELFORD AND WREKIN STP | C35: 67 | D35: 1 | E35: 0 | F35: 63 | G35: 4 | H35: 0 | I35: 0 | J35: 0 | K35: 0
A36: QOP | B36: GREATER MANCHESTER HEALTH & SOCIAL CARE PARTNERSHIP | C36: 148 | D36: 0.9527027027 | E36: 0.02027027027 | F36: 114 | G36: 27 | H36: 4 | I36: 2 | J36: 1 | K36: 0
A37: QOQ | B37: HUMBER, COAST AND VALE STP | C37: 15 | D37: 1 | E37: 0 | F37: * | G37: * | H37: * | I37: * | J37: * | K37: *
A38: QOX | B38: BATH AND NORTH EAST SOMERSET, SWINDON AND WILTSHIRE STP | C38: 3 | D38: * | E38: * | F38: * | G38: * | H38: * | I38: * | J38: * | K38: *
A39: QPM | B39: NORTHAMPTONSHIRE STP | C39: 8 | D39: 0.875 | E39: 0.125 | F39: 6 | G39: 1 | H39: 0 | I39: 0 | J39: 1 | K39: 0
A40: QR1 | B40: GLOUCESTERSHIRE STP | C40: 0 | D40: NA | E40: NA | F40: 0 | G40: 0 | H40: 0 | I40: 0 | J40: 0 | K40: 0
A41: QRL | B41: HAMPSHIRE AND THE ISLE OF WIGHT STP | C41: 176 | D41: 0.9545454545 | E41: 0.01136363636 | F41: 131 | G41: 37 | H41: 4 | I41: 1 | J41: 1 | K41: 2
A42: QRV | B42: NORTH WEST LONDON HEALTH & CARE PARTNERSHIP (STP) | C42: 246 | D42: 0.8455284553 | E42: 0.08943089431 | F42: 147 | G42: 61 | H42: 13 | I42: 8 | J42: 14 | K42: 3
A43: QSL | B43: SOMERSET STP | C43: 21 | D43: 0.9047619048 | E43: 0.09523809524 | F43: 17 | G43: 2 | H43: 0 | I43: 0 | J43: 2 | K43: 0
A44: QT1 | B44: NOTTINGHAM AND NOTTINGHAMSHIRE HEALTH AND CARE STP | C44: 27 | D44: 0.8148148148 | E44: 0.1111111111 | F44: 20 | G44: 2 | H44: 2 | I44: 0 | J44: 3 | K44: 0
A45: QT6 | B45: CORNWALL AND THE ISLES OF SCILLY HEALTH & SOCIAL CARE PARTNERSHIP (STP) | C45: 7 | D45: 1 | E45: 0 | F45: 6 | G45: 1 | H45: 0 | I45: 0 | J45: 0 | K45: 0
A46: QU9 | B46: BUCKINGHAMSHIRE, OXFORDSHIRE AND BERKSHIRE WEST STP | C46: 122 | D46: 0.8278688525 | E46: 0.09836065574 | F46: 83 | G46: 18 | H46: 9 | I46: 8 | J46: 4 | K46: 0
A47: QUA | B47: THE BLACK COUNTRY AND WEST BIRMINGHAM STP | C47: 26 | D47: 0.8846153846 | E47: 0.03846153846 | F47: 17 | G47: 6 | H47: 2 | I47: 0 | J47: 1 | K47: 0
A48: QUE | B48: CAMBRIDGESHIRE AND PETERBOROUGH STP | C48: 163 | D48: 0.9754601227 | E48: 0.01226993865 | F48: 145 | G48: 14 | H48: 2 | I48: 1 | J48: 1 | K48: 0
A49: QUY | B49: BRISTOL, NORTH SOMERSET AND SOUTH GLOUCESTERSHIRE STP | C49: 30 | D49: 1 | E49: 0 | F49: 28 | G49: 2 | H49: 0 | I49: 0 | J49: 0 | K49: 0
A50: QVV | B50: DORSET STP | C50: 77 | D50: 0.8961038961 | E50: 0.05194805195 | F50: 55 | G50: 14 | H50: 4 | I50: 2 | J50: 2 | K50: 0
A51: QWE | B51: SOUTH WEST LONDON HEALTH & CARE PARTNERSHIP (STP) | C51: 104 | D51: 0.9230769231 | E51: 0.05769230769 | F51: 75 | G51: 21 | H51: 2 | I51: 2 | J51: 4 | K51: 0
A52: QWO | B52: WEST YORKSHIRE AND HARROGATE HEALTH & CARE PARTNERSHIP (STP) | C52: 475 | D52: 0.9578947368 | E52: 0.02526315789 | F52: 396 | G52: 59 | H52: 7 | I52: 6 | J52: 6 | K52: 1
A53: QWU | B53: COVENTRY AND WARWICKSHIRE STP | C53: 6 | D53: 0.8333333333 | E53: 0.1666666667 | F53: * | G53: * | H53: * | I53: * | J53: * | K53: *
A54: QXU | B54: SURREY HEARTLANDS HEALTH & CARE PARTNERSHIP (STP) | C54: 3 | D54: * | E54: * | F54: * | G54: * | H54: * | I54: * | J54: * | K54: *
A55: QYG | B55: CHESHIRE AND MERSEYSIDE STP | C55: 140 | D55: 0.9357142857 | E55: 0.02142857143 | F55: 112 | G55: 19 | H55: 4 | I55: 2 | J55: 1 | K55: 2

Sheet Trusts Q1
B6: Sort data by:
A9: STP Code | B9: Trust Code | C9: Trust Name | D9: Total Responses | E9: Percentage Positive | F9: Percentage Negative | G9: Breakdown of Responses | M9: Mode of Collection
G10: Very Good | H10: Good | I10: Neither Good nor Poor | J10: Poor | K10: Very Poor | L10: Don't Know | M10: Mode SMS | N10: Mode Electronic Discharge | O10: Mode Electronic Home | P10: Mode Paper Discharge | Q10: Mode Paper Home | R10: Mode Telephone | S10: Mode Online | T10: Mode Other
C11: England (including Independent Sector providers) | D11: 3520 | E11: 0.9122159091 | F11: 0.04176136364 | G11: 2550 | H11: 661 | I11: 145 | J11: 65 | K11: 82 | L11: 17 | M11: 1282 | N11: 320 | O11: 3 | P11: 981 | Q11: 434 | R11: 1 | S11: 433 | T11: 66
C12: England (excluding Independent Sector providers) | D12: 3520 | E12: 0.9122159091 | F12: 0.04176136364 | G12: 2550 | H12: 661 | I12: 145 | J12: 65 | K12: 82 | L12: 17 | M12: 1282 | N12: 320 | O12: 3 | P12: 981 | Q12: 434 | R12: 1 | S12: 433 | T12: 66
C13: Selection (excluding suppressed data) | D13: =SUBTOTAL(9,D14:D298) -> 3520 | E13: =IFERROR((G13+H13)/SUM(G13:L13), "-") -> 0.9179251477 | F13: =IFERROR((J13+K13)/SUM(G13:L13), "-") -> 0.03873933027 | G13: =SUBTOTAL(9,G14:G298) -> 2249 | H13: 547 | I13: 115 | J13: 51 | K13: 67 | L13: 17 | M13: 1239 | N13: 171 | O13: 0 | P13: 960 | Q13: 421 | R13: 1 | S13: 189 | T13: 65
A14: QE1 | B14: RXL | C14: BLACKPOOL TEACHING HOSPITALS NHS FOUNDATION TRUST | D14: 2 | E14: * | F14: * | G14: * | H14: * | I14: * | J14: * | K14: * | L14: * | M14: * | N14: * | O14: * | P14: * | Q14: * | R14: * | S14: * | T14: *
A15: QE1 | B15: RXR | C15: EAST LANCASHIRE HOSPITALS NHS TRUST | D15: 85 | E15: 0.9411764706 | F15: 0.02352941176 | G15: 59 | H15: 21 | I15: 2 | J15: 0 | K15: 2 | L15: 1 | M15: 52 | N15: 0 | O15: 0 | P15: 32 | Q15: 0 | R15: 0 | S15: 1 | T15: 0
A16: QE1 | B16: RXN | C16: LANCASHIRE TEACHING HOSPITALS NHS FOUNDATION TRUST | D16: 20 | E16: 0.85 | F16: 0.1 | G16: * | H16: * | I16: * | J16: * | K16: * | L16: * | M16: * | N16: * | O16: * | P16: * | Q16: * | R16: * | S16: * | T16: *
A17: QF7 | B17: RFF | C17: BARNSLEY HOSPITAL NHS FOUNDATION TRUST | D17: 3 | E17: * | F17: * | G17: * | H17: * | I17: * | J17: * | K17: * | L17: * | M17: * | N17: * | O17: * | P17: * | Q17: * | R17: * | S17: * | T17: *
A18: QF7 | B18: RP5 | C18: DONCASTER AND BASSETLAW TEACHING HOSPITALS NHS FOUNDATION TRUST | D18: 0 | E18: NA | F18: NA | G18: 0 | H18: 0 | I18: 0 | J18: 0 | K18: 0 | L18: 0 | M18: 0 | N18: 0 | O18: 0 | P18: 0 | Q18: 0 | R18: 0 | S18: 0 | T18: 0
A19: QF7 | B19: RHQ | C19: SHEFFIELD TEACHING HOSPITALS NHS FOUNDATION TRUST | D19: 27 | E19: 0.6666666667 | F19: 0.2222222222 | G19: 12 | H19: 6 | I19: 1 | J19: 3 | K19: 3 | L19: 2 | M19: 27 | N19: 0 | O19: 0 | P19: 0 | Q19: 0 | R19: 0 | S19: 0 | T19: 0
A20: QF7 | B20: RFR | C20: THE ROTHERHAM NHS FOUNDATION TRUST | D20: 1 | E20: * | F20: * | G20: * | H20: * | I20: * | J20: * | K20: * | L20: * | M20: * | N20: * | O20: * | P20: * | Q20: * | R20: * | S20: * | T20: *
A21: QGH | B21: RWP | C21: WORCESTERSHIRE ACUTE HOSPITALS NHS TRUST | D21: 2 | E21: * | F21: * | G21: * | H21: * | I21: * | J21: * | K21: * | L21: * | M21: * | N21: * | O21: * | P21: * | Q21: * | R21: * | S21: * | T21: *
A22: QGH | B22: RLQ | C22: WYE VALLEY NHS TRUST | D22: 0 | E22: NA | F22: NA | G22: 0 | H22: 0 | I22: 0 | J22: 0 | K22: 0 | L22: 0 | M22: 0 | N22: 0 | O22: 0 | P22: 0 | Q22: 0 | R22: 0 | S22: 0 | T22: 0
A23: QH8 | B23: RAJ | C23: MID AND SOUTH ESSEX NHS FOUNDATION TRUST | D23: 1 | E23: * | F23: * | G23: * | H23: * | I23: * | J23: * | K23: * | L23: * | M23: * | N23: * | O23: * | P23: * | Q23: * | R23: * | S23: * | T23: *
A24: QHG | B24: RC9 | C24: BEDFORDSHIRE HOSPITALS NHS FOUNDATION TRUST | D24: 68 | E24: 0.9117647059 | F24: 0.02941176471 | G24: 40 | H24: 22 | I24: 4 | J24: 2 | K24: 0 | L24: 0 | M24: 0 | N24: 68 | O24: 0 | P24: 0 | Q24: 0 | R24: 0 | S24: 0 | T24: 0
A25: QHG | B25: RD8 | C25: MILTON KEYNES UNIVERSITY HOSPITAL NHS FOUNDATION TRUST | D25: 275 | E25: 0.9309090909 | F25: 0.01454545455 | G25: 199 | H25: 57 | I25: 10 | J25: 0 | K25: 4 | L25: 5 | M25: 266 | N25: 0 | O25: 0 | P25: 5 | Q25: 0 | R25: 0 | S25: 4 | T25: 0
A26: QHL | B26: RQ3 | C26: BIRMINGHAM WOMEN'S AND CHILDREN'S NHS FOUNDATION TRUST | D26: 127 | E26: 0.8267716535 | F26: 0.07874015748 | G26: * | H26: * | I26: * | J26: * | K26: * | L26: * | M26: * | N26: * | O26: * | P26: * | Q26: * | R26: * | S26: * | T26: *
A27: QHL | B27: RRK | C27: UNIVERSITY HOSPITALS BIRMINGHAM NHS FOUNDATION TRUST | D27: 2 | E27: * | F27: * | G27: * | H27: * | I27: * | J27: * | K27: * | L27: * | M27: * | N27: * | O27: * | P27: * | Q27: * | R27: * | S27: * | T27: *
A28: QHM | B28: RR7 | C28: GATESHEAD HEALTH NHS FOUNDATION TRUST | D28: 5 | E28: 1 | F28: 0 | G28: * | H28: * | I28: * | J28: * | K28: * | L28: * | M28: * | N28: * | O28: * | P28: * | Q28: * | R28: * | S28: * | T28: *
A29: QHM | B29: RNN | C29: NORTH CUMBRIA INTEGRATED CARE NHS FOUNDATION TRUST | D29: 1 | E29: * | F29: * | G29: * | H29: * | I29: * | J29: * | K29: * | L29: * | M29: * | N29: * | O29: * | P29: * | Q29: * | R29: * | S29: * | T29: *
A30: QHM | B30: RVW | C30: NORTH TEES AND HARTLEPOOL NHS FOUNDATION TRUST | D30: 11 | E30: 1 | F30: 0 | G30: 8 | H30: 3 | I30: 0 | J30: 0 | K30: 0 | L30: 0 | M30: 10 | N30: 0 | O30: 0 | P30: 1 | Q30: 0 | R30: 0 | S30: 0 | T30: 0
A31: QHM | B31: RTR | C31: SOUTH TEES HOSPITALS NHS FOUNDATION TRUST | D31: 62 | E31: 0.9193548387 | F31: 0.06451612903 | G31: 42 | H31: 15 | I31: 1 | J31: 4 | K31: 0 | L31: 0 | M31: 62 | N31: 0 | O31: 0 | P31: 0 | Q31: 0 | R31: 0 | S31: 0 | T31: 0
A32: QHM | B32: R0B | C32: SOUTH TYNESIDE AND SUNDERLAND NHS FOUNDATION TRUST | D32: 0 | E32: NA | F32: NA | G32: 0 | H32: 0 | I32: 0 | J32: 0 | K32: 0 | L32: 0 | M32: 0 | N32: 0 | O32: 0 | P32: 0 | Q32: 0 | R32: 0 | S32: 0 | T32: 0
A33: QHM | B33: RTD | C33: THE NEWCASTLE UPON TYNE HOSPITALS NHS FOUNDATION TRUST | D33: 2 | E33: * | F33: * | G33: * | H33: * | I33: * | J33: * | K33: * | L33: * | M33: * | N33: * | O33: * | P33: * | Q33: * | R33: * | S33: * | T33: *
A34: QJ2 | B34: RTG | C34: UNIVERSITY HOSPITALS OF DERBY AND BURTON NHS FOUNDATION TRUST | D34: 4 | E34: * | F34: * | G34: * | H34: * | I34: * | J34: * | K34: * | L34: * | M34: * | N34: * | O34: * | P34: * | Q34: * | R34: * | S34: * | T34: *
A35: QJG | B35: RDE | C35: EAST SUFFOLK AND NORTH ESSEX NHS FOUNDATION TRUST | D35: 9 | E35: 1 | F35: 0 | G35: 7 | H35: 2 | I35: 0 | J35: 0 | K35: 0 | L35: 0 | M35: 0 | N35: 0 | O35: 0 | P35: 0 | Q35: 0 | R35: 0 | S35: 9 | T35: 0
A36: QJG | B36: RGR | C36: WEST SUFFOLK NHS FOUNDATION TRUST | D36: 31 | E36: 0.935483871 | F36: 0.06451612903 | G36: 24 | H36: 5 | I36: 0 | J36: 2 | K36: 0 | L36: 0 | M36: 8 | N36: 0 | O36: 0 | P36: 0 | Q36: 0 | R36: 0 | S36: 23 | T36: 0
A37: QJK | B37: RBZ | C37: NORTHERN DEVON HEALTHCARE NHS TRUST | D37: 13 | E37: 0.9230769231 | F37: 0 | G37: 12 | H37: 0 | I37: 1 | J37: 0 | K37: 0 | L37: 0 | M37: 0 | N37: 0 | O37: 0 | P37: 13 | Q37: 0 | R37: 0 | S37: 0 | T37: 0
A38: QJK | B38: RH8 | C38: ROYAL DEVON AND EXETER NHS FOUNDATION TRUST | D38: 32 | E38: 0.1875 | F38: 0 | G38: 0 | H38: 6 | I38: 26 | J38: 0 | K38: 0 | L38: 0 | M38: 0 | N38: 0 | O38: 0 | P38: 32 | Q38: 0 | R38: 0 | S38: 0 | T38: 0
A39: QJK | B39: RA9 | C39: TORBAY AND SOUTH DEVON NHS FOUNDATION TRUST | D39: 1 | E39: * | F39: * | G39: * | H39: * | I39: * | J39: * | K39: * | L39: * | M39: * | N39: * | O39: * | P39: * | Q39: * | R39: * | S39: * | T39: *
A40: QJK | B40: RK9 | C40: UNIVERSITY HOSPITALS PLYMOUTH NHS TRUST | D40: 7 | E40: 1 | F40: 0 | G40: 7 | H40: 0 | I40: 0 | J40: 0 | K40: 0 | L40: 0 | M40: 0 | N40: 0 | O40: 0 | P40: 7 | Q40: 0 | R40: 0 | S40: 0 | T40: 0
A41: QJM | B41: RWD | C41: UNITED LINCOLNSHIRE HOSPITALS NHS TRUST | D41: 0 | E41: NA | F41: NA | G41: 0 | H41: 0 | I41: 0 | J41: 0 | K41: 0 | L41: 0 | M41: 0 | N41: 0 | O41: 0 | P41: 0 | Q41: 0 | R41: 0 | S41: 0 | T41: 0
A42: QK1 | B42: RWE | C42: UNIVERSITY HOSPITALS OF LEICESTER NHS TRUST | D42: 76 | E42: 0.9868421053 | F42: 0 | G42: 57 | H42: 18 | I42: 1 | J42: 0 | K42: 0 | L42: 0 | M42: 0 | N42: 0 | O42: 0 | P42: 76 | Q42: 0 | R42: 0 | S42: 0 | T42: 0
A43: QKK | B43: RJ1 | C43: GUY'S AND ST THOMAS' NHS FOUNDATION TRUST | D43: 66 | E43: 0.8939393939 | F43: 0.0303030303 | G43: 41 | H43: 18 | I43: 5 | J43: 0 | K43: 2 | L43: 0 | M43: 0 | N43: 0 | O43: 0 | P43: 48 | Q43: 0 | R43: 0 | S43: 18 | T43: 0
A44: QKK | B44: RJZ | C44: KING'S COLLEGE HOSPITAL NHS FOUNDATION TRUST | D44: 13 | E44: 0.9230769231 | F44: 0.07692307692 | G44: 10 | H44: 2 | I44: 0 | J44: 0 | K44: 1 | L44: 0 | M44: 12 | N44: 0 | O44: 0 | P44: 0 | Q44: 0 | R44: 0 | S44: 1 | T44: 0
A45: QKK | B45: RJ2 | C45: LEWISHAM AND GREENWICH NHS TRUST | D45: 26 | E45: 1 | F45: 0 | G45: 16 | H45: 10 | I45: 0 | J45: 0 | K45: 0 | L45: 0 | M45: 0 | N45: 0 | O45: 0 | P45: 26 | Q45: 0 | R45: 0 | S45: 0 | T45: 0
A46: QKS | B46: RN7 | C46: DARTFORD AND GRAVESHAM NHS TRUST | D46: 4 | E46: * | F46: * | G46: * | H46: * | I46: * | J46: * | K46: * | L46: * | M46: * | N46: * | O46: * | P46: * | Q46: * | R46: * | S46: * | T46: *
A47: QKS | B47: RVV | C47: EAST KENT HOSPITALS UNIVERSITY NHS FOUNDATION TRUST | D47: 324 | E47: 0.8919753086 | F47: 0.06172839506 | G47: 217 | H47: 72 | I47: 15 | J47: 11 | K47: 9 | L47: 0 | M47: 324 | N47: 0 | O47: 0 | P47: 0 | Q47: 0 | R47: 0 | S47: 0 | T47: 0
A48: QKS | B48: RWF | C48: MAIDSTONE AND TUNBRIDGE WELLS NHS TRUST | D48: 4 | E48: * | F48: * | G48: * | H48: * | I48: * | J48: * | K48: * | L48: * | M48: * | N48: * | O48: * | P48: * | Q48: * | R48: * | S48: * | T48: *
A49: QKS | B49: RPA | C49: MEDWAY NHS FOUNDATION TRUST | D49: 75 | E49: 1 | F49: 0 | G49: 74 | H49: 1 | I49: 0 | J49: 0 | K49: 0 | L49: 0 | M49: 0 | N49: 0 | O49: 0 | P49: 75 | Q49: 0 | R49: 0 | S49: 0 | T49: 0
A50: QM7 | B50: RWH | C50: EAST AND NORTH HERTFORDSHIRE NHS TRUST | D50: 1 | E50: * | F50: * | G50: * | H50: * | I50: * | J50: * | K50: * | L50: * | M50: * | N50: * | O50: * | P50: * | Q50: * | R50: * | S50: * | T50: *
A51: QM7 | B51: RWG | C51: WEST HERTFORDSHIRE TEACHING HOSPITALS NHS TRUST | D51: 15 | E51: 0.8 | F51: 0 | G51: * | H51: * | I51: * | J51: * | K51: * | L51: * | M51: * | N51: * | O51: * | P51: * | Q51: * | R51: * | S51: * | T51: *
A52: QMF | B52: RF4 | C52: BARKING, HAVERING AND REDBRIDGE UNIVERSITY HOSPITALS NHS TRUST | D52: 28 | E52: 0.9285714286 | F52: 0.07142857143 | G52: 25 | H52: 1 | I52: 0 | J52: 0 | K52: 2 | L52: 0 | M52: 0 | N52: 2 | O52: 0 | P52: 26 | Q52: 0 | R52: 0 | S52: 0 | T52: 0
A53: QMF | B53: R1H | C53: BARTS HEALTH NHS TRUST | D53: 90 | E53: 0.9333333333 | F53: 0.04444444444 | G53: 74 | H53: 10 | I53: 2 | J53: 2 | K53: 2 | L53: 0 | M53: 34 | N53: 0 | O53: 0 | P53: 52 | Q53: 0 | R53: 0 | S53: 4 | T53: 0
A54: QMF | B54: RQX | C54: HOMERTON UNIVERSITY HOSPITAL NHS FOUNDATION TRUST | D54: 31 | E54: 0.935483871 | F54: 0.03225806452 | G54: 22 | H54: 7 | I54: 1 | J54: 0 | K54: 1 | L54: 0 | M54: 31 | N54: 0 | O54: 0 | P54: 0 | Q54: 0 | R54: 0 | S54: 0 | T54: 0
A55: QMJ | B55: RAP | C55: NORTH MIDDLESEX UNIVERSITY HOSPITAL NHS TRUST | D55: 0 | E55: NA | F55: NA | G55: 0 | H55: 0 | I55: 0 | J55: 0 | K55: 0 | L55: 0 | M55: 0 | N55: 0 | O55: 0 | P55: 0 | Q55: 0 | R55: 0 | S55: 0 | T55: 0
A56: QMJ | B56: RAL | C56: ROYAL FREE LONDON NHS FOUNDATION TRUST | D56: 17 | E56: 0.4705882353 | F56: 0.4117647059 | G56: 4 | H56: 4 | I56: 1 | J56: 2 | K56: 5 | L56: 1 | M56: 0 | N56: 17 | O56: 0 | P56: 0 | Q56: 0 | R56: 0 | S56: 0 | T56: 0
A57: QMJ | B57: RKE | C57: WHITTINGTON HEALTH NHS TRUST | D57: 3 | E57: * | F57: * | G57: * | H57: * | I57: * | J57: * | K57: * | L57: * | M57: * | N57: * | O57: * | P57: * | Q57: * | R57: * | S57: * | T57: *
A58: QMM | B58: RGP | C58: JAMES PAGET UNIVERSITY HOSPITALS NHS FOUNDATION TRUST | D58: 0 | E58: NA | F58: NA | G58: 0 | H58: 0 | I58: 0 | J58: 0 | K58: 0 | L58: 0 | M58: 0 | N58: 0 | O58: 0 | P58: 0 | Q58: 0 | R58: 0 | S58: 0 | T58: 0
A59: QMM | B59: RM1 | C59: NORFOLK AND NORWICH UNIVERSITY HOSPITALS NHS FOUNDATION TRUST | D59: 61 | E59: 0.9016393443 | F59: 0.03278688525 | G59: 23 | H59: 32 | I59: 4 | J59: 1 | K59: 1 | L59: 0 | M59: 0 | N59: 0 | O59: 0 | P59: 1 | Q59: 0 | R59: 0 | S59: 60 | T59: 0
A60: QMM | B60: RCX | C60: THE QUEEN ELIZABETH HOSPITAL, KING'S LYNN, NHS FOUNDATION TRUST | D60: 13 | E60: 0.9230769231 | F60: 0.07692307692 | G60: 11 | H60: 1 | I60: 0 | J60: 0 | K60: 1 | L60: 0 | M60: 0 | N60: 0 | O60: 0 | P60: 1 | Q60: 0 | R60: 0 | S60: 12 | T60: 0
A61: QNC | B61: RJE | C61: UNIVERSITY HOSPITALS OF NORTH MIDLANDS NHS TRUST | D61: 0 | E61: NA | F61: NA | G61: 0 | H61: 0 | I61: 0 | J61: 0 | K61: 0 | L61: 0 | M61: 0 | N61: 0 | O61: 0 | P61: 0 | Q61: 0 | R61: 0 | S61: 0 | T61: 0
A62: QNQ | B62: RDU | C62: FRIMLEY HEALTH NHS FOUNDATION TRUST | D62: 16 | E62: 0.9375 | F62: 0 | G62: * | H62: * | I62: * | J62: * | K62: * | L62: * | M62: * | N62: * | O62: * | P62: * | Q62: * | R62: * | S62: * | T62: *
A63: QNX | B63: RXC | C63: EAST SUSSEX HEALTHCARE NHS TRUST | D63: 0 | E63: NA | F63: NA | G63: 0 | H63: 0 | I63: 0 | J63: 0 | K63: 0 | L63: 0 | M63: 0 | N63: 0 | O63: 0 | P63: 0 | Q63: 0 | R63: 0 | S63: 0 | T63: 0
A64: QNX | B64: RYR | C64: UNIVERSITY HOSPITALS SUSSEX NHS FOUNDATION TRUST | D64: 2 | E64: * | F64: * | G64: * | H64: * | I64: * | J64: * | K64: * | L64: * | M64: * | N64: * | O64: * | P64: * | Q64: * | R64: * | S64: * | T64: *
A65: QOC | B65: RXW | C65: THE SHREWSBURY AND TELFORD HOSPITAL NHS TRUST | D65: 67 | E65: 1 | F65: 0 | G65: 63 | H65: 4 | I65: 0 | J65: 0 | K65: 0 | L65: 0 | M65: 0 | N65: 0 | O65: 0 | P65: 67 | Q65: 0 | R65: 0 | S65: 0 | T65: 0
A66: QOP | B66: RMC | C66: BOLTON NHS FOUNDATION TRUST | D66: 3 | E66: * | F66: * | G66: * | H66: * | I66: * | J66: * | K66: * | L66: * | M66: * | N66: * | O66: * | P66: * | Q66: * | R66: * | S66: * | T66: *
A67: QOP | B67: R0A | C67: MANCHESTER UNIVERSITY NHS FOUNDATION TRUST | D67: 40 | E67: 0.95 | F67: 0 | G67: 31 | H67: 7 | I67: 2 | J67: 0 | K67: 0 | L67: 0 | M67: 0 | N67: 40 | O67: 0 | P67: 0 | Q67: 0 | R67: 0 | S67: 0 | T67: 0
A68: QOP | B68: RWJ | C68: STOCKPORT NHS FOUNDATION TRUST | D68: 42 | E68: 0.9285714286 | F68: 0.02380952381 | G68: 27 | H68: 12 | I68: 2 | J68: 1 | K68: 0 | L68: 0 | M68: 0 | N68: 0 | O68: 0 | P68: 42 | Q68: 0 | R68: 0 | S68: 0 | T68: 0
A69: QOP | B69: RMP | C69: TAMESIDE AND GLOSSOP INTEGRATED CARE NHS FOUNDATION TRUST | D69: 51 | E69: 0.9607843137 | F69: 0.03921568627 | G69: 44 | H69: 5 | I69: 0 | J69: 1 | K69: 1 | L69: 0 | M69: 0 | N69: 0 | O69: 0 | P69: 51 | Q69: 0 | R69: 0 | S69: 0 | T69: 0
A70: QOP | B70: RRF | C70: WRIGHTINGTON, WIGAN AND LEIGH NHS FOUNDATION TRUST | D70: 12 | E70: 1 | F70: 0 | G70: 10 | H70: 2 | I70: 0 | J70: 0 | K70: 0 | L70: 0 | M70: 0 | N70: 0 | O70: 0 | P70: 12 | Q70: 0 | R70: 0 | S70: 0 | T70: 0
A71: QOQ | B71: RCD | C71: HARROGATE AND DISTRICT NHS FOUNDATION TRUST | D71: 7 | E71: 1 | F71: 0 | G71: * | H71: * | I71: * | J71: * | K71: * | L71: * | M71: * | N71: * | O71: * | P71: * | Q71: * | R71: * | S71: * | T71: *
A72: QOQ | B72: RWA | C72: HULL UNIVERSITY TEACHING HOSPITALS NHS TRUST | D72: 6 | E72: 1 | F72: 0 | G72: 6 | H72: 0 | I72: 0 | J72: 0 | K72: 0 | L72: 0 | M72: 0 | N72: 0 | O72: 0 | P72: 6 | Q72: 0 | R72: 0 | S72: 0 | T72: 0
A73: QOQ | B73: RJL | C73: NORTHERN LINCOLNSHIRE AND GOOLE NHS FOUNDATION TRUST | D73: 2 | E73: * | F73: * | G73: * | H73: * | I73: * | J73: * | K73: * | L73: * | M73: * | N73: * | O73: * | P73: * | Q73: * | R73: * | S73: * | T73: *
A74: QOX | B74: RN3 | C74: GREAT WESTERN HOSPITALS NHS FOUNDATION TRUST | D74: 2 | E74: * | F74: * | G74: * | H74: * | I74: * | J74: * | K74: * | L74: * | M74: * | N74: * | O74: * | P74: * | Q74: * | R74: * | S74: * | T74: *
A75: QOX | B75: RD1 | C75: ROYAL UNITED HOSPITALS BATH NHS FOUNDATION TRUST | D75: 1 | E75: * | F75: * | G75: * | H75: * | I75: * | J75: * | K75: * | L75: * | M75: * | N75: * | O75: * | P75: * | Q75: * | R75: * | S75: * | T75: *
A76: QOX | B76: RNZ | C76: SALISBURY NHS FOUNDATION TRUST | D76: 0 | E76: NA | F76: NA | G76: 0 | H76: 0 | I76: 0 | J76: 0 | K76: 0 | L76: 0 | M76: 0 | N76: 0 | O76: 0 | P76: 0 | Q76: 0 | R76: 0 | S76: 0 | T76: 0
A77: QPM | B77: RNQ | C77: KETTERING GENERAL HOSPITAL NHS FOUNDATION TRUST | D77: 4 | E77: * | F77: * | G77: * | H77: * | I77: * | J77: * | K77: * | L77: * | M77: * | N77: * | O77: * | P77: * | Q77: * | R77: * | S77: * | T77: *
A78: QPM | B78: RNS | C78: NORTHAMPTON GENERAL HOSPITAL NHS TRUST | D78: 4 | E78: * | F78: * | G78: * | H78: * | I78: * | J78: * | K78: * | L78: * | M78: * | N78: * | O78: * | P78: * | Q78: * | R78: * | S78: * | T78: *
A79: QR1 | B79: RTE | C79: GLOUCESTERSHIRE HOSPITALS NHS FOUNDATION TRUST | D79: 0 | E79: NA | F79: NA | G79: 0 | H79: 0 | I79: 0 | J79: 0 | K79: 0 | L79: 0 | M79: 0 | N79: 0 | O79: 0 | P79: 0 | Q79: 0 | R79: 0 | S79: 0 | T79: 0
A80: QRL | B80: RN5 | C80: HAMPSHIRE HOSPITALS NHS FOUNDATION TRUST | D80: 4 | E80: * | F80: * | G80: * | H80: * | I80: * | J80: * | K80: * | L80: * | M80: * | N80: * | O80: * | P80: * | Q80: * | R80: * | S80: * | T80: *
A81: QRL | B81: R1F | C81: ISLE OF WIGHT NHS TRUST | D81: 11 | E81: 1 | F81: 0 | G81: 9 | H81: 2 | I81: 0 | J81: 0 | K81: 0 | L81: 0 | M81: 0 | N81: 0 | O81: 0 | P81: 11 | Q81: 0 | R81: 0 | S81: 0 | T81: 0
A82: QRL | B82: RHU | C82: PORTSMOUTH HOSPITALS UNIVERSITY NATIONAL HEALTH SERVICE TRUST | D82: 130 | E82: 0.9692307692 | F82: 0 | G82: 101 | H82: 25 | I82: 3 | J82: 0 | K82: 0 | L82: 1 | M82: 0 | N82: 0 | O82: 0 | P82: 130 | Q82: 0 | R82: 0 | S82: 0 | T82: 0
A83: QRL | B83: RHM | C83: UNIVERSITY HOSPITAL SOUTHAMPTON NHS FOUNDATION TRUST | D83: 31 | E83: 0.9032258065 | F83: 0.03225806452 | G83: 18 | H83: 10 | I83: 1 | J83: 0 | K83: 1 | L83: 1 | M83: 0 | N83: 0 | O83: 0 | P83: 0 | Q83: 7 | R83: 0 | S83: 24 | T83: 0
A84: QRV | B84: RQM | C84: CHELSEA AND WESTMINSTER HOSPITAL NHS FOUNDATION TRUST | D84: 33 | E84: 0.7878787879 | F84: 0.1818181818 | G84: 20 | H84: 6 | I84: 0 | J84: 1 | K84: 5 | L84: 1 | M84: 30 | N84: 0 | O84: 0 | P84: 0 | Q84: 0 | R84: 0 | S84: 3 | T84: 0
A85: QRV | B85: RYJ | C85: IMPERIAL COLLEGE HEALTHCARE NHS TRUST | D85: 50 | E85: 0.82 | F85: 0.1 | G85: 35 | H85: 6 | I85: 2 | J85: 2 | K85: 3 | L85: 2 | M85: 0 | N85: 0 | O85: 0 | P85: 0 | Q85: 0 | R85: 0 | S85: 0 | T85: 50
A86: QRV | B86: R1K | C86: LONDON NORTH WEST UNIVERSITY HEALTHCARE NHS TRUST | D86: 1 | E86: * | F86: * | G86: * | H86: * | I86: * | J86: * | K86: * | L86: * | M86: * | N86: * | O86: * | P86: * | Q86: * | R86: * | S86: * | T86: *
A87: QRV | B87: RAS | C87: THE HILLINGDON HOSPITALS NHS FOUNDATION TRUST | D87: 162 | E87: 0.8641975309 | F87: 0.06790123457 | G87: * | H87: * | I87: * | J87: * | K87: * | L87: * | M87: * | N87: * | O87: * | P87: * | Q87: * | R87: * | S87: * | T87: *
A88: QSL | B88: RH5 | C88: SOMERSET NHS FOUNDATION TRUST | D88: 0 | E88: NA | F88: NA | G88: 0 | H88: 0 | I88: 0 | J88: 0 | K88: 0 | L88: 0 | M88: 0 | N88: 0 | O88: 0 | P88: 0 | Q88: 0 | R88: 0 | S88: 0 | T88: 0
A89: QSL | B89: RA4 | C89: YEOVIL DISTRICT HOSPITAL NHS FOUNDATION TRUST | D89: 21 | E89: 0.9047619048 | F89: 0.09523809524 | G89: 17 | H89: 2 | I89: 0 | J89: 0 | K89: 2 | L89: 0 | M89: 21 | N89: 0 | O89: 0 | P89: 0 | Q89: 0 | R89: 0 | S89: 0 | T89: 0
A90: QT1 | B90: RX1 | C90: NOTTINGHAM UNIVERSITY HOSPITALS NHS TRUST | D90: 11 | E90: 0.8181818182 | F90: 0.1818181818 | G90: 8 | H90: 1 | I90: 0 | J90: 0 | K90: 2 | L90: 0 | M90: 0 | N90: 3 | O90: 0 | P90: 0 | Q90: 8 | R90: 0 | S90: 0 | T90: 0
A91: QT1 | B91: RK5 | C91: SHERWOOD FOREST HOSPITALS NHS FOUNDATION TRUST | D91: 16 | E91: 0.8125 | F91: 0.0625 | G91: 12 | H91: 1 | I91: 2 | J91: 0 | K91: 1 | L91: 0 | M91: 16 | N91: 0 | O91: 0 | P91: 0 | Q91: 0 | R91: 0 | S91: 0 | T91: 0
A92: QT6 | B92: REF | C92: ROYAL CORNWALL HOSPITALS NHS TRUST | D92: 7 | E92: 1 | F92: 0 | G92: 6 | H92: 1 | I92: 0 | J92: 0 | K92: 0 | L92: 0 | M92: 0 | N92: 6 | O92: 0 | P92: 1 | Q92: 0 | R92: 0 | S92: 0 | T92: 0
A93: QU9 | B93: RXQ | C93: BUCKINGHAMSHIRE HEALTHCARE NHS TRUST | D93: 114 | E93: 0.8245614035 | F93: 0.1052631579 | G93: 76 | H93: 18 | I93: 8 | J93: 8 | K93: 4 | L93: 0 | M93: 114 | N93: 0 | O93: 0 | P93: 0 | Q93: 0 | R93: 0 | S93: 0 | T93: 0
A94: QU9 | B94: RTH | C94: OXFORD UNIVERSITY HOSPITALS NHS FOUNDATION TRUST | D94: 8 | E94: 0.875 | F94: 0 | G94: 7 | H94: 0 | I94: 1 | J94: 0 | K94: 0 | L94: 0 | M94: 0 | N94: 0 | O94: 0 | P94: 0 | Q94: 0 | R94: 0 | S94: 8 | T94: 0
A95: QU9 | B95: RHW | C95: ROYAL BERKSHIRE NHS FOUNDATION TRUST | D95: 0 | E95: NA | F95: NA | G95: 0 | H95: 0 | I95: 0 | J95: 0 | K95: 0 | L95: 0 | M95: 0 | N95: 0 | O95: 0 | P95: 0 | Q95: 0 | R95: 0 | S95: 0 | T95: 0
A96: QUA | B96: RNA | C96: THE DUDLEY GROUP NHS FOUNDATION TRUST | D96: 0 | E96: NA | F96: NA | G96: 0 | H96: 0 | I96: 0 | J96: 0 | K96: 0 | L96: 0 | M96: 0 | N96: 0 | O96: 0 | P96: 0 | Q96: 0 | R96: 0 | S96: 0 | T96: 0
A97: QUA | B97: RL4 | C97: THE ROYAL WOLVERHAMPTON NHS TRUST | D97: 16 | E97: 0.875 | F97: 0.0625 | G97: 8 | H97: 6 | I97: 1 | J97: 0 | K97: 1 | L97: 0 | M97: 16 | N97: 0 | O97: 0 | P97: 0 | Q97: 0 | R97: 0 | S97: 0 | T97: 0
A98: QUA | B98: RBK | C98: WALSALL HEALTHCARE NHS TRUST | D98: 10 | E98: 0.9 | F98: 0 | G98: 9 | H98: 0 | I98: 1 | J98: 0 | K98: 0 | L98: 0 | M98: 9 | N98: 0 | O98: 0 | P98: 0 | Q98: 0 | R98: 1 | S98: 0 | T98: 0
A99: QUE | B99: RGT | C99: CAMBRIDGE UNIVERSITY HOSPITALS NHS FOUNDATION TRUST | D99: 9 | E99: 1 | F99: 0 | G99: 7 | H99: 2 | I99: 0 | J99: 0 | K99: 0 | L99: 0 | M99: 0 | N99: 7 | O99: 0 | P99: 0 | Q99: 0 | R99: 0 | S99: 2 | T99: 0
A100: QUE | B100: RGN | C100: NORTH WEST ANGLIA NHS FOUNDATION TRUST | D100: 154 | E100: 0.974025974 | F100: 0.01298701299 | G100: 138 | H100: 12 | I100: 2 | J100: 1 | K100: 1 | L100: 0 | M100: 0 | N100: 0 | O100: 0 | P100: 154 | Q100: 0 | R100: 0 | S100: 0 | T100: 0
A101: QUY | B101: RVJ | C101: NORTH BRISTOL NHS TRUST | D101: 0 | E101: NA | F101: NA | G101: 0 | H101: 0 | I101: 0 | J101: 0 | K101: 0 | L101: 0 | M101: 0 | N101: 0 | O101: 0 | P101: 0 | Q101: 0 | R101: 0 | S101: 0 | T101: 0
A102: QUY | B102: RA7 | C102: UNIVERSITY HOSPITALS BRISTOL AND WESTON NHS FOUNDATION TRUST | D102: 30 | E102: 1 | F102: 0 | G102: 28 | H102: 2 | I102: 0 | J102: 0 | K102: 0 | L102: 0 | M102: 0 | N102: 0 | O102: 0 | P102: 30 | Q102: 0 | R102: 0 | S102: 0 | T102: 0
A103: QVV | B103: RBD | C103: DORSET COUNTY HOSPITAL NHS FOUNDATION TRUST | D103: 14 | E103: 0.9285714286 | F103: 0.07142857143 | G103: 10 | H103: 3 | I103: 0 | J103: 0 | K103: 1 | L103: 0 | M103: 14 | N103: 0 | O103: 0 | P103: 0 | Q103: 0 | R103: 0 | S103: 0 | T103: 0
A104: QVV | B104: R0D | C104: UNIVERSITY HOSPITALS DORSET NHS FOUNDATION TRUST | D104: 63 | E104: 0.8888888889 | F104: 0.04761904762 | G104: 45 | H104: 11 | I104: 4 | J104: 2 | K104: 1 | L104: 0 | M104: 62 | N104: 0 | O104: 0 | P104: 0 | Q104: 0 | R104: 0 | S104: 1 | T104: 0
A105: QWE | B105: RJ6 | C105: CROYDON HEALTH SERVICES NHS TRUST | D105: 65 | E105: 0.9384615385 | F105: 0.04615384615 | G105: 43 | H105: 18 | I105: 1 | J105: 0 | K105: 3 | L105: 0 | M105: 65 | N105: 0 | O105: 0 | P105: 0 | Q105: 0 | R105: 0 | S105: 0 | T105: 0
A106: QWE | B106: RVR | C106: EPSOM AND ST HELIER UNIVERSITY HOSPITALS NHS TRUST | D106: 10 | E106: 1 | F106: 0 | G106: 10 | H106: 0 | I106: 0 | J106: 0 | K106: 0 | L106: 0 | M106: 0 | N106: 0 | O106: 0 | P106: 7 | Q106: 0 | R106: 0 | S106: 3 | T106: 0
A107: QWE | B107: RAX | C107: KINGSTON HOSPITAL NHS FOUNDATION TRUST | D107: 28 | E107: 0.8928571429 | F107: 0.07142857143 | G107: 22 | H107: 3 | I107: 1 | J107: 1 | K107: 1 | L107: 0 | M107: 0 | N107: 28 | O107: 0 | P107: 0 | Q107: 0 | R107: 0 | S107: 0 | T107: 0
A108: QWE | B108: RJ7 | C108: ST GEORGE'S UNIVERSITY HOSPITALS NHS FOUNDATION TRUST | D108: 1 | E108: * | F108: * | G108: * | H108: * | I108: * | J108: * | K108: * | L108: * | M108: * | N108: * | O108: * | P108: * | Q108: * | R108: * | S108: * | T108: *
A109: QWO | B109: RCF | C109: AIREDALE NHS FOUNDATION TRUST | D109: 0 | E109: NA | F109: NA | G109: 0 | H109: 0 | I109: 0 | J109: 0 | K109: 0 | L109: 0 | M109: 0 | N109: 0 | O109: 0 | P109: 0 | Q109: 0 | R109: 0 | S109: 0 | T109: 0
A110: QWO | B110: RAE | C110: BRADFORD TEACHING HOSPITALS NHS FOUNDATION TRUST | D110: 0 | E110: NA | F110: NA | G110: 0 | H110: 0 | I110: 0 | J110: 0 | K110: 0 | L110: 0 | M110: 0 | N110: 0 | O110: 0 | P110: 0 | Q110: 0 | R110: 0 | S110: 0 | T110: 0
A111: QWO | B111: RWY | C111: CALDERDALE AND HUDDERSFIELD NHS FOUNDATION TRUST | D111: 54 | E111: 1 | F111: 0 | G111: * | H111: * | I111: * | J111: * | K111: * | L111: * | M111: * | N111: * | O111: * | P111: * | Q111: * | R111: * | S111: * | T111: *
A112: QWO | B112: RR8 | C112: LEEDS TEACHING HOSPITALS NHS TRUST | D112: 3 | E112: * | F112: * | G112: * | H112: * | I112: * | J112: * | K112: * | L112: * | M112: * | N112: * | O112: * | P112: * | Q112: * | R112: * | S112: * | T112: *
A113: QWO | B113: RXF | C113: MID YORKSHIRE HOSPITALS NHS TRUST | D113: 418 | E113: 0.956937799 | F113: 0.02631578947 | G113: 344 | H113: 56 | I113: 6 | J113: 5 | K113: 6 | L113: 1 | M113: 6 | N113: 0 | O113: 0 | P113: 0 | Q113: 406 | R113: 0 | S113: 6 | T113: 0
A114: QWU | B114: RLT | C114: GEORGE ELIOT HOSPITAL NHS TRUST | D114: 3 | E114: * | F114: * | G114: * | H114: * | I114: * | J114: * | K114: * | L114: * | M114: * | N114: * | O114: * | P114: * | Q114: * | R114: * | S114: * | T114: *
A115: QWU | B115: RJC | C115: SOUTH WARWICKSHIRE NHS FOUNDATION TRUST | D115: 2 | E115: * | F115: * | G115: * | H115: * | I115: * | J115: * | K115: * | L115: * | M115: * | N115: * | O115: * | P115: * | Q115: * | R115: * | S115: * | T115: *
A116: QWU | B116: RKB | C116: UNIVERSITY HOSPITALS COVENTRY AND WARWICKSHIRE NHS TRUST | D116: 1 | E116: * | F116: * | G116: * | H116: * | I116: * | J116: * | K116: * | L116: * | M116: * | N116: * | O116: * | P116: * | Q116: * | R116: * | S116: * | T116: *
A117: QXU | B117: RTK | C117: ASHFORD AND ST PETER'S HOSPITALS NHS FOUNDATION TRUST | D117: 0 | E117: NA | F117: NA | G117: 0 | H117: 0 | I117: 0 | J117: 0 | K117: 0 | L117: 0 | M117: 0 | N117: 0 | O117: 0 | P117: 0 | Q117: 0 | R117: 0 | S117: 0 | T117: 0
A118: QXU | B118: RA2 | C118: ROYAL SURREY COUNTY HOSPITAL NHS FOUNDATION TRUST | D118: 2 | E118: * | F118: * | G118: * | H118: * | I118: * | J118: * | K118: * | L118: * | M118: * | N118: * | O118: * | P118: * | Q118: * | R118: * | S118: * | T118: *
A119: QXU | B119: RTP | C119: SURREY AND SUSSEX HEALTHCARE NHS TRUST | D119: 1 | E119: * | F119: * | G119: * | H119: * | I119: * | J119: * | K119: * | L119: * | M119: * | N119: * | O119: * | P119: * | Q119: * | R119: * | S119: * | T119: *
A120: QYG | B120: RJN | C120: EAST CHESHIRE NHS TRUST | D120: 0 | E120: NA | F120: NA | G120: 0 | H120: 0 | I120: 0 | J120: 0 | K120: 0 | L120: 0 | M120: 0 | N120: 0 | O120: 0 | P120: 0 | Q120: 0 | R120: 0 | S120: 0 | T120: 0
A121: QYG | B121: REP | C121: LIVERPOOL WOMEN'S NHS FOUNDATION TRUST | D121: 15 | E121: 0.8666666667 | F121: 0.06666666667 | G121: 10 | H121: 3 | I121: 0 | J121: 1 | K121: 0 | L121: 1 | M121: 0 | N121: 0 | O121: 0 | P121: 0 | Q121: 0 | R121: 0 | S121: 0 | T121: 15
A122: QYG | B122: RBT | C122: MID CHESHIRE HOSPITALS NHS FOUNDATION TRUST | D122: 26 | E122: 0.9615384615 | F122: 0 | G122: 22 | H122: 3 | I122: 0 | J122: 0 | K122: 0 | L122: 1 | M122: 26 | N122: 0 | O122: 0 | P122: 0 | Q122: 0 | R122: 0 | S122: 0 | T122: 0
A123: QYG | B123: RVY | C123: SOUTHPORT AND ORMSKIRK HOSPITAL NHS TRUST | D123: 1 | E123: * | F123: * | G123: * | H123: * | I123: * | J123: * | K123: * | L123: * | M123: * | N123: * | O123: * | P123: * | Q123: * | R123: * | S123: * | T123: *
A124: QYG | B124: RBN | C124: ST HELENS AND KNOWSLEY TEACHING HOSPITALS NHS TRUST | D124: 61 | E124: 0.9344262295 | F124: 0.01639344262 | G124: 47 | H124: 10 | I124: 3 | J124: 1 | K124: 0 | L124: 0 | M124: 1 | N124: 0 | O124: 0 | P124: 50 | Q124: 0 | R124: 0 | S124: 10 | T124: 0
A125: QYG | B125: RWW | C125: WARRINGTON AND HALTON TEACHING HOSPITALS NHS FOUNDATION TRUST | D125: 0 | E125: NA | F125: NA | G125: 0 | H125: 0 | I125: 0 | J125: 0 | K125: 0 | L125: 0 | M125: 0 | N125: 0 | O125: 0 | P125: 0 | Q125: 0 | R125: 0 | S125: 0 | T125: 0
A126: QYG | B126: RBL | C126: WIRRAL UNIVERSITY TEACHING HOSPITAL NHS FOUNDATION TRUST | D126: 37 | E126: 0.9459459459 | F126: 0.02702702703 | G126: 32 | H126: 3 | I126: 1 | J126: 0 | K126: 1 | L126: 0 | M126: 33 | N126: 0 | O126: 0 | P126: 4 | Q126: 0 | R126: 0 | S126: 0 | T126: 0

Sheet Sites Q1
B6: Sort data by:
A9: STP Code | B9: Trust Code | C9: Trust Name | D9: Site Code | E9: Site Name | F9: Total Responses | G9: Percentage Positive | H9: Percentage Negative | I9: Breakdown of Responses
I10: Very Good | J10: Good | K10: Neither Good nor Poor | L10: Poor | M10: Very Poor | N10: Don't Know
E11: England (including Independent Sector providers) | F11: 3520 | G11: 0.9122159091 | H11: 0.04176136364 | I11: 2550 | J11: 661 | K11: 145 | L11: 65 | M11: 82 | N11: 17
E12: England (excluding Independent Sector providers) | F12: 3520 | G12: 0.9122159091 | H12: 0.04176136364 | I12: 2550 | J12: 661 | K12: 145 | L12: 65 | M12: 82 | N12: 17
E13: Selection (excluding suppressed data) | F13: =SUBTOTAL(9,F14:F297) -> 3520 | G13: =IFERROR((I13+J13)/SUM(I13:N13), "-") -> 0.9216198563 | H13: =IFERROR((L13+M13)/SUM(I13:N13), "-") -> 0.03625081646 | I13: =SUBTOTAL(9,I14:I297) -> 2279 | J13: 543 | K13: 113 | L13: 49 | M13: 62 | N13: 16
A14: QE1 | B14: RXL | C14: BLACKPOOL TEACHING HOSPITALS NHS FOUNDATION TRUST | D14: RXL01 | E14: Blackpool Victoria Hospital | F14: 2 | G14: * | H14: * | I14: * | J14: * | K14: * | L14: * | M14: * | N14: *
A15: QE1 | B15: RXR | C15: EAST LANCASHIRE HOSPITALS NHS TRUST | D15: RXR20 | E15: Royal Blackburn Hospital | F15: 85 | G15: 0.9411764706 | H15: 0.02352941176 | I15: 59 | J15: 21 | K15: 2 | L15: 0 | M15: 2 | N15: 1
A16: QE1 | B16: RXN | C16: LANCASHIRE TEACHING HOSPITALS NHS FOUNDATION TRUST | D16: RXN01 | E16: Chorley and South Ribble Hospital | F16: 0 | G16: NA | H16: NA | I16: 0 | J16: 0 | K16: 0 | L16: 0 | M16: 0 | N16: 0
A17: QE1 | B17: RXN | C17: LANCASHIRE TEACHING HOSPITALS NHS FOUNDATION TRUST | D17: RXN02 | E17: Royal Preston Hospital | F17: 20 | G17: 0.85 | H17: 0.1 | I17: * | J17: * | K17: * | L17: * | M17: * | N17: *
A18: QF7 | B18: RFF | C18: BARNSLEY HOSPITAL NHS FOUNDATION TRUST | D18: RFFAA | E18: Barnsley Hospital NHS Foundation Trust HQ | F18: 3 | G18: * | H18: * | I18: * | J18: * | K18: * | L18: * | M18: * | N18: *
A19: QF7 | B19: RP5 | C19: DONCASTER AND BASSETLAW TEACHING HOSPITALS NHS FOUNDATION TRUST | D19: RP5BA | E19: Bassetlaw Hospital | F19: 0 | G19: NA | H19: NA | I19: 0 | J19: 0 | K19: 0 | L19: 0 | M19: 0 | N19: 0
A20: QF7 | B20: RP5 | C20: DONCASTER AND BASSETLAW TEACHING HOSPITALS NHS FOUNDATION TRUST | D20: RP5DR | E20: Doncaster Royal Infirmary | F20: 0 | G20: NA | H20: NA | I20: 0 | J20: 0 | K20: 0 | L20: 0 | M20: 0 | N20: 0
A21: QF7 | B21: RP5 | C21: DONCASTER AND BASSETLAW TEACHING HOSPITALS NHS FOUNDATION TRUST | D21: RP5XXX | E21: Non-hospital site | F21: 0 | G21: NA | H21: NA | I21: 0 | J21: 0 | K21: 0 | L21: 0 | M21: 0 | N21: 0
A22: QF7 | B22: RHQ | C22: SHEFFIELD TEACHING HOSPITALS NHS FOUNDATION TRUST | D22: RHQHH | E22: Royal Hallamshire Hospital | F22: 27 | G22: 0.6666666667 | H22: 0.2222222222 | I22: 12 | J22: 6 | K22: 1 | L22: 3 | M22: 3 | N22: 2
A23: QF7 | B23: RFR | C23: THE ROTHERHAM NHS FOUNDATION TRUST | D23: RFRPA | E23: Rotherham District General Hospital | F23: 1 | G23: * | H23: * | I23: * | J23: * | K23: * | L23: * | M23: * | N23: *
A24: QGH | B24: RWP | C24: WORCESTERSHIRE ACUTE HOSPITALS NHS TRUST | D24: RWP01 | E24: Alexandra Hospital | F24: 0 | G24: NA | H24: NA | I24: 0 | J24: 0 | K24: 0 | L24: 0 | M24: 0 | N24: 0
A25: QGH | B25: RWP | C25: WORCESTERSHIRE ACUTE HOSPITALS NHS TRUST | D25: RWP31 | E25: Kidderminster Hospital | F25: 0 | G25: NA | H25: NA | I25: 0 | J25: 0 | K25: 0 | L25: 0 | M25: 0 | N25: 0
A26: QGH | B26: RWP | C26: WORCESTERSHIRE ACUTE HOSPITALS NHS TRUST | D26: RWP50 | E26: Worcestershire Royal Hospital | F26: 2 | G26: * | H26: * | I26: * | J26: * | K26: * | L26: * | M26: * | N26: *
A27: QGH | B27: RLQ | C27: WYE VALLEY NHS TRUST | D27: RLQ01 | E27: Hereford County Hospital | F27: 0 | G27: NA | H27: NA | I27: 0 | J27: 0 | K27: 0 | L27: 0 | M27: 0 | N27: 0
A28: QH8 | B28: RAJ | C28: MID AND SOUTH ESSEX NHS FOUNDATION TRUST | D28: RAJ12 | E28: BASILDON HOSPITAL | F28: 1 | G28: * | H28: * | I28: * | J28: * | K28: * | L28: * | M28: * | N28: *
A29: QHG | B29: RC9 | C29: BEDFORDSHIRE HOSPITALS NHS FOUNDATION TRUST | D29: RC979 | E29: BEDFORD HOSPITAL SOUTH WING | F29: 41 | G29: 1 | H29: 0 | I29: 33 | J29: 8 | K29: 0 | L29: 0 | M29: 0 | N29: 0
A30: QHG | B30: RC9 | C30: BEDFORDSHIRE HOSPITALS NHS FOUNDATION TRUST | D30: RC971 | E30: Luton and Dunstable Hospital | F30: 27 | G30: 0.7777777778 | H30: 0.07407407407 | I30: 7 | J30: 14 | K30: 4 | L30: 2 | M30: 0 | N30: 0
A31: QHG | B31: RD8 | C31: MILTON KEYNES UNIVERSITY HOSPITAL NHS FOUNDATION TRUST | D31: RD816 | E31: Milton Keynes Hospital | F31: 275 | G31: 0.9309090909 | H31: 0.01454545455 | I31: 199 | J31: 57 | K31: 10 | L31: 0 | M31: 4 | N31: 5
A32: QHL | B32: RQ3 | C32: BIRMINGHAM WOMEN'S AND CHILDREN'S NHS FOUNDATION TRUST | D32: RQ370 | E32: Birmingham Women's Hospital | F32: 127 | G32: 0.8267716535 | H32: 0.07874015748 | I32: * | J32: * | K32: * | L32: * | M32: * | N32: *
A33: QHL | B33: RRK | C33: UNIVERSITY HOSPITALS BIRMINGHAM NHS FOUNDATION TRUST | D33: RRK98 | E33: Good Hope Hospital | F33: 0 | G33: NA | H33: NA | I33: 0 | J33: 0 | K33: 0 | L33: 0 | M33: 0 | N33: 0
A34: QHL | B34: RRK | C34: UNIVERSITY HOSPITALS BIRMINGHAM NHS FOUNDATION TRUST | D34: RRK97 | E34: Heartlands Hospital | F34: 2 | G34: * | H34: * | I34: * | J34: * | K34: * | L34: * | M34: * | N34: *
A35: QHL | B35: RRK | C35: UNIVERSITY HOSPITALS BIRMINGHAM NHS FOUNDATION TRUST | D35: RRK99 | E35: Solihull Hospital | F35: 0 | G35: NA | H35: NA | I35: 0 | J35: 0 | K35: 0 | L35: 0 | M35: 0 | N35: 0
A36: QHM | B36: RR7 | C36: GATESHEAD HEALTH NHS FOUNDATION TRUST | D36: RR7EN | E36: Queen Elizabeth Hospital | F36: 5 | G36: 1 | H36: 0 | I36: * | J36: * | K36: * | L36: * | M36: * | N36: *
A37: QHM | B37: RNN | C37: NORTH CUMBRIA INTEGRATED CARE NHS FOUNDATION TRUST | D37: RNNXXX | E37: Non-hospital site | F37: 1 | G37: * | H37: * | I37: * | J37: * | K37: * | L37: * | M37: * | N37: *
A38: QHM | B38: RVW | C38: NORTH TEES AND HARTLEPOOL NHS FOUNDATION TRUST | D38: RVWXXX | E38: Non-hospital site | F38: 3 | G38: * | H38: * | I38: * | J38: * | K38: * | L38: * | M38: * | N38: *
A39: QHM | B39: RVW | C39: NORTH TEES AND HARTLEPOOL NHS FOUNDATION TRUST | D39: RVWAE | E39: University Hospital Of North Tees | F39: 8 | G39: 1 | H39: 0 | I39: 6 | J39: 2 | K39: 0 | L39: 0 | M39: 0 | N39: 0
A40: QHM | B40: RTR | C40: SOUTH TEES HOSPITALS NHS FOUNDATION TRUST | D40: RTR45 | E40: Friarage Hospital Site | F40: 0 | G40: NA | H40: NA | I40: 0 | J40: 0 | K40: 0 | L40: 0 | M40: 0 | N40: 0
A41: QHM | B41: RTR | C41: SOUTH TEES HOSPITALS NHS FOUNDATION TRUST | D41: RTRAT | E41: The James Cook University Hospital | F41: 62 | G41: 0.9193548387 | H41: 0.06451612903 | I41: 42 | J41: 15 | K41: 1 | L41: 4 | M41: 0 | N41: 0
A42: QHM | B42: R0B | C42: SOUTH TYNESIDE AND SUNDERLAND NHS FOUNDATION TRUST | D42: R0BXXX | E42: Non-hospital site | F42: 0 | G42: NA | H42: NA | I42: 0 | J42: 0 | K42: 0 | L42: 0 | M42: 0 | N42: 0
A43: QHM | B43: R0B | C43: SOUTH TYNESIDE AND SUNDERLAND NHS FOUNDATION TRUST | D43: R0B0Q | E43: South Tyneside District Hospital | F43: 0 | G43: NA | H43: NA | I43: 0 | J43: 0 | K43: 0 | L43: 0 | M43: 0 | N43: 0
A44: QHM | B44: R0B | C44: SOUTH TYNESIDE AND SUNDERLAND NHS FOUNDATION TRUST | D44: R0B01 | E44: Sunderland Royal Hospital | F44: 0 | G44: NA | H44: NA | I44: 0 | J44: 0 | K44: 0 | L44: 0 | M44: 0 | N44: 0
A45: QHM | B45: RTD | C45: THE NEWCASTLE UPON TYNE HOSPITALS NHS FOUNDATION TRUST | D45: RTD02 | E45: The Royal Victoria Infirmary | F45: 2 | G45: * | H45: * | I45: * | J45: * | K45: * | L45: * | M45: * | N45: *
A46: QJ2 | B46: RTG | C46: UNIVERSITY HOSPITALS OF DERBY AND BURTON NHS FOUNDATION TRUST | D46: RTG02 | E46: Queens Hospital, Burton Upon Trent | F46: 4 | G46: * | H46: * | I46: * | J46: * | K46: * | L46: * | M46: * | N46: *
A47: QJG | B47: RDE | C47: EAST SUFFOLK AND NORTH ESSEX NHS FOUNDATION TRUST | D47: RDEE4 | E47: Colchester General Hospital | F47: 0 | G47: NA | H47: NA | I47: 0 | J47: 0 | K47: 0 | L47: 0 | M47: 0 | N47: 0
A48: QJG | B48: RDE | C48: EAST SUFFOLK AND NORTH ESSEX NHS FOUNDATION TRUST | D48: RDE03 | E48: Ipswich Hospital | F48: 9 | G48: 1 | H48: 0 | I48: 7 | J48: 2 | K48: 0 | L48: 0 | M48: 0 | N48: 0
A49: QJG | B49: RGR | C49: WEST SUFFOLK NHS FOUNDATION TRUST | D49: RGR50 | E49: West Suffolk Hospital | F49: 31 | G49: 0.935483871 | H49: 0.06451612903 | I49: 24 | J49: 5 | K49: 0 | L49: 2 | M49: 0 | N49: 0
A50: QJK | B50: RBZ | C50: NORTHERN DEVON HEALTHCARE NHS TRUST | D50: RBZ12 | E50: North Devon District Hospital | F50: 13 | G50: 0.9230769231 | H50: 0 | I50: 12 | J50: 0 | K50: 1 | L50: 0 | M50: 0 | N50: 0
A51: QJK | B51: RH8 | C51: ROYAL DEVON AND EXETER NHS FOUNDATION TRUST | D51: RH854 | E51: Honiton Hospital - RH 854 | F51: 1 | G51: * | H51: * | I51: * | J51: * | K51: * | L51: * | M51: * | N51: *
A52: QJK | B52: RH8 | C52: ROYAL DEVON AND EXETER NHS FOUNDATION TRUST | D52: RH801 | E52: Royal Devon and Exeter Hospital (Wonford) | F52: 31 | G52: 0.1935483871 | H52: 0 | I52: 0 | J52: 6 | K52: 25 | L52: 0 | M52: 0 | N52: 0
A53: QJK | B53: RA9 | C53: TORBAY AND SOUTH DEVON NHS FOUNDATION TRUST | D53: RA901 | E53: Torbay Hospital | F53: 1 | G53: * | H53: * | I53: * | J53: * | K53: * | L53: * | M53: * | N53: *
A54: QJK | B54: RK9 | C54: UNIVERSITY HOSPITALS PLYMOUTH NHS TRUST | D54: RK950 | E54: Derriford Hospital | F54: 1 | G54: * | H54: * | I54: * | J54: * | K54: * | L54: * | M54: * | N54: *
A55: QJK | B55: RK9 | C55: UNIVERSITY HOSPITALS PLYMOUTH NHS TRUST | D55: RK9XXX | E55: Non-hospital site | F55: 6 | G55: 1 | H55: 0 | I55: * | J55: * | K55: * | L55: * | M55: * | N55: *
A56: QJM | B56: RWD | C56: UNITED LINCOLNSHIRE HOSPITALS NHS TRUST | D56: RWDLP | E56: Grantham and District Hospital | F56: 0 | G56: NA | H56: NA | I56: 0 | J56: 0 | K56: 0 | L56: 0 | M56: 0 | N56: 0
A57: QJM | B57: RWD | C57: UNITED LINCOLNSHIRE HOSPITALS NHS TRUST | D57: RWDDA | E57: Lincoln County Hospital | F57: 0 | G57: NA | H57: NA | I57: 0 | J57: 0 | K57: 0 | L57: 0 | M57: 0 | N57: 0
A58: QJM | B58: RWD | C58: UNITED LINCOLNSHIRE HOSPITALS NHS TRUST | D58: RWDLA | E58: Pilgrim Hospital | F58: 0 | G58: NA | H58: NA | I58: 0 | J58: 0 | K58: 0 | L58: 0 | M58: 0 | N58: 0
A59: QK1 | B59: RWE | C59: UNIVERSITY HOSPITALS OF LEICESTER NHS TRUST | D59: RWEAK | E59: Leicester General Hospital | F59: 22 | G59: 1 | H59: 0 | I59: 16 | J59: 6 | K59: 0 | L59: 0 | M59: 0 | N59: 0
A60: QK1 | B60: RWE | C60: UNIVERSITY HOSPITALS OF LEICESTER NHS TRUST | D60: RWEAA | E60: Leicester Royal Infirmary | F60: 29 | G60: 0.9655172414 | H60: 0 | I60: 17 | J60: 11 | K60: 1 | L60: 0 | M60: 0 | N60: 0
A61: QK1 | B61: RWE | C61: UNIVERSITY HOSPITALS OF LEICESTER NHS TRUST | D61: RWEXXX | E61: Non-hospital site | F61: 25 | G61: 1 | H61: 0 | I61: 24 | J61: 1 | K61: 0 | L61: 0 | M61: 0 | N61: 0
A62: QKK | B62: RJ1 | C62: GUY'S AND ST THOMAS' NHS FOUNDATION TRUST | D62: RJ122 | E62: St Thomas' Hospital | F62: 66 | G62: 0.8939393939 | H62: 0.0303030303 | I62: 41 | J62: 18 | K62: 5 | L62: 0 | M62: 2 | N62: 0
A63: QKK | B63: RJZ | C63: KING'S COLLEGE HOSPITAL NHS FOUNDATION TRUST | D63: RJZ01 | E63: King's College Hospital (Denmark Hill) | F63: 5 | G63: 1 | H63: 0 | I63: 5 | J63: 0 | K63: 0 | L63: 0 | M63: 0 | N63: 0
A64: QKK | B64: RJZ | C64: KING'S COLLEGE HOSPITAL NHS FOUNDATION TRUST | D64: RJZ30 | E64: Princess Royal University Hospital | F64: 8 | G64: 0.875 | H64: 0.125 | I64: 5 | J64: 2 | K64: 0 | L64: 0 | M64: 1 | N64: 0
A65: QKK | B65: RJ2 | C65: LEWISHAM AND GREENWICH NHS TRUST | D65: RJ2XXX | E65: Non-hospital site | F65: 0 | G65: NA | H65: NA | I65: 0 | J65: 0 | K65: 0 | L65: 0 | M65: 0 | N65: 0
A66: QKK | B66: RJ2 | C66: LEWISHAM AND GREENWICH NHS TRUST | D66: RJ231 | E66: Queen Elizabeth Hospital | F66: 0 | G66: NA | H66: NA | I66: 0 | J66: 0 | K66: 0 | L66: 0 | M66: 0 | N66: 0
A67: QKK | B67: RJ2 | C67: LEWISHAM AND GREENWICH NHS TRUST | D67: RJ224 | E67: University Hospital Lewisham | F67: 26 | G67: 1 | H67: 0 | I67: 16 | J67: 10 | K67: 0 | L67: 0 | M67: 0 | N67: 0
A68: QKS | B68: RN7 | C68: DARTFORD AND GRAVESHAM NHS TRUST | D68: RN707 | E68: Darent Valley Hospital | F68: 4 | G68: * | H68: * | I68: * | J68: * | K68: * | L68: * | M68: * | N68: *
A69: QKS | B69: RVV | C69: EAST KENT HOSPITALS UNIVERSITY NHS FOUNDATION TRUST | D69: RVV01 | E69: William Harvey Hospital (Ashford) | F69: 324 | G69: 0.8919753086 | H69: 0.06172839506 | I69: 217 | J69: 72 | K69: 15 | L69: 11 | M69: 9 | N69: 0
A70: QKS | B70: RWF | C70: MAIDSTONE AND TUNBRIDGE WELLS NHS TRUST | D70: RWF03 | E70: Maidstone District General Hospital | F70: 0 | G70: NA | H70: NA | I70: 0 | J70: 0 | K70: 0 | L70: 0 | M70: 0 | N70: 0
A71: QKS | B71: RWF | C71: MAIDSTONE AND TUNBRIDGE WELLS NHS TRUST | D71: RWFXXX | E71: Non-hospital site | F71: 2 | G71: * | H71: * | I71: * | J71: * | K71: * | L71: * | M71: * | N71: *
A72: QKS | B72: RWF | C72: MAIDSTONE AND TUNBRIDGE WELLS NHS TRUST | D72: RWFTW | E72: The Tunbridge Wells Hospital | F72: 2 | G72: * | H72: * | I72: * | J72: * | K72: * | L72: * | M72: * | N72: *
A73: QKS | B73: RPA | C73: MEDWAY NHS FOUNDATION TRUST | D73: RPA02 | E73: Medway Maritime Hospital | F73: 75 | G73: 1 | H73: 0 | I73: 74 | J73: 1 | K73: 0 | L73: 0 | M73: 0 | N73: 0
A74: QM7 | B74: RWH | C74: EAST AND NORTH HERTFORDSHIRE NHS TRUST | D74: RWH01 | E74: Lister Hospital | F74: 1 | G74: * | H74: * | I74: * | J74: * | K74: * | L74: * | M74: * | N74: *
A75: QM7 | B75: RWH | C75: EAST AND NORTH HERTFORDSHIRE NHS TRUST | D75: RWHXXX | E75: Non-hospital site | F75: 0 | G75: NA | H75: NA | I75: 0 | J75: 0 | K75: 0 | L75: 0 | M75: 0 | N75: 0
A76: QM7 | B76: RWG | C76: WEST HERTFORDSHIRE TEACHING HOSPITALS NHS TRUST | D76: RWG02 | E76: Watford General Hospital | F76: 15 | G76: 0.8 | H76: 0 | I76: * | J76: * | K76: * | L76: * | M76: * | N76: *
A77: QMF | B77: RF4 | C77: BARKING, HAVERING AND REDBRIDGE UNIVERSITY HOSPITALS NHS TRUST | D77: RF4XXX | E77: Non-hospital site | F77: 28 | G77: 0.9285714286 | H77: 0.07142857143 | I77: 25 | J77: 1 | K77: 0 | L77: 0 | M77: 2 | N77: 0
A78: QMF | B78: R1H | C78: BARTS HEALTH NHS TRUST | D78: R1HNH | E78: Newham General Hospital | F78: 51 | G78: 0.9411764706 | H78: 0.05882352941 | I78: 43 | J78: 5 | K78: 0 | L78: 1 | M78: 2 | N78: 0
A79: QMF | B79: R1H | C79: BARTS HEALTH NHS TRUST | D79: R1H12 | E79: The Royal London Hospital | F79: 14 | G79: 0.9285714286 | H79: 0 | I79: 12 | J79: 1 | K79: 1 | L79: 0 | M79: 0 | N79: 0
A80: QMF | B80: R1H | C80: BARTS HEALTH NHS TRUST | D80: R1HKH | E80: Whipps Cross University Hospital | F80: 25 | G80: 0.92 | H80: 0.04 | I80: 19 | J80: 4 | K80: 1 | L80: 1 | M80: 0 | N80: 0
A81: QMF | B81: RQX | C81: HOMERTON UNIVERSITY HOSPITAL NHS FOUNDATION TRUST | D81: RQXM1 | E81: Homerton University Hospital | F81: 31 | G81: 0.935483871 | H81: 0.03225806452 | I81: 22 | J81: 7 | K81: 1 | L81: 0 | M81: 1 | N81: 0
A82: QMJ | B82: RAP | C82: NORTH MIDDLESEX UNIVERSITY HOSPITAL NHS TRUST | D82: RAPNM | E82: North Middlesex Hospital | F82: 0 | G82: NA | H82: NA | I82: 0 | J82: 0 | K82: 0 | L82: 0 | M82: 0 | N82: 0
A83: QMJ | B83: RAL | C83: ROYAL FREE LONDON NHS FOUNDATION TRUST | D83: RAL26 | E83: Barnet Hospital | F83: 14 | G83: 0.4285714286 | H83: 0.4285714286 | I83: * | J83: * | K83: * | L83: * | M83: * | N83: *
A84: QMJ | B84: RAL | C84: ROYAL FREE LONDON NHS FOUNDATION TRUST | D84: RAL01 | E84: Royal Free Hospital | F84: 3 | G84: * | H84: * | I84: * | J84: * | K84: * | L84: * | M84: * | N84: *
A85: QMJ | B85: RKE | C85: WHITTINGTON HEALTH NHS TRUST | D85: RKEXXX | E85: Non-hospital site | F85: 0 | G85: NA | H85: NA | I85: 0 | J85: 0 | K85: 0 | L85: 0 | M85: 0 | N85: 0
A86: QMJ | B86: RKE | C86: WHITTINGTON HEALTH NHS TRUST | D86: RKEQ4 | E86: The Whittington Hospital | F86: 3 | G86: * | H86: * | I86: * | J86: * | K86: * | L86: * | M86: * | N86: *
A87: QMM | B87: RGP | C87: JAMES PAGET UNIVERSITY HOSPITALS NHS FOUNDATION TRUST | D87: RGP75 | E87: James Paget University Hospital | F87: 0 | G87: NA | H87: NA | I87: 0 | J87: 0 | K87: 0 | L87: 0 | M87: 0 | N87: 0
A88: QMM | B88: RM1 | C88: NORFOLK AND NORWICH UNIVERSITY HOSPITALS NHS FOUNDATION TRUST | D88: RM102 | E88: Norfolk and Norwich University Hospital | F88: 61 | G88: 0.9016393443 | H88: 0.03278688525 | I88: 23 | J88: 32 | K88: 4 | L88: 1 | M88: 1 | N88: 0
A89: QMM | B89: RCX | C89: THE QUEEN ELIZABETH HOSPITAL, KING'S LYNN, NHS FOUNDATION TRUST | D89: RCXXXX | E89: Non-hospital site | F89: 2 | G89: * | H89: * | I89: * | J89: * | K89: * | L89: * | M89: * | N89: *
A90: QMM | B90: RCX | C90: THE QUEEN ELIZABETH HOSPITAL, KING'S LYNN, NHS FOUNDATION TRUST | D90: RCX66 | E90: North Cambridgeshire Hospital | F90: 0 | G90: NA | H90: NA | I90: 0 | J90: 0 | K90: 0 | L90: 0 | M90: 0 | N90: 0
A91: QMM | B91: RCX | C91: THE QUEEN ELIZABETH HOSPITAL, KING'S LYNN, NHS FOUNDATION TRUST | D91: RCX70 | E91: The Queen Elizabeth Hospital | F91: 11 | G91: 0.9090909091 | H91: 0.09090909091 | I91: 9 | J91: 1 | K91: 0 | L91: 0 | M91: 1 | N91: 0
A92: QNC | B92: RJE | C92: UNIVERSITY HOSPITALS OF NORTH MIDLANDS NHS TRUST | D92: RJE09 | E92: County Hospital | F92: 0 | G92: NA | H92: NA | I92: 0 | J92: 0 | K92: 0 | L92: 0 | M92: 0 | N92: 0
A93: QNC | B93: RJE | C93: UNIVERSITY HOSPITALS OF NORTH MIDLANDS NHS TRUST | D93: RJE01 | E93: Royal Stoke University Hospital | F93: 0 | G93: NA | H93: NA | I93: 0 | J93: 0 | K93: 0 | L93: 0 | M93: 0 | N93: 0
A94: QNQ | B94: RDU | C94: FRIMLEY HEALTH NHS FOUNDATION TRUST | D94: RDU01 | E94: Frimley Park Hospital | F94: 16 | G94: 0.9375 | H94: 0 | I94: * | J94: * | K94: * | L94: * | M94: * | N94: *
A95: QNX | B95: RXC | C95: EAST SUSSEX HEALTHCARE NHS TRUST | D95: RXC01 | E95: Conquest Hospital | F95: 0 | G95: NA | H95: NA | I95: 0 | J95: 0 | K95: 0 | L95: 0 | M95: 0 | N95: 0
A96: QNX | B96: RXC | C96: EAST SUSSEX HEALTHCARE NHS TRUST | D96: RXC02 | E96: Eastbourne District General Hospital | F96: 0 | G96: NA | H96: NA | I96: 0 | J96: 0 | K96: 0 | L96: 0 | M96: 0 | N96: 0
A97: QNX | B97: RXC | C97: EAST SUSSEX HEALTHCARE NHS TRUST | D97: RXCXXX | E97: Non-hospital site | F97: 0 | G97: NA | H97: NA | I97: 0 | J97: 0 | K97: 0 | L97: 0 | M97: 0 | N97: 0
A98: QNX | B98: RYR | C98: UNIVERSITY HOSPITALS SUSSEX NHS FOUNDATION TRUST | D98: RYR18 | E98: Worthing Hospital | F98: 2 | G98: * | H98: * | I98: * | J98: * | K98: * | L98: * | M98: * | N98: *
A99: QOC | B99: RXW | C99: THE SHREWSBURY AND TELFORD HOSPITAL NHS TRUST | D99: RXWXXX | E99: Non-hospital site | F99: 67 | G99: 1 | H99: 0 | I99: 63 | J99: 4 | K99: 0 | L99: 0 | M99: 0 | N99: 0
A100: QOP | B100: RMC | C100: BOLTON NHS FOUNDATION TRUST | D100: RMC01 | E100: Royal Bolton Hospital | F100: 3 | G100: * | H100: * | I100: * | J100: * | K100: * | L100: * | M100: * | N100: *
A101: QOP | B101: R0A | C101: MANCHESTER UNIVERSITY NHS FOUNDATION TRUST | D101: R0A05 | E101: St Mary's Hospital | F101: 40 | G101: 0.95 | H101: 0 | I101: 31 | J101: 7 | K101: 2 | L101: 0 | M101: 0 | N101: 0
A102: QOP | B102: RWJ | C102: STOCKPORT NHS FOUNDATION TRUST | D102: RWJ09 | E102: Stepping Hill Hospital | F102: 42 | G102: 0.9285714286 | H102: 0.02380952381 | I102: 27 | J102: 12 | K102: 2 | L102: 1 | M102: 0 | N102: 0
A103: QOP | B103: RMP | C103: TAMESIDE AND GLOSSOP INTEGRATED CARE NHS FOUNDATION TRUST | D103: RMP01 | E103: Tameside General Hospital | F103: 51 | G103: 0.9607843137 | H103: 0.03921568627 | I103: 44 | J103: 5 | K103: 0 | L103: 1 | M103: 1 | N103: 0
A104: QOP | B104: RRF | C104: WRIGHTINGTON, WIGAN AND LEIGH NHS FOUNDATION TRUST | D104: RRF02 | E104: Royal Albert Edward Infirmary | F104: 12 | G104: 1 | H104: 0 | I104: 10 | J104: 2 | K104: 0 | L104: 0 | M104: 0 | N104: 0
A105: QOQ | B105: RCD | C105: HARROGATE AND DISTRICT NHS FOUNDATION TRUST | D105: RCD01 | E105: Harrogate District Hospital | F105: 7 | G105: 1 | H105: 0 | I105: * | J105: * | K105: * | L105: * | M105: * | N105: *
A106: QOQ | B106: RWA | C106: HULL UNIVERSITY TEACHING HOSPITALS NHS TRUST | D106: RWA01 | E106: Hull Royal Infirmary | F106: 6 | G106: 1 | H106: 0 | I106: 6 | J106: 0 | K106: 0 | L106: 0 | M106: 0 | N106: 0
A107: QOQ | B107: RJL | C107: NORTHERN LINCOLNSHIRE AND GOOLE NHS FOUNDATION TRUST | D107: RJL30 | E107: Diana, Princess Of Wales Hospital | F107: 1 | G107: * | H107: * | I107: * | J107: * | K107: * | L107: * | M107: * | N107: *
A108: QOQ | B108: RJL | C108: NORTHERN LINCOLNSHIRE AND GOOLE NHS FOUNDATION TRUST | D108: RJL32 | E108: Scunthorpe General Hospital | F108: 1 | G108: * | H108: * | I108: * | J108: * | K108: * | L108: * | M108: * | N108: *
A109: QOX | B109: RN3 | C109: GREAT WESTERN HOSPITALS NHS FOUNDATION TRUST | D109: RN325 | E109: The Great Western Hospital | F109: 2 | G109: * | H109: * | I109: * | J109: * | K109: * | L109: * | M109: * | N109: *
A110: QOX | B110: RD1 | C110: ROYAL UNITED HOSPITALS BATH NHS FOUNDATION TRUST | D110: RD108 | E110: Trowbridge Community Hospital | F110: 1 | G110: * | H110: * | I110: * | J110: * | K110: * | L110: * | M110: * | N110: *
A111: QOX | B111: RNZ | C111: SALISBURY NHS FOUNDATION TRUST | D111: RNZ02 | E111: Salisbury District Hospital | F111: 0 | G111: NA | H111: NA | I111: 0 | J111: 0 | K111: 0 | L111: 0 | M111: 0 | N111: 0
A112: QPM | B112: RNQ | C112: KETTERING GENERAL HOSPITAL NHS FOUNDATION TRUST | D112: RNQ51 | E112: Kettering General Hospital | F112: 4 | G112: * | H112: * | I112: * | J112: * | K112: * | L112: * | M112: * | N112: *
A113: QPM | B113: RNS | C113: NORTHAMPTON GENERAL HOSPITAL NHS TRUST | D113: RNS01 | E113: Northampton General Hospital (Acute) | F113: 4 | G113: * | H113: * | I113: * | J113: * | K113: * | L113: * | M113: * | N113: *
A114: QR1 | B114: RTE | C114: GLOUCESTERSHIRE HOSPITALS NHS FOUNDATION TRUST | D114: RTE03 | E114: Gloucestershire Royal Hospital | F114: 0 | G114: NA | H114: NA | I114: 0 | J114: 0 | K114: 0 | L114: 0 | M114: 0 | N114: 0
A115: QR1 | B115: RTE | C115: GLOUCESTERSHIRE HOSPITALS NHS FOUNDATION TRUST | D115: RTE27 | E115: Stroud Maternity Hospital | F115: 0 | G115: NA | H115: NA | I115: 0 | J115: 0 | K115: 0 | L115: 0 | M115: 0 | N115: 0
A116: QRL | B116: RN5 | C116: HAMPSHIRE HOSPITALS NHS FOUNDATION TRUST | D116: RN542 | E116: Andover War Memorial Hospital | F116: 1 | G116: * | H116: * | I116: * | J116: * | K116: * | L116: * | M116: * | N116: *
A117: QRL | B117: RN5 | C117: HAMPSHIRE HOSPITALS NHS FOUNDATION TRUST | D117: RN506 | E117: Basingstoke and North Hampshire Hospital | F117: 1 | G117: * | H117: * | I117: * | J117: * | K117: * | L117: * | M117: * | N117: *
A118: QRL | B118: RN5 | C118: HAMPSHIRE HOSPITALS NHS FOUNDATION TRUST | D118: RN541 | E118: Royal Hampshire County Hospital | F118: 2 | G118: * | H118: * | I118: * | J118: * | K118: * | L118: * | M118: * | N118: *
A119: QRL | B119: R1F | C119: ISLE OF WIGHT NHS TRUST | D119: R1F01 | E119: St Mary's Hospital | F119: 11 | G119: 1 | H119: 0 | I119: 9 | J119: 2 | K119: 0 | L119: 0 | M119: 0 | N119: 0
A120: QRL | B120: RHU | C120: PORTSMOUTH HOSPITALS UNIVERSITY NATIONAL HEALTH SERVICE TRUST | D120: RHU10 | E120: Gosport War Memorial Hospital | F120: 28 | G120: 0.9285714286 | H120: 0 | I120: 23 | J120: 3 | K120: 1 | L120: 0 | M120: 0 | N120: 1
A121: QRL | B121: RHU | C121: PORTSMOUTH HOSPITALS UNIVERSITY NATIONAL HEALTH SERVICE TRUST | D121: RHU04 | E121: Petersfield Community Hospital | F121: 24 | G121: 1 | H121: 0 | I121: 19 | J121: 5 | K121: 0 | L121: 0 | M121: 0 | N121: 0
A122: QRL | B122: RHU | C122: PORTSMOUTH HOSPITALS UNIVERSITY NATIONAL HEALTH SERVICE TRUST | D122: RHU03 | E122: Queen Alexandra Hospital | F122: 0 | G122: NA | H122: NA | I122: 0 | J122: 0 | K122: 0 | L122: 0 | M122: 0 | N122: 0
A123: QRL | B123: RHU | C123: PORTSMOUTH HOSPITALS UNIVERSITY NATIONAL HEALTH SERVICE TRUST | D123: RHU02 | E123: St Mary's Hospital | F123: 78 | G123: 0.9743589744 | H123: 0 | I123: 59 | J123: 17 | K123: 2 | L123: 0 | M123: 0 | N123: 0
A124: QRL | B124: RHM | C124: UNIVERSITY HOSPITAL SOUTHAMPTON NHS FOUNDATION TRUST | D124: RHM12 | E124: Princess Anne Hospital | F124: 31 | G124: 0.9032258065 | H124: 0.03225806452 | I124: 18 | J124: 10 | K124: 1 | L124: 0 | M124: 1 | N124: 1
A125: QRV | B125: RQM | C125: CHELSEA AND WESTMINSTER HOSPITAL NHS FOUNDATION TRUST | D125: RQM01 | E125: Chelsea and Westminster Hospital | F125: 20 | G125: 0.7 | H125: 0.25 | I125: 13 | J125: 1 | K125: 0 | L125: 1 | M125: 4 | N125: 1
A126: QRV | B126: RQM | C126: CHELSEA AND WESTMINSTER HOSPITAL NHS FOUNDATION TRUST | D126: RQM91 | E126: West Middlesex University Hospital | F126: 13 | G126: 0.9230769231 | H126: 0.07692307692 | I126: 7 | J126: 5 | K126: 0 | L126: 0 | M126: 1 | N126: 0
A127: QRV | B127: RYJ | C127: IMPERIAL COLLEGE HEALTHCARE NHS TRUST | D127: RYJ04 | E127: Queen Charlotte's Hospital | F127: 25 | G127: 0.76 | H127: 0.08 | I127: 16 | J127: 3 | K127: 2 | L127: 0 | M127: 2 | N127: 2
A128: QRV | B128: RYJ | C128: IMPERIAL COLLEGE HEALTHCARE NHS TRUST | D128: RYJ01 | E128: St Mary's Hospital (HQ) | F128: 25 | G128: 0.88 | H128: 0.12 | I128: 19 | J128: 3 | K128: 0 | L128: 2 | M128: 1 | N128: 0
A129: QRV | B129: R1K | C129: LONDON NORTH WEST UNIVERSITY HEALTHCARE NHS TRUST | D129: R1K02 | E129: Central Middlesex Hospital | F129: 0 | G129: NA | H129: NA | I129: 0 | J129: 0 | K129: 0 | L129: 0 | M129: 0 | N129: 0
A130: QRV | B130: R1K | C130: LONDON NORTH WEST UNIVERSITY HEALTHCARE NHS TRUST | D130: R1K01 | E130: Northwick Park Hospital | F130: 1 | G130: * | H130: * | I130: * | J130: * | K130: * | L130: * | M130: * | N130: *
A131: QRV | B131: RAS | C131: THE HILLINGDON HOSPITALS NHS FOUNDATION TRUST | D131: RAS01 | E131: Hillingdon Hospital | F131: 162 | G131: 0.8641975309 | H131: 0.06790123457 | I131: * | J131: * | K131: * | L131: * | M131: * | N131: *
A132: QSL | B132: RH5 | C132: SOMERSET NHS FOUNDATION TRUST | D132: RH5K6 | E132: Bridgwater Hospital | F132: 0 | G132: NA | H132: NA | I132: 0 | J132: 0 | K132: 0 | L132: 0 | M132: 0 | N132: 0
A133: QSL | B133: RH5 | C133: SOMERSET NHS FOUNDATION TRUST | D133: RH5A8 | E133: MUSGROVE PARK HOSPITAL | F133: 0 | G133: NA | H133: NA | I133: 0 | J133: 0 | K133: 0 | L133: 0 | M133: 0 | N133: 0
A134: QSL | B134: RH5 | C134: SOMERSET NHS FOUNDATION TRUST | D134: RH5XXX | E134: WiC MIU - RH5XXX | F134: 0 | G134: NA | H134: NA | I134: 0 | J134: 0 | K134: 0 | L134: 0 | M134: 0 | N134: 0
A135: QSL | B135: RA4 | C135: YEOVIL DISTRICT HOSPITAL NHS FOUNDATION TRUST | D135: RA430 | E135: Yeovil District Hospital | F135: 21 | G135: 0.9047619048 | H135: 0.09523809524 | I135: 17 | J135: 2 | K135: 0 | L135: 0 | M135: 2 | N135: 0
A136: QT1 | B136: RX1 | C136: NOTTINGHAM UNIVERSITY HOSPITALS NHS TRUST | D136: RX1XXX | E136: Non-hospital site | F136: 11 | G136: 0.8181818182 | H136: 0.1818181818 | I136: 8 | J136: 1 | K136: 0 | L136: 0 | M136: 2 | N136: 0
A137: QT1 | B137: RK5 | C137: SHERWOOD FOREST HOSPITALS NHS FOUNDATION TRUST | D137: RK5BC | E137: King's Mill Hospital | F137: 16 | G137: 0.8125 | H137: 0.0625 | I137: 12 | J137: 1 | K137: 2 | L137: 0 | M137: 1 | N137: 0
A138: QT6 | B138: REF | C138: ROYAL CORNWALL HOSPITALS NHS TRUST | D138: REFXXX | E138: Non-hospital site | F138: 0 | G138: NA | H138: NA | I138: 0 | J138: 0 | K138: 0 | L138: 0 | M138: 0 | N138: 0
A139: QT6 | B139: REF | C139: ROYAL CORNWALL HOSPITALS NHS TRUST | D139: REF12 | E139: Royal Cornwall Hospital (Treliske) | F139: 7 | G139: 1 | H139: 0 | I139: 6 | J139: 1 | K139: 0 | L139: 0 | M139: 0 | N139: 0
A140: QU9 | B140: RXQ | C140: BUCKINGHAMSHIRE HEALTHCARE NHS TRUST | D140: RXQ02 | E140: Stoke Mandeville Hospital | F140: 63 | G140: 0.8095238095 | H140: 0.1111111111 | I140: 42 | J140: 9 | K140: 5 | L140: 4 | M140: 3 | N140: 0
A141: QU9 | B141: RXQ | C141: BUCKINGHAMSHIRE HEALTHCARE NHS TRUST | D141: RXQ50 | E141: Wycombe Hospital | F141: 51 | G141: 0.8431372549 | H141: 0.09803921569 | I141: 34 | J141: 9 | K141: 3 | L141: 4 | M141: 1 | N141: 0
A142: QU9 | B142: RTH | C142: OXFORD UNIVERSITY HOSPITALS NHS FOUNDATION TRUST | D142: RTH05 | E142: Horton General Hospital | F142: 8 | G142: 0.875 | H142: 0 | I142: 7 | J142: 0 | K142: 1 | L142: 0 | M142: 0 | N142: 0
A143: QU9 | B143: RTH | C143: OXFORD UNIVERSITY HOSPITALS NHS FOUNDATION TRUST | D143: RTH08 | E143: John Radcliffe Hospital | F143: 0 | G143: NA | H143: NA | I143: 0 | J143: 0 | K143: 0 | L143: 0 | M143: 0 | N143: 0
A144: QU9 | B144: RHW | C144: ROYAL BERKSHIRE NHS FOUNDATION TRUST | D144: RHW01 | E144: Royal Berkshire Hospital | F144: 0 | G144: NA | H144: NA | I144: 0 | J144: 0 | K144: 0 | L144: 0 | M144: 0 | N144: 0
A145: QUA | B145: RNA | C145: THE DUDLEY GROUP NHS FOUNDATION TRUST | D145: RNA01 | E145: Russells Hall Hospital | F145: 0 | G145: NA | H145: NA | I145: 0 | J145: 0 | K145: 0 | L145: 0 | M145: 0 | N145: 0
A146: QUA | B146: RL4 | C146: THE ROYAL WOLVERHAMPTON NHS TRUST | D146: RL403 | E146: New Cross Hospital | F146: 16 | G146: 0.875 | H146: 0.0625 | I146: 8 | J146: 6 | K146: 1 | L146: 0 | M146: 1 | N146: 0
A147: QUA | B147: RBK | C147: WALSALL HEALTHCARE NHS TRUST | D147: RBK02 | E147: Manor Hospital | F147: 10 | G147: 0.9 | H147: 0 | I147: 9 | J147: 0 | K147: 1 | L147: 0 | M147: 0 | N147: 0
A148: QUE | B148: RGT | C148: CAMBRIDGE UNIVERSITY HOSPITALS NHS FOUNDATION TRUST | D148: RGT32 | E148: Rosie Hospital | F148: 9 | G148: 1 | H148: 0 | I148: 7 | J148: 2 | K148: 0 | L148: 0 | M148: 0 | N148: 0
A149: QUE | B149: RGN | C149: NORTH WEST ANGLIA NHS FOUNDATION TRUST | D149: RGN90 | E149: Hinchingbrooke Hospital | F149: 123 | G149: 0.9837398374 | H149: 0.008130081301 | I149: 111 | J149: 10 | K149: 1 | L149: 1 | M149: 0 | N149: 0
A150: QUE | B150: RGN | C150: NORTH WEST ANGLIA NHS FOUNDATION TRUST | D150: RGN80 | E150: Peterborough City Hospital | F150: 31 | G150: 0.935483871 | H150: 0.03225806452 | I150: 27 | J150: 2 | K150: 1 | L150: 0 | M150: 1 | N150: 0
A151: QUY | B151: RVJ | C151: NORTH BRISTOL NHS TRUST | D151: RVJ01 | E151: Southmead Hospital | F151: 0 | G151: NA | H151: NA | I151: 0 | J151: 0 | K151: 0 | L151: 0 | M151: 0 | N151: 0
A152: QUY | B152: RA7 | C152: UNIVERSITY HOSPITALS BRISTOL AND WESTON NHS FOUNDATION TRUST | D152: RA707 | E152: St Michael's Hospital | F152: 30 | G152: 1 | H152: 0 | I152: 28 | J152: 2 | K152: 0 | L152: 0 | M152: 0 | N152: 0
A153: QVV | B153: RBD | C153: DORSET COUNTY HOSPITAL NHS FOUNDATION TRUST | D153: RBD01 | E153: Dorset County Hospital | F153: 14 | G153: 0.9285714286 | H153: 0.07142857143 | I153: 10 | J153: 3 | K153: 0 | L153: 0 | M153: 1 | N153: 0
A154: QVV | B154: R0D | C154: UNIVERSITY HOSPITALS DORSET NHS FOUNDATION TRUST | D154: R0D01 | E154: Poole Hospital | F154: 32 | G154: 0.875 | H154: 0.09375 | I154: 20 | J154: 8 | K154: 1 | L154: 2 | M154: 1 | N154: 0
A155: QVV | B155: R0D | C155: UNIVERSITY HOSPITALS DORSET NHS FOUNDATION TRUST | D155: R0D02 | E155: Royal Bournemouth Hospital | F155: 31 | G155: 0.9032258065 | H155: 0 | I155: 25 | J155: 3 | K155: 3 | L155: 0 | M155: 0 | N155: 0
A156: QWE | B156: RJ6 | C156: CROYDON HEALTH SERVICES NHS TRUST | D156: RJ611 | E156: Croydon University Hospital | F156: 65 | G156: 0.9384615385 | H156: 0.04615384615 | I156: 43 | J156: 18 | K156: 1 | L156: 0 | M156: 3 | N156: 0
A157: QWE | B157: RVR | C157: EPSOM AND ST HELIER UNIVERSITY HOSPITALS NHS TRUST | D157: RVR50 | E157: Epsom Hospital | F157: 5 | G157: 1 | H157: 0 | I157: 5 | J157: 0 | K157: 0 | L157: 0 | M157: 0 | N157: 0
A158: QWE | B158: RVR | C158: EPSOM AND ST HELIER UNIVERSITY HOSPITALS NHS TRUST | D158: RVRXXX | E158: Non-hospital site | F158: 0 | G158: NA | H158: NA | I158: 0 | J158: 0 | K158: 0 | L158: 0 | M158: 0 | N158: 0
A159: QWE | B159: RVR | C159: EPSOM AND ST HELIER UNIVERSITY HOSPITALS NHS TRUST | D159: RVR05 | E159: St Helier Hospital | F159: 5 | G159: 1 | H159: 0 | I159: 5 | J159: 0 | K159: 0 | L159: 0 | M159: 0 | N159: 0
A160: QWE | B160: RAX | C160: KINGSTON HOSPITAL NHS FOUNDATION TRUST | D160: RAX01 | E160: Kingston Hospital | F160: 28 | G160: 0.8928571429 | H160: 0.07142857143 | I160: 22 | J160: 3 | K160: 1 | L160: 1 | M160: 1 | N160: 0
A161: QWE | B161: RJ7 | C161: ST GEORGE'S UNIVERSITY HOSPITALS NHS FOUNDATION TRUST | D161: RJ701 | E161: St George's Hospital (Tooting) | F161: 1 | G161: * | H161: * | I161: * | J161: * | K161: * | L161: * | M161: * | N161: *
A162: QWO | B162: RCF | C162: AIREDALE NHS FOUNDATION TRUST | D162: RCF22 | E162: Airedale General Hospital | F162: 0 | G162: NA | H162: NA | I162: 0 | J162: 0 | K162: 0 | L162: 0 | M162: 0 | N162: 0
A163: QWO | B163: RAE | C163: BRADFORD TEACHING HOSPITALS NHS FOUNDATION TRUST | D163: RAE01 | E163: Bradford Royal Infirmary | F163: 0 | G163: NA | H163: NA | I163: 0 | J163: 0 | K163: 0 | L163: 0 | M163: 0 | N163: 0
A164: QWO | B164: RAE | C164: BRADFORD TEACHING HOSPITALS NHS FOUNDATION TRUST | D164: RAEXXX | E164: Non-hospital site | F164: 0 | G164: NA | H164: NA | I164: 0 | J164: 0 | K164: 0 | L164: 0 | M164: 0 | N164: 0
A165: QWO | B165: RWY | C165: CALDERDALE AND HUDDERSFIELD NHS FOUNDATION TRUST | D165: RWY02 | E165: Calderdale Royal Hospital | F165: 46 | G165: 1 | H165: 0 | I165: 45 | J165: 1 | K165: 0 | L165: 0 | M165: 0 | N165: 0
A166: QWO | B166: RWY | C166: CALDERDALE AND HUDDERSFIELD NHS FOUNDATION TRUST | D166: RWY01 | E166: Huddersfield Royal Infirmary | F166: 7 | G166: 1 | H166: 0 | I166: * | J166: * | K166: * | L166: * | M166: * | N166: *
A167: QWO | B167: RWY | C167: CALDERDALE AND HUDDERSFIELD NHS FOUNDATION TRUST | D167: RWYXXX | E167: Non-hospital site | F167: 1 | G167: * | H167: * | I167: * | J167: * | K167: * | L167: * | M167: * | N167: *
A168: QWO | B168: RR8 | C168: LEEDS TEACHING HOSPITALS NHS TRUST | D168: RR8XXX | E168: Non-hospital site | F168: 2 | G168: * | H168: * | I168: * | J168: * | K168: * | L168: * | M168: * | N168: *
A169: QWO | B169: RR8 | C169: LEEDS TEACHING HOSPITALS NHS TRUST | D169: RR813 | E169: St James's University Hospital | F169: 1 | G169: * | H169: * | I169: * | J169: * | K169: * | L169: * | M169: * | N169: *
A170: QWO | B170: RXF | C170: MID YORKSHIRE HOSPITALS NHS TRUST | D170: RXF10 | E170: Dewsbury and District Hospital | F170: 88 | G170: 1 | H170: 0 | I170: 72 | J170: 16 | K170: 0 | L170: 0 | M170: 0 | N170: 0
A171: QWO | B171: RXF | C171: MID YORKSHIRE HOSPITALS NHS TRUST | D171: RXF05 | E171: Pinderfields General Hospital | F171: 286 | G171: 0.9405594406 | H171: 0.03496503497 | I171: 230 | J171: 39 | K171: 6 | L171: 4 | M171: 6 | N171: 1
A172: QWO | B172: RXF | C172: MID YORKSHIRE HOSPITALS NHS TRUST | D172: RXF03 | E172: Pontefract General Infirmary | F172: 44 | G172: 0.9772727273 | H172: 0.02272727273 | I172: 42 | J172: 1 | K172: 0 | L172: 1 | M172: 0 | N172: 0
A173: QWU | B173: RLT | C173: GEORGE ELIOT HOSPITAL NHS TRUST | D173: RLT01 | E173: George Eliot Hospital - Acute Services | F173: 3 | G173: * | H173: * | I173: * | J173: * | K173: * | L173: * | M173: * | N173: *
A174: QWU | B174: RJC | C174: SOUTH WARWICKSHIRE NHS FOUNDATION TRUST | D174: RJCXXX | E174: Non-hospital site | F174: 2 | G174: * | H174: * | I174: * | J174: * | K174: * | L174: * | M174: * | N174: *
A175: QWU | B175: RKB | C175: UNIVERSITY HOSPITALS COVENTRY AND WARWICKSHIRE NHS TRUST | D175: RKB02 | E175: Coventry and Warwickshire Hospital | F175: 1 | G175: * | H175: * | I175: * | J175: * | K175: * | L175: * | M175: * | N175: *
A176: QWU | B176: RKB | C176: UNIVERSITY HOSPITALS COVENTRY AND WARWICKSHIRE NHS TRUST | D176: RKB03 | E176: Hospital Of St Cross | F176: 0 | G176: NA | H176: NA | I176: 0 | J176: 0 | K176: 0 | L176: 0 | M176: 0 | N176: 0
A177: QWU | B177: RKB | C177: UNIVERSITY HOSPITALS COVENTRY AND WARWICKSHIRE NHS TRUST | D177: RKBXXX | E177: Non-hospital site | F177: 0 | G177: NA | H177: NA | I177: 0 | J177: 0 | K177: 0 | L177: 0 | M177: 0 | N177: 0
A178: QXU | B178: RTK | C178: ASHFORD AND ST PETER'S HOSPITALS NHS FOUNDATION TRUST | D178: RTK02 | E178: Ashford Hospital | F178: 0 | G178: NA | H178: NA | I178: 0 | J178: 0 | K178: 0 | L178: 0 | M178: 0 | N178: 0
A179: QXU | B179: RA2 | C179: ROYAL SURREY COUNTY HOSPITAL NHS FOUNDATION TRUST | D179: RA201 | E179: Royal Surrey County Hospital | F179: 2 | G179: * | H179: * | I179: * | J179: * | K179: * | L179: * | M179: * | N179: *
A180: QXU | B180: RTP | C180: SURREY AND SUSSEX HEALTHCARE NHS TRUST | D180: RTP04 | E180: East Surrey Hospital | F180: 1 | G180: * | H180: * | I180: * | J180: * | K180: * | L180: * | M180: * | N180: *
A181: QYG | B181: RJN | C181: EAST CHESHIRE NHS TRUST | D181: RJN71 | E181: Macclesfield District General Hospital | F181: 0 | G181: NA | H181: NA | I181: 0 | J181: 0 | K181: 0 | L181: 0 | M181: 0 | N181: 0
A182: QYG | B182: REP | C182: LIVERPOOL WOMEN'S NHS FOUNDATION TRUST | D182: REP01 | E182: Liverpool Womens Hospital | F182: 15 | G182: 0.8666666667 | H182: 0.06666666667 | I182: 10 | J182: 3 | K182: 0 | L182: 1 | M182: 0 | N182: 1
A183: QYG | B183: RBT | C183: MID CHESHIRE HOSPITALS NHS FOUNDATION TRUST | D183: RBT20 | E183: Leighton Hospital | F183: 26 | G183: 0.9615384615 | H183: 0 | I183: 22 | J183: 3 | K183: 0 | L183: 0 | M183: 0 | N183: 1
A184: QYG | B184: RVY | C184: SOUTHPORT AND ORMSKIRK HOSPITAL NHS TRUST | D184: RVY02 | E184: Ormskirk and District General Hospital | F184: 1 | G184: * | H184: * | I184: * | J184: * | K184: * | L184: * | M184: * | N184: *
A185: QYG | B185: RBN | C185: ST HELENS AND KNOWSLEY TEACHING HOSPITALS NHS TRUST | D185: RBN01 | E185: Whiston Hospital | F185: 61 | G185: 0.9344262295 | H185: 0.01639344262 | I185: 47 | J185: 10 | K185: 3 | L185: 1 | M185: 0 | N185: 0
A186: QYG | B186: RWW | C186: WARRINGTON AND HALTON TEACHING HOSPITALS NHS FOUNDATION TRUST | D186: RWWWH | E186: Warrington Hospital | F186: 0 | G186: NA | H186: NA | I186: 0 | J186: 0 | K186: 0 | L186: 0 | M186: 0 | N186: 0
A187: QYG | B187: RBL | C187: WIRRAL UNIVERSITY TEACHING HOSPITAL NHS FOUNDATION TRUST | D187: RBL14 | E187: Arrowe Park Hospital | F187: 37 | G187: 0.9459459459 | H187: 0.02702702703 | I187: 32 | J187: 3 | K187: 1 | L187: 0 | M187: 1 | N187: 0

Sheet STP Q2
B6: Sort data by:
A9: STP Code | B9: STP Name | C9: Total Responses | D9: Total Eligible | E9: Percentage Positive | F9: Percentage Negative | G9: Breakdown of Responses
G10: Very Good | H10: Good | I10: Neither Good nor Poor | J10: Poor | K10: Very Poor | L10: Don't Know
B11: England (including Independent Sector providers) | C11: 3881 | D11: 42573 | E11: 0.9379026024 | F11: 0.03864983252 | G11: 3063 | H11: 577 | I11: 74 | J11: 58 | K11: 92 | L11: 17
B12: England (excluding Independent Sector providers) | C12: 3881 | D12: 42573 | E12: 0.9379026024 | F12: 0.03864983252 | G12: 3063 | H12: 577 | I12: 74 | J12: 58 | K12: 92 | L12: 17
B13: Selection (excluding suppressed data) | C13: =SUBTOTAL(9,C14:C400) -> 3881 | D13: =SUBTOTAL(9,D14:D400) -> 42573 | E13: =IFERROR((G13+H13)/SUM(G13:L13), "-") -> 0.9373007439 | F13: =IFERROR((J13+K13)/SUM(G13:L13), "-") -> 0.03958554729 | G13: =SUBTOTAL(9,G14:G400) -> 2963 | H13: =SUBTOTAL(9,H14:H400) -> 565 | I13: 70 | J13: 58 | K13: 91 | L13: 17
A14: QE1 | B14: HEALTHIER LANCASHIRE AND SOUTH CUMBRIA | C14: 88 | D14: 1240 | E14: 0.9545454545 | F14: 0.04545454545 | G14: 70 | H14: 14 | I14: 0 | J14: 2 | K14: 2 | L14: 0
A15: QF7 | B15: SOUTH YORKSHIRE AND BASSETLAW STP | C15: 87 | D15: 1299 | E15: 0.8735632184 | F15: 0.1149425287 | G15: 62 | H15: 14 | I15: 1 | J15: 4 | K15: 6 | L15: 0
A16: QGH | B16: HEREFORDSHIRE AND WORCESTERSHIRE STP | C16: 17 | D16: 181 | E16: 1 | F16: 0 | G16: 17 | H16: 0 | I16: 0 | J16: 0 | K16: 0 | L16: 0
A17: QH8 | B17: MID AND SOUTH ESSEX STP | C17: 95 | D17: 694 | E17: 0.8842105263 | F17: 0.08421052632 | G17: 73 | H17: 11 | I17: 3 | J17: 3 | K17: 5 | L17: 0
A18: QHG | B18: BEDFORDSHIRE, LUTON AND MILTON KEYNES STP | C18: 33 | D18: 1293 | E18: 0.9393939394 | F18: 0.0303030303 | G18: 26 | H18: 5 | I18: 0 | J18: 1 | K18: 0 | L18: 1
A19: QHL | B19: BIRMINGHAM AND SOLIHULL STP | C19: 79 | D19: 1433 | E19: 0.8481012658 | F19: 0.07594936709 | G19: 48 | H19: 19 | I19: 5 | J19: 1 | K19: 5 | L19: 1
A20: QHM | B20: CUMBRIA AND NORTH EAST STP | C20: 89 | D20: 1986 | E20: 0.9550561798 | F20: 0 | G20: * | H20: * | I20: * | J20: * | K20: * | L20: *
A21: QJ2 | B21: JOINED UP CARE DERBYSHIRE STP | C21: 1 | D21: 240 | E21: * | F21: * | G21: * | H21: * | I21: * | J21: * | K21: * | L21: *
A22: QJG | B22: SUFFOLK AND NORTH EAST ESSEX ICS | C22: 4 | D22: 896 | E22: * | F22: * | G22: * | H22: * | I22: * | J22: * | K22: * | L22: *
A23: QJK | B23: DEVON STP | C23: 8 | D23: 628 | E23: 0.875 | F23: 0 | G23: 7 | H23: 0 | I23: 0 | J23: 0 | K23: 0 | L23: 1
A24: QJM | B24: LINCOLNSHIRE STP | C24: 23 | D24: 397 | E24: 1 | F24: 0 | G24: 21 | H24: 2 | I24: 0 | J24: 0 | K24: 0 | L24: 0
A25: QK1 | B25: LEICESTER, LEICESTERSHIRE AND RUTLAND STP | C25: 239 | D25: 759 | E25: 0.9748953975 | F25: 0.01255230126 | G25: 192 | H25: 41 | I25: 1 | J25: 1 | K25: 2 | L25: 2
A26: QKK | B26: OUR HEALTHIER SOUTH EAST LONDON STP | C26: 119 | D26: 1751 | E26: 0.8655462185 | F26: 0.04201680672 | G26: 66 | H26: 37 | I26: 10 | J26: 4 | K26: 1 | L26: 1
A27: QKS | B27: KENT AND MEDWAY STP | C27: 98 | D27: 1189 | E27: 1 | F27: 0 | G27: 97 | H27: 1 | I27: 0 | J27: 0 | K27: 0 | L27: 0
A28: QM7 | B28: HERTFORDSHIRE AND WEST ESSEX STP | C28: 129 | D28: 1082 | E28: 0.9379844961 | F28: 0.03100775194 | G28: 96 | H28: 25 | I28: 4 | J28: 2 | K28: 2 | L28: 0
A29: QMF | B29: EAST LONDON HEALTH & CARE PARTNERSHIP (STP) | C29: 183 | D29: 2231 | E29: 0.9289617486 | F29: 0.04371584699 | G29: 155 | H29: 15 | I29: 5 | J29: 1 | K29: 7 | L29: 0
A30: QMJ | B30: NORTH LONDON PARTNERS IN HEALTH & CARE (STP) | C30: 145 | D30: 1568 | E30: 0.9448275862 | F30: 0.03448275862 | G30: 64 | H30: 73 | I30: 3 | J30: 3 | K30: 2 | L30: 0
A31: QMM | B31: NORFOLK AND WAVENEY HEALTH & CARE PARTNERSHIP (STP) | C31: 19 | D31: 718 | E31: 1 | F31: 0 | G31: * | H31: * | I31: * | J31: * | K31: * | L31: *
A32: QNC | B32: STAFFORDSHIRE & STOKE ON TRENT STP | C32: 4 | D32: 531 | E32: * | F32: * | G32: * | H32: * | I32: * | J32: * | K32: * | L32: *
A33: QNQ | B33: FRIMLEY HEALTH & CARE (STP) | C33: 16 | D33: 493 | E33: 0.9375 | F33: 0 | G33: 14 | H33: 1 | I33: 1 | J33: 0 | K33: 0 | L33: 0
A34: QNX | B34: SUSSEX HEALTH AND CARE PARTNERSHIP | C34: 82 | D34: 963 | E34: 0.9634146341 | F34: 0.03658536585 | G34: 71 | H34: 8 | I34: 0 | J34: 1 | K34: 2 | L34: 0
A35: QOC | B35: SHROPSHIRE AND TELFORD AND WREKIN STP | C35: 21 | D35: 328 | E35: 1 | F35: 0 | G35: 21 | H35: 0 | I35: 0 | J35: 0 | K35: 0 | L35: 0
A36: QOP | B36: GREATER MANCHESTER HEALTH & SOCIAL CARE PARTNERSHIP | C36: 233 | D36: 2345 | E36: 0.8884120172 | F36: 0.08154506438 | G36: 173 | H36: 34 | I36: 6 | J36: 3 | K36: 16 | L36: 1
A37: QOQ | B37: HUMBER, COAST AND VALE STP | C37: 143 | D37: 1180 | E37: 0.9440559441 | F37: 0.05594405594 | G37: 122 | H37: 13 | I37: 0 | J37: 2 | K37: 6 | L37: 0
A38: QOX | B38: BATH AND NORTH EAST SOMERSET, SWINDON AND WILTSHIRE STP | C38: 9 | D38: 794 | E38: 1 | F38: 0 | G38: 9 | H38: 0 | I38: 0 | J38: 0 | K38: 0 | L38: 0
A39: QPM | B39: NORTHAMPTONSHIRE STP | C39: 6 | D39: 645 | E39: 1 | F39: 0 | G39: 6 | H39: 0 | I39: 0 | J39: 0 | K39: 0 | L39: 0
A40: QR1 | B40: GLOUCESTERSHIRE STP | C40: 36 | D40: 67 | E40: 0.8888888889 | F40: 0.05555555556 | G40: 26 | H40: 6 | I40: 2 | J40: 1 | K40: 1 | L40: 0
A41: QRL | B41: HAMPSHIRE AND THE ISLE OF WIGHT STP | C41: 193 | D41: 1383 | E41: 0.9740932642 | F41: 0.01554404145 | G41: 175 | H41: 13 | I41: 2 | J41: 1 | K41: 2 | L41: 0
A42: QRV | B42: NORTH WEST LONDON HEALTH & CARE PARTNERSHIP (STP) | C42: 199 | D42: 1490 | E42: 0.9095477387 | F42: 0.07537688442 | G42: 152 | H42: 29 | I42: 3 | J42: 8 | K42: 7 | L42: 0
A43: QSL | B43: SOMERSET STP | C43: 25 | D43: 357 | E43: 1 | F43: 0 | G43: 20 | H43: 5 | I43: 0 | J43: 0 | K43: 0 | L43: 0
A44: QT1 | B44: NOTTINGHAM AND NOTTINGHAMSHIRE HEALTH AND CARE STP | C44: 41 | D44: 901 | E44: 0.8536585366 | F44: 0.09756097561 | G44: 29 | H44: 6 | I44: 2 | J44: 2 | K44: 2 | L44: 0
A45: QT6 | B45: CORNWALL AND THE ISLES OF SCILLY HEALTH & SOCIAL CARE PARTNERSHIP (STP) | C45: 20 | D45: 338 | E45: 1 | F45: 0 | G45: 18 | H45: 2 | I45: 0 | J45: 0 | K45: 0 | L45: 0
A46: QU9 | B46: BUCKINGHAMSHIRE, OXFORDSHIRE AND BERKSHIRE WEST STP | C46: 34 | D46: 945 | E46: 0.9117647059 | F46: 0.05882352941 | G46: 28 | H46: 3 | I46: 1 | J46: 1 | K46: 1 | L46: 0
A47: QUA | B47: THE BLACK COUNTRY AND WEST BIRMINGHAM STP | C47: 78 | D47: 929 | E47: 0.858974359 | F47: 0.1025641026 | G47: 56 | H47: 11 | I47: 2 | J47: 4 | K47: 4 | L47: 1
A48: QUE | B48: CAMBRIDGESHIRE AND PETERBOROUGH STP | C48: 45 | D48: 927 | E48: 0.9777777778 | F48: 0.02222222222 | G48: 41 | H48: 3 | I48: 0 | J48: 1 | K48: 0 | L48: 0
A49: QUY | B49: BRISTOL, NORTH SOMERSET AND SOUTH GLOUCESTERSHIRE STP | C49: 105 | D49: 867 | E49: 0.9523809524 | F49: 0.01904761905 | G49: 83 | H49: 17 | I49: 2 | J49: 1 | K49: 1 | L49: 1
A50: QVV | B50: DORSET STP | C50: 180 | D50: 442 | E50: 0.9555555556 | F50: 0.02222222222 | G50: 154 | H50: 18 | I50: 2 | J50: 2 | K50: 2 | L50: 2
A51: QWE | B51: SOUTH WEST LONDON HEALTH & CARE PARTNERSHIP (STP) | C51: 103 | D51: 1365 | E51: 0.8834951456 | F51: 0.06796116505 | G51: 72 | H51: 19 | I51: 4 | J51: 2 | K51: 5 | L51: 1
A52: QWO | B52: WEST YORKSHIRE AND HARROGATE HEALTH & CARE PARTNERSHIP (STP) | C52: 552 | D52: 2001 | E52: 0.9746376812 | F52: 0.01268115942 | G52: 463 | H52: 75 | I52: 5 | J52: 2 | K52: 5 | L52: 2
A53: QWU | B53: COVENTRY AND WARWICKSHIRE STP | C53: 76 | D53: 917 | E53: 0.9210526316 | F53: 0.05263157895 | G53: 61 | H53: 9 | I53: 2 | J53: 3 | K53: 1 | L53: 0
A54: QXU | B54: SURREY HEARTLANDS HEALTH & CARE PARTNERSHIP (STP) | C54: 40 | D54: 877 | E54: 1 | F54: 0 | G54: 35 | H54: 5 | I54: 0 | J54: 0 | K54: 0 | L54: 0
A55: QYG | B55: CHESHIRE AND MERSEYSIDE STP | C55: 184 | D55: 1903 | E55: 0.9293478261 | F55: 0.03260869565 | G55: 140 | H55: 31 | I55: 4 | J55: 2 | K55: 4 | L55: 3

Sheet Trusts Q2
B6: Sort data by:
A9: STP Code | B9: Trust Code | C9: Trust Name | D9: Total Responses | E9: Total Eligible | F9: Percentage Positive | G9: Percentage Negative | H9: Breakdown of Responses | N9: Mode of Collection
H10: Very Good | I10: Good | J10: Neither Good nor Poor | K10: Poor | L10: Very Poor | M10: Don't Know | N10: Mode SMS | O10: Mode Electronic Discharge | P10: Mode Electronic Home | Q10: Mode Paper Discharge | R10: Mode Paper Home | S10: Mode Telephone | T10: Mode Online | U10: Mode Other
C11: England (including Independent Sector providers) | D11: 3881 | E11: 42573 | F11: 0.9379026024 | G11: 0.03864983252 | H11: 3063 | I11: 577 | J11: 74 | K11: 58 | L11: 92 | M11: 17 | N11: 1588 | O11: 769 | P11: 37 | Q11: 1081 | R11: 9 | S11: 12 | T11: 326 | U11: 59
C12: England (excluding Independent Sector providers) | D12: 3881 | E12: 42573 | F12: 0.9379026024 | G12: 0.03864983252 | H12: 3063 | I12: 577 | J12: 74 | K12: 58 | L12: 92 | M12: 17 | N12: 1588 | O12: 769 | P12: 37 | Q12: 1081 | R12: 9 | S12: 12 | T12: 326 | U12: 59
C13: Selection (excluding suppressed data) | D13: =SUBTOTAL(9,D14:D299) -> 3881 | E13: =SUBTOTAL(9,E14:E299) -> 42573 | F13: =IFERROR((H13+I13)/SUM(H13:M13), "-") -> 0.9393515931 | G13: =IFERROR((K13+L13)/SUM(H13:M13), "-") -> 0.0368921185 | H13: =SUBTOTAL(9,H14:H299) -> 2820 | I13: 541 | J13: 70 | K13: 51 | L13: 81 | M13: 15 | N13: =SUBTOTAL(9,N14:N299) -> 1455 | O13: 763 | P13: 37 | Q13: 998 | R13: 7 | S13: 1 | T13: 258 | U13: =SUBTOTAL(9,U14:U299) -> 59
A14: QE1 | B14: RXL | C14: BLACKPOOL TEACHING HOSPITALS NHS FOUNDATION TRUST | D14: 0 | E14: 210 | F14: NA | G14: NA | H14: 0 | I14: 0 | J14: 0 | K14: 0 | L14: 0 | M14: 0 | N14: 0 | O14: 0 | P14: 0 | Q14: 0 | R14: 0 | S14: 0 | T14: 0 | U14: 0
A15: QE1 | B15: RXR | C15: EAST LANCASHIRE HOSPITALS NHS TRUST | D15: 42 | E15: 506 | F15: 0.9285714286 | G15: 0.07142857143 | H15: 32 | I15: 7 | J15: 0 | K15: 2 | L15: 1 | M15: 0 | N15: 40 | O15: 0 | P15: 0 | Q15: 2 | R15: 0 | S15: 0 | T15: 0 | U15: 0
A16: QE1 | B16: RXN | C16: LANCASHIRE TEACHING HOSPITALS NHS FOUNDATION TRUST | D16: 9 | E16: 186 | F16: 1 | G16: 0 | H16: 8 | I16: 1 | J16: 0 | K16: 0 | L16: 0 | M16: 0 | N16: 9 | O16: 0 | P16: 0 | Q16: 0 | R16: 0 | S16: 0 | T16: 0 | U16: 0
A17: QE1 | B17: RTX | C17: UNIVERSITY HOSPITALS OF MORECAMBE BAY NHS FOUNDATION TRUST | D17: 37 | E17: 338 | F17: 0.972972973 | G17: 0.02702702703 | H17: 30 | I17: 6 | J17: 0 | K17: 0 | L17: 1 | M17: 0 | N17: 37 | O17: 0 | P17: 0 | Q17: 0 | R17: 0 | S17: 0 | T17: 0 | U17: 0
A18: QF7 | B18: RFF | C18: BARNSLEY HOSPITAL NHS FOUNDATION TRUST | D18: 2 | E18: 214 | F18: * | G18: * | H18: * | I18: * | J18: * | K18: * | L18: * | M18: * | N18: * | O18: * | P18: * | Q18: * | R18: * | S18: * | T18: * | U18: *
A19: QF7 | B19: RP5 | C19: DONCASTER AND BASSETLAW TEACHING HOSPITALS NHS FOUNDATION TRUST | D19: 0 | E19: 395 | F19: NA | G19: NA | H19: 0 | I19: 0 | J19: 0 | K19: 0 | L19: 0 | M19: 0 | N19: 0 | O19: 0 | P19: 0 | Q19: 0 | R19: 0 | S19: 0 | T19: 0 | U19: 0
A20: QF7 | B20: RHQ | C20: SHEFFIELD TEACHING HOSPITALS NHS FOUNDATION TRUST | D20: 82 | E20: 476 | F20: 0.8658536585 | G20: 0.1219512195 | H20: * | I20: * | J20: * | K20: * | L20: * | M20: * | N20: * | O20: * | P20: * | Q20: * | R20: * | S20: * | T20: * | U20: *
A21: QF7 | B21: RFR | C21: THE ROTHERHAM NHS FOUNDATION TRUST | D21: 3 | E21: 214 | F21: * | G21: * | H21: * | I21: * | J21: * | K21: * | L21: * | M21: * | N21: * | O21: * | P21: * | Q21: * | R21: * | S21: * | T21: * | U21: *
A22: QGH | B22: RWP | C22: WORCESTERSHIRE ACUTE HOSPITALS NHS TRUST | D22: 16 | E22: 181 | F22: 1 | G22: 0 | H22: 16 | I22: 0 | J22: 0 | K22: 0 | L22: 0 | M22: 0 | N22: 0 | O22: 16 | P22: 0 | Q22: 0 | R22: 0 | S22: 0 | T22: 0 | U22: 0
A23: QGH | B23: RLQ | C23: WYE VALLEY NHS TRUST | D23: 1 | E23: 0 | F23: * | G23: * | H23: * | I23: * | J23: * | K23: * | L23: * | M23: * | N23: * | O23: * | P23: * | Q23: * | R23: * | S23: * | T23: * | U23: *
A24: QH8 | B24: RAJ | C24: MID AND SOUTH ESSEX NHS FOUNDATION TRUST | D24: 95 | E24: 694 | F24: 0.8842105263 | G24: 0.08421052632 | H24: 73 | I24: 11 | J24: 3 | K24: 3 | L24: 5 | M24: 0 | N24: 95 | O24: 0 | P24: 0 | Q24: 0 | R24: 0 | S24: 0 | T24: 0 | U24: 0
A25: QHG | B25: RC9 | C25: BEDFORDSHIRE HOSPITALS NHS FOUNDATION TRUST | D25: 10 | E25: 982 | F25: 0.9 | G25: 0.1 | H25: 8 | I25: 1 | J25: 0 | K25: 1 | L25: 0 | M25: 0 | N25: 0 | O25: 10 | P25: 0 | Q25: 0 | R25: 0 | S25: 0 | T25: 0 | U25: 0
A26: QHG | B26: RD8 | C26: MILTON KEYNES UNIVERSITY HOSPITAL NHS FOUNDATION TRUST | D26: 23 | E26: 311 | F26: 0.9565217391 | G26: 0 | H26: 18 | I26: 4 | J26: 0 | K26: 0 | L26: 0 | M26: 1 | N26: 1 | O26: 0 | P26: 0 | Q26: 16 | R26: 0 | S26: 0 | T26: 6 | U26: 0
A27: QHL | B27: RQ3 | C27: BIRMINGHAM WOMEN'S AND CHILDREN'S NHS FOUNDATION TRUST | D27: 2 | E27: 592 | F27: * | G27: * | H27: * | I27: * | J27: * | K27: * | L27: * | M27: * | N27: * | O27: * | P27: * | Q27: * | R27: * | S27: * | T27: * | U27: *
A28: QHL | B28: RRK | C28: UNIVERSITY HOSPITALS BIRMINGHAM NHS FOUNDATION TRUST | D28: 77 | E28: 841 | F28: 0.8441558442 | G28: 0.07792207792 | H28: 47 | I28: 18 | J28: 5 | K28: 1 | L28: 5 | M28: 1 | N28: 77 | O28: 0 | P28: 0 | Q28: 0 | R28: 0 | S28: 0 | T28: 0 | U28: 0
A29: QHM | B29: RR7 | C29: GATESHEAD HEALTH NHS FOUNDATION TRUST | D29: 5 | E29: 171 | F29: 1 | G29: 0 | H29: * | I29: * | J29: * | K29: * | L29: * | M29: * | N29: * | O29: * | P29: * | Q29: * | R29: * | S29: * | T29: * | U29: *
A30: QHM | B30: RNN | C30: NORTH CUMBRIA INTEGRATED CARE NHS FOUNDATION TRUST | D30: 11 | E30: 216 | F30: 1 | G30: 0 | H30: * | I30: * | J30: * | K30: * | L30: * | M30: * | N30: * | O30: * | P30: * | Q30: * | R30: * | S30: * | T30: * | U30: *
A31: QHM | B31: RVW | C31: NORTH TEES AND HARTLEPOOL NHS FOUNDATION TRUST | D31: 10 | E31: 252 | F31: 1 | G31: 0 | H31: * | I31: * | J31: * | K31: * | L31: * | M31: * | N31: * | O31: * | P31: * | Q31: * | R31: * | S31: * | T31: * | U31: *
A32: QHM | B32: RTF | C32: NORTHUMBRIA HEALTHCARE NHS FOUNDATION TRUST | D32: 48 | E32: 266 | F32: 0.9166666667 | G32: 0 | H32: 37 | I32: 7 | J32: 4 | K32: 0 | L32: 0 | M32: 0 | N32: 37 | O32: 0 | P32: 0 | Q32: 11 | R32: 0 | S32: 0 | T32: 0 | U32: 0
A33: QHM | B33: RTR | C33: SOUTH TEES HOSPITALS NHS FOUNDATION TRUST | D33: 0 | E33: 295 | F33: NA | G33: NA | H33: 0 | I33: 0 | J33: 0 | K33: 0 | L33: 0 | M33: 0 | N33: 0 | O33: 0 | P33: 0 | Q33: 0 | R33: 0 | S33: 0 | T33: 0 | U33: 0
A34: QHM | B34: R0B | C34: SOUTH TYNESIDE AND SUNDERLAND NHS FOUNDATION TRUST | D34: 0 | E34: 332 | F34: NA | G34: NA | H34: 0 | I34: 0 | J34: 0 | K34: 0 | L34: 0 | M34: 0 | N34: 0 | O34: 0 | P34: 0 | Q34: 0 | R34: 0 | S34: 0 | T34: 0 | U34: 0
A35: QHM | B35: RTD | C35: THE NEWCASTLE UPON TYNE HOSPITALS NHS FOUNDATION TRUST | D35: 15 | E35: 454 | F35: 1 | G35: 0 | H35: * | I35: * | J35: * | K35: * | L35: * | M35: * | N35: * | O35: * | P35: * | Q35: * | R35: * | S35: * | T35: * | U35: *
A36: QJ2 | B36: RTG | C36: UNIVERSITY HOSPITALS OF DERBY AND BURTON NHS FOUNDATION TRUST | D36: 1 | E36: 240 | F36: * | G36: * | H36: * | I36: * | J36: * | K36: * | L36: * | M36: * | N36: * | O36: * | P36: * | Q36: * | R36: * | S36: * | T36: * | U36: *
A37: QJG | B37: RDE | C37: EAST SUFFOLK AND NORTH ESSEX NHS FOUNDATION TRUST | D37: 4 | E37: 585 | F37: * | G37: * | H37: * | I37: * | J37: * | K37: * | L37: * | M37: * | N37: * | O37: * | P37: * | Q37: * | R37: * | S37: * | T37: * | U37: *
A38: QJG | B38: RGR | C38: WEST SUFFOLK NHS FOUNDATION TRUST | D38: 0 | E38: 311 | F38: NA | G38: NA | H38: 0 | I38: 0 | J38: 0 | K38: 0 | L38: 0 | M38: 0 | N38: 0 | O38: 0 | P38: 0 | Q38: 0 | R38: 0 | S38: 0 | T38: 0 | U38: 0
A39: QJK | B39: RBZ | C39: NORTHERN DEVON HEALTHCARE NHS TRUST | D39: 0 | E39: 101 | F39: NA | G39: NA | H39: 0 | I39: 0 | J39: 0 | K39: 0 | L39: 0 | M39: 0 | N39: 0 | O39: 0 | P39: 0 | Q39: 0 | R39: 0 | S39: 0 | T39: 0 | U39: 0
A40: QJK | B40: RH8 | C40: ROYAL DEVON AND EXETER NHS FOUNDATION TRUST | D40: 0 | E40: 289 | F40: NA | G40: NA | H40: 0 | I40: 0 | J40: 0 | K40: 0 | L40: 0 | M40: 0 | N40: 0 | O40: 0 | P40: 0 | Q40: 0 | R40: 0 | S40: 0 | T40: 0 | U40: 0
A41: QJK | B41: RA9 | C41: TORBAY AND SOUTH DEVON NHS FOUNDATION TRUST | D41: 2 | E41: 160 | F41: * | G41: * | H41: * | I41: * | J41: * | K41: * | L41: * | M41: * | N41: * | O41: * | P41: * | Q41: * | R41: * | S41: * | T41: * | U41: *
A42: QJK | B42: RK9 | C42: UNIVERSITY HOSPITALS PLYMOUTH NHS TRUST | D42: 6 | E42: 78 | F42: 0.8333333333 | G42: 0 | H42: 5 | I42: 0 | J42: 0 | K42: 0 | L42: 0 | M42: 1 | N42: 0 | O42: 5 | P42: 0 | Q42: 1 | R42: 0 | S42: 0 | T42: 0 | U42: 0
A43: QJM | B43: RWD | C43: UNITED LINCOLNSHIRE HOSPITALS NHS TRUST | D43: 23 | E43: 397 | F43: 1 | G43: 0 | H43: 21 | I43: 2 | J43: 0 | K43: 0 | L43: 0 | M43: 0 | N43: 0 | O43: 0 | P43: 0 | Q43: 23 | R43: 0 | S43: 0 | T43: 0 | U43: 0
A44: QK1 | B44: RWE | C44: UNIVERSITY HOSPITALS OF LEICESTER NHS TRUST | D44: 239 | E44: 759 | F44: 0.9748953975 | G44: 0.01255230126 | H44: 192 | I44: 41 | J44: 1 | K44: 1 | L44: 2 | M44: 2 | N44: 0 | O44: 239 | P44: 0 | Q44: 0 | R44: 0 | S44: 0 | T44: 0 | U44: 0
A45: QKK | B45: RJ1 | C45: GUY'S AND ST THOMAS' NHS FOUNDATION TRUST | D45: 35 | E45: 522 | F45: 0.9428571429 | G45: 0 | H45: 26 | I45: 7 | J45: 2 | K45: 0 | L45: 0 | M45: 0 | N45: 0 | O45: 0 | P45: 0 | Q45: 28 | R45: 0 | S45: 0 | T45: 7 | U45: 0
A46: QKK | B46: RJZ | C46: KING'S COLLEGE HOSPITAL NHS FOUNDATION TRUST | D46: 80 | E46: 629 | F46: 0.8375 | G46: 0.0625 | H46: 38 | I46: 29 | J46: 8 | K46: 4 | L46: 1 | M46: 0 | N46: 62 | O46: 10 | P46: 0 | Q46: 0 | R46: 0 | S46: 0 | T46: 8 | U46: 0
A47: QKK | B47: RJ2 | C47: LEWISHAM AND GREENWICH NHS TRUST | D47: 4 | E47: 600 | F47: * | G47: * | H47: * | I47: * | J47: * | K47: * | L47: * | M47: * | N47: * | O47: * | P47: * | Q47: * | R47: * | S47: * | T47: * | U47: *
A48: QKS | B48: RN7 | C48: DARTFORD AND GRAVESHAM NHS TRUST | D48: 0 | E48: 344 | F48: NA | G48: NA | H48: 0 | I48: 0 | J48: 0 | K48: 0 | L48: 0 | M48: 0 | N48: 0 | O48: 0 | P48: 0 | Q48: 0 | R48: 0 | S48: 0 | T48: 0 | U48: 0
A49: QKS | B49: RWF | C49: MAIDSTONE AND TUNBRIDGE WELLS NHS TRUST | D49: 13 | E49: 461 | F49: 1 | G49: 0 | H49: 12 | I49: 1 | J49: 0 | K49: 0 | L49: 0 | M49: 0 | N49: 0 | O49: 1 | P49: 0 | Q49: 0 | R49: 0 | S49: 0 | T49: 12 | U49: 0
A50: QKS | B50: RPA | C50: MEDWAY NHS FOUNDATION TRUST | D50: 85 | E50: 384 | F50: 1 | G50: 0 | H50: 85 | I50: 0 | J50: 0 | K50: 0 | L50: 0 | M50: 0 | N50: 0 | O50: 0 | P50: 0 | Q50: 85 | R50: 0 | S50: 0 | T50: 0 | U50: 0
A51: QM7 | B51: RWH | C51: EAST AND NORTH HERTFORDSHIRE NHS TRUST | D51: 90 | E51: 428 | F51: 0.9555555556 | G51: 0.02222222222 | H51: 67 | I51: 19 | J51: 2 | K51: 1 | L51: 1 | M51: 0 | N51: 0 | O51: 90 | P51: 0 | Q51: 0 | R51: 0 | S51: 0 | T51: 0 | U51: 0
A52: QM7 | B52: RQW | C52: THE PRINCESS ALEXANDRA HOSPITAL NHS TRUST | D52: 15 | E52: 314 | F52: 0.8 | G52: 0.06666666667 | H52: 9 | I52: 3 | J52: 2 | K52: 1 | L52: 0 | M52: 0 | N52: 0 | O52: 0 | P52: 0 | Q52: 0 | R52: 0 | S52: 0 | T52: 0 | U52: 15
A53: QM7 | B53: RWG | C53: WEST HERTFORDSHIRE TEACHING HOSPITALS NHS TRUST | D53: 24 | E53: 340 | F53: 0.9583333333 | G53: 0.04166666667 | H53: 20 | I53: 3 | J53: 0 | K53: 0 | L53: 1 | M53: 0 | N53: 0 | O53: 24 | P53: 0 | Q53: 0 | R53: 0 | S53: 0 | T53: 0 | U53: 0
A54: QMF | B54: RF4 | C54: BARKING, HAVERING AND REDBRIDGE UNIVERSITY HOSPITALS NHS TRUST | D54: 34 | E54: 563 | F54: 0.9411764706 | G54: 0.02941176471 | H54: 32 | I54: 0 | J54: 1 | K54: 0 | L54: 1 | M54: 0 | N54: 0 | O54: 0 | P54: 0 | Q54: 31 | R54: 0 | S54: 0 | T54: 3 | U54: 0
A55: QMF | B55: R1H | C55: BARTS HEALTH NHS TRUST | D55: 83 | E55: 1210 | F55: 0.9156626506 | G55: 0.04819277108 | H55: 66 | I55: 10 | J55: 3 | K55: 0 | L55: 4 | M55: 0 | N55: 19 | O55: 0 | P55: 0 | Q55: 63 | R55: 0 | S55: 0 | T55: 1 | U55: 0
A56: QMF | B56: RQX | C56: HOMERTON UNIVERSITY HOSPITAL NHS FOUNDATION TRUST | D56: 66 | E56: 458 | F56: 0.9393939394 | G56: 0.04545454545 | H56: 57 | I56: 5 | J56: 1 | K56: 1 | L56: 2 | M56: 0 | N56: 66 | O56: 0 | P56: 0 | Q56: 0 | R56: 0 | S56: 0 | T56: 0 | U56: 0
A57: QMJ | B57: RAP | C57: NORTH MIDDLESEX UNIVERSITY HOSPITAL NHS TRUST | D57: 0 | E57: 214 | F57: NA | G57: NA | H57: 0 | I57: 0 | J57: 0 | K57: 0 | L57: 0 | M57: 0 | N57: 0 | O57: 0 | P57: 0 | Q57: 0 | R57: 0 | S57: 0 | T57: 0 | U57: 0
A58: QMJ | B58: RAL | C58: ROYAL FREE LONDON NHS FOUNDATION TRUST | D58: 99 | E58: 639 | F58: 0.9292929293 | G58: 0.0404040404 | H58: 57 | I58: 35 | J58: 3 | K58: 2 | L58: 2 | M58: 0 | N58: 0 | O58: 97 | P58: 0 | Q58: 0 | R58: 0 | S58: 0 | T58: 2 | U58: 0
A59: QMJ | B59: RRV | C59: UNIVERSITY COLLEGE LONDON HOSPITALS NHS FOUNDATION TRUST | D59: 1 | E59: 438 | F59: * | G59: * | H59: * | I59: * | J59: * | K59: * | L59: * | M59: * | N59: * | O59: * | P59: * | Q59: * | R59: * | S59: * | T59: * | U59: *
A60: QMJ | B60: RKE | C60: WHITTINGTON HEALTH NHS TRUST | D60: 45 | E60: 277 | F60: 0.9777777778 | G60: 0.02222222222 | H60: 6 | I60: 38 | J60: 0 | K60: 1 | L60: 0 | M60: 0 | N60: 0 | O60: 0 | P60: 0 | Q60: 45 | R60: 0 | S60: 0 | T60: 0 | U60: 0
A61: QMM | B61: RGP | C61: JAMES PAGET UNIVERSITY HOSPITALS NHS FOUNDATION TRUST | D61: 8 | E61: 148 | F61: 1 | G61: 0 | H61: * | I61: * | J61: * | K61: * | L61: * | M61: * | N61: * | O61: * | P61: * | Q61: * | R61: * | S61: * | T61: * | U61: *
A62: QMM | B62: RM1 | C62: NORFOLK AND NORWICH UNIVERSITY HOSPITALS NHS FOUNDATION TRUST | D62: 2 | E62: 429 | F62: * | G62: * | H62: * | I62: * | J62: * | K62: * | L62: * | M62: * | N62: * | O62: * | P62: * | Q62: * | R62: * | S62: * | T62: * | U62: *
A63: QMM | B63: RCX | C63: THE QUEEN ELIZABETH HOSPITAL, KING'S LYNN, NHS FOUNDATION TRUST | D63: 9 | E63: 141 | F63: 1 | G63: 0 | H63: * | I63: * | J63: * | K63: * | L63: * | M63: * | N63: * | O63: * | P63: * | Q63: * | R63: * | S63: * | T63: * | U63: *
A64: QNC | B64: RJE | C64: UNIVERSITY HOSPITALS OF NORTH MIDLANDS NHS TRUST | D64: 4 | E64: 531 | F64: * | G64: * | H64: * | I64: * | J64: * | K64: * | L64: * | M64: * | N64: * | O64: * | P64: * | Q64: * | R64: * | S64: * | T64: * | U64: *
A65: QNQ | B65: RDU | C65: FRIMLEY HEALTH NHS FOUNDATION TRUST | D65: 16 | E65: 493 | F65: 0.9375 | G65: 0 | H65: 14 | I65: 1 | J65: 1 | K65: 0 | L65: 0 | M65: 0 | N65: 4 | O65: 0 | P65: 0 | Q65: 12 | R65: 0 | S65: 0 | T65: 0 | U65: 0
A66: QNX | B66: RXC | C66: EAST SUSSEX HEALTHCARE NHS TRUST | D66: 1 | E66: 213 | F66: * | G66: * | H66: * | I66: * | J66: * | K66: * | L66: * | M66: * | N66: * | O66: * | P66: * | Q66: * | R66: * | S66: * | T66: * | U66: *
A67: QNX | B67: RYR | C67: UNIVERSITY HOSPITALS SUSSEX NHS FOUNDATION TRUST | D67: 81 | E67: 750 | F67: 0.962962963 | G67: 0.03703703704 | H67: * | I67: * | J67: * | K67: * | L67: * | M67: * | N67: * | O67: * | P67: * | Q67: * | R67: * | S67: * | T67: * | U67: *
A68: QOC | B68: RXW | C68: THE SHREWSBURY AND TELFORD HOSPITAL NHS TRUST | D68: 21 | E68: 328 | F68: 1 | G68: 0 | H68: 21 | I68: 0 | J68: 0 | K68: 0 | L68: 0 | M68: 0 | N68: 0 | O68: 0 | P68: 0 | Q68: 21 | R68: 0 | S68: 0 | T68: 0 | U68: 0
A69: QOP | B69: RMC | C69: BOLTON NHS FOUNDATION TRUST | D69: 143 | E69: 484 | F69: 0.8251748252 | G69: 0.1258741259 | H69: 89 | I69: 29 | J69: 6 | K69: 2 | L69: 16 | M69: 1 | N69: 142 | O69: 1 | P69: 0 | Q69: 0 | R69: 0 | S69: 0 | T69: 0 | U69: 0
A70: QOP | B70: R0A | C70: MANCHESTER UNIVERSITY NHS FOUNDATION TRUST | D70: 16 | E70: 1202 | F70: 0.9375 | G70: 0.0625 | H70: 14 | I70: 1 | J70: 0 | K70: 1 | L70: 0 | M70: 0 | N70: 0 | O70: 12 | P70: 0 | Q70: 4 | R70: 0 | S70: 0 | T70: 0 | U70: 0
A71: QOP | B71: RWJ | C71: STOCKPORT NHS FOUNDATION TRUST | D71: 16 | E71: 292 | F71: 1 | G71: 0 | H71: 16 | I71: 0 | J71: 0 | K71: 0 | L71: 0 | M71: 0 | N71: 0 | O71: 0 | P71: 0 | Q71: 16 | R71: 0 | S71: 0 | T71: 0 | U71: 0
A72: QOP | B72: RMP | C72: TAMESIDE AND GLOSSOP INTEGRATED CARE NHS FOUNDATION TRUST | D72: 3 | E72: 161 | F72: * | G72: * | H72: * | I72: * | J72: * | K72: * | L72: * | M72: * | N72: * | O72: * | P72: * | Q72: * | R72: * | S72: * | T72: * | U72: *
A73: QOP | B73: RRF | C73: WRIGHTINGTON, WIGAN AND LEIGH NHS FOUNDATION TRUST | D73: 55 | E73: 206 | F73: 1 | G73: 0 | H73: 51 | I73: 4 | J73: 0 | K73: 0 | L73: 0 | M73: 0 | N73: 0 | O73: 0 | P73: 0 | Q73: 54 | R73: 0 | S73: 0 | T73: 1 | U73: 0
A74: QOQ | B74: RCD | C74: HARROGATE AND DISTRICT NHS FOUNDATION TRUST | D74: 7 | E74: 153 | F74: 1 | G74: 0 | H74: 7 | I74: 0 | J74: 0 | K74: 0 | L74: 0 | M74: 0 | N74: 0 | O74: 0 | P74: 0 | Q74: 7 | R74: 0 | S74: 0 | T74: 0 | U74: 0
A75: QOQ | B75: RWA | C75: HULL UNIVERSITY TEACHING HOSPITALS NHS TRUST | D75: 6 | E75: 392 | F75: 1 | G75: 0 | H75: 5 | I75: 1 | J75: 0 | K75: 0 | L75: 0 | M75: 0 | N75: 0 | O75: 0 | P75: 0 | Q75: 6 | R75: 0 | S75: 0 | T75: 0 | U75: 0
A76: QOQ | B76: RJL | C76: NORTHERN LINCOLNSHIRE AND GOOLE NHS FOUNDATION TRUST | D76: 93 | E76: 313 | F76: 0.935483871 | G76: 0.06451612903 | H76: 80 | I76: 7 | J76: 0 | K76: 0 | L76: 6 | M76: 0 | N76: 0 | O76: 0 | P76: 0 | Q76: 92 | R76: 0 | S76: 0 | T76: 1 | U76: 0
A77: QOQ | B77: RCB | C77: YORK AND SCARBOROUGH TEACHING HOSPITALS NHS FOUNDATION TRUST | D77: 37 | E77: 322 | F77: 0.9459459459 | G77: 0.05405405405 | H77: 30 | I77: 5 | J77: 0 | K77: 2 | L77: 0 | M77: 0 | N77: 0 | O77: 0 | P77: 0 | Q77: 37 | R77: 0 | S77: 0 | T77: 0 | U77: 0
A78: QOX | B78: RN3 | C78: GREAT WESTERN HOSPITALS NHS FOUNDATION TRUST | D78: 6 | E78: 328 | F78: 1 | G78: 0 | H78: * | I78: * | J78: * | K78: * | L78: * | M78: * | N78: * | O78: * | P78: * | Q78: * | R78: * | S78: * | T78: * | U78: *
A79: QOX | B79: RD1 | C79: ROYAL UNITED HOSPITALS BATH NHS FOUNDATION TRUST | D79: 3 | E79: 327 | F79: * | G79: * | H79: * | I79: * | J79: * | K79: * | L79: * | M79: * | N79: * | O79: * | P79: * | Q79: * | R79: * | S79: * | T79: * | U79: *
A80: QOX | B80: RNZ | C80: SALISBURY NHS FOUNDATION TRUST | D80: 0 | E80: 139 | F80: NA | G80: NA | H80: 0 | I80: 0 | J80: 0 | K80: 0 | L80: 0 | M80: 0 | N80: 0 | O80: 0 | P80: 0 | Q80: 0 | R80: 0 | S80: 0 | T80: 0 | U80: 0
A81: QPM | B81: RNQ | C81: KETTERING GENERAL HOSPITAL NHS FOUNDATION TRUST | D81: 0 | E81: 270 | F81: NA | G81: NA | H81: 0 | I81: 0 | J81: 0 | K81: 0 | L81: 0 | M81: 0 | N81: 0 | O81: 0 | P81: 0 | Q81: 0 | R81: 0 | S81: 0 | T81: 0 | U81: 0
A82: QPM | B82: RNS | C82: NORTHAMPTON GENERAL HOSPITAL NHS TRUST | D82: 6 | E82: 375 | F82: 1 | G82: 0 | H82: 6 | I82: 0 | J82: 0 | K82: 0 | L82: 0 | M82: 0 | N82: 0 | O82: 0 | P82: 0 | Q82: 6 | R82: 0 | S82: 0 | T82: 0 | U82: 0
A83: QR1 | B83: RTE | C83: GLOUCESTERSHIRE HOSPITALS NHS FOUNDATION TRUST | D83: 36 | E83: 67 | F83: 0.8888888889 | G83: 0.05555555556 | H83: 26 | I83: 6 | J83: 2 | K83: 1 | L83: 1 | M83: 0 | N83: 35 | O83: 0 | P83: 0 | Q83: 0 | R83: 0 | S83: 0 | T83: 1 | U83: 0
A84: QRL | B84: RN5 | C84: HAMPSHIRE HOSPITALS NHS FOUNDATION TRUST | D84: 142 | E84: 398 | F84: 0.9929577465 | G84: 0 | H84: 131 | I84: 10 | J84: 1 | K84: 0 | L84: 0 | M84: 0 | N84: 0 | O84: 0 | P84: 0 | Q84: 137 | R84: 0 | S84: 0 | T84: 5 | U84: 0
A85: QRL | B85: R1F | C85: ISLE OF WIGHT NHS TRUST | D85: 13 | E85: 67 | F85: 1 | G85: 0 | H85: 12 | I85: 1 | J85: 0 | K85: 0 | L85: 0 | M85: 0 | N85: 0 | O85: 0 | P85: 0 | Q85: 13 | R85: 0 | S85: 0 | T85: 0 | U85: 0
A86: QRL | B86: RHU | C86: PORTSMOUTH HOSPITALS UNIVERSITY NATIONAL HEALTH SERVICE TRUST | D86: 7 | E86: 438 | F86: 1 | G86: 0 | H86: 7 | I86: 0 | J86: 0 | K86: 0 | L86: 0 | M86: 0 | N86: 0 | O86: 0 | P86: 0 | Q86: 7 | R86: 0 | S86: 0 | T86: 0 | U86: 0
A87: QRL | B87: RHM | C87: UNIVERSITY HOSPITAL SOUTHAMPTON NHS FOUNDATION TRUST | D87: 31 | E87: 480 | F87: 0.8709677419 | G87: 0.09677419355 | H87: 25 | I87: 2 | J87: 1 | K87: 1 | L87: 2 | M87: 0 | N87: 0 | O87: 0 | P87: 0 | Q87: 0 | R87: 7 | S87: 0 | T87: 24 | U87: 0
A88: QRV | B88: RQM | C88: CHELSEA AND WESTMINSTER HOSPITAL NHS FOUNDATION TRUST | D88: 51 | E88: 155 | F88: 0.9215686275 | G88: 0.03921568627 | H88: 41 | I88: 6 | J88: 2 | K88: 0 | L88: 2 | M88: 0 | N88: 48 | O88: 0 | P88: 0 | Q88: 0 | R88: 0 | S88: 0 | T88: 3 | U88: 0
A89: QRV | B89: RYJ | C89: IMPERIAL COLLEGE HEALTHCARE NHS TRUST | D89: 118 | E89: 688 | F89: 0.906779661 | G89: 0.09322033898 | H89: 89 | I89: 18 | J89: 0 | K89: 7 | L89: 4 | M89: 0 | N89: 0 | O89: 0 | P89: 37 | Q89: 11 | R89: 0 | S89: 0 | T89: 70 | U89: 0
A90: QRV | B90: R1K | C90: LONDON NORTH WEST UNIVERSITY HEALTHCARE NHS TRUST | D90: 1 | E90: 338 | F90: * | G90: * | H90: * | I90: * | J90: * | K90: * | L90: * | M90: * | N90: * | O90: * | P90: * | Q90: * | R90: * | S90: * | T90: * | U90: *
A91: QRV | B91: RAS | C91: THE HILLINGDON HOSPITALS NHS FOUNDATION TRUST | D91: 29 | E91: 309 | F91: 0.8965517241 | G91: 0.06896551724 | H91: * | I91: * | J91: * | K91: * | L91: * | M91: * | N91: * | O91: * | P91: * | Q91: * | R91: * | S91: * | T91: * | U91: *
A92: QSL | B92: RH5 | C92: SOMERSET NHS FOUNDATION TRUST | D92: 9 | E92: 245 | F92: 1 | G92: 0 | H92: 7 | I92: 2 | J92: 0 | K92: 0 | L92: 0 | M92: 0 | N92: 0 | O92: 0 | P92: 0 | Q92: 9 | R92: 0 | S92: 0 | T92: 0 | U92: 0
A93: QSL | B93: RA4 | C93: YEOVIL DISTRICT HOSPITAL NHS FOUNDATION TRUST | D93: 16 | E93: 112 | F93: 1 | G93: 0 | H93: 13 | I93: 3 | J93: 0 | K93: 0 | L93: 0 | M93: 0 | N93: 10 | O93: 6 | P93: 0 | Q93: 0 | R93: 0 | S93: 0 | T93: 0 | U93: 0
A94: QT1 | B94: RX1 | C94: NOTTINGHAM UNIVERSITY HOSPITALS NHS TRUST | D94: 3 | E94: 641 | F94: * | G94: * | H94: * | I94: * | J94: * | K94: * | L94: * | M94: * | N94: * | O94: * | P94: * | Q94: * | R94: * | S94: * | T94: * | U94: *
A95: QT1 | B95: RK5 | C95: SHERWOOD FOREST HOSPITALS NHS FOUNDATION TRUST | D95: 38 | E95: 260 | F95: 0.8421052632 | G95: 0.1052631579 | H95: 27 | I95: 5 | J95: 2 | K95: 2 | L95: 2 | M95: 0 | N95: 38 | O95: 0 | P95: 0 | Q95: 0 | R95: 0 | S95: 0 | T95: 0 | U95: 0
A96: QT6 | B96: REF | C96: ROYAL CORNWALL HOSPITALS NHS TRUST | D96: 20 | E96: 338 | F96: 1 | G96: 0 | H96: 18 | I96: 2 | J96: 0 | K96: 0 | L96: 0 | M96: 0 | N96: 0 | O96: 20 | P96: 0 | Q96: 0 | R96: 0 | S96: 0 | T96: 0 | U96: 0
A97: QU9 | B97: RXQ | C97: BUCKINGHAMSHIRE HEALTHCARE NHS TRUST | D97: 4 | E97: 110 | F97: * | G97: * | H97: * | I97: * | J97: * | K97: * | L97: * | M97: * | N97: * | O97: * | P97: * | Q97: * | R97: * | S97: * | T97: * | U97: *
A98: QU9 | B98: RTH | C98: OXFORD UNIVERSITY HOSPITALS NHS FOUNDATION TRUST | D98: 2 | E98: 426 | F98: * | G98: * | H98: * | I98: * | J98: * | K98: * | L98: * | M98: * | N98: * | O98: * | P98: * | Q98: * | R98: * | S98: * | T98: * | U98: *
A99: QU9 | B99: RHW | C99: ROYAL BERKSHIRE NHS FOUNDATION TRUST | D99: 28 | E99: 409 | F99: 1 | G99: 0 | H99: 26 | I99: 2 | J99: 0 | K99: 0 | L99: 0 | M99: 0 | N99: 0 | O99: 0 | P99: 0 | Q99: 27 | R99: 0 | S99: 0 | T99: 1 | U99: 0
A100: QUA | B100: RNA | C100: THE DUDLEY GROUP NHS FOUNDATION TRUST | D100: 1 | E100: 306 | F100: * | G100: * | H100: * | I100: * | J100: * | K100: * | L100: * | M100: * | N100: * | O100: * | P100: * | Q100: * | R100: * | S100: * | T100: * | U100: *
A101: QUA | B101: RL4 | C101: THE ROYAL WOLVERHAMPTON NHS TRUST | D101: 53 | E101: 402 | F101: 0.8679245283 | G101: 0.1132075472 | H101: 38 | I101: 8 | J101: 1 | K101: 3 | L101: 3 | M101: 0 | N101: 53 | O101: 0 | P101: 0 | Q101: 0 | R101: 0 | S101: 0 | T101: 0 | U101: 0
A102: QUA | B102: RBK | C102: WALSALL HEALTHCARE NHS TRUST | D102: 24 | E102: 221 | F102: 0.875 | G102: 0.08333333333 | H102: 18 | I102: 3 | J102: 1 | K102: 1 | L102: 1 | M102: 0 | N102: 24 | O102: 0 | P102: 0 | Q102: 0 | R102: 0 | S102: 0 | T102: 0 | U102: 0
A103: QUE | B103: RGT | C103: CAMBRIDGE UNIVERSITY HOSPITALS NHS FOUNDATION TRUST | D103: 28 | E103: 416 | F103: 0.9642857143 | G103: 0.03571428571 | H103: 25 | I103: 2 | J103: 0 | K103: 1 | L103: 0 | M103: 0 | N103: 0 | O103: 27 | P103: 0 | Q103: 0 | R103: 0 | S103: 0 | T103: 1 | U103: 0
A104: QUE | B104: RGN | C104: NORTH WEST ANGLIA NHS FOUNDATION TRUST | D104: 17 | E104: 511 | F104: 1 | G104: 0 | H104: 16 | I104: 1 | J104: 0 | K104: 0 | L104: 0 | M104: 0 | N104: 0 | O104: 0 | P104: 0 | Q104: 12 | R104: 0 | S104: 0 | T104: 5 | U104: 0
A105: QUY | B105: RVJ | C105: NORTH BRISTOL NHS TRUST | D105: 80 | E105: 458 | F105: 0.9375 | G105: 0.025 | H105: 60 | I105: 15 | J105: 2 | K105: 1 | L105: 1 | M105: 1 | N105: 80 | O105: 0 | P105: 0 | Q105: 0 | R105: 0 | S105: 0 | T105: 0 | U105: 0
A106: QUY | B106: RA7 | C106: UNIVERSITY HOSPITALS BRISTOL AND WESTON NHS FOUNDATION TRUST | D106: 25 | E106: 409 | F106: 1 | G106: 0 | H106: 23 | I106: 2 | J106: 0 | K106: 0 | L106: 0 | M106: 0 | N106: 0 | O106: 0 | P106: 0 | Q106: 25 | R106: 0 | S106: 0 | T106: 0 | U106: 0
A107: QVV | B107: RBD | C107: DORSET COUNTY HOSPITAL NHS FOUNDATION TRUST | D107: 48 | E107: 114 | F107: 1 | G107: 0 | H107: 47 | I107: 1 | J107: 0 | K107: 0 | L107: 0 | M107: 0 | N107: 48 | O107: 0 | P107: 0 | Q107: 0 | R107: 0 | S107: 0 | T107: 0 | U107: 0
A108: QVV | B108: R0D | C108: UNIVERSITY HOSPITALS DORSET NHS FOUNDATION TRUST | D108: 132 | E108: 328 | F108: 0.9393939394 | G108: 0.0303030303 | H108: 107 | I108: 17 | J108: 2 | K108: 2 | L108: 2 | M108: 2 | N108: 132 | O108: 0 | P108: 0 | Q108: 0 | R108: 0 | S108: 0 | T108: 0 | U108: 0
A109: QWE | B109: RJ6 | C109: CROYDON HEALTH SERVICES NHS TRUST | D109: 24 | E109: 247 | F109: 0.7916666667 | G109: 0.1666666667 | H109: 16 | I109: 3 | J109: 0 | K109: 1 | L109: 3 | M109: 1 | N109: 24 | O109: 0 | P109: 0 | Q109: 0 | R109: 0 | S109: 0 | T109: 0 | U109: 0
A110: QWE | B110: RVR | C110: EPSOM AND ST HELIER UNIVERSITY HOSPITALS NHS TRUST | D110: 27 | E110: 364 | F110: 0.962962963 | G110: 0.03703703704 | H110: 23 | I110: 3 | J110: 0 | K110: 1 | L110: 0 | M110: 0 | N110: 3 | O110: 3 | P110: 0 | Q110: 18 | R110: 0 | S110: 0 | T110: 3 | U110: 0
A111: QWE | B111: RAX | C111: KINGSTON HOSPITAL NHS FOUNDATION TRUST | D111: 19 | E111: 384 | F111: 0.8947368421 | G111: 0.1052631579 | H111: 14 | I111: 3 | J111: 0 | K111: 0 | L111: 2 | M111: 0 | N111: 0 | O111: 19 | P111: 0 | Q111: 0 | R111: 0 | S111: 0 | T111: 0 | U111: 0
A112: QWE | B112: RJ7 | C112: ST GEORGE'S UNIVERSITY HOSPITALS NHS FOUNDATION TRUST | D112: 33 | E112: 370 | F112: 0.8787878788 | G112: 0 | H112: 19 | I112: 10 | J112: 4 | K112: 0 | L112: 0 | M112: 0 | N112: 0 | O112: 0 | P112: 0 | Q112: 0 | R112: 0 | S112: 0 | T112: 33 | U112: 0
A113: QWO | B113: RCF | C113: AIREDALE NHS FOUNDATION TRUST | D113: 39 | E113: 159 | F113: 0.9743589744 | G113: 0.02564102564 | H113: 31 | I113: 7 | J113: 0 | K113: 0 | L113: 1 | M113: 0 | N113: 39 | O113: 0 | P113: 0 | Q113: 0 | R113: 0 | S113: 0 | T113: 0 | U113: 0
A114: QWO | B114: RAE | C114: BRADFORD TEACHING HOSPITALS NHS FOUNDATION TRUST | D114: 0 | E114: 314 | F114: NA | G114: NA | H114: 0 | I114: 0 | J114: 0 | K114: 0 | L114: 0 | M114: 0 | N114: 0 | O114: 0 | P114: 0 | Q114: 0 | R114: 0 | S114: 0 | T114: 0 | U114: 0
A115: QWO | B115: RWY | C115: CALDERDALE AND HUDDERSFIELD NHS FOUNDATION TRUST | D115: 60 | E115: 401 | F115: 0.9666666667 | G115: 0 | H115: 41 | I115: 17 | J115: 2 | K115: 0 | L115: 0 | M115: 0 | N115: 0 | O115: 0 | P115: 0 | Q115: 0 | R115: 0 | S115: 0 | T115: 60 | U115: 0
A116: QWO | B116: RR8 | C116: LEEDS TEACHING HOSPITALS NHS TRUST | D116: 329 | E116: 650 | F116: 0.9726443769 | G116: 0.01519756839 | H116: 278 | I116: 42 | J116: 2 | K116: 2 | L116: 3 | M116: 2 | N116: 145 | O116: 183 | P116: 0 | Q116: 0 | R116: 0 | S116: 1 | T116: 0 | U116: 0
A117: QWO | B117: RXF | C117: MID YORKSHIRE HOSPITALS NHS TRUST | D117: 124 | E117: 477 | F117: 0.9838709677 | G117: 0.008064516129 | H117: 113 | I117: 9 | J117: 1 | K117: 0 | L117: 1 | M117: 0 | N117: 1 | O117: 0 | P117: 0 | Q117: 114 | R117: 0 | S117: 0 | T117: 9 | U117: 0
A118: QWU | B118: RLT | C118: GEORGE ELIOT HOSPITAL NHS TRUST | D118: 73 | E118: 163 | F118: 0.9315068493 | G118: 0.05479452055 | H118: 59 | I118: 9 | J118: 1 | K118: 3 | L118: 1 | M118: 0 | N118: 73 | O118: 0 | P118: 0 | Q118: 0 | R118: 0 | S118: 0 | T118: 0 | U118: 0
A119: QWU | B119: RJC | C119: SOUTH WARWICKSHIRE NHS FOUNDATION TRUST | D119: 1 | E119: 269 | F119: * | G119: * | H119: * | I119: * | J119: * | K119: * | L119: * | M119: * | N119: * | O119: * | P119: * | Q119: * | R119: * | S119: * | T119: * | U119: *
A120: QWU | B120: RKB | C120: UNIVERSITY HOSPITALS COVENTRY AND WARWICKSHIRE NHS TRUST | D120: 2 | E120: 485 | F120: * | G120: * | H120: * | I120: * | J120: * | K120: * | L120: * | M120: * | N120: * | O120: * | P120: * | Q120: * | R120: * | S120: * | T120: * | U120: *
A121: QXU | B121: RTK | C121: ASHFORD AND ST PETER'S HOSPITALS NHS FOUNDATION TRUST | D121: 19 | E121: 263 | F121: 1 | G121: 0 | H121: 14 | I121: 5 | J121: 0 | K121: 0 | L121: 0 | M121: 0 | N121: 19 | O121: 0 | P121: 0 | Q121: 0 | R121: 0 | S121: 0 | T121: 0 | U121: 0
A122: QXU | B122: RA2 | C122: ROYAL SURREY COUNTY HOSPITAL NHS FOUNDATION TRUST | D122: 15 | E122: 241 | F122: 1 | G122: 0 | H122: 15 | I122: 0 | J122: 0 | K122: 0 | L122: 0 | M122: 0 | N122: 13 | O122: 0 | P122: 0 | Q122: 0 | R122: 0 | S122: 0 | T122: 2 | U122: 0
A123: QXU | B123: RTP | C123: SURREY AND SUSSEX HEALTHCARE NHS TRUST | D123: 6 | E123: 373 | F123: 1 | G123: 0 | H123: 6 | I123: 0 | J123: 0 | K123: 0 | L123: 0 | M123: 0 | N123: 0 | O123: 0 | P123: 0 | Q123: 6 | R123: 0 | S123: 0 | T123: 0 | U123: 0
A124: QYG | B124: RJN | C124: EAST CHESHIRE NHS TRUST | D124: 0 | E124: 0 | F124: NA | G124: NA | H124: 0 | I124: 0 | J124: 0 | K124: 0 | L124: 0 | M124: 0 | N124: 0 | O124: 0 | P124: 0 | Q124: 0 | R124: 0 | S124: 0 | T124: 0 | U124: 0
A125: QYG | B125: REP | C125: LIVERPOOL WOMEN'S NHS FOUNDATION TRUST | D125: 43 | E125: 645 | F125: 0.8372093023 | G125: 0.04651162791 | H125: 29 | I125: 7 | J125: 2 | K125: 0 | L125: 2 | M125: 3 | N125: 0 | O125: 0 | P125: 0 | Q125: 0 | R125: 0 | S125: 0 | T125: 0 | U125: 43
A126: QYG | B126: RBT | C126: MID CHESHIRE HOSPITALS NHS FOUNDATION TRUST | D126: 6 | E126: 352 | F126: 1 | G126: 0 | H126: 6 | I126: 0 | J126: 0 | K126: 0 | L126: 0 | M126: 0 | N126: 5 | O126: 0 | P126: 0 | Q126: 0 | R126: 0 | S126: 0 | T126: 0 | U126: 1
A127: QYG | B127: RVY | C127: SOUTHPORT AND ORMSKIRK HOSPITAL NHS TRUST | D127: 34 | E127: 178 | F127: 0.9705882353 | G127: 0.02941176471 | H127: 28 | I127: 5 | J127: 0 | K127: 1 | L127: 0 | M127: 0 | N127: 34 | O127: 0 | P127: 0 | Q127: 0 | R127: 0 | S127: 0 | T127: 0 | U127: 0
A128: QYG | B128: RBN | C128: ST HELENS AND KNOWSLEY TEACHING HOSPITALS NHS TRUST | D128: 43 | E128: 323 | F128: 0.9069767442 | G128: 0.06976744186 | H128: 31 | I128: 8 | J128: 1 | K128: 1 | L128: 2 | M128: 0 | N128: 42 | O128: 0 | P128: 0 | Q128: 1 | R128: 0 | S128: 0 | T128: 0 | U128: 0
A129: QYG | B129: RWW | C129: WARRINGTON AND HALTON TEACHING HOSPITALS NHS FOUNDATION TRUST | D129: 23 | E129: 190 | F129: 0.9565217391 | G129: 0 | H129: 19 | I129: 3 | J129: 1 | K129: 0 | L129: 0 | M129: 0 | N129: 0 | O129: 0 | P129: 0 | Q129: 23 | R129: 0 | S129: 0 | T129: 0 | U129: 0
A130: QYG | B130: RBL | C130: WIRRAL UNIVERSITY TEACHING HOSPITAL NHS FOUNDATION TRUST | D130: 35 | E130: 215 | F130: 1 | G130: 0 | H130: 27 | I130: 8 | J130: 0 | K130: 0 | L130: 0 | M130: 0 | N130: 0 | O130: 0 | P130: 0 | Q130: 35 | R130: 0 | S130: 0 | T130: 0 | U130: 0

Sheet Sites Q2
B6: Sort data by:
A9: STP Code | B9: Trust Code | C9: Trust Name | D9: Site Code | E9: Site Name | F9: Total Responses | G9: Percentage Positive | H9: Percentage Negative | I9: Breakdown of Responses
I10: Very Good | J10: Good | K10: Neither Good nor Poor | L10: Poor | M10: Very Poor | N10: Don't Know
E11: England (including Independent Sector providers) | F11: 3881 | G11: 0.9379026024 | H11: 0.03864983252 | I11: 3063 | J11: 577 | K11: 74 | L11: 58 | M11: 92 | N11: 17
E12: England (excluding Independent Sector providers) | F12: 3881 | G12: 0.9379026024 | H12: 0.03864983252 | I12: 3063 | J12: 577 | K12: 74 | L12: 58 | M12: 92 | N12: 17
E13: Selection (excluding suppressed data) | F13: =SUBTOTAL(9,F14:F299) -> 3881 | G13: =IFERROR((I13+J13)/SUM(I13:N13), "-") -> 0.9366220189 | H13: =IFERROR((L13+M13)/SUM(I13:N13), "-") -> 0.03822280301 | I13: =SUBTOTAL(9,I14:I299) -> 2388 | J13: =SUBTOTAL(9,J14:J299) -> 479 | K13: 63 | L13: 47 | M13: 70 | N13: 14
A14: QE1 | B14: RXL | C14: BLACKPOOL TEACHING HOSPITALS NHS FOUNDATION TRUST | D14: RXL01 | E14: Blackpool Victoria Hospital | F14: 0 | G14: NA | H14: NA | I14: 0 | J14: 0 | K14: 0 | L14: 0 | M14: 0 | N14: 0
A15: QE1 | B15: RXR | C15: EAST LANCASHIRE HOSPITALS NHS TRUST | D15: RXR20 | E15: Royal Blackburn Hospital | F15: 42 | G15: 0.9285714286 | H15: 0.07142857143 | I15: 32 | J15: 7 | K15: 0 | L15: 2 | M15: 1 | N15: 0
A16: QE1 | B16: RXN | C16: LANCASHIRE TEACHING HOSPITALS NHS FOUNDATION TRUST | D16: RXN01 | E16: Chorley and South Ribble Hospital | F16: 0 | G16: NA | H16: NA | I16: 0 | J16: 0 | K16: 0 | L16: 0 | M16: 0 | N16: 0
A17: QE1 | B17: RXN | C17: LANCASHIRE TEACHING HOSPITALS NHS FOUNDATION TRUST | D17: RXN02 | E17: Royal Preston Hospital | F17: 9 | G17: 1 | H17: 0 | I17: 8 | J17: 1 | K17: 0 | L17: 0 | M17: 0 | N17: 0
A18: QE1 | B18: RTX | C18: UNIVERSITY HOSPITALS OF MORECAMBE BAY NHS FOUNDATION TRUST | D18: RTXBU | E18: Furness General Hospital | F18: 16 | G18: 0.9375 | H18: 0.0625 | I18: * | J18: * | K18: * | L18: * | M18: * | N18: *
A19: QE1 | B19: RTX | C19: UNIVERSITY HOSPITALS OF MORECAMBE BAY NHS FOUNDATION TRUST | D19: RTX02 | E19: Royal Lancaster Infirmary | F19: 18 | G19: 1 | H19: 0 | I19: 15 | J19: 3 | K19: 0 | L19: 0 | M19: 0 | N19: 0
A20: QE1 | B20: RTX | C20: UNIVERSITY HOSPITALS OF MORECAMBE BAY NHS FOUNDATION TRUST | D20: RTXBW | E20: Westmorland General Hospital | F20: 3 | G20: * | H20: * | I20: * | J20: * | K20: * | L20: * | M20: * | N20: *
A21: QF7 | B21: RFF | C21: BARNSLEY HOSPITAL NHS FOUNDATION TRUST | D21: RFFAA | E21: Barnsley Hospital NHS Foundation Trust HQ | F21: 2 | G21: * | H21: * | I21: * | J21: * | K21: * | L21: * | M21: * | N21: *
A22: QF7 | B22: RP5 | C22: DONCASTER AND BASSETLAW TEACHING HOSPITALS NHS FOUNDATION TRUST | D22: RP5BA | E22: Bassetlaw Hospital | F22: 0 | G22: NA | H22: NA | I22: 0 | J22: 0 | K22: 0 | L22: 0 | M22: 0 | N22: 0
A23: QF7 | B23: RP5 | C23: DONCASTER AND BASSETLAW TEACHING HOSPITALS NHS FOUNDATION TRUST | D23: RP5DR | E23: Doncaster Royal Infirmary | F23: 0 | G23: NA | H23: NA | I23: 0 | J23: 0 | K23: 0 | L23: 0 | M23: 0 | N23: 0
A24: QF7 | B24: RP5 | C24: DONCASTER AND BASSETLAW TEACHING HOSPITALS NHS FOUNDATION TRUST | D24: RP5XXX | E24: Non-hospital site | F24: 0 | G24: NA | H24: NA | I24: 0 | J24: 0 | K24: 0 | L24: 0 | M24: 0 | N24: 0
A25: QF7 | B25: RHQ | C25: SHEFFIELD TEACHING HOSPITALS NHS FOUNDATION TRUST | D25: RHQHH | E25: Royal Hallamshire Hospital | F25: 82 | G25: 0.8658536585 | H25: 0.1219512195 | I25: * | J25: * | K25: * | L25: * | M25: * | N25: *
A26: QF7 | B26: RFR | C26: THE ROTHERHAM NHS FOUNDATION TRUST | D26: RFRPA | E26: Rotherham District General Hospital | F26: 3 | G26: * | H26: * | I26: * | J26: * | K26: * | L26: * | M26: * | N26: *
A27: QGH | B27: RWP | C27: WORCESTERSHIRE ACUTE HOSPITALS NHS TRUST | D27: RWP50 | E27: Worcestershire Royal Hospital | F27: 16 | G27: 1 | H27: 0 | I27: 16 | J27: 0 | K27: 0 | L27: 0 | M27: 0 | N27: 0
A28: QGH | B28: RLQ | C28: WYE VALLEY NHS TRUST | D28: RLQ01 | E28: Hereford County Hospital | F28: 1 | G28: * | H28: * | I28: * | J28: * | K28: * | L28: * | M28: * | N28: *
A29: QH8 | B29: RAJ | C29: MID AND SOUTH ESSEX NHS FOUNDATION TRUST | D29: RAJ12 | E29: BASILDON HOSPITAL | F29: 17 | G29: 1 | H29: 0 | I29: 13 | J29: 4 | K29: 0 | L29: 0 | M29: 0 | N29: 0
A30: QH8 | B30: RAJ | C30: MID AND SOUTH ESSEX NHS FOUNDATION TRUST | D30: RAJ32 | E30: MID ESSEX HOSPITAL | F30: 78 | G30: 0.858974359 | H30: 0.1025641026 | I30: 60 | J30: 7 | K30: 3 | L30: 3 | M30: 5 | N30: 0
A31: QHG | B31: RC9 | C31: BEDFORDSHIRE HOSPITALS NHS FOUNDATION TRUST | D31: RC979 | E31: BEDFORD HOSPITAL SOUTH WING | F31: 10 | G31: 0.9 | H31: 0.1 | I31: 8 | J31: 1 | K31: 0 | L31: 1 | M31: 0 | N31: 0
A32: QHG | B32: RC9 | C32: BEDFORDSHIRE HOSPITALS NHS FOUNDATION TRUST | D32: RC971 | E32: Luton and Dunstable Hospital | F32: 0 | G32: NA | H32: NA | I32: 0 | J32: 0 | K32: 0 | L32: 0 | M32: 0 | N32: 0
A33: QHG | B33: RD8 | C33: MILTON KEYNES UNIVERSITY HOSPITAL NHS FOUNDATION TRUST | D33: RD816 | E33: Milton Keynes Hospital | F33: 23 | G33: 0.9565217391 | H33: 0 | I33: 18 | J33: 4 | K33: 0 | L33: 0 | M33: 0 | N33: 1
A34: QHL | B34: RQ3 | C34: BIRMINGHAM WOMEN'S AND CHILDREN'S NHS FOUNDATION TRUST | D34: RQ370 | E34: Birmingham Women's Hospital | F34: 2 | G34: * | H34: * | I34: * | J34: * | K34: * | L34: * | M34: * | N34: *
A35: QHL | B35: RRK | C35: UNIVERSITY HOSPITALS BIRMINGHAM NHS FOUNDATION TRUST | D35: RRK98 | E35: Good Hope Hospital | F35: 32 | G35: 0.96875 | H35: 0 | I35: 24 | J35: 7 | K35: 0 | L35: 0 | M35: 0 | N35: 1
A36: QHL | B36: RRK | C36: UNIVERSITY HOSPITALS BIRMINGHAM NHS FOUNDATION TRUST | D36: RRK97 | E36: Heartlands Hospital | F36: 45 | G36: 0.7555555556 | H36: 0.1333333333 | I36: 23 | J36: 11 | K36: 5 | L36: 1 | M36: 5 | N36: 0
A37: QHL | B37: RRK | C37: UNIVERSITY HOSPITALS BIRMINGHAM NHS FOUNDATION TRUST | D37: RRK99 | E37: Solihull Hospital | F37: 0 | G37: NA | H37: NA | I37: 0 | J37: 0 | K37: 0 | L37: 0 | M37: 0 | N37: 0
A38: QHM | B38: RR7 | C38: GATESHEAD HEALTH NHS FOUNDATION TRUST | D38: RR7EN | E38: Queen Elizabeth Hospital | F38: 5 | G38: 1 | H38: 0 | I38: * | J38: * | K38: * | L38: * | M38: * | N38: *
A39: QHM | B39: RNN | C39: NORTH CUMBRIA INTEGRATED CARE NHS FOUNDATION TRUST | D39: RNN62 | E39: Cumberland Infirmary | F39: 2 | G39: * | H39: * | I39: * | J39: * | K39: * | L39: * | M39: * | N39: *
A40: QHM | B40: RNN | C40: NORTH CUMBRIA INTEGRATED CARE NHS FOUNDATION TRUST | D40: RNNXXX | E40: Non-hospital site | F40: 0 | G40: NA | H40: NA | I40: 0 | J40: 0 | K40: 0 | L40: 0 | M40: 0 | N40: 0
A41: QHM | B41: RNN | C41: NORTH CUMBRIA INTEGRATED CARE NHS FOUNDATION TRUST | D41: RNNBX | E41: West Cumberland Hospital | F41: 9 | G41: 1 | H41: 0 | I41: * | J41: * | K41: * | L41: * | M41: * | N41: *
A42: QHM | B42: RVW | C42: NORTH TEES AND HARTLEPOOL NHS FOUNDATION TRUST | D42: RVWAE | E42: University Hospital Of North Tees | F42: 10 | G42: 1 | H42: 0 | I42: * | J42: * | K42: * | L42: * | M42: * | N42: *
A43: QHM | B43: RTF | C43: NORTHUMBRIA HEALTHCARE NHS FOUNDATION TRUST | D43: RTFDJ | E43: Alnwick Infirmary | F43: 0 | G43: NA | H43: NA | I43: 0 | J43: 0 | K43: 0 | L43: 0 | M43: 0 | N43: 0
A44: QHM | B44: RTF | C44: NORTHUMBRIA HEALTHCARE NHS FOUNDATION TRUST | D44: RTFDH | E44: Berwick Infirmary | F44: 0 | G44: NA | H44: NA | I44: 0 | J44: 0 | K44: 0 | L44: 0 | M44: 0 | N44: 0
A45: QHM | B45: RTF | C45: NORTHUMBRIA HEALTHCARE NHS FOUNDATION TRUST | D45: RTFDR | E45: Hexham General Hospital | F45: 0 | G45: NA | H45: NA | I45: 0 | J45: 0 | K45: 0 | L45: 0 | M45: 0 | N45: 0
A46: QHM | B46: RTF | C46: NORTHUMBRIA HEALTHCARE NHS FOUNDATION TRUST | D46: RTFXXX | E46: Non-hospital site | F46: 1 | G46: * | H46: * | I46: * | J46: * | K46: * | L46: * | M46: * | N46: *
A47: QHM | B47: RTF | C47: NORTHUMBRIA HEALTHCARE NHS FOUNDATION TRUST | D47: RTF86 | E47: The Northumbria | F47: 47 | G47: 0.914893617 | H47: 0 | I47: 36 | J47: 7 | K47: 4 | L47: 0 | M47: 0 | N47: 0
A48: QHM | B48: RTR | C48: SOUTH TEES HOSPITALS NHS FOUNDATION TRUST | D48: RTR45 | E48: Friarage Hospital Site | F48: 0 | G48: NA | H48: NA | I48: 0 | J48: 0 | K48: 0 | L48: 0 | M48: 0 | N48: 0
A49: QHM | B49: RTR | C49: SOUTH TEES HOSPITALS NHS FOUNDATION TRUST | D49: RTRAT | E49: The James Cook University Hospital | F49: 0 | G49: NA | H49: NA | I49: 0 | J49: 0 | K49: 0 | L49: 0 | M49: 0 | N49: 0
A50: QHM | B50: R0B | C50: SOUTH TYNESIDE AND SUNDERLAND NHS FOUNDATION TRUST | D50: R0B0Q | E50: South Tyneside District Hospital | F50: 0 | G50: NA | H50: NA | I50: 0 | J50: 0 | K50: 0 | L50: 0 | M50: 0 | N50: 0
A51: QHM | B51: R0B | C51: SOUTH TYNESIDE AND SUNDERLAND NHS FOUNDATION TRUST | D51: R0B01 | E51: Sunderland Royal Hospital | F51: 0 | G51: NA | H51: NA | I51: 0 | J51: 0 | K51: 0 | L51: 0 | M51: 0 | N51: 0
A52: QHM | B52: RTD | C52: THE NEWCASTLE UPON TYNE HOSPITALS NHS FOUNDATION TRUST | D52: RTD02 | E52: The Royal Victoria Infirmary | F52: 15 | G52: 1 | H52: 0 | I52: * | J52: * | K52: * | L52: * | M52: * | N52: *
A53: QJ2 | B53: RTG | C53: UNIVERSITY HOSPITALS OF DERBY AND BURTON NHS FOUNDATION TRUST | D53: RTG02 | E53: Queens Hospital, Burton Upon Trent | F53: 1 | G53: * | H53: * | I53: * | J53: * | K53: * | L53: * | M53: * | N53: *
A54: QJG | B54: RDE | C54: EAST SUFFOLK AND NORTH ESSEX NHS FOUNDATION TRUST | D54: RDEE2 | E54: Clacton and District Hospital | F54: 0 | G54: NA | H54: NA | I54: 0 | J54: 0 | K54: 0 | L54: 0 | M54: 0 | N54: 0
A55: QJG | B55: RDE | C55: EAST SUFFOLK AND NORTH ESSEX NHS FOUNDATION TRUST | D55: RDEE4 | E55: Colchester General Hospital | F55: 3 | G55: * | H55: * | I55: * | J55: * | K55: * | L55: * | M55: * | N55: *
A56: QJG | B56: RDE | C56: EAST SUFFOLK AND NORTH ESSEX NHS FOUNDATION TRUST | D56: RDE03 | E56: Ipswich Hospital | F56: 1 | G56: * | H56: * | I56: * | J56: * | K56: * | L56: * | M56: * | N56: *
A57: QJG | B57: RDE | C57: EAST SUFFOLK AND NORTH ESSEX NHS FOUNDATION TRUST | D57: RDEXXX | E57: Non-hospital site | F57: 0 | G57: NA | H57: NA | I57: 0 | J57: 0 | K57: 0 | L57: 0 | M57: 0 | N57: 0
A58: QJG | B58: RGR | C58: WEST SUFFOLK NHS FOUNDATION TRUST | D58: RGR50 | E58: West Suffolk Hospital | F58: 0 | G58: NA | H58: NA | I58: 0 | J58: 0 | K58: 0 | L58: 0 | M58: 0 | N58: 0
A59: QJK | B59: RBZ | C59: NORTHERN DEVON HEALTHCARE NHS TRUST | D59: RBZ12 | E59: North Devon District Hospital | F59: 0 | G59: NA | H59: NA | I59: 0 | J59: 0 | K59: 0 | L59: 0 | M59: 0 | N59: 0
A60: QJK | B60: RH8 | C60: ROYAL DEVON AND EXETER NHS FOUNDATION TRUST | D60: RH8XXX | E60: Non-hospital site | F60: 0 | G60: NA | H60: NA | I60: 0 | J60: 0 | K60: 0 | L60: 0 | M60: 0 | N60: 0
A61: QJK | B61: RH8 | C61: ROYAL DEVON AND EXETER NHS FOUNDATION TRUST | D61: RH801 | E61: Royal Devon and Exeter Hospital (Wonford) | F61: 0 | G61: NA | H61: NA | I61: 0 | J61: 0 | K61: 0 | L61: 0 | M61: 0 | N61: 0
A62: QJK | B62: RH8 | C62: ROYAL DEVON AND EXETER NHS FOUNDATION TRUST | D62: RH853 | E62: Tiverton and District Hospital | F62: 0 | G62: NA | H62: NA | I62: 0 | J62: 0 | K62: 0 | L62: 0 | M62: 0 | N62: 0
A63: QJK | B63: RA9 | C63: TORBAY AND SOUTH DEVON NHS FOUNDATION TRUST | D63: RA957 | E63: Newton Abbot Community Hospital | F63: 0 | G63: NA | H63: NA | I63: 0 | J63: 0 | K63: 0 | L63: 0 | M63: 0 | N63: 0
A64: QJK | B64: RA9 | C64: TORBAY AND SOUTH DEVON NHS FOUNDATION TRUST | D64: RA9XXX | E64: Non-hospital site | F64: 0 | G64: NA | H64: NA | I64: 0 | J64: 0 | K64: 0 | L64: 0 | M64: 0 | N64: 0
A65: QJK | B65: RA9 | C65: TORBAY AND SOUTH DEVON NHS FOUNDATION TRUST | D65: RA901 | E65: Torbay Hospital | F65: 2 | G65: * | H65: * | I65: * | J65: * | K65: * | L65: * | M65: * | N65: *
A66: QJK | B66: RK9 | C66: UNIVERSITY HOSPITALS PLYMOUTH NHS TRUST | D66: RK950 | E66: Derriford Hospital | F66: 6 | G66: 0.8333333333 | H66: 0 | I66: 5 | J66: 0 | K66: 0 | L66: 0 | M66: 0 | N66: 1
A67: QJK | B67: RK9 | C67: UNIVERSITY HOSPITALS PLYMOUTH NHS TRUST | D67: RK9XXX | E67: Non-hospital site | F67: 0 | G67: NA | H67: NA | I67: 0 | J67: 0 | K67: 0 | L67: 0 | M67: 0 | N67: 0
A68: QJM | B68: RWD | C68: UNITED LINCOLNSHIRE HOSPITALS NHS TRUST | D68: RWDLP | E68: Grantham and District Hospital | F68: 0 | G68: NA | H68: NA | I68: 0 | J68: 0 | K68: 0 | L68: 0 | M68: 0 | N68: 0
A69: QJM | B69: RWD | C69: UNITED LINCOLNSHIRE HOSPITALS NHS TRUST | D69: RWDDA | E69: Lincoln County Hospital | F69: 23 | G69: 1 | H69: 0 | I69: 21 | J69: 2 | K69: 0 | L69: 0 | M69: 0 | N69: 0
A70: QJM | B70: RWD | C70: UNITED LINCOLNSHIRE HOSPITALS NHS TRUST | D70: RWDLA | E70: Pilgrim Hospital | F70: 0 | G70: NA | H70: NA | I70: 0 | J70: 0 | K70: 0 | L70: 0 | M70: 0 | N70: 0
A71: QK1 | B71: RWE | C71: UNIVERSITY HOSPITALS OF LEICESTER NHS TRUST | D71: RWEAK | E71: Leicester General Hospital | F71: 41 | G71: 1 | H71: 0 | I71: 34 | J71: 7 | K71: 0 | L71: 0 | M71: 0 | N71: 0
A72: QK1 | B72: RWE | C72: UNIVERSITY HOSPITALS OF LEICESTER NHS TRUST | D72: RWEAA | E72: Leicester Royal Infirmary | F72: 76 | G72: 0.9736842105 | H72: 0.01315789474 | I72: 56 | J72: 18 | K72: 1 | L72: 0 | M72: 1 | N72: 0
A73: QK1 | B73: RWE | C73: UNIVERSITY HOSPITALS OF LEICESTER NHS TRUST | D73: RWEXXX | E73: Non-hospital site | F73: 113 | G73: 0.9646017699 | H73: 0.01769911504 | I73: 93 | J73: 16 | K73: 0 | L73: 1 | M73: 1 | N73: 2
A74: QK1 | B74: RWE | C74: UNIVERSITY HOSPITALS OF LEICESTER NHS TRUST | D74: RWE10 | E74: St Mary's Hospital | F74: 9 | G74: 1 | H74: 0 | I74: 9 | J74: 0 | K74: 0 | L74: 0 | M74: 0 | N74: 0
A75: QKK | B75: RJ1 | C75: GUY'S AND ST THOMAS' NHS FOUNDATION TRUST | D75: RJ1XXX | E75: Non-hospital site | F75: 0 | G75: NA | H75: NA | I75: 0 | J75: 0 | K75: 0 | L75: 0 | M75: 0 | N75: 0
A76: QKK | B76: RJ1 | C76: GUY'S AND ST THOMAS' NHS FOUNDATION TRUST | D76: RJ122 | E76: St Thomas' Hospital | F76: 35 | G76: 0.9428571429 | H76: 0 | I76: 26 | J76: 7 | K76: 2 | L76: 0 | M76: 0 | N76: 0
A77: QKK | B77: RJZ | C77: KING'S COLLEGE HOSPITAL NHS FOUNDATION TRUST | D77: RJZ01 | E77: King's College Hospital (Denmark Hill) | F77: 36 | G77: 0.75 | H77: 0.1388888889 | I77: 13 | J77: 14 | K77: 4 | L77: 4 | M77: 1 | N77: 0
A78: QKK | B78: RJZ | C78: KING'S COLLEGE HOSPITAL NHS FOUNDATION TRUST | D78: RJZ30 | E78: Princess Royal University Hospital | F78: 44 | G78: 0.9090909091 | H78: 0 | I78: 25 | J78: 15 | K78: 4 | L78: 0 | M78: 0 | N78: 0
A79: QKK | B79: RJ2 | C79: LEWISHAM AND GREENWICH NHS TRUST | D79: RJ231 | E79: Queen Elizabeth Hospital | F79: 2 | G79: * | H79: * | I79: * | J79: * | K79: * | L79: * | M79: * | N79: *
A80: QKK | B80: RJ2 | C80: LEWISHAM AND GREENWICH NHS TRUST | D80: RJ224 | E80: University Hospital Lewisham | F80: 2 | G80: * | H80: * | I80: * | J80: * | K80: * | L80: * | M80: * | N80: *
A81: QKS | B81: RN7 | C81: DARTFORD AND GRAVESHAM NHS TRUST | D81: RN707 | E81: Darent Valley Hospital | F81: 0 | G81: NA | H81: NA | I81: 0 | J81: 0 | K81: 0 | L81: 0 | M81: 0 | N81: 0
A82: QKS | B82: RWF | C82: MAIDSTONE AND TUNBRIDGE WELLS NHS TRUST | D82: RWF08 | E82: Crowborough Birthing Centre | F82: 0 | G82: NA | H82: NA | I82: 0 | J82: 0 | K82: 0 | L82: 0 | M82: 0 | N82: 0
A83: QKS | B83: RWF | C83: MAIDSTONE AND TUNBRIDGE WELLS NHS TRUST | D83: RWF03 | E83: Maidstone District General Hospital | F83: 8 | G83: 1 | H83: 0 | I83: 8 | J83: 0 | K83: 0 | L83: 0 | M83: 0 | N83: 0
A84: QKS | B84: RWF | C84: MAIDSTONE AND TUNBRIDGE WELLS NHS TRUST | D84: RWFXXX | E84: Non-hospital site | F84: 0 | G84: NA | H84: NA | I84: 0 | J84: 0 | K84: 0 | L84: 0 | M84: 0 | N84: 0
A85: QKS | B85: RWF | C85: MAIDSTONE AND TUNBRIDGE WELLS NHS TRUST | D85: RWFTW | E85: The Tunbridge Wells Hospital | F85: 5 | G85: 1 | H85: 0 | I85: 4 | J85: 1 | K85: 0 | L85: 0 | M85: 0 | N85: 0
A86: QKS | B86: RPA | C86: MEDWAY NHS FOUNDATION TRUST | D86: RPA02 | E86: Medway Maritime Hospital | F86: 85 | G86: 1 | H86: 0 | I86: 85 | J86: 0 | K86: 0 | L86: 0 | M86: 0 | N86: 0
A87: QM7 | B87: RWH | C87: EAST AND NORTH HERTFORDSHIRE NHS TRUST | D87: RWH01 | E87: Lister Hospital | F87: 88 | G87: 0.9545454545 | H87: 0.02272727273 | I87: * | J87: * | K87: * | L87: * | M87: * | N87: *
A88: QM7 | B88: RWH | C88: EAST AND NORTH HERTFORDSHIRE NHS TRUST | D88: RWHXXX | E88: Non-hospital site | F88: 2 | G88: * | H88: * | I88: * | J88: * | K88: * | L88: * | M88: * | N88: *
A89: QM7 | B89: RQW | C89: THE PRINCESS ALEXANDRA HOSPITAL NHS TRUST | D89: RQWG0 | E89: Princess Alexandra Hospital | F89: 15 | G89: 0.8 | H89: 0.06666666667 | I89: 9 | J89: 3 | K89: 2 | L89: 1 | M89: 0 | N89: 0
A90: QM7 | B90: RWG | C90: WEST HERTFORDSHIRE TEACHING HOSPITALS NHS TRUST | D90: RWG02 | E90: Watford General Hospital | F90: 24 | G90: 0.9583333333 | H90: 0.04166666667 | I90: 20 | J90: 3 | K90: 0 | L90: 0 | M90: 1 | N90: 0
A91: QMF | B91: RF4 | C91: BARKING, HAVERING AND REDBRIDGE UNIVERSITY HOSPITALS NHS TRUST | D91: RF4QH | E91: Queen's Hospital | F91: 34 | G91: 0.9411764706 | H91: 0.02941176471 | I91: 32 | J91: 0 | K91: 1 | L91: 0 | M91: 1 | N91: 0
A92: QMF | B92: R1H | C92: BARTS HEALTH NHS TRUST | D92: R1HNH | E92: Newham General Hospital | F92: 29 | G92: 0.8620689655 | H92: 0.1034482759 | I92: * | J92: * | K92: * | L92: * | M92: * | N92: *
A93: QMF | B93: R1H | C93: BARTS HEALTH NHS TRUST | D93: R1H12 | E93: The Royal London Hospital | F93: 2 | G93: * | H93: * | I93: * | J93: * | K93: * | L93: * | M93: * | N93: *
A94: QMF | B94: R1H | C94: BARTS HEALTH NHS TRUST | D94: R1HKH | E94: Whipps Cross University Hospital | F94: 52 | G94: 0.9423076923 | H94: 0.01923076923 | I94: 40 | J94: 9 | K94: 2 | L94: 0 | M94: 1 | N94: 0
A95: QMF | B95: RQX | C95: HOMERTON UNIVERSITY HOSPITAL NHS FOUNDATION TRUST | D95: RQXM1 | E95: Homerton University Hospital | F95: 66 | G95: 0.9393939394 | H95: 0.04545454545 | I95: 57 | J95: 5 | K95: 1 | L95: 1 | M95: 2 | N95: 0
A96: QMJ | B96: RAP | C96: NORTH MIDDLESEX UNIVERSITY HOSPITAL NHS TRUST | D96: RAPNM | E96: North Middlesex Hospital | F96: 0 | G96: NA | H96: NA | I96: 0 | J96: 0 | K96: 0 | L96: 0 | M96: 0 | N96: 0
A97: QMJ | B97: RAL | C97: ROYAL FREE LONDON NHS FOUNDATION TRUST | D97: RAL26 | E97: Barnet Hospital | F97: 47 | G97: 0.9787234043 | H97: 0.02127659574 | I97: 28 | J97: 18 | K97: 0 | L97: 0 | M97: 1 | N97: 0
A98: QMJ | B98: RAL | C98: ROYAL FREE LONDON NHS FOUNDATION TRUST | D98: RAL01 | E98: Royal Free Hospital | F98: 52 | G98: 0.8846153846 | H98: 0.05769230769 | I98: 29 | J98: 17 | K98: 3 | L98: 2 | M98: 1 | N98: 0
A99: QMJ | B99: RRV | C99: UNIVERSITY COLLEGE LONDON HOSPITALS NHS FOUNDATION TRUST | D99: RRV03 | E99: University College Hospital | F99: 1 | G99: * | H99: * | I99: * | J99: * | K99: * | L99: * | M99: * | N99: *
A100: QMJ | B100: RKE | C100: WHITTINGTON HEALTH NHS TRUST | D100: RKEXXX | E100: Non-hospital site | F100: 0 | G100: NA | H100: NA | I100: 0 | J100: 0 | K100: 0 | L100: 0 | M100: 0 | N100: 0
A101: QMJ | B101: RKE | C101: WHITTINGTON HEALTH NHS TRUST | D101: RKEQ4 | E101: The Whittington Hospital | F101: 45 | G101: 0.9777777778 | H101: 0.02222222222 | I101: 6 | J101: 38 | K101: 0 | L101: 1 | M101: 0 | N101: 0
A102: QMM | B102: RGP | C102: JAMES PAGET UNIVERSITY HOSPITALS NHS FOUNDATION TRUST | D102: RGP75 | E102: James Paget University Hospital | F102: 8 | G102: 1 | H102: 0 | I102: * | J102: * | K102: * | L102: * | M102: * | N102: *
A103: QMM | B103: RM1 | C103: NORFOLK AND NORWICH UNIVERSITY HOSPITALS NHS FOUNDATION TRUST | D103: RM102 | E103: Norfolk and Norwich University Hospital | F103: 2 | G103: * | H103: * | I103: * | J103: * | K103: * | L103: * | M103: * | N103: *
A104: QMM | B104: RCX | C104: THE QUEEN ELIZABETH HOSPITAL, KING'S LYNN, NHS FOUNDATION TRUST | D104: RCXXXX | E104: Non-hospital site | F104: 0 | G104: NA | H104: NA | I104: 0 | J104: 0 | K104: 0 | L104: 0 | M104: 0 | N104: 0
A105: QMM | B105: RCX | C105: THE QUEEN ELIZABETH HOSPITAL, KING'S LYNN, NHS FOUNDATION TRUST | D105: RCX70 | E105: The Queen Elizabeth Hospital | F105: 9 | G105: 1 | H105: 0 | I105: * | J105: * | K105: * | L105: * | M105: * | N105: *
A106: QNC | B106: RJE | C106: UNIVERSITY HOSPITALS OF NORTH MIDLANDS NHS TRUST | D106: RJE09 | E106: County Hospital | F106: 0 | G106: NA | H106: NA | I106: 0 | J106: 0 | K106: 0 | L106: 0 | M106: 0 | N106: 0
A107: QNC | B107: RJE | C107: UNIVERSITY HOSPITALS OF NORTH MIDLANDS NHS TRUST | D107: RJEXXX | E107: Non-hospital site | F107: 0 | G107: NA | H107: NA | I107: 0 | J107: 0 | K107: 0 | L107: 0 | M107: 0 | N107: 0
A108: QNC | B108: RJE | C108: UNIVERSITY HOSPITALS OF NORTH MIDLANDS NHS TRUST | D108: RJE01 | E108: Royal Stoke University Hospital | F108: 4 | G108: * | H108: * | I108: * | J108: * | K108: * | L108: * | M108: * | N108: *
A109: QNQ | B109: RDU | C109: FRIMLEY HEALTH NHS FOUNDATION TRUST | D109: RDU01 | E109: Frimley Park Hospital | F109: 14 | G109: 0.9285714286 | H109: 0 | I109: * | J109: * | K109: * | L109: * | M109: * | N109: *
A110: QNQ | B110: RDU | C110: FRIMLEY HEALTH NHS FOUNDATION TRUST | D110: RDU50 | E110: Wexham Park Hospital | F110: 2 | G110: * | H110: * | I110: * | J110: * | K110: * | L110: * | M110: * | N110: *
A111: QNX | B111: RXC | C111: EAST SUSSEX HEALTHCARE NHS TRUST | D111: RXC01 | E111: Conquest Hospital | F111: 1 | G111: * | H111: * | I111: * | J111: * | K111: * | L111: * | M111: * | N111: *
A112: QNX | B112: RXC | C112: EAST SUSSEX HEALTHCARE NHS TRUST | D112: RXC02 | E112: Eastbourne District General Hospital | F112: 0 | G112: NA | H112: NA | I112: 0 | J112: 0 | K112: 0 | L112: 0 | M112: 0 | N112: 0
A113: QNX | B113: RXC | C113: EAST SUSSEX HEALTHCARE NHS TRUST | D113: RXCXXX | E113: Non-hospital site | F113: 0 | G113: NA | H113: NA | I113: 0 | J113: 0 | K113: 0 | L113: 0 | M113: 0 | N113: 0
A114: QNX | B114: RYR | C114: UNIVERSITY HOSPITALS SUSSEX NHS FOUNDATION TRUST | D114: RYRXXX | E114: Non-hospital site | F114: 0 | G114: NA | H114: NA | I114: 0 | J114: 0 | K114: 0 | L114: 0 | M114: 0 | N114: 0
A115: QNX | B115: RYR | C115: UNIVERSITY HOSPITALS SUSSEX NHS FOUNDATION TRUST | D115: N6J7V | E115: Princess Royal Hospital | F115: 6 | G115: 1 | H115: 0 | I115: * | J115: * | K115: * | L115: * | M115: * | N115: *
A116: QNX | B116: RYR | C116: UNIVERSITY HOSPITALS SUSSEX NHS FOUNDATION TRUST | D116: E0A3H | E116: Royal Sussex County Hospital | F116: 37 | G116: 0.9459459459 | H116: 0.05405405405 | I116: * | J116: * | K116: * | L116: * | M116: * | N116: *
A117: QNX | B117: RYR | C117: UNIVERSITY HOSPITALS SUSSEX NHS FOUNDATION TRUST | D117: RYR16 | E117: St Richard's Hospital | F117: 13 | G117: 1 | H117: 0 | I117: 11 | J117: 2 | K117: 0 | L117: 0 | M117: 0 | N117: 0
A118: QNX | B118: RYR | C118: UNIVERSITY HOSPITALS SUSSEX NHS FOUNDATION TRUST | D118: RYR18 | E118: Worthing Hospital | F118: 25 | G118: 0.96 | H118: 0.04 | I118: 21 | J118: 3 | K118: 0 | L118: 0 | M118: 1 | N118: 0
A119: QOC | B119: RXW | C119: THE SHREWSBURY AND TELFORD HOSPITAL NHS TRUST | D119: RXWMB | E119: Bridgnorth Hospital (Maternity) | F119: 0 | G119: NA | H119: NA | I119: 0 | J119: 0 | K119: 0 | L119: 0 | M119: 0 | N119: 0
A120: QOC | B120: RXW | C120: THE SHREWSBURY AND TELFORD HOSPITAL NHS TRUST | D120: RXWML | E120: Ludlow Hospital (Maternity) | F120: 0 | G120: NA | H120: NA | I120: 0 | J120: 0 | K120: 0 | L120: 0 | M120: 0 | N120: 0
A121: QOC | B121: RXW | C121: THE SHREWSBURY AND TELFORD HOSPITAL NHS TRUST | D121: RXWXXX | E121: Non-hospital site | F121: 0 | G121: NA | H121: NA | I121: 0 | J121: 0 | K121: 0 | L121: 0 | M121: 0 | N121: 0
A122: QOC | B122: RXW | C122: THE SHREWSBURY AND TELFORD HOSPITAL NHS TRUST | D122: RXWMJ | E122: Robert Jones & Agnes Hunt Orthopaedic & District Hospital | F122: 0 | G122: NA | H122: NA | I122: 0 | J122: 0 | K122: 0 | L122: 0 | M122: 0 | N122: 0
A123: QOC | B123: RXW | C123: THE SHREWSBURY AND TELFORD HOSPITAL NHS TRUST | D123: RXWAS | E123: Royal Shrewsbury Hospital | F123: 0 | G123: NA | H123: NA | I123: 0 | J123: 0 | K123: 0 | L123: 0 | M123: 0 | N123: 0
A124: QOC | B124: RXW | C124: THE SHREWSBURY AND TELFORD HOSPITAL NHS TRUST | D124: RXWAT | E124: The Princess Royal Hospital | F124: 21 | G124: 1 | H124: 0 | I124: 21 | J124: 0 | K124: 0 | L124: 0 | M124: 0 | N124: 0
A125: QOP | B125: RMC | C125: BOLTON NHS FOUNDATION TRUST | D125: RMC01 | E125: Royal Bolton Hospital | F125: 143 | G125: 0.8251748252 | H125: 0.1258741259 | I125: 89 | J125: 29 | K125: 6 | L125: 2 | M125: 16 | N125: 1
A126: QOP | B126: R0A | C126: MANCHESTER UNIVERSITY NHS FOUNDATION TRUST | D126: R0A05 | E126: St Mary's Hospital | F126: 16 | G126: 0.9375 | H126: 0.0625 | I126: 14 | J126: 1 | K126: 0 | L126: 1 | M126: 0 | N126: 0
A127: QOP | B127: RWJ | C127: STOCKPORT NHS FOUNDATION TRUST | D127: RWJ09 | E127: Stepping Hill Hospital | F127: 16 | G127: 1 | H127: 0 | I127: 16 | J127: 0 | K127: 0 | L127: 0 | M127: 0 | N127: 0
A128: QOP | B128: RMP | C128: TAMESIDE AND GLOSSOP INTEGRATED CARE NHS FOUNDATION TRUST | D128: RMP01 | E128: Tameside General Hospital | F128: 3 | G128: * | H128: * | I128: * | J128: * | K128: * | L128: * | M128: * | N128: *
A129: QOP | B129: RRF | C129: WRIGHTINGTON, WIGAN AND LEIGH NHS FOUNDATION TRUST | D129: RRF02 | E129: Royal Albert Edward Infirmary | F129: 55 | G129: 1 | H129: 0 | I129: 51 | J129: 4 | K129: 0 | L129: 0 | M129: 0 | N129: 0
A130: QOQ | B130: RCD | C130: HARROGATE AND DISTRICT NHS FOUNDATION TRUST | D130: RCD01 | E130: Harrogate District Hospital | F130: 7 | G130: 1 | H130: 0 | I130: 7 | J130: 0 | K130: 0 | L130: 0 | M130: 0 | N130: 0
A131: QOQ | B131: RWA | C131: HULL UNIVERSITY TEACHING HOSPITALS NHS TRUST | D131: RWA01 | E131: Hull Royal Infirmary | F131: 6 | G131: 1 | H131: 0 | I131: 5 | J131: 1 | K131: 0 | L131: 0 | M131: 0 | N131: 0
A132: QOQ | B132: RJL | C132: NORTHERN LINCOLNSHIRE AND GOOLE NHS FOUNDATION TRUST | D132: RJL30 | E132: Diana, Princess Of Wales Hospital | F132: 90 | G132: 0.9333333333 | H132: 0.06666666667 | I132: * | J132: * | K132: * | L132: * | M132: * | N132: *
A133: QOQ | B133: RJL | C133: NORTHERN LINCOLNSHIRE AND GOOLE NHS FOUNDATION TRUST | D133: RJL32 | E133: Scunthorpe General Hospital | F133: 3 | G133: * | H133: * | I133: * | J133: * | K133: * | L133: * | M133: * | N133: *
A134: QOQ | B134: RCB | C134: YORK AND SCARBOROUGH TEACHING HOSPITALS NHS FOUNDATION TRUST | D134: RCBCA | E134: Scarborough General Hospital | F134: 36 | G134: 0.9444444444 | H134: 0.05555555556 | I134: * | J134: * | K134: * | L134: * | M134: * | N134: *
A135: QOQ | B135: RCB | C135: YORK AND SCARBOROUGH TEACHING HOSPITALS NHS FOUNDATION TRUST | D135: RCB55 | E135: York Hospital | F135: 1 | G135: * | H135: * | I135: * | J135: * | K135: * | L135: * | M135: * | N135: *
A136: QOX | B136: RN3 | C136: GREAT WESTERN HOSPITALS NHS FOUNDATION TRUST | D136: RN3XXX | E136: Non-hospital site | F136: 0 | G136: NA | H136: NA | I136: 0 | J136: 0 | K136: 0 | L136: 0 | M136: 0 | N136: 0
A137: QOX | B137: RN3 | C137: GREAT WESTERN HOSPITALS NHS FOUNDATION TRUST | D137: RN325 | E137: The Great Western Hospital | F137: 6 | G137: 1 | H137: 0 | I137: * | J137: * | K137: * | L137: * | M137: * | N137: *
A138: QOX | B138: RD1 | C138: ROYAL UNITED HOSPITALS BATH NHS FOUNDATION TRUST | D138: RD102 | E138: Chippenham Community Hospital | F138: 1 | G138: * | H138: * | I138: * | J138: * | K138: * | L138: * | M138: * | N138: *
A139: QOX | B139: RD1 | C139: ROYAL UNITED HOSPITALS BATH NHS FOUNDATION TRUST | D139: RD121 | E139: Frome Community Hospital | F139: 2 | G139: * | H139: * | I139: * | J139: * | K139: * | L139: * | M139: * | N139: *
A140: QOX | B140: RD1 | C140: ROYAL UNITED HOSPITALS BATH NHS FOUNDATION TRUST | D140: RD1XXX | E140: Non Hospital Site | F140: 0 | G140: NA | H140: NA | I140: 0 | J140: 0 | K140: 0 | L140: 0 | M140: 0 | N140: 0
A141: QOX | B141: RD1 | C141: ROYAL UNITED HOSPITALS BATH NHS FOUNDATION TRUST | D141: RD129 | E141: Paulton Memorial Hospital | F141: 0 | G141: NA | H141: NA | I141: 0 | J141: 0 | K141: 0 | L141: 0 | M141: 0 | N141: 0
A142: QOX | B142: RD1 | C142: ROYAL UNITED HOSPITALS BATH NHS FOUNDATION TRUST | D142: RD130 | E142: Princess Anne Wing RUH | F142: 0 | G142: NA | H142: NA | I142: 0 | J142: 0 | K142: 0 | L142: 0 | M142: 0 | N142: 0
A143: QOX | B143: RNZ | C143: SALISBURY NHS FOUNDATION TRUST | D143: RNZXXX | E143: Non-hospital site | F143: 0 | G143: NA | H143: NA | I143: 0 | J143: 0 | K143: 0 | L143: 0 | M143: 0 | N143: 0
A144: QOX | B144: RNZ | C144: SALISBURY NHS FOUNDATION TRUST | D144: RNZ02 | E144: Salisbury District Hospital | F144: 0 | G144: NA | H144: NA | I144: 0 | J144: 0 | K144: 0 | L144: 0 | M144: 0 | N144: 0
A145: QPM | B145: RNQ | C145: KETTERING GENERAL HOSPITAL NHS FOUNDATION TRUST | D145: RNQ51 | E145: Kettering General Hospital | F145: 0 | G145: NA | H145: NA | I145: 0 | J145: 0 | K145: 0 | L145: 0 | M145: 0 | N145: 0
A146: QPM | B146: RNS | C146: NORTHAMPTON GENERAL HOSPITAL NHS TRUST | D146: RNS01 | E146: Northampton General Hospital (Acute) | F146: 6 | G146: 1 | H146: 0 | I146: 6 | J146: 0 | K146: 0 | L146: 0 | M146: 0 | N146: 0
A147: QR1 | B147: RTE | C147: GLOUCESTERSHIRE HOSPITALS NHS FOUNDATION TRUST | D147: RTE03 | E147: Gloucestershire Royal Hospital | F147: 30 | G147: 0.9 | H147: 0.06666666667 | I147: 22 | J147: 5 | K147: 1 | L147: 1 | M147: 1 | N147: 0
A148: QR1 | B148: RTE | C148: GLOUCESTERSHIRE HOSPITALS NHS FOUNDATION TRUST | D148: RTE27 | E148: Stroud Maternity Hospital | F148: 6 | G148: 0.8333333333 | H148: 0 | I148: 4 | J148: 1 | K148: 1 | L148: 0 | M148: 0 | N148: 0
A149: QRL | B149: RN5 | C149: HAMPSHIRE HOSPITALS NHS FOUNDATION TRUST | D149: RN542 | E149: Andover War Memorial Hospital | F149: 3 | G149: * | H149: * | I149: * | J149: * | K149: * | L149: * | M149: * | N149: *
A150: QRL | B150: RN5 | C150: HAMPSHIRE HOSPITALS NHS FOUNDATION TRUST | D150: RN506 | E150: Basingstoke and North Hampshire Hospital | F150: 137 | G150: 0.9927007299 | H150: 0 | I150: * | J150: * | K150: * | L150: * | M150: * | N150: *
A151: QRL | B151: RN5 | C151: HAMPSHIRE HOSPITALS NHS FOUNDATION TRUST | D151: RN541 | E151: Royal Hampshire County Hospital | F151: 2 | G151: * | H151: * | I151: * | J151: * | K151: * | L151: * | M151: * | N151: *
A152: QRL | B152: R1F | C152: ISLE OF WIGHT NHS TRUST | D152: R1F01 | E152: St Mary's Hospital | F152: 13 | G152: 1 | H152: 0 | I152: 12 | J152: 1 | K152: 0 | L152: 0 | M152: 0 | N152: 0
A153: QRL | B153: RHU | C153: PORTSMOUTH HOSPITALS UNIVERSITY NATIONAL HEALTH SERVICE TRUST | D153: RHU10 | E153: Gosport War Memorial Hospital | F153: 0 | G153: NA | H153: NA | I153: 0 | J153: 0 | K153: 0 | L153: 0 | M153: 0 | N153: 0
A154: QRL | B154: RHU | C154: PORTSMOUTH HOSPITALS UNIVERSITY NATIONAL HEALTH SERVICE TRUST | D154: RHU04 | E154: Petersfield Community Hospital | F154: 0 | G154: NA | H154: NA | I154: 0 | J154: 0 | K154: 0 | L154: 0 | M154: 0 | N154: 0
A155: QRL | B155: RHU | C155: PORTSMOUTH HOSPITALS UNIVERSITY NATIONAL HEALTH SERVICE TRUST | D155: RHU03 | E155: Queen Alexandra Hospital | F155: 7 | G155: 1 | H155: 0 | I155: 7 | J155: 0 | K155: 0 | L155: 0 | M155: 0 | N155: 0
A156: QRL | B156: RHU | C156: PORTSMOUTH HOSPITALS UNIVERSITY NATIONAL HEALTH SERVICE TRUST | D156: RHU02 | E156: St Mary's Hospital | F156: 0 | G156: NA | H156: NA | I156: 0 | J156: 0 | K156: 0 | L156: 0 | M156: 0 | N156: 0
A157: QRL | B157: RHM | C157: UNIVERSITY HOSPITAL SOUTHAMPTON NHS FOUNDATION TRUST | D157: RHM12 | E157: Princess Anne Hospital | F157: 31 | G157: 0.8709677419 | H157: 0.09677419355 | I157: 25 | J157: 2 | K157: 1 | L157: 1 | M157: 2 | N157: 0
A158: QRV | B158: RQM | C158: CHELSEA AND WESTMINSTER HOSPITAL NHS FOUNDATION TRUST | D158: RQM01 | E158: Chelsea and Westminster Hospital | F158: 34 | G158: 0.9411764706 | H158: 0.05882352941 | I158: 27 | J158: 5 | K158: 0 | L158: 0 | M158: 2 | N158: 0
A159: QRV | B159: RQM | C159: CHELSEA AND WESTMINSTER HOSPITAL NHS FOUNDATION TRUST | D159: RQM91 | E159: West Middlesex University Hospital | F159: 17 | G159: 0.8823529412 | H159: 0 | I159: 14 | J159: 1 | K159: 2 | L159: 0 | M159: 0 | N159: 0
A160: QRV | B160: RYJ | C160: IMPERIAL COLLEGE HEALTHCARE NHS TRUST | D160: RYJ04 | E160: Queen Charlotte's Hospital | F160: 60 | G160: 0.9 | H160: 0.1 | I160: 49 | J160: 5 | K160: 0 | L160: 5 | M160: 1 | N160: 0
A161: QRV | B161: RYJ | C161: IMPERIAL COLLEGE HEALTHCARE NHS TRUST | D161: RYJ01 | E161: St Mary's Hospital (HQ) | F161: 58 | G161: 0.9137931034 | H161: 0.08620689655 | I161: 40 | J161: 13 | K161: 0 | L161: 2 | M161: 3 | N161: 0
A162: QRV | B162: R1K | C162: LONDON NORTH WEST UNIVERSITY HEALTHCARE NHS TRUST | D162: R1K01 | E162: Northwick Park Hospital | F162: 1 | G162: * | H162: * | I162: * | J162: * | K162: * | L162: * | M162: * | N162: *
A163: QRV | B163: RAS | C163: THE HILLINGDON HOSPITALS NHS FOUNDATION TRUST | D163: RAS01 | E163: Hillingdon Hospital | F163: 28 | G163: 0.8928571429 | H163: 0.07142857143 | I163: * | J163: * | K163: * | L163: * | M163: * | N163: *
A164: QRV | B164: RAS | C164: THE HILLINGDON HOSPITALS NHS FOUNDATION TRUST | D164: RASXXX | E164: Non-hospital site | F164: 1 | G164: * | H164: * | I164: * | J164: * | K164: * | L164: * | M164: * | N164: *
A165: QSL | B165: RH5 | C165: SOMERSET NHS FOUNDATION TRUST | D165: RH5K6 | E165: Bridgwater Hospital | F165: 0 | G165: NA | H165: NA | I165: 0 | J165: 0 | K165: 0 | L165: 0 | M165: 0 | N165: 0
A166: QSL | B166: RH5 | C166: SOMERSET NHS FOUNDATION TRUST | D166: RH5A8 | E166: MUSGROVE PARK HOSPITAL | F166: 3 | G166: * | H166: * | I166: * | J166: * | K166: * | L166: * | M166: * | N166: *
A167: QSL | B167: RH5 | C167: SOMERSET NHS FOUNDATION TRUST | D167: RH5XXXX | E167: Non-hospital site home/in-transit births | F167: 6 | G167: 1 | H167: 0 | I167: 5 | J167: 1 | K167: 0 | L167: 0 | M167: 0 | N167: 0
A168: QSL | B168: RA4 | C168: YEOVIL DISTRICT HOSPITAL NHS FOUNDATION TRUST | D168: RA430 | E168: Yeovil District Hospital | F168: 16 | G168: 1 | H168: 0 | I168: 13 | J168: 3 | K168: 0 | L168: 0 | M168: 0 | N168: 0
A169: QT1 | B169: RX1 | C169: NOTTINGHAM UNIVERSITY HOSPITALS NHS TRUST | D169: RX1XXX | E169: Non-hospital site | F169: 0 | G169: NA | H169: NA | I169: 0 | J169: 0 | K169: 0 | L169: 0 | M169: 0 | N169: 0
A170: QT1 | B170: RX1 | C170: NOTTINGHAM UNIVERSITY HOSPITALS NHS TRUST | D170: RX1CC | E170: Nottingham University Hospitals NHS Trust - City Campus | F170: 1 | G170: * | H170: * | I170: * | J170: * | K170: * | L170: * | M170: * | N170: *
A171: QT1 | B171: RX1 | C171: NOTTINGHAM UNIVERSITY HOSPITALS NHS TRUST | D171: RX1RA | E171: Nottingham University Hospitals NHS Trust - Queen's Medical Centre Campus | F171: 2 | G171: * | H171: * | I171: * | J171: * | K171: * | L171: * | M171: * | N171: *
A172: QT1 | B172: RK5 | C172: SHERWOOD FOREST HOSPITALS NHS FOUNDATION TRUST | D172: RK5BC | E172: King's Mill Hospital | F172: 38 | G172: 0.8421052632 | H172: 0.1052631579 | I172: 27 | J172: 5 | K172: 2 | L172: 2 | M172: 2 | N172: 0
A173: QT1 | B173: RK5 | C173: SHERWOOD FOREST HOSPITALS NHS FOUNDATION TRUST | D173: RK5XXX | E173: Non-hospital site | F173: 0 | G173: NA | H173: NA | I173: 0 | J173: 0 | K173: 0 | L173: 0 | M173: 0 | N173: 0
A174: QT6 | B174: REF | C174: ROYAL CORNWALL HOSPITALS NHS TRUST | D174: REFXXX | E174: Non-hospital site | F174: 1 | G174: * | H174: * | I174: * | J174: * | K174: * | L174: * | M174: * | N174: *
A175: QT6 | B175: REF | C175: ROYAL CORNWALL HOSPITALS NHS TRUST | D175: REF12 | E175: Royal Cornwall Hospital (Treliske) | F175: 19 | G175: 1 | H175: 0 | I175: * | J175: * | K175: * | L175: * | M175: * | N175: *
A176: QU9 | B176: RXQ | C176: BUCKINGHAMSHIRE HEALTHCARE NHS TRUST | D176: RXQ02 | E176: Stoke Mandeville Hospital | F176: 4 | G176: * | H176: * | I176: * | J176: * | K176: * | L176: * | M176: * | N176: *
A177: QU9 | B177: RTH | C177: OXFORD UNIVERSITY HOSPITALS NHS FOUNDATION TRUST | D177: RTH05 | E177: Horton General Hospital | F177: 0 | G177: NA | H177: NA | I177: 0 | J177: 0 | K177: 0 | L177: 0 | M177: 0 | N177: 0
A178: QU9 | B178: RTH | C178: OXFORD UNIVERSITY HOSPITALS NHS FOUNDATION TRUST | D178: RTH08 | E178: John Radcliffe Hospital | F178: 2 | G178: * | H178: * | I178: * | J178: * | K178: * | L178: * | M178: * | N178: *
A179: QU9 | B179: RTH | C179: OXFORD UNIVERSITY HOSPITALS NHS FOUNDATION TRUST | D179: RTH16 | E179: Wallingford Community Hospital | F179: 0 | G179: NA | H179: NA | I179: 0 | J179: 0 | K179: 0 | L179: 0 | M179: 0 | N179: 0
A180: QU9 | B180: RHW | C180: ROYAL BERKSHIRE NHS FOUNDATION TRUST | D180: RHW01 | E180: Royal Berkshire Hospital | F180: 28 | G180: 1 | H180: 0 | I180: 26 | J180: 2 | K180: 0 | L180: 0 | M180: 0 | N180: 0
A181: QUA | B181: RNA | C181: THE DUDLEY GROUP NHS FOUNDATION TRUST | D181: RNA01 | E181: Russells Hall Hospital | F181: 1 | G181: * | H181: * | I181: * | J181: * | K181: * | L181: * | M181: * | N181: *
A182: QUA | B182: RL4 | C182: THE ROYAL WOLVERHAMPTON NHS TRUST | D182: RL403 | E182: New Cross Hospital | F182: 53 | G182: 0.8679245283 | H182: 0.1132075472 | I182: 38 | J182: 8 | K182: 1 | L182: 3 | M182: 3 | N182: 0
A183: QUA | B183: RBK | C183: WALSALL HEALTHCARE NHS TRUST | D183: RBK02 | E183: Manor Hospital | F183: 24 | G183: 0.875 | H183: 0.08333333333 | I183: 18 | J183: 3 | K183: 1 | L183: 1 | M183: 1 | N183: 0
A184: QUE | B184: RGT | C184: CAMBRIDGE UNIVERSITY HOSPITALS NHS FOUNDATION TRUST | D184: RGT32 | E184: Rosie Hospital | F184: 28 | G184: 0.9642857143 | H184: 0.03571428571 | I184: 25 | J184: 2 | K184: 0 | L184: 1 | M184: 0 | N184: 0
A185: QUE | B185: RGN | C185: NORTH WEST ANGLIA NHS FOUNDATION TRUST | D185: RGN90 | E185: Hinchingbrooke Hospital | F185: 17 | G185: 1 | H185: 0 | I185: 16 | J185: 1 | K185: 0 | L185: 0 | M185: 0 | N185: 0
A186: QUE | B186: RGN | C186: NORTH WEST ANGLIA NHS FOUNDATION TRUST | D186: RGN80 | E186: Peterborough City Hospital | F186: 0 | G186: NA | H186: NA | I186: 0 | J186: 0 | K186: 0 | L186: 0 | M186: 0 | N186: 0
A187: QUY | B187: RVJ | C187: NORTH BRISTOL NHS TRUST | D187: RVJ21 | E187: Cossham Hospital | F187: 1 | G187: * | H187: * | I187: * | J187: * | K187: * | L187: * | M187: * | N187: *
A188: QUY | B188: RVJ | C188: NORTH BRISTOL NHS TRUST | D188: RVJXXX | E188: Non-hospital site | F188: 0 | G188: NA | H188: NA | I188: 0 | J188: 0 | K188: 0 | L188: 0 | M188: 0 | N188: 0
A189: QUY | B189: RVJ | C189: NORTH BRISTOL NHS TRUST | D189: RVJ01 | E189: Southmead Hospital | F189: 79 | G189: 0.9367088608 | H189: 0.0253164557 | I189: * | J189: * | K189: * | L189: * | M189: * | N189: *
A190: QUY | B190: RA7 | C190: UNIVERSITY HOSPITALS BRISTOL AND WESTON NHS FOUNDATION TRUST | D190: RA707 | E190: St Michael's Hospital | F190: 25 | G190: 1 | H190: 0 | I190: 23 | J190: 2 | K190: 0 | L190: 0 | M190: 0 | N190: 0
A191: QVV | B191: RBD | C191: DORSET COUNTY HOSPITAL NHS FOUNDATION TRUST | D191: RBD01 | E191: Dorset County Hospital | F191: 48 | G191: 1 | H191: 0 | I191: 47 | J191: 1 | K191: 0 | L191: 0 | M191: 0 | N191: 0
A192: QVV | B192: R0D | C192: UNIVERSITY HOSPITALS DORSET NHS FOUNDATION TRUST | D192: R0D01 | E192: Poole Hospital | F192: 132 | G192: 0.9393939394 | H192: 0.0303030303 | I192: 107 | J192: 17 | K192: 2 | L192: 2 | M192: 2 | N192: 2
A193: QVV | B193: R0D | C193: UNIVERSITY HOSPITALS DORSET NHS FOUNDATION TRUST | D193: R0D02 | E193: Royal Bournemouth Hospital | F193: 0 | G193: NA | H193: NA | I193: 0 | J193: 0 | K193: 0 | L193: 0 | M193: 0 | N193: 0
A194: QWE | B194: RJ6 | C194: CROYDON HEALTH SERVICES NHS TRUST | D194: RJ611 | E194: Croydon University Hospital | F194: 24 | G194: 0.7916666667 | H194: 0.1666666667 | I194: 16 | J194: 3 | K194: 0 | L194: 1 | M194: 3 | N194: 1
A195: QWE | B195: RVR | C195: EPSOM AND ST HELIER UNIVERSITY HOSPITALS NHS TRUST | D195: RVR50 | E195: Epsom Hospital | F195: 8 | G195: 1 | H195: 0 | I195: * | J195: * | K195: * | L195: * | M195: * | N195: *
A196: QWE | B196: RVR | C196: EPSOM AND ST HELIER UNIVERSITY HOSPITALS NHS TRUST | D196: RVRXXX | E196: Non-hospital site | F196: 2 | G196: * | H196: * | I196: * | J196: * | K196: * | L196: * | M196: * | N196: *
A197: QWE | B197: RVR | C197: EPSOM AND ST HELIER UNIVERSITY HOSPITALS NHS TRUST | D197: RVR05 | E197: St Helier Hospital | F197: 17 | G197: 0.9411764706 | H197: 0.05882352941 | I197: 15 | J197: 1 | K197: 0 | L197: 1 | M197: 0 | N197: 0
A198: QWE | B198: RAX | C198: KINGSTON HOSPITAL NHS FOUNDATION TRUST | D198: RAX01 | E198: Kingston Hospital | F198: 19 | G198: 0.8947368421 | H198: 0.1052631579 | I198: 14 | J198: 3 | K198: 0 | L198: 0 | M198: 2 | N198: 0
A199: QWE | B199: RJ7 | C199: ST GEORGE'S UNIVERSITY HOSPITALS NHS FOUNDATION TRUST | D199: RJ701 | E199: St George's Hospital (Tooting) | F199: 33 | G199: 0.8787878788 | H199: 0 | I199: 19 | J199: 10 | K199: 4 | L199: 0 | M199: 0 | N199: 0
A200: QWO | B200: RCF | C200: AIREDALE NHS FOUNDATION TRUST | D200: RCF22 | E200: Airedale General Hospital | F200: 39 | G200: 0.9743589744 | H200: 0.02564102564 | I200: 31 | J200: 7 | K200: 0 | L200: 0 | M200: 1 | N200: 0
A201: QWO | B201: RAE | C201: BRADFORD TEACHING HOSPITALS NHS FOUNDATION TRUST | D201: RAE01 | E201: Bradford Royal Infirmary | F201: 0 | G201: NA | H201: NA | I201: 0 | J201: 0 | K201: 0 | L201: 0 | M201: 0 | N201: 0
A202: QWO | B202: RWY | C202: CALDERDALE AND HUDDERSFIELD NHS FOUNDATION TRUST | D202: RWY02 | E202: Calderdale Royal Hospital | F202: 60 | G202: 0.9666666667 | H202: 0 | I202: 41 | J202: 17 | K202: 2 | L202: 0 | M202: 0 | N202: 0
A203: QWO | B203: RR8 | C203: LEEDS TEACHING HOSPITALS NHS TRUST | D203: RR801 | E203: Leeds General Infirmary | F203: 125 | G203: 0.968 | H203: 0.016 | I203: 111 | J203: 10 | K203: 0 | L203: 1 | M203: 1 | N203: 2
A204: QWO | B204: RR8 | C204: LEEDS TEACHING HOSPITALS NHS TRUST | D204: RR8XXX | E204: Non-hospital site | F204: 0 | G204: NA | H204: NA | I204: 0 | J204: 0 | K204: 0 | L204: 0 | M204: 0 | N204: 0
A205: QWO | B205: RR8 | C205: LEEDS TEACHING HOSPITALS NHS TRUST | D205: RR813 | E205: St James's University Hospital | F205: 204 | G205: 0.9754901961 | H205: 0.01470588235 | I205: 167 | J205: 32 | K205: 2 | L205: 1 | M205: 2 | N205: 0
A206: QWO | B206: RXF | C206: MID YORKSHIRE HOSPITALS NHS TRUST | D206: RXF10 | E206: Dewsbury and District Hospital | F206: 12 | G206: 1 | H206: 0 | I206: * | J206: * | K206: * | L206: * | M206: * | N206: *
A207: QWO | B207: RXF | C207: MID YORKSHIRE HOSPITALS NHS TRUST | D207: RXFXXX | E207: Non-hospital site | F207: 1 | G207: * | H207: * | I207: * | J207: * | K207: * | L207: * | M207: * | N207: *
... 18 more rows

Sheet STP Q3
B6: Sort data by:
A9: STP Code | B9: STP Name | C9: Total Responses | D9: Percentage Positive | E9: Percentage Negative | F9: Breakdown of Responses
F10: Very Good | G10: Good | H10: Neither Good nor Poor | I10: Poor | J10: Very Poor | K10: Don't Know
B11: England (including Independent Sector providers) | C11: 4352 | D11: 0.9113051471 | E11: 0.04250919118 | F11: 3087 | G11: 879 | H11: 152 | I11: 86 | J11: 99 | K11: 49
B12: England (excluding Independent Sector providers) | C12: 4352 | D12: 0.9113051471 | E12: 0.04250919118 | F12: 3087 | G12: 879 | H12: 152 | I12: 86 | J12: 99 | K12: 49
B13: Selection (excluding suppressed data) | C13: =SUBTOTAL(9,C14:C400) -> 4352 | D13: =IFERROR((F13+G13)/SUM(F13:K13), "-") -> 0.9059520742 | E13: =IFERROR((I13+J13)/SUM(F13:K13), "-") -> 0.04560680237 | F13: =SUBTOTAL(9,F14:F400) -> 2736 | G13: 780 | H13: 144 | I13: 83 | J13: 94 | K13: 44
A14: QE1 | B14: HEALTHIER LANCASHIRE AND SOUTH CUMBRIA | C14: 148 | D14: 0.8581081081 | E14: 0.0472972973 | F14: 96 | G14: 31 | H14: 8 | I14: 2 | J14: 5 | K14: 6
A15: QF7 | B15: SOUTH YORKSHIRE AND BASSETLAW STP | C15: 97 | D15: 0.8969072165 | E15: 0.0824742268 | F15: 77 | G15: 10 | H15: 2 | I15: 4 | J15: 4 | K15: 0
A16: QGH | B16: HEREFORDSHIRE AND WORCESTERSHIRE STP | C16: 10 | D16: 1 | E16: 0 | F16: 10 | G16: 0 | H16: 0 | I16: 0 | J16: 0 | K16: 0
A17: QH8 | B17: MID AND SOUTH ESSEX STP | C17: 74 | D17: 0.8378378378 | E17: 0.1081081081 | F17: 52 | G17: 10 | H17: 4 | I17: 3 | J17: 5 | K17: 0
A18: QHG | B18: BEDFORDSHIRE, LUTON AND MILTON KEYNES STP | C18: 198 | D18: 0.9494949495 | E18: 0.0202020202 | F18: * | G18: * | H18: * | I18: * | J18: * | K18: *
A19: QHL | B19: BIRMINGHAM AND SOLIHULL STP | C19: 3 | D19: * | E19: * | F19: * | G19: * | H19: * | I19: * | J19: * | K19: *
A20: QHM | B20: CUMBRIA AND NORTH EAST STP | C20: 175 | D20: 0.9657142857 | E20: 0 | F20: * | G20: * | H20: * | I20: * | J20: * | K20: *
A21: QJ2 | B21: JOINED UP CARE DERBYSHIRE STP | C21: 1 | D21: * | E21: * | F21: * | G21: * | H21: * | I21: * | J21: * | K21: *
A22: QJG | B22: SUFFOLK AND NORTH EAST ESSEX ICS | C22: 20 | D22: 0.9 | E22: 0.05 | F22: 13 | G22: 5 | H22: 1 | I22: 1 | J22: 0 | K22: 0
A23: QJK | B23: DEVON STP | C23: 136 | D23: 0.7352941176 | E23: 0 | F23: 71 | G23: 29 | H23: 36 | I23: 0 | J23: 0 | K23: 0
A24: QJM | B24: LINCOLNSHIRE STP | C24: 26 | D24: 1 | E24: 0 | F24: 24 | G24: 2 | H24: 0 | I24: 0 | J24: 0 | K24: 0
A25: QK1 | B25: LEICESTER, LEICESTERSHIRE AND RUTLAND STP | C25: 214 | D25: 0.9626168224 | E25: 0.009345794393 | F25: 148 | G25: 58 | H25: 6 | I25: 1 | J25: 1 | K25: 0
A26: QKK | B26: OUR HEALTHIER SOUTH EAST LONDON STP | C26: 71 | D26: 0.7605633803 | E26: 0.1267605634 | F26: 33 | G26: 21 | H26: 6 | I26: 2 | J26: 7 | K26: 2
A27: QKS | B27: KENT AND MEDWAY STP | C27: 106 | D27: 0.9528301887 | E27: 0.01886792453 | F27: 88 | G27: 13 | H27: 3 | I27: 2 | J27: 0 | K27: 0
A28: QM7 | B28: HERTFORDSHIRE AND WEST ESSEX STP | C28: 145 | D28: 0.9310344828 | E28: 0.03448275862 | F28: 99 | G28: 36 | H28: 5 | I28: 5 | J28: 0 | K28: 0
A29: QMF | B29: EAST LONDON HEALTH & CARE PARTNERSHIP (STP) | C29: 116 | D29: 0.8965517241 | E29: 0.05172413793 | F29: 68 | G29: 36 | H29: 6 | I29: 3 | J29: 3 | K29: 0
A30: QMJ | B30: NORTH LONDON PARTNERS IN HEALTH & CARE (STP) | C30: 146 | D30: 0.9109589041 | E30: 0.02739726027 | F30: 67 | G30: 66 | H30: 9 | I30: 2 | J30: 2 | K30: 0
A31: QMM | B31: NORFOLK AND WAVENEY HEALTH & CARE PARTNERSHIP (STP) | C31: 62 | D31: 0.9677419355 | E31: 0.03225806452 | F31: * | G31: * | H31: * | I31: * | J31: * | K31: *
A32: QNC | B32: STAFFORDSHIRE & STOKE ON TRENT STP | C32: 1 | D32: * | E32: * | F32: * | G32: * | H32: * | I32: * | J32: * | K32: *
A33: QNQ | B33: FRIMLEY HEALTH & CARE (STP) | C33: 59 | D33: 0.8983050847 | E33: 0.05084745763 | F33: 39 | G33: 14 | H33: 3 | I33: 1 | J33: 2 | K33: 0
A34: QNX | B34: SUSSEX HEALTH AND CARE PARTNERSHIP | C34: 81 | D34: 0.987654321 | E34: 0.01234567901 | F34: 71 | G34: 9 | H34: 0 | I34: 0 | J34: 1 | K34: 0
A35: QOC | B35: SHROPSHIRE AND TELFORD AND WREKIN STP | C35: 5 | D35: 1 | E35: 0 | F35: 5 | G35: 0 | H35: 0 | I35: 0 | J35: 0 | K35: 0
A36: QOP | B36: GREATER MANCHESTER HEALTH & SOCIAL CARE PARTNERSHIP | C36: 140 | D36: 0.9071428571 | E36: 0.06428571429 | F36: 105 | G36: 22 | H36: 3 | I36: 2 | J36: 7 | K36: 1
A37: QOQ | B37: HUMBER, COAST AND VALE STP | C37: 150 | D37: 0.9533333333 | E37: 0.04 | F37: 123 | G37: 20 | H37: 0 | I37: 3 | J37: 3 | K37: 1
A38: QOX | B38: BATH AND NORTH EAST SOMERSET, SWINDON AND WILTSHIRE STP | C38: 145 | D38: 0.9655172414 | E38: 0.006896551724 | F38: 96 | G38: 44 | H38: 3 | I38: 0 | J38: 1 | K38: 1
A39: QPM | B39: NORTHAMPTONSHIRE STP | C39: 46 | D39: 0.9565217391 | E39: 0.04347826087 | F39: 41 | G39: 3 | H39: 0 | I39: 2 | J39: 0 | K39: 0
A40: QR1 | B40: GLOUCESTERSHIRE STP | C40: 34 | D40: 0.7941176471 | E40: 0.02941176471 | F40: 21 | G40: 6 | H40: 5 | I40: 0 | J40: 1 | K40: 1
A41: QRL | B41: HAMPSHIRE AND THE ISLE OF WIGHT STP | C41: 194 | D41: 0.9381443299 | E41: 0.0206185567 | F41: 153 | G41: 29 | H41: 4 | I41: 2 | J41: 2 | K41: 4
A42: QRV | B42: NORTH WEST LONDON HEALTH & CARE PARTNERSHIP (STP) | C42: 343 | D42: 0.8454810496 | E42: 0.09037900875 | F42: 227 | G42: 63 | H42: 8 | I42: 14 | J42: 17 | K42: 14
A43: QSL | B43: SOMERSET STP | C43: 53 | D43: 1 | E43: 0 | F43: 48 | G43: 5 | H43: 0 | I43: 0 | J43: 0 | K43: 0
A44: QT1 | B44: NOTTINGHAM AND NOTTINGHAMSHIRE HEALTH AND CARE STP | C44: 29 | D44: 0.9310344828 | E44: 0.03448275862 | F44: * | G44: * | H44: * | I44: * | J44: * | K44: *
A45: QT6 | B45: CORNWALL AND THE ISLES OF SCILLY HEALTH & SOCIAL CARE PARTNERSHIP (STP) | C45: 2 | D45: * | E45: * | F45: * | G45: * | H45: * | I45: * | J45: * | K45: *
A46: QU9 | B46: BUCKINGHAMSHIRE, OXFORDSHIRE AND BERKSHIRE WEST STP | C46: 40 | D46: 0.9 | E46: 0.05 | F46: 26 | G46: 10 | H46: 2 | I46: 1 | J46: 1 | K46: 0
A47: QUA | B47: THE BLACK COUNTRY AND WEST BIRMINGHAM STP | C47: 69 | D47: 0.7971014493 | E47: 0.1739130435 | F47: 45 | G47: 10 | H47: 2 | I47: 5 | J47: 7 | K47: 0
A48: QUE | B48: CAMBRIDGESHIRE AND PETERBOROUGH STP | C48: 199 | D48: 0.9547738693 | E48: 0.01005025126 | F48: 162 | G48: 28 | H48: 6 | I48: 1 | J48: 1 | K48: 1
A49: QUY | B49: BRISTOL, NORTH SOMERSET AND SOUTH GLOUCESTERSHIRE STP | C49: 121 | D49: 0.9008264463 | E49: 0.07438016529 | F49: 83 | G49: 26 | H49: 3 | I49: 5 | J49: 4 | K49: 0
A50: QVV | B50: DORSET STP | C50: 160 | D50: 0.88125 | E50: 0.05 | F50: 114 | G50: 27 | H50: 2 | I50: 3 | J50: 5 | K50: 9
A51: QWE | B51: SOUTH WEST LONDON HEALTH & CARE PARTNERSHIP (STP) | C51: 90 | D51: 0.8666666667 | E51: 0.04444444444 | F51: 59 | G51: 19 | H51: 8 | I51: 2 | J51: 2 | K51: 0
A52: QWO | B52: WEST YORKSHIRE AND HARROGATE HEALTH & CARE PARTNERSHIP (STP) | C52: 356 | D52: 0.9325842697 | E52: 0.04494382022 | F52: 256 | G52: 76 | H52: 6 | I52: 6 | J52: 10 | K52: 2
A53: QWU | B53: COVENTRY AND WARWICKSHIRE STP | C53: 55 | D53: 0.8181818182 | E53: 0.1090909091 | F53: 35 | G53: 10 | H53: 2 | I53: 5 | J53: 1 | K53: 2
A54: QXU | B54: SURREY HEARTLANDS HEALTH & CARE PARTNERSHIP (STP) | C54: 23 | D54: 1 | E54: 0 | F54: 19 | G54: 4 | H54: 0 | I54: 0 | J54: 0 | K54: 0
A55: QYG | B55: CHESHIRE AND MERSEYSIDE STP | C55: 209 | D55: 0.956937799 | E55: 0.03827751196 | F55: 162 | G55: 38 | H55: 1 | I55: 6 | J55: 2 | K55: 0

Sheet Trusts Q3
B6: Sort data by:
A9: STP Code | B9: Trust Code | C9: Trust Name | D9: Total Responses | E9: Percentage Positive | F9: Percentage Negative | G9: Breakdown of Responses | M9: Mode of Collection
G10: Very Good | H10: Good | I10: Neither Good nor Poor | J10: Poor | K10: Very Poor | L10: Don't Know | M10: Mode SMS | N10: Mode Electronic Discharge | O10: Mode Electronic Home | P10: Mode Paper Discharge | Q10: Mode Paper Home | R10: Mode Telephone | S10: Mode Online | T10: Mode Other
C11: England (including Independent Sector providers) | D11: 4352 | E11: 0.9113051471 | F11: 0.04250919118 | G11: 3087 | H11: 879 | I11: 152 | J11: 86 | K11: 99 | L11: 49 | M11: 1252 | N11: 1154 | O11: 37 | P11: 1434 | Q11: 14 | R11: 12 | S11: 375 | T11: 74
C12: England (excluding Independent Sector providers) | D12: 4352 | E12: 0.9113051471 | F12: 0.04250919118 | G12: 3087 | H12: 879 | I12: 152 | J12: 86 | K12: 99 | L12: 49 | M12: 1252 | N12: 1154 | O12: 37 | P12: 1434 | Q12: 14 | R12: 12 | S12: 375 | T12: 74
C13: Selection (excluding suppressed data) | D13: =SUBTOTAL(9,D14:D299) -> 4352 | E13: =IFERROR((G13+H13)/SUM(G13:L13), "-") -> 0.9048010974 | F13: =IFERROR((J13+K13)/SUM(G13:L13), "-") -> 0.04417009602 | G13: =SUBTOTAL(9,G14:G299) -> 2554 | H13: 744 | I13: 142 | J13: 75 | K13: 86 | L13: 44 | M13: 1058 | N13: 841 | O13: 37 | P13: 1288 | Q13: 14 | R13: 0 | S13: 335 | T13: 72
A14: QE1 | B14: RXL | C14: BLACKPOOL TEACHING HOSPITALS NHS FOUNDATION TRUST | D14: 35 | E14: 0.8857142857 | F14: 0.05714285714 | G14: 22 | H14: 9 | I14: 2 | J14: 0 | K14: 2 | L14: 0 | M14: 0 | N14: 0 | O14: 0 | P14: 35 | Q14: 0 | R14: 0 | S14: 0 | T14: 0
A15: QE1 | B15: RXR | C15: EAST LANCASHIRE HOSPITALS NHS TRUST | D15: 78 | E15: 0.8205128205 | F15: 0.05128205128 | G15: 48 | H15: 16 | I15: 4 | J15: 2 | K15: 2 | L15: 6 | M15: 38 | N15: 0 | O15: 0 | P15: 1 | Q15: 0 | R15: 0 | S15: 39 | T15: 0
A16: QE1 | B16: RXN | C16: LANCASHIRE TEACHING HOSPITALS NHS FOUNDATION TRUST | D16: 13 | E16: 0.9230769231 | F16: 0 | G16: 9 | H16: 3 | I16: 1 | J16: 0 | K16: 0 | L16: 0 | M16: 13 | N16: 0 | O16: 0 | P16: 0 | Q16: 0 | R16: 0 | S16: 0 | T16: 0
A17: QE1 | B17: RTX | C17: UNIVERSITY HOSPITALS OF MORECAMBE BAY NHS FOUNDATION TRUST | D17: 22 | E17: 0.9090909091 | F17: 0.04545454545 | G17: 17 | H17: 3 | I17: 1 | J17: 0 | K17: 1 | L17: 0 | M17: 22 | N17: 0 | O17: 0 | P17: 0 | Q17: 0 | R17: 0 | S17: 0 | T17: 0
A18: QF7 | B18: RFF | C18: BARNSLEY HOSPITAL NHS FOUNDATION TRUST | D18: 1 | E18: * | F18: * | G18: * | H18: * | I18: * | J18: * | K18: * | L18: * | M18: * | N18: * | O18: * | P18: * | Q18: * | R18: * | S18: * | T18: *
A19: QF7 | B19: RP5 | C19: DONCASTER AND BASSETLAW TEACHING HOSPITALS NHS FOUNDATION TRUST | D19: 5 | E19: 1 | F19: 0 | G19: 5 | H19: 0 | I19: 0 | J19: 0 | K19: 0 | L19: 0 | M19: 0 | N19: 0 | O19: 0 | P19: 5 | Q19: 0 | R19: 0 | S19: 0 | T19: 0
A20: QF7 | B20: RHQ | C20: SHEFFIELD TEACHING HOSPITALS NHS FOUNDATION TRUST | D20: 47 | E20: 0.7872340426 | F20: 0.170212766 | G20: 31 | H20: 6 | I20: 2 | J20: 4 | K20: 4 | L20: 0 | M20: 46 | N20: 0 | O20: 0 | P20: 0 | Q20: 0 | R20: 0 | S20: 1 | T20: 0
A21: QF7 | B21: RFR | C21: THE ROTHERHAM NHS FOUNDATION TRUST | D21: 44 | E21: 1 | F21: 0 | G21: * | H21: * | I21: * | J21: * | K21: * | L21: * | M21: * | N21: * | O21: * | P21: * | Q21: * | R21: * | S21: * | T21: *
A22: QGH | B22: RWP | C22: WORCESTERSHIRE ACUTE HOSPITALS NHS TRUST | D22: 5 | E22: 1 | F22: 0 | G22: 5 | H22: 0 | I22: 0 | J22: 0 | K22: 0 | L22: 0 | M22: 0 | N22: 5 | O22: 0 | P22: 0 | Q22: 0 | R22: 0 | S22: 0 | T22: 0
A23: QGH | B23: RLQ | C23: WYE VALLEY NHS TRUST | D23: 5 | E23: 1 | F23: 0 | G23: 5 | H23: 0 | I23: 0 | J23: 0 | K23: 0 | L23: 0 | M23: 0 | N23: 0 | O23: 0 | P23: 0 | Q23: 0 | R23: 0 | S23: 5 | T23: 0
A24: QH8 | B24: RAJ | C24: MID AND SOUTH ESSEX NHS FOUNDATION TRUST | D24: 74 | E24: 0.8378378378 | F24: 0.1081081081 | G24: 52 | H24: 10 | I24: 4 | J24: 3 | K24: 5 | L24: 0 | M24: 70 | N24: 0 | O24: 0 | P24: 0 | Q24: 0 | R24: 0 | S24: 0 | T24: 4
A25: QHG | B25: RC9 | C25: BEDFORDSHIRE HOSPITALS NHS FOUNDATION TRUST | D25: 173 | E25: 0.9537572254 | F25: 0.01734104046 | G25: * | H25: * | I25: * | J25: * | K25: * | L25: * | M25: * | N25: * | O25: * | P25: * | Q25: * | R25: * | S25: * | T25: *
A26: QHG | B26: RD8 | C26: MILTON KEYNES UNIVERSITY HOSPITAL NHS FOUNDATION TRUST | D26: 25 | E26: 0.92 | F26: 0.04 | G26: * | H26: * | I26: * | J26: * | K26: * | L26: * | M26: * | N26: * | O26: * | P26: * | Q26: * | R26: * | S26: * | T26: *
A27: QHL | B27: RQ3 | C27: BIRMINGHAM WOMEN'S AND CHILDREN'S NHS FOUNDATION TRUST | D27: 3 | E27: * | F27: * | G27: * | H27: * | I27: * | J27: * | K27: * | L27: * | M27: * | N27: * | O27: * | P27: * | Q27: * | R27: * | S27: * | T27: *
A28: QHL | B28: RRK | C28: UNIVERSITY HOSPITALS BIRMINGHAM NHS FOUNDATION TRUST | D28: 0 | E28: NA | F28: NA | G28: 0 | H28: 0 | I28: 0 | J28: 0 | K28: 0 | L28: 0 | M28: 0 | N28: 0 | O28: 0 | P28: 0 | Q28: 0 | R28: 0 | S28: 0 | T28: 0
A29: QHM | B29: RXP | C29: COUNTY DURHAM AND DARLINGTON NHS FOUNDATION TRUST | D29: 8 | E29: 1 | F29: 0 | G29: 7 | H29: 1 | I29: 0 | J29: 0 | K29: 0 | L29: 0 | M29: 0 | N29: 0 | O29: 0 | P29: 8 | Q29: 0 | R29: 0 | S29: 0 | T29: 0
A30: QHM | B30: RR7 | C30: GATESHEAD HEALTH NHS FOUNDATION TRUST | D30: 5 | E30: 1 | F30: 0 | G30: * | H30: * | I30: * | J30: * | K30: * | L30: * | M30: * | N30: * | O30: * | P30: * | Q30: * | R30: * | S30: * | T30: *
A31: QHM | B31: RNN | C31: NORTH CUMBRIA INTEGRATED CARE NHS FOUNDATION TRUST | D31: 11 | E31: 1 | F31: 0 | G31: * | H31: * | I31: * | J31: * | K31: * | L31: * | M31: * | N31: * | O31: * | P31: * | Q31: * | R31: * | S31: * | T31: *
A32: QHM | B32: RVW | C32: NORTH TEES AND HARTLEPOOL NHS FOUNDATION TRUST | D32: 1 | E32: * | F32: * | G32: * | H32: * | I32: * | J32: * | K32: * | L32: * | M32: * | N32: * | O32: * | P32: * | Q32: * | R32: * | S32: * | T32: *
A33: QHM | B33: RTF | C33: NORTHUMBRIA HEALTHCARE NHS FOUNDATION TRUST | D33: 48 | E33: 0.9166666667 | F33: 0 | G33: 37 | H33: 7 | I33: 4 | J33: 0 | K33: 0 | L33: 0 | M33: 37 | N33: 0 | O33: 0 | P33: 11 | Q33: 0 | R33: 0 | S33: 0 | T33: 0
A34: QHM | B34: RTR | C34: SOUTH TEES HOSPITALS NHS FOUNDATION TRUST | D34: 89 | E34: 0.9775280899 | F34: 0 | G34: 66 | H34: 21 | I34: 0 | J34: 0 | K34: 0 | L34: 2 | M34: 4 | N34: 85 | O34: 0 | P34: 0 | Q34: 0 | R34: 0 | S34: 0 | T34: 0
A35: QHM | B35: R0B | C35: SOUTH TYNESIDE AND SUNDERLAND NHS FOUNDATION TRUST | D35: 0 | E35: NA | F35: NA | G35: 0 | H35: 0 | I35: 0 | J35: 0 | K35: 0 | L35: 0 | M35: 0 | N35: 0 | O35: 0 | P35: 0 | Q35: 0 | R35: 0 | S35: 0 | T35: 0
A36: QHM | B36: RTD | C36: THE NEWCASTLE UPON TYNE HOSPITALS NHS FOUNDATION TRUST | D36: 13 | E36: 1 | F36: 0 | G36: 13 | H36: 0 | I36: 0 | J36: 0 | K36: 0 | L36: 0 | M36: 0 | N36: 0 | O36: 0 | P36: 9 | Q36: 0 | R36: 0 | S36: 4 | T36: 0
A37: QJ2 | B37: RTG | C37: UNIVERSITY HOSPITALS OF DERBY AND BURTON NHS FOUNDATION TRUST | D37: 1 | E37: * | F37: * | G37: * | H37: * | I37: * | J37: * | K37: * | L37: * | M37: * | N37: * | O37: * | P37: * | Q37: * | R37: * | S37: * | T37: *
A38: QJG | B38: RDE | C38: EAST SUFFOLK AND NORTH ESSEX NHS FOUNDATION TRUST | D38: 7 | E38: 0.7142857143 | F38: 0.1428571429 | G38: 4 | H38: 1 | I38: 1 | J38: 1 | K38: 0 | L38: 0 | M38: 0 | N38: 0 | O38: 0 | P38: 4 | Q38: 0 | R38: 0 | S38: 3 | T38: 0
A39: QJG | B39: RGR | C39: WEST SUFFOLK NHS FOUNDATION TRUST | D39: 13 | E39: 1 | F39: 0 | G39: 9 | H39: 4 | I39: 0 | J39: 0 | K39: 0 | L39: 0 | M39: 0 | N39: 0 | O39: 0 | P39: 0 | Q39: 0 | R39: 0 | S39: 13 | T39: 0
A40: QJK | B40: RBZ | C40: NORTHERN DEVON HEALTHCARE NHS TRUST | D40: 7 | E40: 1 | F40: 0 | G40: 7 | H40: 0 | I40: 0 | J40: 0 | K40: 0 | L40: 0 | M40: 0 | N40: 0 | O40: 0 | P40: 7 | Q40: 0 | R40: 0 | S40: 0 | T40: 0
A41: QJK | B41: RH8 | C41: ROYAL DEVON AND EXETER NHS FOUNDATION TRUST | D41: 36 | E41: 0.05555555556 | F41: 0 | G41: 0 | H41: 2 | I41: 34 | J41: 0 | K41: 0 | L41: 0 | M41: 0 | N41: 0 | O41: 0 | P41: 36 | Q41: 0 | R41: 0 | S41: 0 | T41: 0
A42: QJK | B42: RA9 | C42: TORBAY AND SOUTH DEVON NHS FOUNDATION TRUST | D42: 7 | E42: 1 | F42: 0 | G42: 5 | H42: 2 | I42: 0 | J42: 0 | K42: 0 | L42: 0 | M42: 0 | N42: 0 | O42: 0 | P42: 0 | Q42: 7 | R42: 0 | S42: 0 | T42: 0
A43: QJK | B43: RK9 | C43: UNIVERSITY HOSPITALS PLYMOUTH NHS TRUST | D43: 86 | E43: 0.976744186 | F43: 0 | G43: 59 | H43: 25 | I43: 2 | J43: 0 | K43: 0 | L43: 0 | M43: 0 | N43: 82 | O43: 0 | P43: 4 | Q43: 0 | R43: 0 | S43: 0 | T43: 0
A44: QJM | B44: RWD | C44: UNITED LINCOLNSHIRE HOSPITALS NHS TRUST | D44: 26 | E44: 1 | F44: 0 | G44: 24 | H44: 2 | I44: 0 | J44: 0 | K44: 0 | L44: 0 | M44: 0 | N44: 0 | O44: 0 | P44: 26 | Q44: 0 | R44: 0 | S44: 0 | T44: 0
A45: QK1 | B45: RWE | C45: UNIVERSITY HOSPITALS OF LEICESTER NHS TRUST | D45: 214 | E45: 0.9626168224 | F45: 0.009345794393 | G45: 148 | H45: 58 | I45: 6 | J45: 1 | K45: 1 | L45: 0 | M45: 0 | N45: 214 | O45: 0 | P45: 0 | Q45: 0 | R45: 0 | S45: 0 | T45: 0
A46: QKK | B46: RJ1 | C46: GUY'S AND ST THOMAS' NHS FOUNDATION TRUST | D46: 35 | E46: 0.7142857143 | F46: 0.1428571429 | G46: 13 | H46: 12 | I46: 3 | J46: 1 | K46: 4 | L46: 2 | M46: 0 | N46: 0 | O46: 0 | P46: 28 | Q46: 0 | R46: 0 | S46: 7 | T46: 0
A47: QKK | B47: RJZ | C47: KING'S COLLEGE HOSPITAL NHS FOUNDATION TRUST | D47: 33 | E47: 0.7878787879 | F47: 0.1212121212 | G47: 18 | H47: 8 | I47: 3 | J47: 1 | K47: 3 | L47: 0 | M47: 33 | N47: 0 | O47: 0 | P47: 0 | Q47: 0 | R47: 0 | S47: 0 | T47: 0
A48: QKK | B48: RJ2 | C48: LEWISHAM AND GREENWICH NHS TRUST | D48: 3 | E48: * | F48: * | G48: * | H48: * | I48: * | J48: * | K48: * | L48: * | M48: * | N48: * | O48: * | P48: * | Q48: * | R48: * | S48: * | T48: *
A49: QKS | B49: RN7 | C49: DARTFORD AND GRAVESHAM NHS TRUST | D49: 21 | E49: 0.9523809524 | F49: 0 | G49: 18 | H49: 2 | I49: 1 | J49: 0 | K49: 0 | L49: 0 | M49: 0 | N49: 21 | O49: 0 | P49: 0 | Q49: 0 | R49: 0 | S49: 0 | T49: 0
A50: QKS | B50: RWF | C50: MAIDSTONE AND TUNBRIDGE WELLS NHS TRUST | D50: 46 | E50: 0.9347826087 | F50: 0.02173913043 | G50: 38 | H50: 5 | I50: 2 | J50: 1 | K50: 0 | L50: 0 | M50: 0 | N50: 0 | O50: 0 | P50: 0 | Q50: 0 | R50: 0 | S50: 46 | T50: 0
A51: QKS | B51: RPA | C51: MEDWAY NHS FOUNDATION TRUST | D51: 39 | E51: 0.9743589744 | F51: 0.02564102564 | G51: 32 | H51: 6 | I51: 0 | J51: 1 | K51: 0 | L51: 0 | M51: 0 | N51: 0 | O51: 0 | P51: 39 | Q51: 0 | R51: 0 | S51: 0 | T51: 0
A52: QM7 | B52: RWH | C52: EAST AND NORTH HERTFORDSHIRE NHS TRUST | D52: 86 | E52: 0.9418604651 | F52: 0.03488372093 | G52: 59 | H52: 22 | I52: 2 | J52: 3 | K52: 0 | L52: 0 | M52: 0 | N52: 86 | O52: 0 | P52: 0 | Q52: 0 | R52: 0 | S52: 0 | T52: 0
A53: QM7 | B53: RQW | C53: THE PRINCESS ALEXANDRA HOSPITAL NHS TRUST | D53: 15 | E53: 0.8 | F53: 0.06666666667 | G53: 9 | H53: 3 | I53: 2 | J53: 1 | K53: 0 | L53: 0 | M53: 0 | N53: 0 | O53: 0 | P53: 0 | Q53: 0 | R53: 0 | S53: 0 | T53: 15
A54: QM7 | B54: RWG | C54: WEST HERTFORDSHIRE TEACHING HOSPITALS NHS TRUST | D54: 44 | E54: 0.9545454545 | F54: 0.02272727273 | G54: 31 | H54: 11 | I54: 1 | J54: 1 | K54: 0 | L54: 0 | M54: 0 | N54: 44 | O54: 0 | P54: 0 | Q54: 0 | R54: 0 | S54: 0 | T54: 0
A55: QMF | B55: RF4 | C55: BARKING, HAVERING AND REDBRIDGE UNIVERSITY HOSPITALS NHS TRUST | D55: 21 | E55: 0.9047619048 | F55: 0.09523809524 | G55: 16 | H55: 3 | I55: 0 | J55: 1 | K55: 1 | L55: 0 | M55: 0 | N55: 0 | O55: 0 | P55: 21 | Q55: 0 | R55: 0 | S55: 0 | T55: 0
A56: QMF | B56: R1H | C56: BARTS HEALTH NHS TRUST | D56: 75 | E56: 0.8933333333 | F56: 0.05333333333 | G56: 37 | H56: 30 | I56: 4 | J56: 2 | K56: 2 | L56: 0 | M56: 8 | N56: 0 | O56: 0 | P56: 59 | Q56: 0 | R56: 0 | S56: 8 | T56: 0
A57: QMF | B57: RQX | C57: HOMERTON UNIVERSITY HOSPITAL NHS FOUNDATION TRUST | D57: 20 | E57: 0.9 | F57: 0 | G57: 15 | H57: 3 | I57: 2 | J57: 0 | K57: 0 | L57: 0 | M57: 20 | N57: 0 | O57: 0 | P57: 0 | Q57: 0 | R57: 0 | S57: 0 | T57: 0
A58: QMJ | B58: RAP | C58: NORTH MIDDLESEX UNIVERSITY HOSPITAL NHS TRUST | D58: 16 | E58: 0.8125 | F58: 0 | G58: 7 | H58: 6 | I58: 3 | J58: 0 | K58: 0 | L58: 0 | M58: 0 | N58: 16 | O58: 0 | P58: 0 | Q58: 0 | R58: 0 | S58: 0 | T58: 0
A59: QMJ | B59: RAL | C59: ROYAL FREE LONDON NHS FOUNDATION TRUST | D59: 85 | E59: 0.8941176471 | F59: 0.03529411765 | G59: 54 | H59: 22 | I59: 6 | J59: 1 | K59: 2 | L59: 0 | M59: 0 | N59: 83 | O59: 0 | P59: 0 | Q59: 0 | R59: 0 | S59: 2 | T59: 0
A60: QMJ | B60: RKE | C60: WHITTINGTON HEALTH NHS TRUST | D60: 45 | E60: 0.9777777778 | F60: 0.02222222222 | G60: 6 | H60: 38 | I60: 0 | J60: 1 | K60: 0 | L60: 0 | M60: 0 | N60: 0 | O60: 0 | P60: 45 | Q60: 0 | R60: 0 | S60: 0 | T60: 0
A61: QMM | B61: RGP | C61: JAMES PAGET UNIVERSITY HOSPITALS NHS FOUNDATION TRUST | D61: 8 | E61: 1 | F61: 0 | G61: * | H61: * | I61: * | J61: * | K61: * | L61: * | M61: * | N61: * | O61: * | P61: * | Q61: * | R61: * | S61: * | T61: *
A62: QMM | B62: RM1 | C62: NORFOLK AND NORWICH UNIVERSITY HOSPITALS NHS FOUNDATION TRUST | D62: 42 | E62: 0.9523809524 | F62: 0.04761904762 | G62: 30 | H62: 10 | I62: 0 | J62: 1 | K62: 1 | L62: 0 | M62: 0 | N62: 0 | O62: 0 | P62: 0 | Q62: 0 | R62: 0 | S62: 42 | T62: 0
A63: QMM | B63: RCX | C63: THE QUEEN ELIZABETH HOSPITAL, KING'S LYNN, NHS FOUNDATION TRUST | D63: 12 | E63: 1 | F63: 0 | G63: * | H63: * | I63: * | J63: * | K63: * | L63: * | M63: * | N63: * | O63: * | P63: * | Q63: * | R63: * | S63: * | T63: *
A64: QNC | B64: RJE | C64: UNIVERSITY HOSPITALS OF NORTH MIDLANDS NHS TRUST | D64: 1 | E64: * | F64: * | G64: * | H64: * | I64: * | J64: * | K64: * | L64: * | M64: * | N64: * | O64: * | P64: * | Q64: * | R64: * | S64: * | T64: *
A65: QNQ | B65: RDU | C65: FRIMLEY HEALTH NHS FOUNDATION TRUST | D65: 59 | E65: 0.8983050847 | F65: 0.05084745763 | G65: 39 | H65: 14 | I65: 3 | J65: 1 | K65: 2 | L65: 0 | M65: 34 | N65: 1 | O65: 0 | P65: 24 | Q65: 0 | R65: 0 | S65: 0 | T65: 0
A66: QNX | B66: RXC | C66: EAST SUSSEX HEALTHCARE NHS TRUST | D66: 1 | E66: * | F66: * | G66: * | H66: * | I66: * | J66: * | K66: * | L66: * | M66: * | N66: * | O66: * | P66: * | Q66: * | R66: * | S66: * | T66: *
A67: QNX | B67: RYR | C67: UNIVERSITY HOSPITALS SUSSEX NHS FOUNDATION TRUST | D67: 80 | E67: 0.9875 | F67: 0.0125 | G67: * | H67: * | I67: * | J67: * | K67: * | L67: * | M67: * | N67: * | O67: * | P67: * | Q67: * | R67: * | S67: * | T67: *
A68: QOC | B68: RXW | C68: THE SHREWSBURY AND TELFORD HOSPITAL NHS TRUST | D68: 5 | E68: 1 | F68: 0 | G68: 5 | H68: 0 | I68: 0 | J68: 0 | K68: 0 | L68: 0 | M68: 0 | N68: 0 | O68: 0 | P68: 5 | Q68: 0 | R68: 0 | S68: 0 | T68: 0
A69: QOP | B69: RMC | C69: BOLTON NHS FOUNDATION TRUST | D69: 49 | E69: 0.7755102041 | F69: 0.1632653061 | G69: 28 | H69: 10 | I69: 2 | J69: 2 | K69: 6 | L69: 1 | M69: 49 | N69: 0 | O69: 0 | P69: 0 | Q69: 0 | R69: 0 | S69: 0 | T69: 0
A70: QOP | B70: R0A | C70: MANCHESTER UNIVERSITY NHS FOUNDATION TRUST | D70: 29 | E70: 0.9655172414 | F70: 0 | G70: 23 | H70: 5 | I70: 1 | J70: 0 | K70: 0 | L70: 0 | M70: 0 | N70: 29 | O70: 0 | P70: 0 | Q70: 0 | R70: 0 | S70: 0 | T70: 0
A71: QOP | B71: RWJ | C71: STOCKPORT NHS FOUNDATION TRUST | D71: 32 | E71: 0.96875 | F71: 0.03125 | G71: 28 | H71: 3 | I71: 0 | J71: 0 | K71: 1 | L71: 0 | M71: 0 | N71: 0 | O71: 0 | P71: 32 | Q71: 0 | R71: 0 | S71: 0 | T71: 0
A72: QOP | B72: RMP | C72: TAMESIDE AND GLOSSOP INTEGRATED CARE NHS FOUNDATION TRUST | D72: 1 | E72: * | F72: * | G72: * | H72: * | I72: * | J72: * | K72: * | L72: * | M72: * | N72: * | O72: * | P72: * | Q72: * | R72: * | S72: * | T72: *
A73: QOP | B73: RRF | C73: WRIGHTINGTON, WIGAN AND LEIGH NHS FOUNDATION TRUST | D73: 29 | E73: 1 | F73: 0 | G73: 25 | H73: 4 | I73: 0 | J73: 0 | K73: 0 | L73: 0 | M73: 0 | N73: 0 | O73: 0 | P73: 29 | Q73: 0 | R73: 0 | S73: 0 | T73: 0
A74: QOQ | B74: RCD | C74: HARROGATE AND DISTRICT NHS FOUNDATION TRUST | D74: 7 | E74: 0.8571428571 | F74: 0.1428571429 | G74: 6 | H74: 0 | I74: 0 | J74: 1 | K74: 0 | L74: 0 | M74: 0 | N74: 0 | O74: 0 | P74: 7 | Q74: 0 | R74: 0 | S74: 0 | T74: 0
A75: QOQ | B75: RWA | C75: HULL UNIVERSITY TEACHING HOSPITALS NHS TRUST | D75: 11 | E75: 1 | F75: 0 | G75: 7 | H75: 4 | I75: 0 | J75: 0 | K75: 0 | L75: 0 | M75: 0 | N75: 0 | O75: 0 | P75: 11 | Q75: 0 | R75: 0 | S75: 0 | T75: 0
A76: QOQ | B76: RJL | C76: NORTHERN LINCOLNSHIRE AND GOOLE NHS FOUNDATION TRUST | D76: 30 | E76: 0.8666666667 | F76: 0.1 | G76: 24 | H76: 2 | I76: 0 | J76: 0 | K76: 3 | L76: 1 | M76: 0 | N76: 0 | O76: 0 | P76: 29 | Q76: 0 | R76: 0 | S76: 1 | T76: 0
A77: QOQ | B77: RCB | C77: YORK AND SCARBOROUGH TEACHING HOSPITALS NHS FOUNDATION TRUST | D77: 102 | E77: 0.9803921569 | F77: 0.01960784314 | G77: 86 | H77: 14 | I77: 0 | J77: 2 | K77: 0 | L77: 0 | M77: 0 | N77: 0 | O77: 0 | P77: 102 | Q77: 0 | R77: 0 | S77: 0 | T77: 0
A78: QOX | B78: RN3 | C78: GREAT WESTERN HOSPITALS NHS FOUNDATION TRUST | D78: 122 | E78: 0.9672131148 | F78: 0.008196721311 | G78: * | H78: * | I78: * | J78: * | K78: * | L78: * | M78: * | N78: * | O78: * | P78: * | Q78: * | R78: * | S78: * | T78: *
A79: QOX | B79: RD1 | C79: ROYAL UNITED HOSPITALS BATH NHS FOUNDATION TRUST | D79: 3 | E79: * | F79: * | G79: * | H79: * | I79: * | J79: * | K79: * | L79: * | M79: * | N79: * | O79: * | P79: * | Q79: * | R79: * | S79: * | T79: *
A80: QOX | B80: RNZ | C80: SALISBURY NHS FOUNDATION TRUST | D80: 20 | E80: 1 | F80: 0 | G80: 16 | H80: 4 | I80: 0 | J80: 0 | K80: 0 | L80: 0 | M80: 0 | N80: 0 | O80: 0 | P80: 10 | Q80: 0 | R80: 0 | S80: 10 | T80: 0
A81: QPM | B81: RNQ | C81: KETTERING GENERAL HOSPITAL NHS FOUNDATION TRUST | D81: 1 | E81: * | F81: * | G81: * | H81: * | I81: * | J81: * | K81: * | L81: * | M81: * | N81: * | O81: * | P81: * | Q81: * | R81: * | S81: * | T81: *
A82: QPM | B82: RNS | C82: NORTHAMPTON GENERAL HOSPITAL NHS TRUST | D82: 45 | E82: 0.9555555556 | F82: 0.04444444444 | G82: * | H82: * | I82: * | J82: * | K82: * | L82: * | M82: * | N82: * | O82: * | P82: * | Q82: * | R82: * | S82: * | T82: *
A83: QR1 | B83: RTE | C83: GLOUCESTERSHIRE HOSPITALS NHS FOUNDATION TRUST | D83: 34 | E83: 0.7941176471 | F83: 0.02941176471 | G83: 21 | H83: 6 | I83: 5 | J83: 0 | K83: 1 | L83: 1 | M83: 34 | N83: 0 | O83: 0 | P83: 0 | Q83: 0 | R83: 0 | S83: 0 | T83: 0
A84: QRL | B84: RN5 | C84: HAMPSHIRE HOSPITALS NHS FOUNDATION TRUST | D84: 130 | E84: 0.9615384615 | F84: 0.007692307692 | G84: 108 | H84: 17 | I84: 3 | J84: 1 | K84: 0 | L84: 1 | M84: 0 | N84: 0 | O84: 0 | P84: 130 | Q84: 0 | R84: 0 | S84: 0 | T84: 0
A85: QRL | B85: R1F | C85: ISLE OF WIGHT NHS TRUST | D85: 10 | E85: 0.9 | F85: 0 | G85: 8 | H85: 1 | I85: 0 | J85: 0 | K85: 0 | L85: 1 | M85: 0 | N85: 0 | O85: 0 | P85: 10 | Q85: 0 | R85: 0 | S85: 0 | T85: 0
A86: QRL | B86: RHU | C86: PORTSMOUTH HOSPITALS UNIVERSITY NATIONAL HEALTH SERVICE TRUST | D86: 23 | E86: 1 | F86: 0 | G86: 22 | H86: 1 | I86: 0 | J86: 0 | K86: 0 | L86: 0 | M86: 0 | N86: 0 | O86: 0 | P86: 23 | Q86: 0 | R86: 0 | S86: 0 | T86: 0
A87: QRL | B87: RHM | C87: UNIVERSITY HOSPITAL SOUTHAMPTON NHS FOUNDATION TRUST | D87: 31 | E87: 0.8064516129 | F87: 0.09677419355 | G87: 15 | H87: 10 | I87: 1 | J87: 1 | K87: 2 | L87: 2 | M87: 0 | N87: 0 | O87: 0 | P87: 0 | Q87: 7 | R87: 0 | S87: 24 | T87: 0
A88: QRV | B88: RQM | C88: CHELSEA AND WESTMINSTER HOSPITAL NHS FOUNDATION TRUST | D88: 157 | E88: 0.8598726115 | F88: 0.1082802548 | G88: 111 | H88: 24 | I88: 4 | J88: 8 | K88: 9 | L88: 1 | M88: 141 | N88: 0 | O88: 0 | P88: 0 | Q88: 0 | R88: 0 | S88: 16 | T88: 0
A89: QRV | B89: RYJ | C89: IMPERIAL COLLEGE HEALTHCARE NHS TRUST | D89: 117 | E89: 0.7606837607 | F89: 0.09401709402 | G89: 66 | H89: 23 | I89: 4 | J89: 4 | K89: 7 | L89: 13 | M89: 0 | N89: 0 | O89: 37 | P89: 10 | Q89: 0 | R89: 0 | S89: 70 | T89: 0
A90: QRV | B90: R1K | C90: LONDON NORTH WEST UNIVERSITY HEALTHCARE NHS TRUST | D90: 30 | E90: 1 | F90: 0 | G90: 21 | H90: 9 | I90: 0 | J90: 0 | K90: 0 | L90: 0 | M90: 0 | N90: 0 | O90: 0 | P90: 30 | Q90: 0 | R90: 0 | S90: 0 | T90: 0
A91: QRV | B91: RAS | C91: THE HILLINGDON HOSPITALS NHS FOUNDATION TRUST | D91: 39 | E91: 0.9230769231 | F91: 0.07692307692 | G91: 29 | H91: 7 | I91: 0 | J91: 2 | K91: 1 | L91: 0 | M91: 0 | N91: 0 | O91: 0 | P91: 15 | Q91: 0 | R91: 0 | S91: 24 | T91: 0
A92: QSL | B92: RH5 | C92: SOMERSET NHS FOUNDATION TRUST | D92: 8 | E92: 1 | F92: 0 | G92: 7 | H92: 1 | I92: 0 | J92: 0 | K92: 0 | L92: 0 | M92: 0 | N92: 0 | O92: 0 | P92: 8 | Q92: 0 | R92: 0 | S92: 0 | T92: 0
A93: QSL | B93: RA4 | C93: YEOVIL DISTRICT HOSPITAL NHS FOUNDATION TRUST | D93: 45 | E93: 1 | F93: 0 | G93: 41 | H93: 4 | I93: 0 | J93: 0 | K93: 0 | L93: 0 | M93: 10 | N93: 35 | O93: 0 | P93: 0 | Q93: 0 | R93: 0 | S93: 0 | T93: 0
A94: QT1 | B94: RX1 | C94: NOTTINGHAM UNIVERSITY HOSPITALS NHS TRUST | D94: 15 | E94: 0.9333333333 | F94: 0 | G94: * | H94: * | I94: * | J94: * | K94: * | L94: * | M94: * | N94: * | O94: * | P94: * | Q94: * | R94: * | S94: * | T94: *
A95: QT1 | B95: RK5 | C95: SHERWOOD FOREST HOSPITALS NHS FOUNDATION TRUST | D95: 14 | E95: 0.9285714286 | F95: 0.07142857143 | G95: * | H95: * | I95: * | J95: * | K95: * | L95: * | M95: * | N95: * | O95: * | P95: * | Q95: * | R95: * | S95: * | T95: *
A96: QT6 | B96: REF | C96: ROYAL CORNWALL HOSPITALS NHS TRUST | D96: 2 | E96: * | F96: * | G96: * | H96: * | I96: * | J96: * | K96: * | L96: * | M96: * | N96: * | O96: * | P96: * | Q96: * | R96: * | S96: * | T96: *
A97: QU9 | B97: RXQ | C97: BUCKINGHAMSHIRE HEALTHCARE NHS TRUST | D97: 19 | E97: 0.8421052632 | F97: 0.1052631579 | G97: 10 | H97: 6 | I97: 1 | J97: 1 | K97: 1 | L97: 0 | M97: 19 | N97: 0 | O97: 0 | P97: 0 | Q97: 0 | R97: 0 | S97: 0 | T97: 0
A98: QU9 | B98: RTH | C98: OXFORD UNIVERSITY HOSPITALS NHS FOUNDATION TRUST | D98: 2 | E98: * | F98: * | G98: * | H98: * | I98: * | J98: * | K98: * | L98: * | M98: * | N98: * | O98: * | P98: * | Q98: * | R98: * | S98: * | T98: *
A99: QU9 | B99: RHW | C99: ROYAL BERKSHIRE NHS FOUNDATION TRUST | D99: 19 | E99: 1 | F99: 0 | G99: 15 | H99: 4 | I99: 0 | J99: 0 | K99: 0 | L99: 0 | M99: 1 | N99: 0 | O99: 0 | P99: 18 | Q99: 0 | R99: 0 | S99: 0 | T99: 0
A100: QUA | B100: RNA | C100: THE DUDLEY GROUP NHS FOUNDATION TRUST | D100: 1 | E100: * | F100: * | G100: * | H100: * | I100: * | J100: * | K100: * | L100: * | M100: * | N100: * | O100: * | P100: * | Q100: * | R100: * | S100: * | T100: *
A101: QUA | B101: RL4 | C101: THE ROYAL WOLVERHAMPTON NHS TRUST | D101: 55 | E101: 0.8 | F101: 0.1636363636 | G101: 36 | H101: 8 | I101: 2 | J101: 3 | K101: 6 | L101: 0 | M101: 55 | N101: 0 | O101: 0 | P101: 0 | Q101: 0 | R101: 0 | S101: 0 | T101: 0
A102: QUA | B102: RBK | C102: WALSALL HEALTHCARE NHS TRUST | D102: 13 | E102: 0.7692307692 | F102: 0.2307692308 | G102: 8 | H102: 2 | I102: 0 | J102: 2 | K102: 1 | L102: 0 | M102: 11 | N102: 2 | O102: 0 | P102: 0 | Q102: 0 | R102: 0 | S102: 0 | T102: 0
A103: QUE | B103: RGT | C103: CAMBRIDGE UNIVERSITY HOSPITALS NHS FOUNDATION TRUST | D103: 112 | E103: 0.9285714286 | F103: 0.008928571429 | G103: 84 | H103: 20 | I103: 6 | J103: 0 | K103: 1 | L103: 1 | M103: 0 | N103: 100 | O103: 0 | P103: 3 | Q103: 0 | R103: 0 | S103: 9 | T103: 0
A104: QUE | B104: RGN | C104: NORTH WEST ANGLIA NHS FOUNDATION TRUST | D104: 87 | E104: 0.9885057471 | F104: 0.01149425287 | G104: 78 | H104: 8 | I104: 0 | J104: 1 | K104: 0 | L104: 0 | M104: 0 | N104: 0 | O104: 0 | P104: 87 | Q104: 0 | R104: 0 | S104: 0 | T104: 0
A105: QUY | B105: RVJ | C105: NORTH BRISTOL NHS TRUST | D105: 101 | E105: 0.8811881188 | F105: 0.08910891089 | G105: 65 | H105: 24 | I105: 3 | J105: 5 | K105: 4 | L105: 0 | M105: 101 | N105: 0 | O105: 0 | P105: 0 | Q105: 0 | R105: 0 | S105: 0 | T105: 0
A106: QUY | B106: RA7 | C106: UNIVERSITY HOSPITALS BRISTOL AND WESTON NHS FOUNDATION TRUST | D106: 20 | E106: 1 | F106: 0 | G106: 18 | H106: 2 | I106: 0 | J106: 0 | K106: 0 | L106: 0 | M106: 0 | N106: 0 | O106: 0 | P106: 20 | Q106: 0 | R106: 0 | S106: 0 | T106: 0
A107: QVV | B107: RBD | C107: DORSET COUNTY HOSPITAL NHS FOUNDATION TRUST | D107: 34 | E107: 0.9705882353 | F107: 0 | G107: 31 | H107: 2 | I107: 0 | J107: 0 | K107: 0 | L107: 1 | M107: 34 | N107: 0 | O107: 0 | P107: 0 | Q107: 0 | R107: 0 | S107: 0 | T107: 0
A108: QVV | B108: R0D | C108: UNIVERSITY HOSPITALS DORSET NHS FOUNDATION TRUST | D108: 126 | E108: 0.8571428571 | F108: 0.06349206349 | G108: 83 | H108: 25 | I108: 2 | J108: 3 | K108: 5 | L108: 8 | M108: 125 | N108: 0 | O108: 0 | P108: 0 | Q108: 0 | R108: 0 | S108: 1 | T108: 0
A109: QWE | B109: RJ6 | C109: CROYDON HEALTH SERVICES NHS TRUST | D109: 31 | E109: 0.8709677419 | F109: 0.1290322581 | G109: 19 | H109: 8 | I109: 0 | J109: 2 | K109: 2 | L109: 0 | M109: 31 | N109: 0 | O109: 0 | P109: 0 | Q109: 0 | R109: 0 | S109: 0 | T109: 0
A110: QWE | B110: RVR | C110: EPSOM AND ST HELIER UNIVERSITY HOSPITALS NHS TRUST | D110: 19 | E110: 0.7894736842 | F110: 0 | G110: 10 | H110: 5 | I110: 4 | J110: 0 | K110: 0 | L110: 0 | M110: 0 | N110: 0 | O110: 0 | P110: 17 | Q110: 0 | R110: 0 | S110: 2 | T110: 0
A111: QWE | B111: RAX | C111: KINGSTON HOSPITAL NHS FOUNDATION TRUST | D111: 19 | E111: 0.8947368421 | F111: 0 | G111: 16 | H111: 1 | I111: 2 | J111: 0 | K111: 0 | L111: 0 | M111: 0 | N111: 19 | O111: 0 | P111: 0 | Q111: 0 | R111: 0 | S111: 0 | T111: 0
A112: QWE | B112: RJ7 | C112: ST GEORGE'S UNIVERSITY HOSPITALS NHS FOUNDATION TRUST | D112: 21 | E112: 0.9047619048 | F112: 0 | G112: 14 | H112: 5 | I112: 2 | J112: 0 | K112: 0 | L112: 0 | M112: 0 | N112: 19 | O112: 0 | P112: 1 | Q112: 0 | R112: 0 | S112: 1 | T112: 0
A113: QWO | B113: RAE | C113: BRADFORD TEACHING HOSPITALS NHS FOUNDATION TRUST | D113: 3 | E113: * | F113: * | G113: * | H113: * | I113: * | J113: * | K113: * | L113: * | M113: * | N113: * | O113: * | P113: * | Q113: * | R113: * | S113: * | T113: *
A114: QWO | B114: RWY | C114: CALDERDALE AND HUDDERSFIELD NHS FOUNDATION TRUST | D114: 3 | E114: * | F114: * | G114: * | H114: * | I114: * | J114: * | K114: * | L114: * | M114: * | N114: * | O114: * | P114: * | Q114: * | R114: * | S114: * | T114: *
A115: QWO | B115: RR8 | C115: LEEDS TEACHING HOSPITALS NHS TRUST | D115: 122 | E115: 0.8852459016 | F115: 0.09016393443 | G115: * | H115: * | I115: * | J115: * | K115: * | L115: * | M115: * | N115: * | O115: * | P115: * | Q115: * | R115: * | S115: * | T115: *
A116: QWO | B116: RXF | C116: MID YORKSHIRE HOSPITALS NHS TRUST | D116: 228 | E116: 0.9605263158 | F116: 0.01754385965 | G116: 161 | H116: 58 | I116: 4 | J116: 1 | K116: 3 | L116: 1 | M116: 0 | N116: 0 | O116: 0 | P116: 223 | Q116: 0 | R116: 0 | S116: 5 | T116: 0
A117: QWU | B117: RLT | C117: GEORGE ELIOT HOSPITAL NHS TRUST | D117: 51 | E117: 0.8431372549 | F117: 0.07843137255 | G117: 33 | H117: 10 | I117: 2 | J117: 3 | K117: 1 | L117: 2 | M117: 51 | N117: 0 | O117: 0 | P117: 0 | Q117: 0 | R117: 0 | S117: 0 | T117: 0
A118: QWU | B118: RJC | C118: SOUTH WARWICKSHIRE NHS FOUNDATION TRUST | D118: 1 | E118: * | F118: * | G118: * | H118: * | I118: * | J118: * | K118: * | L118: * | M118: * | N118: * | O118: * | P118: * | Q118: * | R118: * | S118: * | T118: *
A119: QWU | B119: RKB | C119: UNIVERSITY HOSPITALS COVENTRY AND WARWICKSHIRE NHS TRUST | D119: 3 | E119: * | F119: * | G119: * | H119: * | I119: * | J119: * | K119: * | L119: * | M119: * | N119: * | O119: * | P119: * | Q119: * | R119: * | S119: * | T119: *
A120: QXU | B120: RTK | C120: ASHFORD AND ST PETER'S HOSPITALS NHS FOUNDATION TRUST | D120: 0 | E120: NA | F120: NA | G120: 0 | H120: 0 | I120: 0 | J120: 0 | K120: 0 | L120: 0 | M120: 0 | N120: 0 | O120: 0 | P120: 0 | Q120: 0 | R120: 0 | S120: 0 | T120: 0
A121: QXU | B121: RA2 | C121: ROYAL SURREY COUNTY HOSPITAL NHS FOUNDATION TRUST | D121: 0 | E121: NA | F121: NA | G121: 0 | H121: 0 | I121: 0 | J121: 0 | K121: 0 | L121: 0 | M121: 0 | N121: 0 | O121: 0 | P121: 0 | Q121: 0 | R121: 0 | S121: 0 | T121: 0
A122: QXU | B122: RTP | C122: SURREY AND SUSSEX HEALTHCARE NHS TRUST | D122: 23 | E122: 1 | F122: 0 | G122: 19 | H122: 4 | I122: 0 | J122: 0 | K122: 0 | L122: 0 | M122: 0 | N122: 0 | O122: 0 | P122: 22 | Q122: 0 | R122: 0 | S122: 1 | T122: 0
A123: QYG | B123: RJN | C123: EAST CHESHIRE NHS TRUST | D123: 0 | E123: NA | F123: NA | G123: 0 | H123: 0 | I123: 0 | J123: 0 | K123: 0 | L123: 0 | M123: 0 | N123: 0 | O123: 0 | P123: 0 | Q123: 0 | R123: 0 | S123: 0 | T123: 0
A124: QYG | B124: REP | C124: LIVERPOOL WOMEN'S NHS FOUNDATION TRUST | D124: 51 | E124: 0.8823529412 | F124: 0.09803921569 | G124: 31 | H124: 14 | I124: 1 | J124: 3 | K124: 2 | L124: 0 | M124: 0 | N124: 0 | O124: 0 | P124: 0 | Q124: 0 | R124: 0 | S124: 0 | T124: 51
A125: QYG | B125: RBT | C125: MID CHESHIRE HOSPITALS NHS FOUNDATION TRUST | D125: 36 | E125: 0.9722222222 | F125: 0.02777777778 | G125: 28 | H125: 7 | I125: 0 | J125: 1 | K125: 0 | L125: 0 | M125: 34 | N125: 0 | O125: 0 | P125: 0 | Q125: 0 | R125: 0 | S125: 0 | T125: 2
A126: QYG | B126: RVY | C126: SOUTHPORT AND ORMSKIRK HOSPITAL NHS TRUST | D126: 23 | E126: 0.9130434783 | F126: 0.08695652174 | G126: 17 | H126: 4 | I126: 0 | J126: 2 | K126: 0 | L126: 0 | M126: 22 | N126: 0 | O126: 0 | P126: 0 | Q126: 0 | R126: 0 | S126: 1 | T126: 0
A127: QYG | B127: RBN | C127: ST HELENS AND KNOWSLEY TEACHING HOSPITALS NHS TRUST | D127: 21 | E127: 1 | F127: 0 | G127: 20 | H127: 1 | I127: 0 | J127: 0 | K127: 0 | L127: 0 | M127: 15 | N127: 0 | O127: 0 | P127: 6 | Q127: 0 | R127: 0 | S127: 0 | T127: 0
A128: QYG | B128: RWW | C128: WARRINGTON AND HALTON TEACHING HOSPITALS NHS FOUNDATION TRUST | D128: 43 | E128: 1 | F128: 0 | G128: 39 | H128: 4 | I128: 0 | J128: 0 | K128: 0 | L128: 0 | M128: 0 | N128: 0 | O128: 0 | P128: 43 | Q128: 0 | R128: 0 | S128: 0 | T128: 0
A129: QYG | B129: RBL | C129: WIRRAL UNIVERSITY TEACHING HOSPITAL NHS FOUNDATION TRUST | D129: 35 | E129: 1 | F129: 0 | G129: 27 | H129: 8 | I129: 0 | J129: 0 | K129: 0 | L129: 0 | M129: 0 | N129: 0 | O129: 0 | P129: 35 | Q129: 0 | R129: 0 | S129: 0 | T129: 0

Sheet Sites Q3
B6: Sort data by:
A9: STP Code | B9: Trust Code | C9: Trust Name | D9: Site Code | E9: Site Name | F9: Total Responses | G9: Percentage Positive | H9: Percentage Negatvie | I9: Breakdown of Responses
I10: Very Good | J10: Good | K10: Neither Good nor Poor | L10: Poor | M10: Very Poor | N10: Don't Know
E11: England (including Independent Sector providers) | F11: 4352 | G11: 0.9113051471 | H11: 0.04250919118 | I11: 3087 | J11: 879 | K11: 152 | L11: 86 | M11: 99 | N11: 49
E12: England (excluding Independent Sector providers) | F12: 4352 | G12: 0.9113051471 | H12: 0.04250919118 | I12: 3087 | J12: 879 | K12: 152 | L12: 86 | M12: 99 | N12: 49
E13: Selection (excluding suppressed data) | F13: =SUBTOTAL(9,F14:F298) -> 4352 | G13: =IFERROR((I13+J13)/SUM(I13:N13), "-") -> 0.9069373942 | H13: =IFERROR((L13+M13)/SUM(I13:N13), "-") -> 0.04286520023 | I13: =SUBTOTAL(9,I14:I298) -> 2498 | J13: 718 | K13: 134 | L13: 69 | M13: 83 | N13: 44
A14: QE1 | B14: RXL | C14: BLACKPOOL TEACHING HOSPITALS NHS FOUNDATION TRUST | D14: RXL01 | E14: Blackpool Victoria Hospital | F14: 35 | G14: 0.8857142857 | H14: 0.05714285714 | I14: 22 | J14: 9 | K14: 2 | L14: 0 | M14: 2 | N14: 0
A15: QE1 | B15: RXR | C15: EAST LANCASHIRE HOSPITALS NHS TRUST | D15: RXR20 | E15: Royal Blackburn Hospital | F15: 78 | G15: 0.8205128205 | H15: 0.05128205128 | I15: 48 | J15: 16 | K15: 4 | L15: 2 | M15: 2 | N15: 6
A16: QE1 | B16: RXN | C16: LANCASHIRE TEACHING HOSPITALS NHS FOUNDATION TRUST | D16: RXN01 | E16: Chorley and South Ribble Hospital | F16: 0 | G16: NA | H16: NA | I16: 0 | J16: 0 | K16: 0 | L16: 0 | M16: 0 | N16: 0
A17: QE1 | B17: RXN | C17: LANCASHIRE TEACHING HOSPITALS NHS FOUNDATION TRUST | D17: RXN02 | E17: Royal Preston Hospital | F17: 13 | G17: 0.9230769231 | H17: 0 | I17: 9 | J17: 3 | K17: 1 | L17: 0 | M17: 0 | N17: 0
A18: QE1 | B18: RTX | C18: UNIVERSITY HOSPITALS OF MORECAMBE BAY NHS FOUNDATION TRUST | D18: RTXBU | E18: Furness General Hospital | F18: 5 | G18: 0.8 | H18: 0.2 | I18: 3 | J18: 1 | K18: 0 | L18: 0 | M18: 1 | N18: 0
A19: QE1 | B19: RTX | C19: UNIVERSITY HOSPITALS OF MORECAMBE BAY NHS FOUNDATION TRUST | D19: RTX02 | E19: Royal Lancaster Infirmary | F19: 17 | G19: 0.9411764706 | H19: 0 | I19: 14 | J19: 2 | K19: 1 | L19: 0 | M19: 0 | N19: 0
A20: QF7 | B20: RFF | C20: BARNSLEY HOSPITAL NHS FOUNDATION TRUST | D20: RFFAA | E20: Barnsley Hospital NHS Foundation Trust HQ | F20: 1 | G20: * | H20: * | I20: * | J20: * | K20: * | L20: * | M20: * | N20: *
A21: QF7 | B21: RP5 | C21: DONCASTER AND BASSETLAW TEACHING HOSPITALS NHS FOUNDATION TRUST | D21: RP5BA | E21: Bassetlaw Hospital | F21: 0 | G21: NA | H21: NA | I21: 0 | J21: 0 | K21: 0 | L21: 0 | M21: 0 | N21: 0
A22: QF7 | B22: RP5 | C22: DONCASTER AND BASSETLAW TEACHING HOSPITALS NHS FOUNDATION TRUST | D22: RP5DR | E22: Doncaster Royal Infirmary | F22: 5 | G22: 1 | H22: 0 | I22: 5 | J22: 0 | K22: 0 | L22: 0 | M22: 0 | N22: 0
A23: QF7 | B23: RHQ | C23: SHEFFIELD TEACHING HOSPITALS NHS FOUNDATION TRUST | D23: RHQHH | E23: Royal Hallamshire Hospital | F23: 47 | G23: 0.7872340426 | H23: 0.170212766 | I23: 31 | J23: 6 | K23: 2 | L23: 4 | M23: 4 | N23: 0
A24: QF7 | B24: RFR | C24: THE ROTHERHAM NHS FOUNDATION TRUST | D24: RFRPA | E24: Rotherham District General Hospital | F24: 44 | G24: 1 | H24: 0 | I24: * | J24: * | K24: * | L24: * | M24: * | N24: *
A25: QGH | B25: RWP | C25: WORCESTERSHIRE ACUTE HOSPITALS NHS TRUST | D25: RWP50 | E25: Worcestershire Royal Hospital | F25: 5 | G25: 1 | H25: 0 | I25: 5 | J25: 0 | K25: 0 | L25: 0 | M25: 0 | N25: 0
A26: QGH | B26: RLQ | C26: WYE VALLEY NHS TRUST | D26: RLQ01 | E26: Hereford County Hospital | F26: 5 | G26: 1 | H26: 0 | I26: 5 | J26: 0 | K26: 0 | L26: 0 | M26: 0 | N26: 0
A27: QH8 | B27: RAJ | C27: MID AND SOUTH ESSEX NHS FOUNDATION TRUST | D27: RAJ12 | E27: BASILDON HOSPITAL | F27: 39 | G27: 0.9230769231 | H27: 0.05128205128 | I27: 31 | J27: 5 | K27: 1 | L27: 0 | M27: 2 | N27: 0
A28: QH8 | B28: RAJ | C28: MID AND SOUTH ESSEX NHS FOUNDATION TRUST | D28: RAJ32 | E28: MID ESSEX HOSPITAL | F28: 35 | G28: 0.7428571429 | H28: 0.1714285714 | I28: 21 | J28: 5 | K28: 3 | L28: 3 | M28: 3 | N28: 0
A29: QHG | B29: RC9 | C29: BEDFORDSHIRE HOSPITALS NHS FOUNDATION TRUST | D29: RC979 | E29: BEDFORD HOSPITAL SOUTH WING | F29: 18 | G29: 1 | H29: 0 | I29: * | J29: * | K29: * | L29: * | M29: * | N29: *
A30: QHG | B30: RC9 | C30: BEDFORDSHIRE HOSPITALS NHS FOUNDATION TRUST | D30: RC971 | E30: Luton and Dunstable Hospital | F30: 155 | G30: 0.9483870968 | H30: 0.01935483871 | I30: * | J30: * | K30: * | L30: * | M30: * | N30: *
A31: QHG | B31: RD8 | C31: MILTON KEYNES UNIVERSITY HOSPITAL NHS FOUNDATION TRUST | D31: RD816 | E31: Milton Keynes Hospital | F31: 25 | G31: 0.92 | H31: 0.04 | I31: * | J31: * | K31: * | L31: * | M31: * | N31: *
A32: QHL | B32: RQ3 | C32: BIRMINGHAM WOMEN'S AND CHILDREN'S NHS FOUNDATION TRUST | D32: RQ370 | E32: Birmingham Women's Hospital | F32: 3 | G32: * | H32: * | I32: * | J32: * | K32: * | L32: * | M32: * | N32: *
A33: QHL | B33: RRK | C33: UNIVERSITY HOSPITALS BIRMINGHAM NHS FOUNDATION TRUST | D33: RRK98 | E33: Good Hope Hospital | F33: 0 | G33: NA | H33: NA | I33: 0 | J33: 0 | K33: 0 | L33: 0 | M33: 0 | N33: 0
A34: QHL | B34: RRK | C34: UNIVERSITY HOSPITALS BIRMINGHAM NHS FOUNDATION TRUST | D34: RRK97 | E34: Heartlands Hospital | F34: 0 | G34: NA | H34: NA | I34: 0 | J34: 0 | K34: 0 | L34: 0 | M34: 0 | N34: 0
A35: QHL | B35: RRK | C35: UNIVERSITY HOSPITALS BIRMINGHAM NHS FOUNDATION TRUST | D35: RRK99 | E35: Solihull Hospital | F35: 0 | G35: NA | H35: NA | I35: 0 | J35: 0 | K35: 0 | L35: 0 | M35: 0 | N35: 0
A36: QHM | B36: RXP | C36: COUNTY DURHAM AND DARLINGTON NHS FOUNDATION TRUST | D36: RXPCP | E36: University Hospital Of North Durham | F36: 8 | G36: 1 | H36: 0 | I36: 7 | J36: 1 | K36: 0 | L36: 0 | M36: 0 | N36: 0
A37: QHM | B37: RR7 | C37: GATESHEAD HEALTH NHS FOUNDATION TRUST | D37: RR7EN | E37: Queen Elizabeth Hospital | F37: 5 | G37: 1 | H37: 0 | I37: * | J37: * | K37: * | L37: * | M37: * | N37: *
A38: QHM | B38: RNN | C38: NORTH CUMBRIA INTEGRATED CARE NHS FOUNDATION TRUST | D38: RNN62 | E38: Cumberland Infirmary | F38: 2 | G38: * | H38: * | I38: * | J38: * | K38: * | L38: * | M38: * | N38: *
A39: QHM | B39: RNN | C39: NORTH CUMBRIA INTEGRATED CARE NHS FOUNDATION TRUST | D39: RNNBX | E39: West Cumberland Hospital | F39: 9 | G39: 1 | H39: 0 | I39: * | J39: * | K39: * | L39: * | M39: * | N39: *
A40: QHM | B40: RVW | C40: NORTH TEES AND HARTLEPOOL NHS FOUNDATION TRUST | D40: RVWAE | E40: University Hospital Of North Tees | F40: 1 | G40: * | H40: * | I40: * | J40: * | K40: * | L40: * | M40: * | N40: *
A41: QHM | B41: RTF | C41: NORTHUMBRIA HEALTHCARE NHS FOUNDATION TRUST | D41: RTFDJ | E41: Alnwick Infirmary | F41: 0 | G41: NA | H41: NA | I41: 0 | J41: 0 | K41: 0 | L41: 0 | M41: 0 | N41: 0
A42: QHM | B42: RTF | C42: NORTHUMBRIA HEALTHCARE NHS FOUNDATION TRUST | D42: RTFDR | E42: Hexham General Hospital | F42: 0 | G42: NA | H42: NA | I42: 0 | J42: 0 | K42: 0 | L42: 0 | M42: 0 | N42: 0
A43: QHM | B43: RTF | C43: NORTHUMBRIA HEALTHCARE NHS FOUNDATION TRUST | D43: RTFXXX | E43: Non-hospital site | F43: 1 | G43: * | H43: * | I43: * | J43: * | K43: * | L43: * | M43: * | N43: *
A44: QHM | B44: RTF | C44: NORTHUMBRIA HEALTHCARE NHS FOUNDATION TRUST | D44: RTF86 | E44: The Northumbria | F44: 47 | G44: 0.914893617 | H44: 0 | I44: 36 | J44: 7 | K44: 4 | L44: 0 | M44: 0 | N44: 0
A45: QHM | B45: RTR | C45: SOUTH TEES HOSPITALS NHS FOUNDATION TRUST | D45: RTR45 | E45: Friarage Hospital Site | F45: 0 | G45: NA | H45: NA | I45: 0 | J45: 0 | K45: 0 | L45: 0 | M45: 0 | N45: 0
A46: QHM | B46: RTR | C46: SOUTH TEES HOSPITALS NHS FOUNDATION TRUST | D46: RTRAT | E46: The James Cook University Hospital | F46: 89 | G46: 0.9775280899 | H46: 0 | I46: 66 | J46: 21 | K46: 0 | L46: 0 | M46: 0 | N46: 2
A47: QHM | B47: R0B | C47: SOUTH TYNESIDE AND SUNDERLAND NHS FOUNDATION TRUST | D47: R0BXXX | E47: Non-hospital site | F47: 0 | G47: NA | H47: NA | I47: 0 | J47: 0 | K47: 0 | L47: 0 | M47: 0 | N47: 0
A48: QHM | B48: R0B | C48: SOUTH TYNESIDE AND SUNDERLAND NHS FOUNDATION TRUST | D48: R0B0Q | E48: South Tyneside District Hospital | F48: 0 | G48: NA | H48: NA | I48: 0 | J48: 0 | K48: 0 | L48: 0 | M48: 0 | N48: 0
A49: QHM | B49: R0B | C49: SOUTH TYNESIDE AND SUNDERLAND NHS FOUNDATION TRUST | D49: R0B01 | E49: Sunderland Royal Hospital | F49: 0 | G49: NA | H49: NA | I49: 0 | J49: 0 | K49: 0 | L49: 0 | M49: 0 | N49: 0
A50: QHM | B50: RTD | C50: THE NEWCASTLE UPON TYNE HOSPITALS NHS FOUNDATION TRUST | D50: RTD02 | E50: The Royal Victoria Infirmary | F50: 13 | G50: 1 | H50: 0 | I50: 13 | J50: 0 | K50: 0 | L50: 0 | M50: 0 | N50: 0
A51: QJ2 | B51: RTG | C51: UNIVERSITY HOSPITALS OF DERBY AND BURTON NHS FOUNDATION TRUST | D51: RTG02 | E51: Queens Hospital, Burton Upon Trent | F51: 1 | G51: * | H51: * | I51: * | J51: * | K51: * | L51: * | M51: * | N51: *
A52: QJG | B52: RDE | C52: EAST SUFFOLK AND NORTH ESSEX NHS FOUNDATION TRUST | D52: RDEE4 | E52: Colchester General Hospital | F52: 6 | G52: 0.8333333333 | H52: 0.1666666667 | I52: * | J52: * | K52: * | L52: * | M52: * | N52: *
A53: QJG | B53: RDE | C53: EAST SUFFOLK AND NORTH ESSEX NHS FOUNDATION TRUST | D53: RDE03 | E53: Ipswich Hospital | F53: 1 | G53: * | H53: * | I53: * | J53: * | K53: * | L53: * | M53: * | N53: *
A54: QJG | B54: RGR | C54: WEST SUFFOLK NHS FOUNDATION TRUST | D54: RGR50 | E54: West Suffolk Hospital | F54: 13 | G54: 1 | H54: 0 | I54: 9 | J54: 4 | K54: 0 | L54: 0 | M54: 0 | N54: 0
A55: QJK | B55: RBZ | C55: NORTHERN DEVON HEALTHCARE NHS TRUST | D55: RBZ12 | E55: North Devon District Hospital | F55: 7 | G55: 1 | H55: 0 | I55: 7 | J55: 0 | K55: 0 | L55: 0 | M55: 0 | N55: 0
A56: QJK | B56: RH8 | C56: ROYAL DEVON AND EXETER NHS FOUNDATION TRUST | D56: RH801 | E56: Royal Devon and Exeter Hospital (Wonford) | F56: 36 | G56: 0.05555555556 | H56: 0 | I56: 0 | J56: 2 | K56: 34 | L56: 0 | M56: 0 | N56: 0
A57: QJK | B57: RA9 | C57: TORBAY AND SOUTH DEVON NHS FOUNDATION TRUST | D57: RA901 | E57: Torbay Hospital | F57: 7 | G57: 1 | H57: 0 | I57: 5 | J57: 2 | K57: 0 | L57: 0 | M57: 0 | N57: 0
A58: QJK | B58: RK9 | C58: UNIVERSITY HOSPITALS PLYMOUTH NHS TRUST | D58: RK950 | E58: Derriford Hospital | F58: 86 | G58: 0.976744186 | H58: 0 | I58: 59 | J58: 25 | K58: 2 | L58: 0 | M58: 0 | N58: 0
A59: QJM | B59: RWD | C59: UNITED LINCOLNSHIRE HOSPITALS NHS TRUST | D59: RWDLP | E59: Grantham and District Hospital | F59: 0 | G59: NA | H59: NA | I59: 0 | J59: 0 | K59: 0 | L59: 0 | M59: 0 | N59: 0
A60: QJM | B60: RWD | C60: UNITED LINCOLNSHIRE HOSPITALS NHS TRUST | D60: RWDDA | E60: Lincoln County Hospital | F60: 26 | G60: 1 | H60: 0 | I60: 24 | J60: 2 | K60: 0 | L60: 0 | M60: 0 | N60: 0
A61: QJM | B61: RWD | C61: UNITED LINCOLNSHIRE HOSPITALS NHS TRUST | D61: RWDLA | E61: Pilgrim Hospital | F61: 0 | G61: NA | H61: NA | I61: 0 | J61: 0 | K61: 0 | L61: 0 | M61: 0 | N61: 0
A62: QK1 | B62: RWE | C62: UNIVERSITY HOSPITALS OF LEICESTER NHS TRUST | D62: RWEAK | E62: Leicester General Hospital | F62: 65 | G62: 1 | H62: 0 | I62: 57 | J62: 8 | K62: 0 | L62: 0 | M62: 0 | N62: 0
A63: QK1 | B63: RWE | C63: UNIVERSITY HOSPITALS OF LEICESTER NHS TRUST | D63: RWEAA | E63: Leicester Royal Infirmary | F63: 137 | G63: 0.9416058394 | H63: 0.01459854015 | I63: 79 | J63: 50 | K63: 6 | L63: 1 | M63: 1 | N63: 0
A64: QK1 | B64: RWE | C64: UNIVERSITY HOSPITALS OF LEICESTER NHS TRUST | D64: RWE10 | E64: St Mary's Hospital | F64: 12 | G64: 1 | H64: 0 | I64: 12 | J64: 0 | K64: 0 | L64: 0 | M64: 0 | N64: 0
A65: QKK | B65: RJ1 | C65: GUY'S AND ST THOMAS' NHS FOUNDATION TRUST | D65: RJ122 | E65: St Thomas' Hospital | F65: 35 | G65: 0.7142857143 | H65: 0.1428571429 | I65: 13 | J65: 12 | K65: 3 | L65: 1 | M65: 4 | N65: 2
A66: QKK | B66: RJZ | C66: KING'S COLLEGE HOSPITAL NHS FOUNDATION TRUST | D66: RJZ01 | E66: King's College Hospital (Denmark Hill) | F66: 20 | G66: 0.85 | H66: 0.05 | I66: 12 | J66: 5 | K66: 2 | L66: 0 | M66: 1 | N66: 0
A67: QKK | B67: RJZ | C67: KING'S COLLEGE HOSPITAL NHS FOUNDATION TRUST | D67: RJZ30 | E67: Princess Royal University Hospital | F67: 13 | G67: 0.6923076923 | H67: 0.2307692308 | I67: 6 | J67: 3 | K67: 1 | L67: 1 | M67: 2 | N67: 0
A68: QKK | B68: RJ2 | C68: LEWISHAM AND GREENWICH NHS TRUST | D68: RJ231 | E68: Queen Elizabeth Hospital | F68: 2 | G68: * | H68: * | I68: * | J68: * | K68: * | L68: * | M68: * | N68: *
A69: QKK | B69: RJ2 | C69: LEWISHAM AND GREENWICH NHS TRUST | D69: RJ224 | E69: University Hospital Lewisham | F69: 1 | G69: * | H69: * | I69: * | J69: * | K69: * | L69: * | M69: * | N69: *
A70: QKS | B70: RN7 | C70: DARTFORD AND GRAVESHAM NHS TRUST | D70: RN707 | E70: Darent Valley Hospital | F70: 21 | G70: 0.9523809524 | H70: 0 | I70: 18 | J70: 2 | K70: 1 | L70: 0 | M70: 0 | N70: 0
A71: QKS | B71: RWF | C71: MAIDSTONE AND TUNBRIDGE WELLS NHS TRUST | D71: RWFTW | E71: The Tunbridge Wells Hospital | F71: 46 | G71: 0.9347826087 | H71: 0.02173913043 | I71: 38 | J71: 5 | K71: 2 | L71: 1 | M71: 0 | N71: 0
A72: QKS | B72: RPA | C72: MEDWAY NHS FOUNDATION TRUST | D72: RPA02 | E72: Medway Maritime Hospital | F72: 39 | G72: 0.9743589744 | H72: 0.02564102564 | I72: 32 | J72: 6 | K72: 0 | L72: 1 | M72: 0 | N72: 0
A73: QM7 | B73: RWH | C73: EAST AND NORTH HERTFORDSHIRE NHS TRUST | D73: RWH01 | E73: Lister Hospital | F73: 86 | G73: 0.9418604651 | H73: 0.03488372093 | I73: 59 | J73: 22 | K73: 2 | L73: 3 | M73: 0 | N73: 0
A74: QM7 | B74: RQW | C74: THE PRINCESS ALEXANDRA HOSPITAL NHS TRUST | D74: RQWG0 | E74: Princess Alexandra Hospital | F74: 15 | G74: 0.8 | H74: 0.06666666667 | I74: 9 | J74: 3 | K74: 2 | L74: 1 | M74: 0 | N74: 0
A75: QM7 | B75: RWG | C75: WEST HERTFORDSHIRE TEACHING HOSPITALS NHS TRUST | D75: RWG02 | E75: Watford General Hospital | F75: 44 | G75: 0.9545454545 | H75: 0.02272727273 | I75: 31 | J75: 11 | K75: 1 | L75: 1 | M75: 0 | N75: 0
A76: QMF | B76: RF4 | C76: BARKING, HAVERING AND REDBRIDGE UNIVERSITY HOSPITALS NHS TRUST | D76: RF4QH | E76: Queen's Hospital | F76: 21 | G76: 0.9047619048 | H76: 0.09523809524 | I76: 16 | J76: 3 | K76: 0 | L76: 1 | M76: 1 | N76: 0
A77: QMF | B77: R1H | C77: BARTS HEALTH NHS TRUST | D77: R1HNH | E77: Newham General Hospital | F77: 15 | G77: 0.8 | H77: 0.1333333333 | I77: 8 | J77: 4 | K77: 1 | L77: 0 | M77: 2 | N77: 0
A78: QMF | B78: R1H | C78: BARTS HEALTH NHS TRUST | D78: R1H12 | E78: The Royal London Hospital | F78: 10 | G78: 0.8 | H78: 0.1 | I78: 5 | J78: 3 | K78: 1 | L78: 1 | M78: 0 | N78: 0
A79: QMF | B79: R1H | C79: BARTS HEALTH NHS TRUST | D79: R1HKH | E79: Whipps Cross University Hospital | F79: 50 | G79: 0.94 | H79: 0.02 | I79: 24 | J79: 23 | K79: 2 | L79: 1 | M79: 0 | N79: 0
A80: QMF | B80: RQX | C80: HOMERTON UNIVERSITY HOSPITAL NHS FOUNDATION TRUST | D80: RQXM1 | E80: Homerton University Hospital | F80: 20 | G80: 0.9 | H80: 0 | I80: 15 | J80: 3 | K80: 2 | L80: 0 | M80: 0 | N80: 0
A81: QMJ | B81: RAP | C81: NORTH MIDDLESEX UNIVERSITY HOSPITAL NHS TRUST | D81: RAPNM | E81: North Middlesex Hospital | F81: 16 | G81: 0.8125 | H81: 0 | I81: 7 | J81: 6 | K81: 3 | L81: 0 | M81: 0 | N81: 0
A82: QMJ | B82: RAL | C82: ROYAL FREE LONDON NHS FOUNDATION TRUST | D82: RAL26 | E82: Barnet Hospital | F82: 37 | G82: 0.9189189189 | H82: 0.02702702703 | I82: 25 | J82: 9 | K82: 2 | L82: 1 | M82: 0 | N82: 0
A83: QMJ | B83: RAL | C83: ROYAL FREE LONDON NHS FOUNDATION TRUST | D83: RAL01 | E83: Royal Free Hospital | F83: 48 | G83: 0.875 | H83: 0.04166666667 | I83: 29 | J83: 13 | K83: 4 | L83: 0 | M83: 2 | N83: 0
A84: QMJ | B84: RKE | C84: WHITTINGTON HEALTH NHS TRUST | D84: RKEXXX | E84: Non-hospital site | F84: 0 | G84: NA | H84: NA | I84: 0 | J84: 0 | K84: 0 | L84: 0 | M84: 0 | N84: 0
A85: QMJ | B85: RKE | C85: WHITTINGTON HEALTH NHS TRUST | D85: RKEQ4 | E85: The Whittington Hospital | F85: 45 | G85: 0.9777777778 | H85: 0.02222222222 | I85: 6 | J85: 38 | K85: 0 | L85: 1 | M85: 0 | N85: 0
A86: QMM | B86: RGP | C86: JAMES PAGET UNIVERSITY HOSPITALS NHS FOUNDATION TRUST | D86: RGP75 | E86: James Paget University Hospital | F86: 8 | G86: 1 | H86: 0 | I86: * | J86: * | K86: * | L86: * | M86: * | N86: *
A87: QMM | B87: RM1 | C87: NORFOLK AND NORWICH UNIVERSITY HOSPITALS NHS FOUNDATION TRUST | D87: RM102 | E87: Norfolk and Norwich University Hospital | F87: 42 | G87: 0.9523809524 | H87: 0.04761904762 | I87: 30 | J87: 10 | K87: 0 | L87: 1 | M87: 1 | N87: 0
A88: QMM | B88: RCX | C88: THE QUEEN ELIZABETH HOSPITAL, KING'S LYNN, NHS FOUNDATION TRUST | D88: RCX70 | E88: The Queen Elizabeth Hospital | F88: 12 | G88: 1 | H88: 0 | I88: * | J88: * | K88: * | L88: * | M88: * | N88: *
A89: QNC | B89: RJE | C89: UNIVERSITY HOSPITALS OF NORTH MIDLANDS NHS TRUST | D89: RJE01 | E89: Royal Stoke University Hospital | F89: 1 | G89: * | H89: * | I89: * | J89: * | K89: * | L89: * | M89: * | N89: *
A90: QNQ | B90: RDU | C90: FRIMLEY HEALTH NHS FOUNDATION TRUST | D90: RDU01 | E90: Frimley Park Hospital | F90: 54 | G90: 0.9259259259 | H90: 0.03703703704 | I90: 37 | J90: 13 | K90: 2 | L90: 1 | M90: 1 | N90: 0
A91: QNQ | B91: RDU | C91: FRIMLEY HEALTH NHS FOUNDATION TRUST | D91: RDU50 | E91: Wexham Park Hospital | F91: 5 | G91: 0.6 | H91: 0.2 | I91: 2 | J91: 1 | K91: 1 | L91: 0 | M91: 1 | N91: 0
A92: QNX | B92: RXC | C92: EAST SUSSEX HEALTHCARE NHS TRUST | D92: RXC01 | E92: Conquest Hospital | F92: 1 | G92: * | H92: * | I92: * | J92: * | K92: * | L92: * | M92: * | N92: *
A93: QNX | B93: RXC | C93: EAST SUSSEX HEALTHCARE NHS TRUST | D93: RXC02 | E93: Eastbourne District General Hospital | F93: 0 | G93: NA | H93: NA | I93: 0 | J93: 0 | K93: 0 | L93: 0 | M93: 0 | N93: 0
A94: QNX | B94: RYR | C94: UNIVERSITY HOSPITALS SUSSEX NHS FOUNDATION TRUST | D94: N6J7V | E94: Princess Royal Hospital | F94: 25 | G94: 1 | H94: 0 | I94: * | J94: * | K94: * | L94: * | M94: * | N94: *
A95: QNX | B95: RYR | C95: UNIVERSITY HOSPITALS SUSSEX NHS FOUNDATION TRUST | D95: E0A3H | E95: Royal Sussex County Hospital | F95: 17 | G95: 1 | H95: 0 | I95: * | J95: * | K95: * | L95: * | M95: * | N95: *
A96: QNX | B96: RYR | C96: UNIVERSITY HOSPITALS SUSSEX NHS FOUNDATION TRUST | D96: RYR16 | E96: St Richard's Hospital | F96: 13 | G96: 1 | H96: 0 | I96: 11 | J96: 2 | K96: 0 | L96: 0 | M96: 0 | N96: 0
A97: QNX | B97: RYR | C97: UNIVERSITY HOSPITALS SUSSEX NHS FOUNDATION TRUST | D97: RYR18 | E97: Worthing Hospital | F97: 25 | G97: 0.96 | H97: 0.04 | I97: 21 | J97: 3 | K97: 0 | L97: 0 | M97: 1 | N97: 0
A98: QOC | B98: RXW | C98: THE SHREWSBURY AND TELFORD HOSPITAL NHS TRUST | D98: RXWMB | E98: Bridgnorth Hospital (Maternity) | F98: 0 | G98: NA | H98: NA | I98: 0 | J98: 0 | K98: 0 | L98: 0 | M98: 0 | N98: 0
A99: QOC | B99: RXW | C99: THE SHREWSBURY AND TELFORD HOSPITAL NHS TRUST | D99: RXWML | E99: Ludlow Hospital (Maternity) | F99: 0 | G99: NA | H99: NA | I99: 0 | J99: 0 | K99: 0 | L99: 0 | M99: 0 | N99: 0
A100: QOC | B100: RXW | C100: THE SHREWSBURY AND TELFORD HOSPITAL NHS TRUST | D100: RXWMJ | E100: Robert Jones & Agnes Hunt Orthopaedic & District Hospital | F100: 0 | G100: NA | H100: NA | I100: 0 | J100: 0 | K100: 0 | L100: 0 | M100: 0 | N100: 0
A101: QOC | B101: RXW | C101: THE SHREWSBURY AND TELFORD HOSPITAL NHS TRUST | D101: RXWAS | E101: Royal Shrewsbury Hospital | F101: 0 | G101: NA | H101: NA | I101: 0 | J101: 0 | K101: 0 | L101: 0 | M101: 0 | N101: 0
A102: QOC | B102: RXW | C102: THE SHREWSBURY AND TELFORD HOSPITAL NHS TRUST | D102: RXWAT | E102: The Princess Royal Hospital | F102: 5 | G102: 1 | H102: 0 | I102: 5 | J102: 0 | K102: 0 | L102: 0 | M102: 0 | N102: 0
A103: QOP | B103: RMC | C103: BOLTON NHS FOUNDATION TRUST | D103: RMC01 | E103: Royal Bolton Hospital | F103: 49 | G103: 0.7755102041 | H103: 0.1632653061 | I103: 28 | J103: 10 | K103: 2 | L103: 2 | M103: 6 | N103: 1
A104: QOP | B104: R0A | C104: MANCHESTER UNIVERSITY NHS FOUNDATION TRUST | D104: R0A05 | E104: St Mary's Hospital | F104: 29 | G104: 0.9655172414 | H104: 0 | I104: 23 | J104: 5 | K104: 1 | L104: 0 | M104: 0 | N104: 0
A105: QOP | B105: RWJ | C105: STOCKPORT NHS FOUNDATION TRUST | D105: RWJ09 | E105: Stepping Hill Hospital | F105: 32 | G105: 0.96875 | H105: 0.03125 | I105: 28 | J105: 3 | K105: 0 | L105: 0 | M105: 1 | N105: 0
A106: QOP | B106: RMP | C106: TAMESIDE AND GLOSSOP INTEGRATED CARE NHS FOUNDATION TRUST | D106: RMP01 | E106: Tameside General Hospital | F106: 1 | G106: * | H106: * | I106: * | J106: * | K106: * | L106: * | M106: * | N106: *
A107: QOP | B107: RRF | C107: WRIGHTINGTON, WIGAN AND LEIGH NHS FOUNDATION TRUST | D107: RRF02 | E107: Royal Albert Edward Infirmary | F107: 29 | G107: 1 | H107: 0 | I107: 25 | J107: 4 | K107: 0 | L107: 0 | M107: 0 | N107: 0
A108: QOQ | B108: RCD | C108: HARROGATE AND DISTRICT NHS FOUNDATION TRUST | D108: RCD01 | E108: Harrogate District Hospital | F108: 7 | G108: 0.8571428571 | H108: 0.1428571429 | I108: 6 | J108: 0 | K108: 0 | L108: 1 | M108: 0 | N108: 0
A109: QOQ | B109: RWA | C109: HULL UNIVERSITY TEACHING HOSPITALS NHS TRUST | D109: RWA01 | E109: Hull Royal Infirmary | F109: 11 | G109: 1 | H109: 0 | I109: 7 | J109: 4 | K109: 0 | L109: 0 | M109: 0 | N109: 0
A110: QOQ | B110: RJL | C110: NORTHERN LINCOLNSHIRE AND GOOLE NHS FOUNDATION TRUST | D110: RJL32 | E110: Scunthorpe General Hospital | F110: 30 | G110: 0.8666666667 | H110: 0.1 | I110: 24 | J110: 2 | K110: 0 | L110: 0 | M110: 3 | N110: 1
A111: QOQ | B111: RCB | C111: YORK AND SCARBOROUGH TEACHING HOSPITALS NHS FOUNDATION TRUST | D111: RCBCA | E111: Scarborough General Hospital | F111: 41 | G111: 0.9756097561 | H111: 0.0243902439 | I111: 36 | J111: 4 | K111: 0 | L111: 1 | M111: 0 | N111: 0
A112: QOQ | B112: RCB | C112: YORK AND SCARBOROUGH TEACHING HOSPITALS NHS FOUNDATION TRUST | D112: RCB55 | E112: York Hospital | F112: 61 | G112: 0.9836065574 | H112: 0.01639344262 | I112: 50 | J112: 10 | K112: 0 | L112: 1 | M112: 0 | N112: 0
A113: QOX | B113: RN3 | C113: GREAT WESTERN HOSPITALS NHS FOUNDATION TRUST | D113: RN325 | E113: The Great Western Hospital | F113: 122 | G113: 0.9672131148 | H113: 0.008196721311 | I113: * | J113: * | K113: * | L113: * | M113: * | N113: *
A114: QOX | B114: RD1 | C114: ROYAL UNITED HOSPITALS BATH NHS FOUNDATION TRUST | D114: RD130 | E114: Princess Anne Wing RUH | F114: 3 | G114: * | H114: * | I114: * | J114: * | K114: * | L114: * | M114: * | N114: *
A115: QOX | B115: RNZ | C115: SALISBURY NHS FOUNDATION TRUST | D115: RNZ02 | E115: Salisbury District Hospital | F115: 20 | G115: 1 | H115: 0 | I115: 16 | J115: 4 | K115: 0 | L115: 0 | M115: 0 | N115: 0
A116: QPM | B116: RNQ | C116: KETTERING GENERAL HOSPITAL NHS FOUNDATION TRUST | D116: RNQ51 | E116: Kettering General Hospital | F116: 1 | G116: * | H116: * | I116: * | J116: * | K116: * | L116: * | M116: * | N116: *
A117: QPM | B117: RNS | C117: NORTHAMPTON GENERAL HOSPITAL NHS TRUST | D117: RNS01 | E117: Northampton General Hospital (Acute) | F117: 45 | G117: 0.9555555556 | H117: 0.04444444444 | I117: * | J117: * | K117: * | L117: * | M117: * | N117: *
A118: QR1 | B118: RTE | C118: GLOUCESTERSHIRE HOSPITALS NHS FOUNDATION TRUST | D118: RTE03 | E118: Gloucestershire Royal Hospital | F118: 34 | G118: 0.7941176471 | H118: 0.02941176471 | I118: 21 | J118: 6 | K118: 5 | L118: 0 | M118: 1 | N118: 1
A119: QR1 | B119: RTE | C119: GLOUCESTERSHIRE HOSPITALS NHS FOUNDATION TRUST | D119: RTE27 | E119: Stroud Maternity Hospital | F119: 0 | G119: NA | H119: NA | I119: 0 | J119: 0 | K119: 0 | L119: 0 | M119: 0 | N119: 0
A120: QRL | B120: RN5 | C120: HAMPSHIRE HOSPITALS NHS FOUNDATION TRUST | D120: RN506 | E120: Basingstoke and North Hampshire Hospital | F120: 130 | G120: 0.9615384615 | H120: 0.007692307692 | I120: 108 | J120: 17 | K120: 3 | L120: 1 | M120: 0 | N120: 1
A121: QRL | B121: RN5 | C121: HAMPSHIRE HOSPITALS NHS FOUNDATION TRUST | D121: RN541 | E121: Royal Hampshire County Hospital | F121: 0 | G121: NA | H121: NA | I121: 0 | J121: 0 | K121: 0 | L121: 0 | M121: 0 | N121: 0
A122: QRL | B122: R1F | C122: ISLE OF WIGHT NHS TRUST | D122: R1F01 | E122: St Mary's Hospital | F122: 10 | G122: 0.9 | H122: 0 | I122: 8 | J122: 1 | K122: 0 | L122: 0 | M122: 0 | N122: 1
A123: QRL | B123: RHU | C123: PORTSMOUTH HOSPITALS UNIVERSITY NATIONAL HEALTH SERVICE TRUST | D123: RHU10 | E123: Gosport War Memorial Hospital | F123: 0 | G123: NA | H123: NA | I123: 0 | J123: 0 | K123: 0 | L123: 0 | M123: 0 | N123: 0
A124: QRL | B124: RHU | C124: PORTSMOUTH HOSPITALS UNIVERSITY NATIONAL HEALTH SERVICE TRUST | D124: RHU04 | E124: Petersfield Community Hospital | F124: 1 | G124: * | H124: * | I124: * | J124: * | K124: * | L124: * | M124: * | N124: *
A125: QRL | B125: RHU | C125: PORTSMOUTH HOSPITALS UNIVERSITY NATIONAL HEALTH SERVICE TRUST | D125: RHU03 | E125: Queen Alexandra Hospital | F125: 0 | G125: NA | H125: NA | I125: 0 | J125: 0 | K125: 0 | L125: 0 | M125: 0 | N125: 0
A126: QRL | B126: RHU | C126: PORTSMOUTH HOSPITALS UNIVERSITY NATIONAL HEALTH SERVICE TRUST | D126: RHU02 | E126: St Mary's Hospital | F126: 22 | G126: 1 | H126: 0 | I126: 21 | J126: 1 | K126: 0 | L126: 0 | M126: 0 | N126: 0
A127: QRL | B127: RHM | C127: UNIVERSITY HOSPITAL SOUTHAMPTON NHS FOUNDATION TRUST | D127: RHM12 | E127: Princess Anne Hospital | F127: 31 | G127: 0.8064516129 | H127: 0.09677419355 | I127: 15 | J127: 10 | K127: 1 | L127: 1 | M127: 2 | N127: 2
A128: QRV | B128: RQM | C128: CHELSEA AND WESTMINSTER HOSPITAL NHS FOUNDATION TRUST | D128: RQM01 | E128: Chelsea and Westminster Hospital | F128: 82 | G128: 0.8902439024 | H128: 0.08536585366 | I128: 57 | J128: 16 | K128: 2 | L128: 3 | M128: 4 | N128: 0
A129: QRV | B129: RQM | C129: CHELSEA AND WESTMINSTER HOSPITAL NHS FOUNDATION TRUST | D129: RQM91 | E129: West Middlesex University Hospital | F129: 75 | G129: 0.8266666667 | H129: 0.1333333333 | I129: 54 | J129: 8 | K129: 2 | L129: 5 | M129: 5 | N129: 1
A130: QRV | B130: RYJ | C130: IMPERIAL COLLEGE HEALTHCARE NHS TRUST | D130: RYJ04 | E130: Queen Charlotte's Hospital | F130: 60 | G130: 0.7833333333 | H130: 0.06666666667 | I130: 37 | J130: 10 | K130: 2 | L130: 2 | M130: 2 | N130: 7
A131: QRV | B131: RYJ | C131: IMPERIAL COLLEGE HEALTHCARE NHS TRUST | D131: RYJ01 | E131: St Mary's Hospital (HQ) | F131: 57 | G131: 0.7368421053 | H131: 0.1228070175 | I131: 29 | J131: 13 | K131: 2 | L131: 2 | M131: 5 | N131: 6
A132: QRV | B132: R1K | C132: LONDON NORTH WEST UNIVERSITY HEALTHCARE NHS TRUST | D132: R1K01 | E132: Northwick Park Hospital | F132: 30 | G132: 1 | H132: 0 | I132: 21 | J132: 9 | K132: 0 | L132: 0 | M132: 0 | N132: 0
A133: QRV | B133: RAS | C133: THE HILLINGDON HOSPITALS NHS FOUNDATION TRUST | D133: RAS01 | E133: Hillingdon Hospital | F133: 39 | G133: 0.9230769231 | H133: 0.07692307692 | I133: 29 | J133: 7 | K133: 0 | L133: 2 | M133: 1 | N133: 0
A134: QSL | B134: RH5 | C134: SOMERSET NHS FOUNDATION TRUST | D134: RH5K6 | E134: Bridgwater Hospital | F134: 0 | G134: NA | H134: NA | I134: 0 | J134: 0 | K134: 0 | L134: 0 | M134: 0 | N134: 0
A135: QSL | B135: RH5 | C135: SOMERSET NHS FOUNDATION TRUST | D135: RH5A8 | E135: MUSGROVE PARK HOSPITAL | F135: 6 | G135: 1 | H135: 0 | I135: * | J135: * | K135: * | L135: * | M135: * | N135: *
A136: QSL | B136: RH5 | C136: SOMERSET NHS FOUNDATION TRUST | D136: RH5XXXX | E136: Non-hospital site home/in-transit births | F136: 2 | G136: * | H136: * | I136: * | J136: * | K136: * | L136: * | M136: * | N136: *
A137: QSL | B137: RA4 | C137: YEOVIL DISTRICT HOSPITAL NHS FOUNDATION TRUST | D137: RA430 | E137: Yeovil District Hospital | F137: 45 | G137: 1 | H137: 0 | I137: 41 | J137: 4 | K137: 0 | L137: 0 | M137: 0 | N137: 0
A138: QT1 | B138: RX1 | C138: NOTTINGHAM UNIVERSITY HOSPITALS NHS TRUST | D138: RX1CC | E138: Nottingham University Hospitals NHS Trust - City Campus | F138: 1 | G138: * | H138: * | I138: * | J138: * | K138: * | L138: * | M138: * | N138: *
A139: QT1 | B139: RX1 | C139: NOTTINGHAM UNIVERSITY HOSPITALS NHS TRUST | D139: RX1RA | E139: Nottingham University Hospitals NHS Trust - Queen's Medical Centre Campus | F139: 14 | G139: 0.9285714286 | H139: 0 | I139: * | J139: * | K139: * | L139: * | M139: * | N139: *
A140: QT1 | B140: RK5 | C140: SHERWOOD FOREST HOSPITALS NHS FOUNDATION TRUST | D140: RK5BC | E140: King's Mill Hospital | F140: 14 | G140: 0.9285714286 | H140: 0.07142857143 | I140: * | J140: * | K140: * | L140: * | M140: * | N140: *
A141: QT6 | B141: REF | C141: ROYAL CORNWALL HOSPITALS NHS TRUST | D141: REF12 | E141: Royal Cornwall Hospital (Treliske) | F141: 2 | G141: * | H141: * | I141: * | J141: * | K141: * | L141: * | M141: * | N141: *
A142: QU9 | B142: RXQ | C142: BUCKINGHAMSHIRE HEALTHCARE NHS TRUST | D142: RXQ02 | E142: Stoke Mandeville Hospital | F142: 19 | G142: 0.8421052632 | H142: 0.1052631579 | I142: 10 | J142: 6 | K142: 1 | L142: 1 | M142: 1 | N142: 0
A143: QU9 | B143: RTH | C143: OXFORD UNIVERSITY HOSPITALS NHS FOUNDATION TRUST | D143: RTH05 | E143: Horton General Hospital | F143: 0 | G143: NA | H143: NA | I143: 0 | J143: 0 | K143: 0 | L143: 0 | M143: 0 | N143: 0
A144: QU9 | B144: RTH | C144: OXFORD UNIVERSITY HOSPITALS NHS FOUNDATION TRUST | D144: RTH08 | E144: John Radcliffe Hospital | F144: 2 | G144: * | H144: * | I144: * | J144: * | K144: * | L144: * | M144: * | N144: *
A145: QU9 | B145: RTH | C145: OXFORD UNIVERSITY HOSPITALS NHS FOUNDATION TRUST | D145: RTH16 | E145: Wallingford Community Hospital | F145: 0 | G145: NA | H145: NA | I145: 0 | J145: 0 | K145: 0 | L145: 0 | M145: 0 | N145: 0
A146: QU9 | B146: RHW | C146: ROYAL BERKSHIRE NHS FOUNDATION TRUST | D146: RHW01 | E146: Royal Berkshire Hospital | F146: 19 | G146: 1 | H146: 0 | I146: 15 | J146: 4 | K146: 0 | L146: 0 | M146: 0 | N146: 0
A147: QUA | B147: RNA | C147: THE DUDLEY GROUP NHS FOUNDATION TRUST | D147: RNA01 | E147: Russells Hall Hospital | F147: 1 | G147: * | H147: * | I147: * | J147: * | K147: * | L147: * | M147: * | N147: *
A148: QUA | B148: RL4 | C148: THE ROYAL WOLVERHAMPTON NHS TRUST | D148: RL403 | E148: New Cross Hospital | F148: 55 | G148: 0.8 | H148: 0.1636363636 | I148: 36 | J148: 8 | K148: 2 | L148: 3 | M148: 6 | N148: 0
A149: QUA | B149: RBK | C149: WALSALL HEALTHCARE NHS TRUST | D149: RBK02 | E149: Manor Hospital | F149: 13 | G149: 0.7692307692 | H149: 0.2307692308 | I149: 8 | J149: 2 | K149: 0 | L149: 2 | M149: 1 | N149: 0
A150: QUE | B150: RGT | C150: CAMBRIDGE UNIVERSITY HOSPITALS NHS FOUNDATION TRUST | D150: RGT32 | E150: Rosie Hospital | F150: 112 | G150: 0.9285714286 | H150: 0.008928571429 | I150: 84 | J150: 20 | K150: 6 | L150: 0 | M150: 1 | N150: 1
A151: QUE | B151: RGN | C151: NORTH WEST ANGLIA NHS FOUNDATION TRUST | D151: RGN90 | E151: Hinchingbrooke Hospital | F151: 87 | G151: 0.9885057471 | H151: 0.01149425287 | I151: 78 | J151: 8 | K151: 0 | L151: 1 | M151: 0 | N151: 0
A152: QUE | B152: RGN | C152: NORTH WEST ANGLIA NHS FOUNDATION TRUST | D152: RGN80 | E152: Peterborough City Hospital | F152: 0 | G152: NA | H152: NA | I152: 0 | J152: 0 | K152: 0 | L152: 0 | M152: 0 | N152: 0
A153: QUY | B153: RVJ | C153: NORTH BRISTOL NHS TRUST | D153: RVJ21 | E153: Cossham Hospital | F153: 1 | G153: * | H153: * | I153: * | J153: * | K153: * | L153: * | M153: * | N153: *
A154: QUY | B154: RVJ | C154: NORTH BRISTOL NHS TRUST | D154: RVJ01 | E154: Southmead Hospital | F154: 100 | G154: 0.88 | H154: 0.09 | I154: * | J154: * | K154: * | L154: * | M154: * | N154: *
A155: QUY | B155: RA7 | C155: UNIVERSITY HOSPITALS BRISTOL AND WESTON NHS FOUNDATION TRUST | D155: RA707 | E155: St Michael's Hospital | F155: 20 | G155: 1 | H155: 0 | I155: 18 | J155: 2 | K155: 0 | L155: 0 | M155: 0 | N155: 0
A156: QVV | B156: RBD | C156: DORSET COUNTY HOSPITAL NHS FOUNDATION TRUST | D156: RBD01 | E156: Dorset County Hospital | F156: 34 | G156: 0.9705882353 | H156: 0 | I156: 31 | J156: 2 | K156: 0 | L156: 0 | M156: 0 | N156: 1
A157: QVV | B157: R0D | C157: UNIVERSITY HOSPITALS DORSET NHS FOUNDATION TRUST | D157: R0D01 | E157: Poole Hospital | F157: 126 | G157: 0.8571428571 | H157: 0.06349206349 | I157: 83 | J157: 25 | K157: 2 | L157: 3 | M157: 5 | N157: 8
A158: QVV | B158: R0D | C158: UNIVERSITY HOSPITALS DORSET NHS FOUNDATION TRUST | D158: R0D02 | E158: Royal Bournemouth Hospital | F158: 0 | G158: NA | H158: NA | I158: 0 | J158: 0 | K158: 0 | L158: 0 | M158: 0 | N158: 0
A159: QWE | B159: RJ6 | C159: CROYDON HEALTH SERVICES NHS TRUST | D159: RJ611 | E159: Croydon University Hospital | F159: 31 | G159: 0.8709677419 | H159: 0.1290322581 | I159: 19 | J159: 8 | K159: 0 | L159: 2 | M159: 2 | N159: 0
A160: QWE | B160: RVR | C160: EPSOM AND ST HELIER UNIVERSITY HOSPITALS NHS TRUST | D160: RVR50 | E160: Epsom Hospital | F160: 4 | G160: * | H160: * | I160: * | J160: * | K160: * | L160: * | M160: * | N160: *
A161: QWE | B161: RVR | C161: EPSOM AND ST HELIER UNIVERSITY HOSPITALS NHS TRUST | D161: RVR05 | E161: St Helier Hospital | F161: 15 | G161: 0.7333333333 | H161: 0 | I161: * | J161: * | K161: * | L161: * | M161: * | N161: *
A162: QWE | B162: RAX | C162: KINGSTON HOSPITAL NHS FOUNDATION TRUST | D162: RAX01 | E162: Kingston Hospital | F162: 19 | G162: 0.8947368421 | H162: 0 | I162: 16 | J162: 1 | K162: 2 | L162: 0 | M162: 0 | N162: 0
A163: QWE | B163: RJ7 | C163: ST GEORGE'S UNIVERSITY HOSPITALS NHS FOUNDATION TRUST | D163: RJ701 | E163: St George's Hospital (Tooting) | F163: 21 | G163: 0.9047619048 | H163: 0 | I163: 14 | J163: 5 | K163: 2 | L163: 0 | M163: 0 | N163: 0
A164: QWO | B164: RAE | C164: BRADFORD TEACHING HOSPITALS NHS FOUNDATION TRUST | D164: RAE01 | E164: Bradford Royal Infirmary | F164: 3 | G164: * | H164: * | I164: * | J164: * | K164: * | L164: * | M164: * | N164: *
A165: QWO | B165: RWY | C165: CALDERDALE AND HUDDERSFIELD NHS FOUNDATION TRUST | D165: RWY02 | E165: Calderdale Royal Hospital | F165: 2 | G165: * | H165: * | I165: * | J165: * | K165: * | L165: * | M165: * | N165: *
A166: QWO | B166: RWY | C166: CALDERDALE AND HUDDERSFIELD NHS FOUNDATION TRUST | D166: RWY01 | E166: Huddersfield Royal Infirmary | F166: 1 | G166: * | H166: * | I166: * | J166: * | K166: * | L166: * | M166: * | N166: *
A167: QWO | B167: RR8 | C167: LEEDS TEACHING HOSPITALS NHS TRUST | D167: RR801 | E167: Leeds General Infirmary | F167: 60 | G167: 0.8666666667 | H167: 0.1 | I167: * | J167: * | K167: * | L167: * | M167: * | N167: *
A168: QWO | B168: RR8 | C168: LEEDS TEACHING HOSPITALS NHS TRUST | D168: RR813 | E168: St James's University Hospital | F168: 62 | G168: 0.9032258065 | H168: 0.08064516129 | I168: * | J168: * | K168: * | L168: * | M168: * | N168: *
A169: QWO | B169: RXF | C169: MID YORKSHIRE HOSPITALS NHS TRUST | D169: RXF05 | E169: Pinderfields General Hospital | F169: 228 | G169: 0.9605263158 | H169: 0.01754385965 | I169: 161 | J169: 58 | K169: 4 | L169: 1 | M169: 3 | N169: 1
A170: QWU | B170: RLT | C170: GEORGE ELIOT HOSPITAL NHS TRUST | D170: RLT01 | E170: George Eliot Hospital - Acute Services | F170: 51 | G170: 0.8431372549 | H170: 0.07843137255 | I170: 33 | J170: 10 | K170: 2 | L170: 3 | M170: 1 | N170: 2
A171: QWU | B171: RJC | C171: SOUTH WARWICKSHIRE NHS FOUNDATION TRUST | D171: RJC02 | E171: Warwick Hospital | F171: 1 | G171: * | H171: * | I171: * | J171: * | K171: * | L171: * | M171: * | N171: *
A172: QWU | B172: RKB | C172: UNIVERSITY HOSPITALS COVENTRY AND WARWICKSHIRE NHS TRUST | D172: RKB01 | E172: University Hospital (Coventry) | F172: 3 | G172: * | H172: * | I172: * | J172: * | K172: * | L172: * | M172: * | N172: *
A173: QXU | B173: RTK | C173: ASHFORD AND ST PETER'S HOSPITALS NHS FOUNDATION TRUST | D173: RTK02 | E173: Ashford Hospital | F173: 0 | G173: NA | H173: NA | I173: 0 | J173: 0 | K173: 0 | L173: 0 | M173: 0 | N173: 0
A174: QXU | B174: RA2 | C174: ROYAL SURREY COUNTY HOSPITAL NHS FOUNDATION TRUST | D174: RA201 | E174: Royal Surrey County Hospital | F174: 0 | G174: NA | H174: NA | I174: 0 | J174: 0 | K174: 0 | L174: 0 | M174: 0 | N174: 0
A175: QXU | B175: RTP | C175: SURREY AND SUSSEX HEALTHCARE NHS TRUST | D175: RTP04 | E175: East Surrey Hospital | F175: 23 | G175: 1 | H175: 0 | I175: 19 | J175: 4 | K175: 0 | L175: 0 | M175: 0 | N175: 0
A176: QYG | B176: RJN | C176: EAST CHESHIRE NHS TRUST | D176: RJN71 | E176: Macclesfield District General Hospital | F176: 0 | G176: NA | H176: NA | I176: 0 | J176: 0 | K176: 0 | L176: 0 | M176: 0 | N176: 0
A177: QYG | B177: REP | C177: LIVERPOOL WOMEN'S NHS FOUNDATION TRUST | D177: REP01 | E177: Liverpool Womens Hospital | F177: 51 | G177: 0.8823529412 | H177: 0.09803921569 | I177: 31 | J177: 14 | K177: 1 | L177: 3 | M177: 2 | N177: 0
A178: QYG | B178: RBT | C178: MID CHESHIRE HOSPITALS NHS FOUNDATION TRUST | D178: RBT20 | E178: Leighton Hospital | F178: 36 | G178: 0.9722222222 | H178: 0.02777777778 | I178: 28 | J178: 7 | K178: 0 | L178: 1 | M178: 0 | N178: 0
A179: QYG | B179: RVY | C179: SOUTHPORT AND ORMSKIRK HOSPITAL NHS TRUST | D179: RVY02 | E179: Ormskirk and District General Hospital | F179: 23 | G179: 0.9130434783 | H179: 0.08695652174 | I179: 17 | J179: 4 | K179: 0 | L179: 2 | M179: 0 | N179: 0
A180: QYG | B180: RBN | C180: ST HELENS AND KNOWSLEY TEACHING HOSPITALS NHS TRUST | D180: RBN01 | E180: Whiston Hospital | F180: 21 | G180: 1 | H180: 0 | I180: 20 | J180: 1 | K180: 0 | L180: 0 | M180: 0 | N180: 0
A181: QYG | B181: RWW | C181: WARRINGTON AND HALTON TEACHING HOSPITALS NHS FOUNDATION TRUST | D181: RWWWH | E181: Warrington Hospital | F181: 43 | G181: 1 | H181: 0 | I181: 39 | J181: 4 | K181: 0 | L181: 0 | M181: 0 | N181: 0
A182: QYG | B182: RBL | C182: WIRRAL UNIVERSITY TEACHING HOSPITAL NHS FOUNDATION TRUST | D182: RBL14 | E182: Arrowe Park Hospital | F182: 35 | G182: 1 | H182: 0 | I182: 27 | J182: 8 | K182: 0 | L182: 0 | M182: 0 | N182: 0

Sheet STP Q4
B6: Sort data by:
A9: STP Code | B9: STP Name | C9: Total Responses | D9: Percentage Positive | E9: Percentage Negative | F9: Breakdown of Responses
F10: Very Good | G10: Good | H10: Neither Good nor Poor | I10: Poor | J10: Very Poor | K10: Don't Know
B11: England (including Independent Sector providers) | C11: 953 | D11: 0.8824763903 | E11: 0.05981112277 | F11: 698 | G11: 143 | H11: 42 | I11: 27 | J11: 30 | K11: 13
B12: England (excluding Independent Sector providers) | C12: 953 | D12: 0.8824763903 | E12: 0.05981112277 | F12: 698 | G12: 143 | H12: 42 | I12: 27 | J12: 30 | K12: 13
B13: Selection (excluding suppressed data) | C13: =SUBTOTAL(9,C14:C400) -> 953 | D13: =IFERROR((F13+G13)/SUM(F13:K13), "-") -> 0.8840937115 | E13: =IFERROR((I13+J13)/SUM(F13:K13), "-") -> 0.0542540074 | F13: =SUBTOTAL(9,F14:F400) -> 593 | G13: 124 | H13: 37 | I13: 22 | J13: 22 | K13: 13
A14: QE1 | B14: HEALTHIER LANCASHIRE AND SOUTH CUMBRIA | C14: 58 | D14: 0.8620689655 | E14: 0.03448275862 | F14: 42 | G14: 8 | H14: 5 | I14: 1 | J14: 1 | K14: 1
A15: QF7 | B15: SOUTH YORKSHIRE AND BASSETLAW STP | C15: 41 | D15: 0.7317073171 | E15: 0.243902439 | F15: * | G15: * | H15: * | I15: * | J15: * | K15: *
A16: QGH | B16: HEREFORDSHIRE AND WORCESTERSHIRE STP | C16: 3 | D16: * | E16: * | F16: * | G16: * | H16: * | I16: * | J16: * | K16: *
A17: QH8 | B17: MID AND SOUTH ESSEX STP | C17: 0 | D17: NA | E17: NA | F17: 0 | G17: 0 | H17: 0 | I17: 0 | J17: 0 | K17: 0
A18: QHG | B18: BEDFORDSHIRE, LUTON AND MILTON KEYNES STP | C18: 29 | D18: 1 | E18: 0 | F18: 24 | G18: 5 | H18: 0 | I18: 0 | J18: 0 | K18: 0
A19: QHL | B19: BIRMINGHAM AND SOLIHULL STP | C19: 0 | D19: NA | E19: NA | F19: * | G19: * | H19: * | I19: * | J19: * | K19: *
A20: QHM | B20: CUMBRIA AND NORTH EAST STP | C20: 1 | D20: * | E20: * | F20: * | G20: * | H20: * | I20: * | J20: * | K20: *
A21: QJ2 | B21: JOINED UP CARE DERBYSHIRE STP | C21: 1 | D21: * | E21: * | F21: * | G21: * | H21: * | I21: * | J21: * | K21: *
A22: QJG | B22: SUFFOLK AND NORTH EAST ESSEX ICS | C22: 28 | D22: 1 | E22: 0 | F22: 25 | G22: 3 | H22: 0 | I22: 0 | J22: 0 | K22: 0
A23: QJK | B23: DEVON STP | C23: 7 | D23: 0.8571428571 | E23: 0.1428571429 | F23: 5 | G23: 1 | H23: 0 | I23: 1 | J23: 0 | K23: 0
A24: QJM | B24: LINCOLNSHIRE STP | C24: 0 | D24: NA | E24: NA | F24: 0 | G24: 0 | H24: 0 | I24: 0 | J24: 0 | K24: 0
A25: QK1 | B25: LEICESTER, LEICESTERSHIRE AND RUTLAND STP | C25: 43 | D25: 0.9534883721 | E25: 0 | F25: 39 | G25: 2 | H25: 2 | I25: 0 | J25: 0 | K25: 0
A26: QKK | B26: OUR HEALTHIER SOUTH EAST LONDON STP | C26: 14 | D26: 1 | E26: 0 | F26: * | G26: * | H26: * | I26: * | J26: * | K26: *
A27: QKS | B27: KENT AND MEDWAY STP | C27: 2 | D27: * | E27: * | F27: * | G27: * | H27: * | I27: * | J27: * | K27: *
A28: QM7 | B28: HERTFORDSHIRE AND WEST ESSEX STP | C28: 3 | D28: * | E28: * | F28: * | G28: * | H28: * | I28: * | J28: * | K28: *
A29: QMF | B29: EAST LONDON HEALTH & CARE PARTNERSHIP (STP) | C29: 123 | D29: 0.8211382114 | E29: 0.08943089431 | F29: 75 | G29: 26 | H29: 5 | I29: 5 | J29: 6 | K29: 6
A30: QMJ | B30: NORTH LONDON PARTNERS IN HEALTH & CARE (STP) | C30: 9 | D30: 0.6666666667 | E30: 0.2222222222 | F30: * | G30: * | H30: * | I30: * | J30: * | K30: *
A31: QMM | B31: NORFOLK AND WAVENEY HEALTH & CARE PARTNERSHIP (STP) | C31: 1 | D31: * | E31: * | F31: * | G31: * | H31: * | I31: * | J31: * | K31: *
A32: QNC | B32: STAFFORDSHIRE & STOKE ON TRENT STP | C32: 4 | D32: * | E32: * | F32: * | G32: * | H32: * | I32: * | J32: * | K32: *
A33: QNQ | B33: FRIMLEY HEALTH & CARE (STP) | C33: 6 | D33: 1 | E33: 0 | F33: 6 | G33: 0 | H33: 0 | I33: 0 | J33: 0 | K33: 0
A34: QNX | B34: SUSSEX HEALTH AND CARE PARTNERSHIP | C34: 21 | D34: 0.9047619048 | E34: 0.04761904762 | F34: 14 | G34: 5 | H34: 1 | I34: 1 | J34: 0 | K34: 0
A35: QOP | B35: GREATER MANCHESTER HEALTH & SOCIAL CARE PARTNERSHIP | C35: 47 | D35: 0.7446808511 | E35: 0.1489361702 | F35: 33 | G35: 2 | H35: 5 | I35: 4 | J35: 3 | K35: 0
A36: QOQ | B36: HUMBER, COAST AND VALE STP | C36: 21 | D36: 1 | E36: 0 | F36: 20 | G36: 1 | H36: 0 | I36: 0 | J36: 0 | K36: 0
A37: QOC | B37: SHROPSHIRE AND TELFORD AND WREKIN STP | C37: 0 | D37: NA | E37: NA | F37: 0 | G37: 0 | H37: 0 | I37: 0 | J37: 0 | K37: 0
A38: QOX | B38: BATH AND NORTH EAST SOMERSET, SWINDON AND WILTSHIRE STP | C38: 7 | D38: 1 | E38: 0 | F38: * | G38: * | H38: * | I38: * | J38: * | K38: *
A39: QPM | B39: NORTHAMPTONSHIRE STP | C39: 1 | D39: * | E39: * | F39: * | G39: * | H39: * | I39: * | J39: * | K39: *
A40: QR1 | B40: GLOUCESTERSHIRE STP | C40: 0 | D40: NA | E40: NA | F40: 0 | G40: 0 | H40: 0 | I40: 0 | J40: 0 | K40: 0
A41: QRL | B41: HAMPSHIRE AND THE ISLE OF WIGHT STP | C41: 55 | D41: 0.8181818182 | E41: 0.07272727273 | F41: 28 | G41: 17 | H41: 3 | I41: 3 | J41: 1 | K41: 3
A42: QRV | B42: NORTH WEST LONDON HEALTH & CARE PARTNERSHIP (STP) | C42: 36 | D42: 0.9722222222 | E42: 0 | F42: * | G42: * | H42: * | I42: * | J42: * | K42: *
A43: QSL | B43: SOMERSET STP | C43: 4 | D43: * | E43: * | F43: * | G43: * | H43: * | I43: * | J43: * | K43: *
A44: QT1 | B44: NOTTINGHAM AND NOTTINGHAMSHIRE HEALTH AND CARE STP | C44: 13 | D44: 1 | E44: 0 | F44: * | G44: * | H44: * | I44: * | J44: * | K44: *
A45: QT6 | B45: CORNWALL AND THE ISLES OF SCILLY HEALTH & SOCIAL CARE PARTNERSHIP (STP) | C45: 2 | D45: * | E45: * | F45: * | G45: * | H45: * | I45: * | J45: * | K45: *
A46: QU9 | B46: BUCKINGHAMSHIRE, OXFORDSHIRE AND BERKSHIRE WEST STP | C46: 23 | D46: 0.7391304348 | E46: 0.1304347826 | F46: 10 | G46: 7 | H46: 3 | I46: 2 | J46: 1 | K46: 0
A47: QUA | B47: THE BLACK COUNTRY AND WEST BIRMINGHAM STP | C47: 54 | D47: 0.8518518519 | E47: 0.07407407407 | F47: 38 | G47: 8 | H47: 3 | I47: 0 | J47: 4 | K47: 1
A48: QUE | B48: CAMBRIDGESHIRE AND PETERBOROUGH STP | C48: 11 | D48: 1 | E48: 0 | F48: 11 | G48: 0 | H48: 0 | I48: 0 | J48: 0 | K48: 0
A49: QUY | B49: BRISTOL, NORTH SOMERSET AND SOUTH GLOUCESTERSHIRE STP | C49: 79 | D49: 0.9493670886 | E49: 0.0253164557 | F49: 59 | G49: 16 | H49: 1 | I49: 1 | J49: 1 | K49: 1
A50: QVV | B50: DORSET STP | C50: 56 | D50: 0.8571428571 | E50: 0.08928571429 | F50: 38 | G50: 10 | H50: 2 | I50: 3 | J50: 2 | K50: 1
A51: QWE | B51: SOUTH WEST LONDON HEALTH & CARE PARTNERSHIP (STP) | C51: 14 | D51: 1 | E51: 0 | F51: 13 | G51: 1 | H51: 0 | I51: 0 | J51: 0 | K51: 0
A52: QWO | B52: WEST YORKSHIRE AND HARROGATE HEALTH & CARE PARTNERSHIP (STP) | C52: 45 | D52: 0.9333333333 | E52: 0.02222222222 | F52: 40 | G52: 2 | H52: 2 | I52: 0 | J52: 1 | K52: 0
A53: QWU | B53: COVENTRY AND WARWICKSHIRE STP | C53: 20 | D53: 0.95 | E53: 0 | F53: 15 | G53: 4 | H53: 1 | I53: 0 | J53: 0 | K53: 0
A54: QXU | B54: SURREY HEARTLANDS HEALTH & CARE PARTNERSHIP (STP) | C54: 40 | D54: 0.975 | E54: 0 | F54: 35 | G54: 4 | H54: 1 | I54: 0 | J54: 0 | K54: 0
A55: QYG | B55: CHESHIRE AND MERSEYSIDE STP | C55: 31 | D55: 0.8064516129 | E55: 0.09677419355 | F55: 23 | G55: 2 | H55: 3 | I55: 1 | J55: 2 | K55: 0

Sheet Trusts Q4
B6: Sort data by:
A9: STP Code | B9: Trust Code | C9: Trust Name | D9: Total Responses | E9: Percentage Positive | F9: Percentage Negative | G9: Breakdown of Responses | M9: Mode of Collection
G10: Very Good | H10: Good | I10: Neither Good nor Poor | J10: Poor | K10: Very Poor | L10: Don't Know | M10: Mode SMS | N10: Mode Electronic Discharge | O10: Mode Electronic Home | P10: Mode Paper Discharge | Q10: Mode Paper Home | R10: Mode Telephone | S10: Mode Online | T10: Mode Other
C11: England (including Independent Sector providers) | D11: 953 | E11: 0.8824763903 | F11: 0.05981112277 | G11: 698 | H11: 143 | I11: 42 | J11: 27 | K11: 30 | L11: 13 | M11: 519 | N11: 13 | O11: 0 | P11: 261 | Q11: 17 | R11: 0 | S11: 111 | T11: 32
C12: England (excluding Independent Sector providers) | D12: 953 | E12: 0.8824763903 | F12: 0.05981112277 | G12: 698 | H12: 143 | I12: 42 | J12: 27 | K12: 30 | L12: 13 | M12: 519 | N12: 13 | O12: 0 | P12: 261 | Q12: 17 | R12: 0 | S12: 111 | T12: 32
C13: Selection (excluding suppressed data) | D13: =SUBTOTAL(9,D14:D299) -> 953 | E13: =IFERROR((G13+H13)/SUM(G13:L13), "-") -> 0.8872077029 | F13: =IFERROR((J13+K13)/SUM(G13:L13), "-") -> 0.05364511692 | G13: =SUBTOTAL(9,G14:G299) -> 532 | H13: 113 | I13: 36 | J13: 21 | K13: 18 | L13: 7 | M13: 468 | N13: 5 | O13: 0 | P13: 163 | Q13: 3 | R13: 0 | S13: 56 | T13: 32
A14: QE1 | B14: RXL | C14: BLACKPOOL TEACHING HOSPITALS NHS FOUNDATION TRUST | D14: 0 | E14: NA | F14: NA | G14: 0 | H14: 0 | I14: 0 | J14: 0 | K14: 0 | L14: 0 | M14: 0 | N14: 0 | O14: 0 | P14: 0 | Q14: 0 | R14: 0 | S14: 0 | T14: 0
A15: QE1 | B15: RXR | C15: EAST LANCASHIRE HOSPITALS NHS TRUST | D15: 36 | E15: 0.8333333333 | F15: 0.05555555556 | G15: 25 | H15: 5 | I15: 3 | J15: 1 | K15: 1 | L15: 1 | M15: 36 | N15: 0 | O15: 0 | P15: 0 | Q15: 0 | R15: 0 | S15: 0 | T15: 0
A16: QE1 | B16: RXN | C16: LANCASHIRE TEACHING HOSPITALS NHS FOUNDATION TRUST | D16: 22 | E16: 0.9090909091 | F16: 0 | G16: 17 | H16: 3 | I16: 2 | J16: 0 | K16: 0 | L16: 0 | M16: 22 | N16: 0 | O16: 0 | P16: 0 | Q16: 0 | R16: 0 | S16: 0 | T16: 0
A17: QE1 | B17: RTX | C17: UNIVERSITY HOSPITALS OF MORECAMBE BAY NHS FOUNDATION TRUST | D17: 0 | E17: NA | F17: NA | G17: 0 | H17: 0 | I17: 0 | J17: 0 | K17: 0 | L17: 0 | M17: 0 | N17: 0 | O17: 0 | P17: 0 | Q17: 0 | R17: 0 | S17: 0 | T17: 0
A18: QF7 | B18: RFF | C18: BARNSLEY HOSPITAL NHS FOUNDATION TRUST | D18: 0 | E18: NA | F18: NA | G18: 0 | H18: 0 | I18: 0 | J18: 0 | K18: 0 | L18: 0 | M18: 0 | N18: 0 | O18: 0 | P18: 0 | Q18: 0 | R18: 0 | S18: 0 | T18: 0
A19: QF7 | B19: RP5 | C19: DONCASTER AND BASSETLAW TEACHING HOSPITALS NHS FOUNDATION TRUST | D19: 0 | E19: NA | F19: NA | G19: 0 | H19: 0 | I19: 0 | J19: 0 | K19: 0 | L19: 0 | M19: 0 | N19: 0 | O19: 0 | P19: 0 | Q19: 0 | R19: 0 | S19: 0 | T19: 0
A20: QF7 | B20: RHQ | C20: SHEFFIELD TEACHING HOSPITALS NHS FOUNDATION TRUST | D20: 39 | E20: 0.7179487179 | F20: 0.2564102564 | G20: * | H20: * | I20: * | J20: * | K20: * | L20: * | M20: * | N20: * | O20: * | P20: * | Q20: * | R20: * | S20: * | T20: *
A21: QF7 | B21: RFR | C21: THE ROTHERHAM NHS FOUNDATION TRUST | D21: 2 | E21: * | F21: * | G21: * | H21: * | I21: * | J21: * | K21: * | L21: * | M21: * | N21: * | O21: * | P21: * | Q21: * | R21: * | S21: * | T21: *
A22: QGH | B22: RWP | C22: WORCESTERSHIRE ACUTE HOSPITALS NHS TRUST | D22: 0 | E22: NA | F22: NA | G22: 0 | H22: 0 | I22: 0 | J22: 0 | K22: 0 | L22: 0 | M22: 0 | N22: 0 | O22: 0 | P22: 0 | Q22: 0 | R22: 0 | S22: 0 | T22: 0
A23: QGH | B23: RLQ | C23: WYE VALLEY NHS TRUST | D23: 3 | E23: * | F23: * | G23: * | H23: * | I23: * | J23: * | K23: * | L23: * | M23: * | N23: * | O23: * | P23: * | Q23: * | R23: * | S23: * | T23: *
A24: QH8 | B24: RAJ | C24: MID AND SOUTH ESSEX NHS FOUNDATION TRUST | D24: 0 | E24: NA | F24: NA | G24: 0 | H24: 0 | I24: 0 | J24: 0 | K24: 0 | L24: 0 | M24: 0 | N24: 0 | O24: 0 | P24: 0 | Q24: 0 | R24: 0 | S24: 0 | T24: 0
A25: QHG | B25: RC9 | C25: BEDFORDSHIRE HOSPITALS NHS FOUNDATION TRUST | D25: 4 | E25: * | F25: * | G25: * | H25: * | I25: * | J25: * | K25: * | L25: * | M25: * | N25: * | O25: * | P25: * | Q25: * | R25: * | S25: * | T25: *
A26: QHG | B26: RD8 | C26: MILTON KEYNES UNIVERSITY HOSPITAL NHS FOUNDATION TRUST | D26: 25 | E26: 1 | F26: 0 | G26: 20 | H26: 5 | I26: 0 | J26: 0 | K26: 0 | L26: 0 | M26: 24 | N26: 0 | O26: 0 | P26: 1 | Q26: 0 | R26: 0 | S26: 0 | T26: 0
A27: QHL | B27: RQ3 | C27: BIRMINGHAM WOMEN'S AND CHILDREN'S NHS FOUNDATION TRUST | D27: 0 | E27: NA | F27: NA | G27: 0 | H27: 0 | I27: 0 | J27: 0 | K27: 0 | L27: 0 | M27: 0 | N27: 0 | O27: 0 | P27: 0 | Q27: 0 | R27: 0 | S27: 0 | T27: 0
A28: QHL | B28: RRK | C28: UNIVERSITY HOSPITALS BIRMINGHAM NHS FOUNDATION TRUST | D28: 0 | E28: NA | F28: NA | G28: 0 | H28: 0 | I28: 0 | J28: 0 | K28: 0 | L28: 0 | M28: 0 | N28: 0 | O28: 0 | P28: 0 | Q28: 0 | R28: 0 | S28: 0 | T28: 0
A29: QHM | B29: RXP | C29: COUNTY DURHAM AND DARLINGTON NHS FOUNDATION TRUST | D29: 0 | E29: NA | F29: NA | G29: 0 | H29: 0 | I29: 0 | J29: 0 | K29: 0 | L29: 0 | M29: 0 | N29: 0 | O29: 0 | P29: 0 | Q29: 0 | R29: 0 | S29: 0 | T29: 0
A30: QHM | B30: RR7 | C30: GATESHEAD HEALTH NHS FOUNDATION TRUST | D30: 0 | E30: NA | F30: NA | G30: 0 | H30: 0 | I30: 0 | J30: 0 | K30: 0 | L30: 0 | M30: 0 | N30: 0 | O30: 0 | P30: 0 | Q30: 0 | R30: 0 | S30: 0 | T30: 0
A31: QHM | B31: RNN | C31: NORTH CUMBRIA INTEGRATED CARE NHS FOUNDATION TRUST | D31: 0 | E31: NA | F31: NA | G31: 0 | H31: 0 | I31: 0 | J31: 0 | K31: 0 | L31: 0 | M31: 0 | N31: 0 | O31: 0 | P31: 0 | Q31: 0 | R31: 0 | S31: 0 | T31: 0
A32: QHM | B32: RVW | C32: NORTH TEES AND HARTLEPOOL NHS FOUNDATION TRUST | D32: 0 | E32: NA | F32: NA | G32: 0 | H32: 0 | I32: 0 | J32: 0 | K32: 0 | L32: 0 | M32: 0 | N32: 0 | O32: 0 | P32: 0 | Q32: 0 | R32: 0 | S32: 0 | T32: 0
A33: QHM | B33: RTF | C33: NORTHUMBRIA HEALTHCARE NHS FOUNDATION TRUST | D33: 0 | E33: NA | F33: NA | G33: 0 | H33: 0 | I33: 0 | J33: 0 | K33: 0 | L33: 0 | M33: 0 | N33: 0 | O33: 0 | P33: 0 | Q33: 0 | R33: 0 | S33: 0 | T33: 0
A34: QHM | B34: RTR | C34: SOUTH TEES HOSPITALS NHS FOUNDATION TRUST | D34: 1 | E34: * | F34: * | G34: * | H34: * | I34: * | J34: * | K34: * | L34: * | M34: * | N34: * | O34: * | P34: * | Q34: * | R34: * | S34: * | T34: *
A35: QHM | B35: R0B | C35: SOUTH TYNESIDE AND SUNDERLAND NHS FOUNDATION TRUST | D35: 0 | E35: NA | F35: NA | G35: 0 | H35: 0 | I35: 0 | J35: 0 | K35: 0 | L35: 0 | M35: 0 | N35: 0 | O35: 0 | P35: 0 | Q35: 0 | R35: 0 | S35: 0 | T35: 0
A36: QHM | B36: RTD | C36: THE NEWCASTLE UPON TYNE HOSPITALS NHS FOUNDATION TRUST | D36: 0 | E36: NA | F36: NA | G36: 0 | H36: 0 | I36: 0 | J36: 0 | K36: 0 | L36: 0 | M36: 0 | N36: 0 | O36: 0 | P36: 0 | Q36: 0 | R36: 0 | S36: 0 | T36: 0
A37: QJ2 | B37: RTG | C37: UNIVERSITY HOSPITALS OF DERBY AND BURTON NHS FOUNDATION TRUST | D37: 1 | E37: * | F37: * | G37: * | H37: * | I37: * | J37: * | K37: * | L37: * | M37: * | N37: * | O37: * | P37: * | Q37: * | R37: * | S37: * | T37: *
A38: QJG | B38: RDE | C38: EAST SUFFOLK AND NORTH ESSEX NHS FOUNDATION TRUST | D38: 3 | E38: * | F38: * | G38: * | H38: * | I38: * | J38: * | K38: * | L38: * | M38: * | N38: * | O38: * | P38: * | Q38: * | R38: * | S38: * | T38: *
A39: QJG | B39: RGR | C39: WEST SUFFOLK NHS FOUNDATION TRUST | D39: 25 | E39: 1 | F39: 0 | G39: * | H39: * | I39: * | J39: * | K39: * | L39: * | M39: * | N39: * | O39: * | P39: * | Q39: * | R39: * | S39: * | T39: *
A40: QJK | B40: RBZ | C40: NORTHERN DEVON HEALTHCARE NHS TRUST | D40: 4 | E40: * | F40: * | G40: * | H40: * | I40: * | J40: * | K40: * | L40: * | M40: * | N40: * | O40: * | P40: * | Q40: * | R40: * | S40: * | T40: *
A41: QJK | B41: RH8 | C41: ROYAL DEVON AND EXETER NHS FOUNDATION TRUST | D41: 0 | E41: NA | F41: NA | G41: 0 | H41: 0 | I41: 0 | J41: 0 | K41: 0 | L41: 0 | M41: 0 | N41: 0 | O41: 0 | P41: 0 | Q41: 0 | R41: 0 | S41: 0 | T41: 0
A42: QJK | B42: RA9 | C42: TORBAY AND SOUTH DEVON NHS FOUNDATION TRUST | D42: 1 | E42: * | F42: * | G42: * | H42: * | I42: * | J42: * | K42: * | L42: * | M42: * | N42: * | O42: * | P42: * | Q42: * | R42: * | S42: * | T42: *
A43: QJK | B43: RK9 | C43: UNIVERSITY HOSPITALS PLYMOUTH NHS TRUST | D43: 2 | E43: * | F43: * | G43: * | H43: * | I43: * | J43: * | K43: * | L43: * | M43: * | N43: * | O43: * | P43: * | Q43: * | R43: * | S43: * | T43: *
A44: QJM | B44: RWD | C44: UNITED LINCOLNSHIRE HOSPITALS NHS TRUST | D44: 0 | E44: NA | F44: NA | G44: 0 | H44: 0 | I44: 0 | J44: 0 | K44: 0 | L44: 0 | M44: 0 | N44: 0 | O44: 0 | P44: 0 | Q44: 0 | R44: 0 | S44: 0 | T44: 0
A45: QK1 | B45: RWE | C45: UNIVERSITY HOSPITALS OF LEICESTER NHS TRUST | D45: 43 | E45: 0.9534883721 | F45: 0 | G45: 39 | H45: 2 | I45: 2 | J45: 0 | K45: 0 | L45: 0 | M45: 0 | N45: 0 | O45: 0 | P45: 43 | Q45: 0 | R45: 0 | S45: 0 | T45: 0
A46: QKK | B46: RJ1 | C46: GUY'S AND ST THOMAS' NHS FOUNDATION TRUST | D46: 14 | E46: 1 | F46: 0 | G46: * | H46: * | I46: * | J46: * | K46: * | L46: * | M46: * | N46: * | O46: * | P46: * | Q46: * | R46: * | S46: * | T46: *
A47: QKK | B47: RJZ | C47: KING'S COLLEGE HOSPITAL NHS FOUNDATION TRUST | D47: 0 | E47: NA | F47: NA | G47: 0 | H47: 0 | I47: 0 | J47: 0 | K47: 0 | L47: 0 | M47: 0 | N47: 0 | O47: 0 | P47: 0 | Q47: 0 | R47: 0 | S47: 0 | T47: 0
A48: QKK | B48: RJ2 | C48: LEWISHAM AND GREENWICH NHS TRUST | D48: 0 | E48: NA | F48: NA | G48: 0 | H48: 0 | I48: 0 | J48: 0 | K48: 0 | L48: 0 | M48: 0 | N48: 0 | O48: 0 | P48: 0 | Q48: 0 | R48: 0 | S48: 0 | T48: 0
A49: QKS | B49: RN7 | C49: DARTFORD AND GRAVESHAM NHS TRUST | D49: 0 | E49: NA | F49: NA | G49: 0 | H49: 0 | I49: 0 | J49: 0 | K49: 0 | L49: 0 | M49: 0 | N49: 0 | O49: 0 | P49: 0 | Q49: 0 | R49: 0 | S49: 0 | T49: 0
A50: QKS | B50: RVV | C50: EAST KENT HOSPITALS UNIVERSITY NHS FOUNDATION TRUST | D50: 0 | E50: NA | F50: NA | G50: 0 | H50: 0 | I50: 0 | J50: 0 | K50: 0 | L50: 0 | M50: 0 | N50: 0 | O50: 0 | P50: 0 | Q50: 0 | R50: 0 | S50: 0 | T50: 0
A51: QKS | B51: RWF | C51: MAIDSTONE AND TUNBRIDGE WELLS NHS TRUST | D51: 2 | E51: * | F51: * | G51: * | H51: * | I51: * | J51: * | K51: * | L51: * | M51: * | N51: * | O51: * | P51: * | Q51: * | R51: * | S51: * | T51: *
A52: QKS | B52: RPA | C52: MEDWAY NHS FOUNDATION TRUST | D52: 0 | E52: NA | F52: NA | G52: 0 | H52: 0 | I52: 0 | J52: 0 | K52: 0 | L52: 0 | M52: 0 | N52: 0 | O52: 0 | P52: 0 | Q52: 0 | R52: 0 | S52: 0 | T52: 0
A53: QM7 | B53: RWH | C53: EAST AND NORTH HERTFORDSHIRE NHS TRUST | D53: 2 | E53: * | F53: * | G53: * | H53: * | I53: * | J53: * | K53: * | L53: * | M53: * | N53: * | O53: * | P53: * | Q53: * | R53: * | S53: * | T53: *
A54: QM7 | B54: RQW | C54: THE PRINCESS ALEXANDRA HOSPITAL NHS TRUST | D54: 0 | E54: NA | F54: NA | G54: 0 | H54: 0 | I54: 0 | J54: 0 | K54: 0 | L54: 0 | M54: 0 | N54: 0 | O54: 0 | P54: 0 | Q54: 0 | R54: 0 | S54: 0 | T54: 0
A55: QM7 | B55: RWG | C55: WEST HERTFORDSHIRE TEACHING HOSPITALS NHS TRUST | D55: 1 | E55: * | F55: * | G55: * | H55: * | I55: * | J55: * | K55: * | L55: * | M55: * | N55: * | O55: * | P55: * | Q55: * | R55: * | S55: * | T55: *
A56: QMF | B56: RF4 | C56: BARKING, HAVERING AND REDBRIDGE UNIVERSITY HOSPITALS NHS TRUST | D56: 46 | E56: 0.7826086957 | F56: 0.08695652174 | G56: * | H56: * | I56: * | J56: * | K56: * | L56: * | M56: * | N56: * | O56: * | P56: * | Q56: * | R56: * | S56: * | T56: *
A57: QMF | B57: R1H | C57: BARTS HEALTH NHS TRUST | D57: 1 | E57: * | F57: * | G57: * | H57: * | I57: * | J57: * | K57: * | L57: * | M57: * | N57: * | O57: * | P57: * | Q57: * | R57: * | S57: * | T57: *
A58: QMF | B58: RQX | C58: HOMERTON UNIVERSITY HOSPITAL NHS FOUNDATION TRUST | D58: 76 | E58: 0.8421052632 | F58: 0.09210526316 | G58: 47 | H58: 17 | I58: 5 | J58: 5 | K58: 2 | L58: 0 | M58: 76 | N58: 0 | O58: 0 | P58: 0 | Q58: 0 | R58: 0 | S58: 0 | T58: 0
A59: QMJ | B59: RAP | C59: NORTH MIDDLESEX UNIVERSITY HOSPITAL NHS TRUST | D59: 0 | E59: NA | F59: NA | G59: 0 | H59: 0 | I59: 0 | J59: 0 | K59: 0 | L59: 0 | M59: 0 | N59: 0 | O59: 0 | P59: 0 | Q59: 0 | R59: 0 | S59: 0 | T59: 0
A60: QMJ | B60: RAL | C60: ROYAL FREE LONDON NHS FOUNDATION TRUST | D60: 9 | E60: 0.6666666667 | F60: 0.2222222222 | G60: * | H60: * | I60: * | J60: * | K60: * | L60: * | M60: * | N60: * | O60: * | P60: * | Q60: * | R60: * | S60: * | T60: *
A61: QMJ | B61: RRV | C61: UNIVERSITY COLLEGE LONDON HOSPITALS NHS FOUNDATION TRUST | D61: 0 | E61: NA | F61: NA | G61: 0 | H61: 0 | I61: 0 | J61: 0 | K61: 0 | L61: 0 | M61: 0 | N61: 0 | O61: 0 | P61: 0 | Q61: 0 | R61: 0 | S61: 0 | T61: 0
A62: QMJ | B62: RKE | C62: WHITTINGTON HEALTH NHS TRUST | D62: 0 | E62: NA | F62: NA | G62: 0 | H62: 0 | I62: 0 | J62: 0 | K62: 0 | L62: 0 | M62: 0 | N62: 0 | O62: 0 | P62: 0 | Q62: 0 | R62: 0 | S62: 0 | T62: 0
A63: QMM | B63: RGP | C63: JAMES PAGET UNIVERSITY HOSPITALS NHS FOUNDATION TRUST | D63: 0 | E63: NA | F63: NA | G63: 0 | H63: 0 | I63: 0 | J63: 0 | K63: 0 | L63: 0 | M63: 0 | N63: 0 | O63: 0 | P63: 0 | Q63: 0 | R63: 0 | S63: 0 | T63: 0
A64: QMM | B64: RM1 | C64: NORFOLK AND NORWICH UNIVERSITY HOSPITALS NHS FOUNDATION TRUST | D64: 0 | E64: NA | F64: NA | G64: 0 | H64: 0 | I64: 0 | J64: 0 | K64: 0 | L64: 0 | M64: 0 | N64: 0 | O64: 0 | P64: 0 | Q64: 0 | R64: 0 | S64: 0 | T64: 0
A65: QMM | B65: RCX | C65: THE QUEEN ELIZABETH HOSPITAL, KING'S LYNN, NHS FOUNDATION TRUST | D65: 1 | E65: * | F65: * | G65: * | H65: * | I65: * | J65: * | K65: * | L65: * | M65: * | N65: * | O65: * | P65: * | Q65: * | R65: * | S65: * | T65: *
A66: QNC | B66: RJE | C66: UNIVERSITY HOSPITALS OF NORTH MIDLANDS NHS TRUST | D66: 4 | E66: * | F66: * | G66: * | H66: * | I66: * | J66: * | K66: * | L66: * | M66: * | N66: * | O66: * | P66: * | Q66: * | R66: * | S66: * | T66: *
A67: QNQ | B67: RDU | C67: FRIMLEY HEALTH NHS FOUNDATION TRUST | D67: 6 | E67: 1 | F67: 0 | G67: 6 | H67: 0 | I67: 0 | J67: 0 | K67: 0 | L67: 0 | M67: 0 | N67: 0 | O67: 0 | P67: 6 | Q67: 0 | R67: 0 | S67: 0 | T67: 0
A68: QNX | B68: RXC | C68: EAST SUSSEX HEALTHCARE NHS TRUST | D68: 0 | E68: NA | F68: NA | G68: 0 | H68: 0 | I68: 0 | J68: 0 | K68: 0 | L68: 0 | M68: 0 | N68: 0 | O68: 0 | P68: 0 | Q68: 0 | R68: 0 | S68: 0 | T68: 0
A69: QNX | B69: RYR | C69: UNIVERSITY HOSPITALS SUSSEX NHS FOUNDATION TRUST | D69: 21 | E69: 0.9047619048 | F69: 0.04761904762 | G69: 14 | H69: 5 | I69: 1 | J69: 1 | K69: 0 | L69: 0 | M69: 21 | N69: 0 | O69: 0 | P69: 0 | Q69: 0 | R69: 0 | S69: 0 | T69: 0
A70: QOC | B70: RXW | C70: THE SHREWSBURY AND TELFORD HOSPITAL NHS TRUST | D70: 0 | E70: NA | F70: NA | G70: 0 | H70: 0 | I70: 0 | J70: 0 | K70: 0 | L70: 0 | M70: 0 | N70: 0 | O70: 0 | P70: 0 | Q70: 0 | R70: 0 | S70: 0 | T70: 0
A71: QOP | B71: RMC | C71: BOLTON NHS FOUNDATION TRUST | D71: 45 | E71: 0.7333333333 | F71: 0.1555555556 | G71: 31 | H71: 2 | I71: 5 | J71: 4 | K71: 3 | L71: 0 | M71: 44 | N71: 1 | O71: 0 | P71: 0 | Q71: 0 | R71: 0 | S71: 0 | T71: 0
A72: QOP | B72: R0A | C72: MANCHESTER UNIVERSITY NHS FOUNDATION TRUST | D72: 0 | E72: NA | F72: NA | G72: 0 | H72: 0 | I72: 0 | J72: 0 | K72: 0 | L72: 0 | M72: 0 | N72: 0 | O72: 0 | P72: 0 | Q72: 0 | R72: 0 | S72: 0 | T72: 0
A73: QOP | B73: RWJ | C73: STOCKPORT NHS FOUNDATION TRUST | D73: 2 | E73: * | F73: * | G73: * | H73: * | I73: * | J73: * | K73: * | L73: * | M73: * | N73: * | O73: * | P73: * | Q73: * | R73: * | S73: * | T73: *
A74: QOP | B74: RMP | C74: TAMESIDE AND GLOSSOP INTEGRATED CARE NHS FOUNDATION TRUST | D74: 0 | E74: NA | F74: NA | G74: 0 | H74: 0 | I74: 0 | J74: 0 | K74: 0 | L74: 0 | M74: 0 | N74: 0 | O74: 0 | P74: 0 | Q74: 0 | R74: 0 | S74: 0 | T74: 0
A75: QOP | B75: RRF | C75: WRIGHTINGTON, WIGAN AND LEIGH NHS FOUNDATION TRUST | D75: 0 | E75: NA | F75: NA | G75: 0 | H75: 0 | I75: 0 | J75: 0 | K75: 0 | L75: 0 | M75: 0 | N75: 0 | O75: 0 | P75: 0 | Q75: 0 | R75: 0 | S75: 0 | T75: 0
A76: QOQ | B76: RCD | C76: HARROGATE AND DISTRICT NHS FOUNDATION TRUST | D76: 0 | E76: NA | F76: NA | G76: 0 | H76: 0 | I76: 0 | J76: 0 | K76: 0 | L76: 0 | M76: 0 | N76: 0 | O76: 0 | P76: 0 | Q76: 0 | R76: 0 | S76: 0 | T76: 0
A77: QOQ | B77: RWA | C77: HULL UNIVERSITY TEACHING HOSPITALS NHS TRUST | D77: 0 | E77: NA | F77: NA | G77: 0 | H77: 0 | I77: 0 | J77: 0 | K77: 0 | L77: 0 | M77: 0 | N77: 0 | O77: 0 | P77: 0 | Q77: 0 | R77: 0 | S77: 0 | T77: 0
A78: QOQ | B78: RJL | C78: NORTHERN LINCOLNSHIRE AND GOOLE NHS FOUNDATION TRUST | D78: 0 | E78: NA | F78: NA | G78: 0 | H78: 0 | I78: 0 | J78: 0 | K78: 0 | L78: 0 | M78: 0 | N78: 0 | O78: 0 | P78: 0 | Q78: 0 | R78: 0 | S78: 0 | T78: 0
A79: QOQ | B79: RCB | C79: YORK AND SCARBOROUGH TEACHING HOSPITALS NHS FOUNDATION TRUST | D79: 21 | E79: 1 | F79: 0 | G79: 20 | H79: 1 | I79: 0 | J79: 0 | K79: 0 | L79: 0 | M79: 7 | N79: 0 | O79: 0 | P79: 14 | Q79: 0 | R79: 0 | S79: 0 | T79: 0
A80: QOX | B80: RN3 | C80: GREAT WESTERN HOSPITALS NHS FOUNDATION TRUST | D80: 0 | E80: NA | F80: NA | G80: 0 | H80: 0 | I80: 0 | J80: 0 | K80: 0 | L80: 0 | M80: 0 | N80: 0 | O80: 0 | P80: 0 | Q80: 0 | R80: 0 | S80: 0 | T80: 0
A81: QOX | B81: RD1 | C81: ROYAL UNITED HOSPITALS BATH NHS FOUNDATION TRUST | D81: 6 | E81: 1 | F81: 0 | G81: * | H81: * | I81: * | J81: * | K81: * | L81: * | M81: * | N81: * | O81: * | P81: * | Q81: * | R81: * | S81: * | T81: *
A82: QOX | B82: RNZ | C82: SALISBURY NHS FOUNDATION TRUST | D82: 1 | E82: * | F82: * | G82: * | H82: * | I82: * | J82: * | K82: * | L82: * | M82: * | N82: * | O82: * | P82: * | Q82: * | R82: * | S82: * | T82: *
A83: QPM | B83: RNQ | C83: KETTERING GENERAL HOSPITAL NHS FOUNDATION TRUST | D83: 0 | E83: NA | F83: NA | G83: 0 | H83: 0 | I83: 0 | J83: 0 | K83: 0 | L83: 0 | M83: 0 | N83: 0 | O83: 0 | P83: 0 | Q83: 0 | R83: 0 | S83: 0 | T83: 0
A84: QPM | B84: RNS | C84: NORTHAMPTON GENERAL HOSPITAL NHS TRUST | D84: 1 | E84: * | F84: * | G84: * | H84: * | I84: * | J84: * | K84: * | L84: * | M84: * | N84: * | O84: * | P84: * | Q84: * | R84: * | S84: * | T84: *
A85: QR1 | B85: RTE | C85: GLOUCESTERSHIRE HOSPITALS NHS FOUNDATION TRUST | D85: 0 | E85: NA | F85: NA | G85: 0 | H85: 0 | I85: 0 | J85: 0 | K85: 0 | L85: 0 | M85: 0 | N85: 0 | O85: 0 | P85: 0 | Q85: 0 | R85: 0 | S85: 0 | T85: 0
A86: QRL | B86: RN5 | C86: HAMPSHIRE HOSPITALS NHS FOUNDATION TRUST | D86: 2 | E86: * | F86: * | G86: * | H86: * | I86: * | J86: * | K86: * | L86: * | M86: * | N86: * | O86: * | P86: * | Q86: * | R86: * | S86: * | T86: *
A87: QRL | B87: R1F | C87: ISLE OF WIGHT NHS TRUST | D87: 0 | E87: NA | F87: NA | G87: 0 | H87: 0 | I87: 0 | J87: 0 | K87: 0 | L87: 0 | M87: 0 | N87: 0 | O87: 0 | P87: 0 | Q87: 0 | R87: 0 | S87: 0 | T87: 0
A88: QRL | B88: RHU | C88: PORTSMOUTH HOSPITALS UNIVERSITY NATIONAL HEALTH SERVICE TRUST | D88: 26 | E88: 0.9615384615 | F88: 0 | G88: 21 | H88: 4 | I88: 1 | J88: 0 | K88: 0 | L88: 0 | M88: 0 | N88: 0 | O88: 0 | P88: 26 | Q88: 0 | R88: 0 | S88: 0 | T88: 0
A89: QRL | B89: RHM | C89: UNIVERSITY HOSPITAL SOUTHAMPTON NHS FOUNDATION TRUST | D89: 27 | E89: 0.6666666667 | F89: 0.1481481481 | G89: 5 | H89: 13 | I89: 2 | J89: 3 | K89: 1 | L89: 3 | M89: 0 | N89: 0 | O89: 0 | P89: 0 | Q89: 3 | R89: 0 | S89: 24 | T89: 0
A90: QRV | B90: RQM | C90: CHELSEA AND WESTMINSTER HOSPITAL NHS FOUNDATION TRUST | D90: 1 | E90: * | F90: * | G90: * | H90: * | I90: * | J90: * | K90: * | L90: * | M90: * | N90: * | O90: * | P90: * | Q90: * | R90: * | S90: * | T90: *
A91: QRV | B91: RYJ | C91: IMPERIAL COLLEGE HEALTHCARE NHS TRUST | D91: 21 | E91: 1 | F91: 0 | G91: 19 | H91: 2 | I91: 0 | J91: 0 | K91: 0 | L91: 0 | M91: 0 | N91: 0 | O91: 0 | P91: 0 | Q91: 0 | R91: 0 | S91: 21 | T91: 0
A92: QRV | B92: R1K | C92: LONDON NORTH WEST UNIVERSITY HEALTHCARE NHS TRUST | D92: 0 | E92: NA | F92: NA | G92: 0 | H92: 0 | I92: 0 | J92: 0 | K92: 0 | L92: 0 | M92: 0 | N92: 0 | O92: 0 | P92: 0 | Q92: 0 | R92: 0 | S92: 0 | T92: 0
A93: QRV | B93: RAS | C93: THE HILLINGDON HOSPITALS NHS FOUNDATION TRUST | D93: 14 | E93: 0.9285714286 | F93: 0 | G93: * | H93: * | I93: * | J93: * | K93: * | L93: * | M93: * | N93: * | O93: * | P93: * | Q93: * | R93: * | S93: * | T93: *
A94: QSL | B94: RH5 | C94: SOMERSET NHS FOUNDATION TRUST | D94: 0 | E94: NA | F94: NA | G94: 0 | H94: 0 | I94: 0 | J94: 0 | K94: 0 | L94: 0 | M94: 0 | N94: 0 | O94: 0 | P94: 0 | Q94: 0 | R94: 0 | S94: 0 | T94: 0
A95: QSL | B95: RA4 | C95: YEOVIL DISTRICT HOSPITAL NHS FOUNDATION TRUST | D95: 4 | E95: * | F95: * | G95: * | H95: * | I95: * | J95: * | K95: * | L95: * | M95: * | N95: * | O95: * | P95: * | Q95: * | R95: * | S95: * | T95: *
A96: QT1 | B96: RX1 | C96: NOTTINGHAM UNIVERSITY HOSPITALS NHS TRUST | D96: 13 | E96: 1 | F96: 0 | G96: * | H96: * | I96: * | J96: * | K96: * | L96: * | M96: * | N96: * | O96: * | P96: * | Q96: * | R96: * | S96: * | T96: *
A97: QT1 | B97: RK5 | C97: SHERWOOD FOREST HOSPITALS NHS FOUNDATION TRUST | D97: 0 | E97: NA | F97: NA | G97: 0 | H97: 0 | I97: 0 | J97: 0 | K97: 0 | L97: 0 | M97: 0 | N97: 0 | O97: 0 | P97: 0 | Q97: 0 | R97: 0 | S97: 0 | T97: 0
A98: QT6 | B98: REF | C98: ROYAL CORNWALL HOSPITALS NHS TRUST | D98: 2 | E98: * | F98: * | G98: * | H98: * | I98: * | J98: * | K98: * | L98: * | M98: * | N98: * | O98: * | P98: * | Q98: * | R98: * | S98: * | T98: *
A99: QU9 | B99: RXQ | C99: BUCKINGHAMSHIRE HEALTHCARE NHS TRUST | D99: 23 | E99: 0.7391304348 | F99: 0.1304347826 | G99: 10 | H99: 7 | I99: 3 | J99: 2 | K99: 1 | L99: 0 | M99: 23 | N99: 0 | O99: 0 | P99: 0 | Q99: 0 | R99: 0 | S99: 0 | T99: 0
A100: QU9 | B100: RTH | C100: OXFORD UNIVERSITY HOSPITALS NHS FOUNDATION TRUST | D100: 0 | E100: NA | F100: NA | G100: 0 | H100: 0 | I100: 0 | J100: 0 | K100: 0 | L100: 0 | M100: 0 | N100: 0 | O100: 0 | P100: 0 | Q100: 0 | R100: 0 | S100: 0 | T100: 0
A101: QU9 | B101: RHW | C101: ROYAL BERKSHIRE NHS FOUNDATION TRUST | D101: 0 | E101: NA | F101: NA | G101: 0 | H101: 0 | I101: 0 | J101: 0 | K101: 0 | L101: 0 | M101: 0 | N101: 0 | O101: 0 | P101: 0 | Q101: 0 | R101: 0 | S101: 0 | T101: 0
A102: QUA | B102: RNA | C102: THE DUDLEY GROUP NHS FOUNDATION TRUST | D102: 0 | E102: NA | F102: NA | G102: 0 | H102: 0 | I102: 0 | J102: 0 | K102: 0 | L102: 0 | M102: 0 | N102: 0 | O102: 0 | P102: 0 | Q102: 0 | R102: 0 | S102: 0 | T102: 0
A103: QUA | B103: RL4 | C103: THE ROYAL WOLVERHAMPTON NHS TRUST | D103: 43 | E103: 0.8604651163 | F103: 0.06976744186 | G103: 29 | H103: 8 | I103: 2 | J103: 0 | K103: 3 | L103: 1 | M103: 43 | N103: 0 | O103: 0 | P103: 0 | Q103: 0 | R103: 0 | S103: 0 | T103: 0
A104: QUA | B104: RBK | C104: WALSALL HEALTHCARE NHS TRUST | D104: 11 | E104: 0.8181818182 | F104: 0.09090909091 | G104: 9 | H104: 0 | I104: 1 | J104: 0 | K104: 1 | L104: 0 | M104: 11 | N104: 0 | O104: 0 | P104: 0 | Q104: 0 | R104: 0 | S104: 0 | T104: 0
A105: QUE | B105: RGT | C105: CAMBRIDGE UNIVERSITY HOSPITALS NHS FOUNDATION TRUST | D105: 1 | E105: * | F105: * | G105: * | H105: * | I105: * | J105: * | K105: * | L105: * | M105: * | N105: * | O105: * | P105: * | Q105: * | R105: * | S105: * | T105: *
A106: QUE | B106: RGN | C106: NORTH WEST ANGLIA NHS FOUNDATION TRUST | D106: 10 | E106: 1 | F106: 0 | G106: * | H106: * | I106: * | J106: * | K106: * | L106: * | M106: * | N106: * | O106: * | P106: * | Q106: * | R106: * | S106: * | T106: *
A107: QUY | B107: RVJ | C107: NORTH BRISTOL NHS TRUST | D107: 58 | E107: 0.9310344828 | F107: 0.03448275862 | G107: 42 | H107: 12 | I107: 1 | J107: 1 | K107: 1 | L107: 1 | M107: 58 | N107: 0 | O107: 0 | P107: 0 | Q107: 0 | R107: 0 | S107: 0 | T107: 0
A108: QUY | B108: RA7 | C108: UNIVERSITY HOSPITALS BRISTOL AND WESTON NHS FOUNDATION TRUST | D108: 21 | E108: 1 | F108: 0 | G108: 17 | H108: 4 | I108: 0 | J108: 0 | K108: 0 | L108: 0 | M108: 0 | N108: 0 | O108: 0 | P108: 21 | Q108: 0 | R108: 0 | S108: 0 | T108: 0
A109: QVV | B109: RBD | C109: DORSET COUNTY HOSPITAL NHS FOUNDATION TRUST | D109: 8 | E109: 0.5 | F109: 0.25 | G109: 3 | H109: 1 | I109: 1 | J109: 1 | K109: 1 | L109: 1 | M109: 8 | N109: 0 | O109: 0 | P109: 0 | Q109: 0 | R109: 0 | S109: 0 | T109: 0
A110: QVV | B110: R0D | C110: UNIVERSITY HOSPITALS DORSET NHS FOUNDATION TRUST | D110: 48 | E110: 0.9166666667 | F110: 0.0625 | G110: 35 | H110: 9 | I110: 1 | J110: 2 | K110: 1 | L110: 0 | M110: 48 | N110: 0 | O110: 0 | P110: 0 | Q110: 0 | R110: 0 | S110: 0 | T110: 0
A111: QWE | B111: RJ6 | C111: CROYDON HEALTH SERVICES NHS TRUST | D111: 0 | E111: NA | F111: NA | G111: 0 | H111: 0 | I111: 0 | J111: 0 | K111: 0 | L111: 0 | M111: 0 | N111: 0 | O111: 0 | P111: 0 | Q111: 0 | R111: 0 | S111: 0 | T111: 0
A112: QWE | B112: RVR | C112: EPSOM AND ST HELIER UNIVERSITY HOSPITALS NHS TRUST | D112: 5 | E112: 1 | F112: 0 | G112: 5 | H112: 0 | I112: 0 | J112: 0 | K112: 0 | L112: 0 | M112: 0 | N112: 0 | O112: 0 | P112: 4 | Q112: 0 | R112: 0 | S112: 1 | T112: 0
A113: QWE | B113: RAX | C113: KINGSTON HOSPITAL NHS FOUNDATION TRUST | D113: 9 | E113: 1 | F113: 0 | G113: 8 | H113: 1 | I113: 0 | J113: 0 | K113: 0 | L113: 0 | M113: 0 | N113: 4 | O113: 0 | P113: 0 | Q113: 0 | R113: 0 | S113: 5 | T113: 0
A114: QWE | B114: RJ7 | C114: ST GEORGE'S UNIVERSITY HOSPITALS NHS FOUNDATION TRUST | D114: 0 | E114: NA | F114: NA | G114: 0 | H114: 0 | I114: 0 | J114: 0 | K114: 0 | L114: 0 | M114: 0 | N114: 0 | O114: 0 | P114: 0 | Q114: 0 | R114: 0 | S114: 0 | T114: 0
A115: QWO | B115: RCF | C115: AIREDALE NHS FOUNDATION TRUST | D115: 0 | E115: NA | F115: NA | G115: 0 | H115: 0 | I115: 0 | J115: 0 | K115: 0 | L115: 0 | M115: 0 | N115: 0 | O115: 0 | P115: 0 | Q115: 0 | R115: 0 | S115: 0 | T115: 0
A116: QWO | B116: RAE | C116: BRADFORD TEACHING HOSPITALS NHS FOUNDATION TRUST | D116: 0 | E116: NA | F116: NA | G116: 0 | H116: 0 | I116: 0 | J116: 0 | K116: 0 | L116: 0 | M116: 0 | N116: 0 | O116: 0 | P116: 0 | Q116: 0 | R116: 0 | S116: 0 | T116: 0
A117: QWO | B117: RWY | C117: CALDERDALE AND HUDDERSFIELD NHS FOUNDATION TRUST | D117: 3 | E117: * | F117: * | G117: * | H117: * | I117: * | J117: * | K117: * | L117: * | M117: * | N117: * | O117: * | P117: * | Q117: * | R117: * | S117: * | T117: *
A118: QWO | B118: RR8 | C118: LEEDS TEACHING HOSPITALS NHS TRUST | D118: 0 | E118: NA | F118: NA | G118: 0 | H118: 0 | I118: 0 | J118: 0 | K118: 0 | L118: 0 | M118: 0 | N118: 0 | O118: 0 | P118: 0 | Q118: 0 | R118: 0 | S118: 0 | T118: 0
A119: QWO | B119: RXF | C119: MID YORKSHIRE HOSPITALS NHS TRUST | D119: 42 | E119: 0.9285714286 | F119: 0.02380952381 | G119: 37 | H119: 2 | I119: 2 | J119: 0 | K119: 1 | L119: 0 | M119: 0 | N119: 0 | O119: 0 | P119: 37 | Q119: 0 | R119: 0 | S119: 5 | T119: 0
A120: QWU | B120: RLT | C120: GEORGE ELIOT HOSPITAL NHS TRUST | D120: 20 | E120: 0.95 | F120: 0 | G120: 15 | H120: 4 | I120: 1 | J120: 0 | K120: 0 | L120: 0 | M120: 20 | N120: 0 | O120: 0 | P120: 0 | Q120: 0 | R120: 0 | S120: 0 | T120: 0
A121: QWU | B121: RJC | C121: SOUTH WARWICKSHIRE NHS FOUNDATION TRUST | D121: 0 | E121: NA | F121: NA | G121: 0 | H121: 0 | I121: 0 | J121: 0 | K121: 0 | L121: 0 | M121: 0 | N121: 0 | O121: 0 | P121: 0 | Q121: 0 | R121: 0 | S121: 0 | T121: 0
A122: QWU | B122: RKB | C122: UNIVERSITY HOSPITALS COVENTRY AND WARWICKSHIRE NHS TRUST | D122: 0 | E122: NA | F122: NA | G122: 0 | H122: 0 | I122: 0 | J122: 0 | K122: 0 | L122: 0 | M122: 0 | N122: 0 | O122: 0 | P122: 0 | Q122: 0 | R122: 0 | S122: 0 | T122: 0
A123: QXU | B123: RTK | C123: ASHFORD AND ST PETER'S HOSPITALS NHS FOUNDATION TRUST | D123: 0 | E123: NA | F123: NA | G123: 0 | H123: 0 | I123: 0 | J123: 0 | K123: 0 | L123: 0 | M123: 0 | N123: 0 | O123: 0 | P123: 0 | Q123: 0 | R123: 0 | S123: 0 | T123: 0
A124: QXU | B124: RA2 | C124: ROYAL SURREY COUNTY HOSPITAL NHS FOUNDATION TRUST | D124: 27 | E124: 1 | F124: 0 | G124: 26 | H124: 1 | I124: 0 | J124: 0 | K124: 0 | L124: 0 | M124: 27 | N124: 0 | O124: 0 | P124: 0 | Q124: 0 | R124: 0 | S124: 0 | T124: 0
A125: QXU | B125: RTP | C125: SURREY AND SUSSEX HEALTHCARE NHS TRUST | D125: 13 | E125: 0.9230769231 | F125: 0 | G125: 9 | H125: 3 | I125: 1 | J125: 0 | K125: 0 | L125: 0 | M125: 0 | N125: 0 | O125: 0 | P125: 1 | Q125: 0 | R125: 0 | S125: 0 | T125: 12
A126: QYG | B126: RJN | C126: EAST CHESHIRE NHS TRUST | D126: 0 | E126: NA | F126: NA | G126: 0 | H126: 0 | I126: 0 | J126: 0 | K126: 0 | L126: 0 | M126: 0 | N126: 0 | O126: 0 | P126: 0 | Q126: 0 | R126: 0 | S126: 0 | T126: 0
A127: QYG | B127: REP | C127: LIVERPOOL WOMEN'S NHS FOUNDATION TRUST | D127: 20 | E127: 0.8 | F127: 0.1 | G127: 15 | H127: 1 | I127: 2 | J127: 0 | K127: 2 | L127: 0 | M127: 0 | N127: 0 | O127: 0 | P127: 0 | Q127: 0 | R127: 0 | S127: 0 | T127: 20
A128: QYG | B128: RBT | C128: MID CHESHIRE HOSPITALS NHS FOUNDATION TRUST | D128: 0 | E128: NA | F128: NA | G128: 0 | H128: 0 | I128: 0 | J128: 0 | K128: 0 | L128: 0 | M128: 0 | N128: 0 | O128: 0 | P128: 0 | Q128: 0 | R128: 0 | S128: 0 | T128: 0
A129: QYG | B129: RVY | C129: SOUTHPORT AND ORMSKIRK HOSPITAL NHS TRUST | D129: 1 | E129: * | F129: * | G129: * | H129: * | I129: * | J129: * | K129: * | L129: * | M129: * | N129: * | O129: * | P129: * | Q129: * | R129: * | S129: * | T129: *
A130: QYG | B130: RBN | C130: ST HELENS AND KNOWSLEY TEACHING HOSPITALS NHS TRUST | D130: 10 | E130: 0.9 | F130: 0.1 | G130: 8 | H130: 1 | I130: 0 | J130: 1 | K130: 0 | L130: 0 | M130: 0 | N130: 0 | O130: 0 | P130: 10 | Q130: 0 | R130: 0 | S130: 0 | T130: 0
A131: QYG | B131: RWW | C131: WARRINGTON AND HALTON TEACHING HOSPITALS NHS FOUNDATION TRUST | D131: 0 | E131: NA | F131: NA | G131: 0 | H131: 0 | I131: 0 | J131: 0 | K131: 0 | L131: 0 | M131: 0 | N131: 0 | O131: 0 | P131: 0 | Q131: 0 | R131: 0 | S131: 0 | T131: 0
A132: QYG | B132: RBL | C132: WIRRAL UNIVERSITY TEACHING HOSPITAL NHS FOUNDATION TRUST | D132: 0 | E132: NA | F132: NA | G132: 0 | H132: 0 | I132: 0 | J132: 0 | K132: 0 | L132: 0 | M132: 0 | N132: 0 | O132: 0 | P132: 0 | Q132: 0 | R132: 0 | S132: 0 | T132: 0

Sheet BSQ1 (hidden)
B1: Sort | C1: Region (LO) | D1: Region (LO) | E1: Trusts | F1: Trusts | G1: Sites | H1: Sites | J1: Sort ranges: | K1: Sort range… | L1: Sort range… | M1: Sort range… | N1: Reference Region List: | O1: Code… | P1: Name… | Q1: Linked Region List: | R1: Code… | S1: Name… | T1: Reference Lists: | U1: Code… | V1: Code… | W1: Name… | X1: Code… | Y1: Name… | Z1: Trusts Linked Lists: | AA1: Code… | AB1: Name… | AC1: Site Linked Lists: | AD1: Code… | AE1: Name… | AF1: Code… | AG1: Name…
A2: Region (LO) | B2: 1 | C2: 1 | D2: 1 | E2: - | F2: - | G2: - | H2: - | K2: STP Code | L2: STP Code | M2: STP Code | O2: QE1 | P2: LANCASHIRE AND SOUTH CUMBRIA ICS | R2: QE1 | S2: LANCASHIRE AND SOUTH CUMBRIA ICS | U2: QE1 | V2: RXL | W2: BLACKPOOL TEACHING HOSPITALS NHS FOUNDATION TRUST | X2: RXL01 | Y2: Blackpool Victoria Hospital | AA2: R0A | AB2: AIREDALE NHS FOUNDATION TRUST | AD2: R0A | AE2: AIREDALE NHS FOUNDATION TRUST | AF2: R0A05 | AG2: Airedale General Hospital
A3: Trusts | B3: 1 | C3: 1 | D3: 1 | E3: 1 | F3: 1 | G3: - | H3: - | K3: STP Name | L3: Trust Code | M3: Trust Code | O3: QF7 | P3: SOUTH YORKSHIRE AND BASSETLAW STP | R3: QF7 | S3: SOUTH YORKSHIRE AND BASSETLAW STP | U3: QE1 | V3: RXR | W3: EAST LANCASHIRE HOSPITALS NHS TRUST | X3: RXR20 | Y3: Royal Blackburn Hospital | AA3: R0B | AB3: ASHFORD AND ST PETER'S HOSPITALS NHS FOUNDATION TRUST | AD3: R0B | AE3: ASHFORD AND ST PETER'S HOSPITALS NHS FOUNDATION TRUST | AF3: R0B01 | AG3: Alexandra Hospital
A4: Sites | B4: 1 | C4: 1 | D4: 1 | E4: 1 | F4: 1 | G4: 1 | H4: 1 | K4: Total Responses | L4: Trust Name | M4: Trust Name | O4: QGH | P4: HEREFORDSHIRE AND WORCESTERSHIRE STP | R4: QGH | S4: HEREFORDSHIRE AND WORCESTERSHIRE STP | U4: QE1 | V4: RXN | W4: LANCASHIRE TEACHING HOSPITALS NHS FOUNDATION TRUST | X4: RXN01 | Y4: Chorley and South Ribble Hospital | AA4: R0D | AB4: BARKING, HAVERING AND REDBRIDGE UNIVERSITY HOSPITALS NHS TRUST | AD4: R0D | AE4: BARKING, HAVERING AND REDBRIDGE UNIVERSITY HOSPITALS NHS TRUST | AF4: R0B0Q | AG4: Andover War Memorial Hospital
K5: Percentage Positive | L5: Total Responses | M5: Site Code | O5: QH8 | P5: MID AND SOUTH ESSEX STP | R5: QH8 | S5: MID AND SOUTH ESSEX STP | U5: QE1 | V5: RXN | W5: LANCASHIRE TEACHING HOSPITALS NHS FOUNDATION TRUST | X5: RXN02 | Y5: Royal Preston Hospital | AA5: R1F | AB5: BARNSLEY HOSPITAL NHS FOUNDATION TRUST | AD5: R1F | AE5: BARNSLEY HOSPITAL NHS FOUNDATION TRUST | AF5: R0BXXX | AG5: Arrowe Park Hospital
K6: Percentage Negative | L6: Percentage Positive | M6: Site Name | O6: QHG | P6: BEDFORDSHIRE, LUTON AND MILTON KEYNES STP | R6: QHG | S6: BEDFORDSHIRE, LUTON AND MILTON KEYNES STP | U6: QF7 | V6: RFF | W6: BARNSLEY HOSPITAL NHS FOUNDATION TRUST | X6: RFFAA | Y6: Barnsley Hospital NHS Foundation Trust HQ | AA6: R1H | AB6: BARTS HEALTH NHS TRUST | AD6: R1H | AE6: BARTS HEALTH NHS TRUST | AF6: R0D01 | AG6: Ashford Hospital
K7: Very Good | L7: Percentage Negative | M7: Total Responses | O7: QHL | P7: BIRMINGHAM AND SOLIHULL STP | R7: QHL | S7: BIRMINGHAM AND SOLIHULL STP | U7: QF7 | V7: RP5 | W7: DONCASTER AND BASSETLAW TEACHING HOSPITALS NHS FOUNDATION TRUST | X7: RP5BA | Y7: Bassetlaw Hospital | AA7: R1K | AB7: BEDFORDSHIRE HOSPITALS NHS FOUNDATION TRUST | AD7: R1K | AE7: BEDFORDSHIRE HOSPITALS NHS FOUNDATION TRUST | AF7: R0D02 | AG7: Barnet Hospital
K8: Good | L8: Very Good | M8: Percentage Positive | O8: QHM | P8: CUMBRIA AND NORTH EAST STP | R8: QHM | S8: CUMBRIA AND NORTH EAST STP | U8: QF7 | V8: RP5 | W8: DONCASTER AND BASSETLAW TEACHING HOSPITALS NHS FOUNDATION TRUST | X8: RP5DR | Y8: Doncaster Royal Infirmary | AA8: RA2 | AB8: BIRMINGHAM WOMEN'S AND CHILDREN'S NHS FOUNDATION TRUST | AD8: RA2 | AE8: BIRMINGHAM WOMEN'S AND CHILDREN'S NHS FOUNDATION TRUST | AF8: R1F01 | AG8: Barnsley Hospital NHS Foundation Trust HQ
K9: Neither Good nor Poor | L9: Good | M9: Percentage Negative | O9: QJ2 | P9: JOINED UP CARE DERBYSHIRE STP | R9: QJ2 | S9: JOINED UP CARE DERBYSHIRE STP | U9: QF7 | V9: RP5 | W9: DONCASTER AND BASSETLAW TEACHING HOSPITALS NHS FOUNDATION TRUST | X9: RP5XXX | Y9: Non-hospital site | AA9: RA4 | AB9: BLACKPOOL TEACHING HOSPITALS NHS FOUNDATION TRUST | AD9: RA4 | AE9: BLACKPOOL TEACHING HOSPITALS NHS FOUNDATION TRUST | AF9: R1H12 | AG9: BASILDON HOSPITAL
K10: Poor | L10: Neither Good nor Poor | M10: Very Good | O10: QJG | P10: SUFFOLK AND NORTH EAST ESSEX ICS | R10: QJG | S10: SUFFOLK AND NORTH EAST ESSEX ICS | U10: QF7 | V10: RHQ | W10: SHEFFIELD TEACHING HOSPITALS NHS FOUNDATION TRUST | X10: RHQHH | Y10: Royal Hallamshire Hospital | AA10: RA7 | AB10: BOLTON NHS FOUNDATION TRUST | AD10: RA7 | AE10: BOLTON NHS FOUNDATION TRUST | AF10: R1HKH | AG10: Basingstoke and North Hampshire Hospital
K11: Very Poor | L11: Poor | M11: Good | O11: QJK | P11: DEVON STP | R11: QJK | S11: DEVON STP | U11: QF7 | V11: RFR | W11: THE ROTHERHAM NHS FOUNDATION TRUST | X11: RFRPA | Y11: Rotherham District General Hospital | AA11: RA9 | AB11: BRADFORD TEACHING HOSPITALS NHS FOUNDATION TRUST | AD11: RA9 | AE11: BRADFORD TEACHING HOSPITALS NHS FOUNDATION TRUST | AF11: R1HNH | AG11: Bassetlaw Hospital
K12: Don't Know | L12: Very Poor | M12: Neither Good nor Poor | O12: QJM | P12: LINCOLNSHIRE STP | R12: QJM | S12: LINCOLNSHIRE STP | U12: QGH | V12: RWP | W12: WORCESTERSHIRE ACUTE HOSPITALS NHS TRUST | X12: RWP01 | Y12: Alexandra Hospital | AA12: RAE | AB12: BUCKINGHAMSHIRE HEALTHCARE NHS TRUST | AD12: RAE | AE12: BUCKINGHAMSHIRE HEALTHCARE NHS TRUST | AF12: R1K01 | AG12: BEDFORD HOSPITAL SOUTH WING
L13: Don't Know | M13: Poor | O13: QK1 | P13: LEICESTER, LEICESTERSHIRE AND RUTLAND STP | R13: QK1 | S13: LEICESTER, LEICESTERSHIRE AND RUTLAND STP | U13: QGH | V13: RWP | W13: WORCESTERSHIRE ACUTE HOSPITALS NHS TRUST | X13: RWP31 | Y13: Kidderminster Hospital | AA13: RAJ | AB13: CALDERDALE AND HUDDERSFIELD NHS FOUNDATION TRUST | AD13: RAJ | AE13: CALDERDALE AND HUDDERSFIELD NHS FOUNDATION TRUST | AF13: R1K02 | AG13: Birmingham Women's Hospital
L14: Mode SMS | M14: Very Poor | O14: QKK | P14: OUR HEALTHIER SOUTH EAST LONDON STP | R14: QKK | S14: OUR HEALTHIER SOUTH EAST LONDON STP | U14: QGH | V14: RWP | W14: WORCESTERSHIRE ACUTE HOSPITALS NHS TRUST | X14: RWP50 | Y14: Worcestershire Royal Hospital | AA14: RAL | AB14: CAMBRIDGE UNIVERSITY HOSPITALS NHS FOUNDATION TRUST | AD14: RAL | AE14: CAMBRIDGE UNIVERSITY HOSPITALS NHS FOUNDATION TRUST | AF14: RA201 | AG14: Blackpool Victoria Hospital
L15: Mode Electronic Discharge | M15: Don't Know | O15: QKS | P15: KENT AND MEDWAY STP | R15: QKS | S15: KENT AND MEDWAY STP | U15: QGH | V15: RLQ | W15: WYE VALLEY NHS TRUST | X15: RLQ01 | Y15: Hereford County Hospital | AA15: RAP | AB15: CHELSEA AND WESTMINSTER HOSPITAL NHS FOUNDATION TRUST | AD15: RAP | AE15: CHELSEA AND WESTMINSTER HOSPITAL NHS FOUNDATION TRUST | AF15: RA430 | AG15: Bradford Royal Infirmary
L16: Mode Electronic Home | O16: QM7 | P16: HERTFORDSHIRE AND WEST ESSEX STP | R16: QM7 | S16: HERTFORDSHIRE AND WEST ESSEX STP | U16: QH8 | V16: RAJ | W16: MID AND SOUTH ESSEX NHS FOUNDATION TRUST | X16: RAJ12 | Y16: BASILDON HOSPITAL | AA16: RAS | AB16: CROYDON HEALTH SERVICES NHS TRUST | AD16: RAS | AE16: CROYDON HEALTH SERVICES NHS TRUST | AF16: RA707 | AG16: Bridgwater Hospital
L17: Mode Paper Discharge | O17: QMF | P17: EAST LONDON HEALTH & CARE PARTNERSHIP (STP) | R17: QMF | S17: EAST LONDON HEALTH & CARE PARTNERSHIP (STP) | U17: QHG | V17: RC9 | W17: BEDFORDSHIRE HOSPITALS NHS FOUNDATION TRUST | X17: RC979 | Y17: BEDFORD HOSPITAL SOUTH WING | AA17: RAX | AB17: DARTFORD AND GRAVESHAM NHS TRUST | AD17: RAX | AE17: DARTFORD AND GRAVESHAM NHS TRUST | AF17: RA901 | AG17: Calderdale Royal Hospital
L18: Mode Paper Home | O18: QMJ | P18: NORTH LONDON PARTNERS IN HEALTH & CARE (STP) | R18: QMJ | S18: NORTH LONDON PARTNERS IN HEALTH & CARE (STP) | U18: QHG | V18: RC9 | W18: BEDFORDSHIRE HOSPITALS NHS FOUNDATION TRUST | X18: RC971 | Y18: Luton and Dunstable Hospital | AA18: RBD | AB18: DONCASTER AND BASSETLAW TEACHING HOSPITALS NHS FOUNDATION TRUST | AD18: RBD | AE18: DONCASTER AND BASSETLAW TEACHING HOSPITALS NHS FOUNDATION TRUST | AF18: RAE01 | AG18: Central Middlesex Hospital
L19: Mode Telephone | O19: QMM | P19: NORFOLK AND WAVENEY HEALTH & CARE PARTNERSHIP (STP) | R19: QMM | S19: NORFOLK AND WAVENEY HEALTH & CARE PARTNERSHIP (STP) | U19: QHG | V19: RD8 | W19: MILTON KEYNES UNIVERSITY HOSPITAL NHS FOUNDATION TRUST | X19: RD816 | Y19: Milton Keynes Hospital | AA19: RBK | AB19: DORSET COUNTY HOSPITAL NHS FOUNDATION TRUST | AD19: RBK | AE19: DORSET COUNTY HOSPITAL NHS FOUNDATION TRUST | AF19: RAEXXX | AG19: Chelsea and Westminster Hospital
L20: Mode Online | O20: QNC | P20: STAFFORDSHIRE & STOKE ON TRENT STP | R20: QNC | S20: STAFFORDSHIRE & STOKE ON TRENT STP | U20: QHL | V20: RQ3 | W20: BIRMINGHAM WOMEN'S AND CHILDREN'S NHS FOUNDATION TRUST | X20: RQ370 | Y20: Birmingham Women's Hospital | AA20: RBL | AB20: EAST AND NORTH HERTFORDSHIRE NHS TRUST | AD20: RBL | AE20: EAST AND NORTH HERTFORDSHIRE NHS TRUST | AF20: RAJ12 | AG20: Chorley and South Ribble Hospital
L21: Mode Other | O21: QNQ | P21: FRIMLEY HEALTH & CARE (STP) | R21: QNQ | S21: FRIMLEY HEALTH & CARE (STP) | U21: QHL | V21: RRK | W21: UNIVERSITY HOSPITALS BIRMINGHAM NHS FOUNDATION TRUST | X21: RRK98 | Y21: Good Hope Hospital | AA21: RBN | AB21: EAST CHESHIRE NHS TRUST | AD21: RBN | AE21: EAST CHESHIRE NHS TRUST | AF21: RAL01 | AG21: Colchester General Hospital
O22: QNX | P22: SUSSEX HEALTH AND CARE PARTNERSHIP | R22: QNX | S22: SUSSEX HEALTH AND CARE PARTNERSHIP | U22: QHL | V22: RRK | W22: UNIVERSITY HOSPITALS BIRMINGHAM NHS FOUNDATION TRUST | X22: RRK97 | Y22: Heartlands Hospital | AA22: RBT | AB22: EAST KENT HOSPITALS UNIVERSITY NHS FOUNDATION TRUST | AD22: RBT | AE22: EAST KENT HOSPITALS UNIVERSITY NHS FOUNDATION TRUST | AF22: RAL26 | AG22: Conquest Hospital
O23: QOC | P23: SHROPSHIRE AND TELFORD AND WREKIN STP | R23: QOC | S23: SHROPSHIRE AND TELFORD AND WREKIN STP | U23: QHL | V23: RRK | W23: UNIVERSITY HOSPITALS BIRMINGHAM NHS FOUNDATION TRUST | X23: RRK99 | Y23: Solihull Hospital | AA23: RBZ | AB23: EAST LANCASHIRE HOSPITALS NHS TRUST | AD23: RBZ | AE23: EAST LANCASHIRE HOSPITALS NHS TRUST | AF23: RAPNM | AG23: County Hospital
O24: QOP | P24: GREATER MANCHESTER HEALTH & SOCIAL CARE PARTNERSHIP | R24: QOP | S24: GREATER MANCHESTER HEALTH & SOCIAL CARE PARTNERSHIP | U24: QHM | V24: RR7 | W24: GATESHEAD HEALTH NHS FOUNDATION TRUST | X24: RR7EN | Y24: Queen Elizabeth Hospital | AA24: RC9 | AB24: EAST SUFFOLK AND NORTH ESSEX NHS FOUNDATION TRUST | AD24: RC9 | AE24: EAST SUFFOLK AND NORTH ESSEX NHS FOUNDATION TRUST | AF24: RAS01 | AG24: Coventry and Warwickshire Hospital
O25: QOQ | P25: HUMBER, COAST AND VALE STP | R25: QOQ | S25: HUMBER, COAST AND VALE STP | U25: QHM | V25: RNN | W25: NORTH CUMBRIA INTEGRATED CARE NHS FOUNDATION TRUST | X25: RNNXXX | Y25: Non-hospital site | AA25: RCD | AB25: EAST SUSSEX HEALTHCARE NHS TRUST | AD25: RCD | AE25: EAST SUSSEX HEALTHCARE NHS TRUST | AF25: RAX01 | AG25: Croydon University Hospital
O26: QOX | P26: BATH AND NORTH EAST SOMERSET, SWINDON AND WILTSHIRE STP | R26: QOX | S26: BATH AND NORTH EAST SOMERSET, SWINDON AND WILTSHIRE STP | U26: QHM | V26: RVW | W26: NORTH TEES AND HARTLEPOOL NHS FOUNDATION TRUST | X26: RVWXXX | Y26: Non-hospital site | AA26: RCF | AB26: EPSOM AND ST HELIER UNIVERSITY HOSPITALS NHS TRUST | AD26: RCF | AE26: EPSOM AND ST HELIER UNIVERSITY HOSPITALS NHS TRUST | AF26: RBD01 | AG26: Darent Valley Hospital
O27: QPM | P27: NORTHAMPTONSHIRE STP | R27: QPM | S27: NORTHAMPTONSHIRE STP | U27: QHM | V27: RVW | W27: NORTH TEES AND HARTLEPOOL NHS FOUNDATION TRUST | X27: RVWAE | Y27: University Hospital Of North Tees | AA27: RCX | AB27: FRIMLEY HEALTH NHS FOUNDATION TRUST | AD27: RCX | AE27: FRIMLEY HEALTH NHS FOUNDATION TRUST | AF27: RBK02 | AG27: Derriford Hospital
O28: QR1 | P28: GLOUCESTERSHIRE STP | R28: QR1 | S28: GLOUCESTERSHIRE STP | U28: QHM | V28: RTR | W28: SOUTH TEES HOSPITALS NHS FOUNDATION TRUST | X28: RTR45 | Y28: Friarage Hospital Site | AA28: RD1 | AB28: GATESHEAD HEALTH NHS FOUNDATION TRUST | AD28: RD1 | AE28: GATESHEAD HEALTH NHS FOUNDATION TRUST | AF28: RBL14 | AG28: Dewsbury and District Hospital
O29: QRL | P29: HAMPSHIRE AND THE ISLE OF WIGHT STP | R29: QRL | S29: HAMPSHIRE AND THE ISLE OF WIGHT STP | U29: QHM | V29: RTR | W29: SOUTH TEES HOSPITALS NHS FOUNDATION TRUST | X29: RTRAT | Y29: The James Cook University Hospital | AA29: RD8 | AB29: GEORGE ELIOT HOSPITAL NHS TRUST | AD29: RD8 | AE29: GEORGE ELIOT HOSPITAL NHS TRUST | AF29: RBN01 | AG29: Diana, Princess Of Wales Hospital
O30: QRV | P30: NORTH WEST LONDON HEALTH & CARE PARTNERSHIP (STP) | R30: QRV | S30: NORTH WEST LONDON HEALTH & CARE PARTNERSHIP (STP) | U30: QHM | V30: R0B | W30: SOUTH TYNESIDE AND SUNDERLAND NHS FOUNDATION TRUST | X30: R0BXXX | Y30: Non-hospital site | AA30: RDE | AB30: GLOUCESTERSHIRE HOSPITALS NHS FOUNDATION TRUST | AD30: RDE | AE30: GLOUCESTERSHIRE HOSPITALS NHS FOUNDATION TRUST | AF30: RBT20 | AG30: Doncaster Royal Infirmary
O31: QSL | P31: SOMERSET STP | R31: QSL | S31: SOMERSET STP | U31: QHM | V31: R0B | W31: SOUTH TYNESIDE AND SUNDERLAND NHS FOUNDATION TRUST | X31: R0B0Q | Y31: South Tyneside District Hospital | AA31: RDU | AB31: GREAT WESTERN HOSPITALS NHS FOUNDATION TRUST | AD31: RDU | AE31: GREAT WESTERN HOSPITALS NHS FOUNDATION TRUST | AF31: RBZ12 | AG31: Dorset County Hospital
O32: QT1 | P32: NOTTINGHAM AND NOTTINGHAMSHIRE HEALTH AND CARE STP | R32: QT1 | S32: NOTTINGHAM AND NOTTINGHAMSHIRE HEALTH AND CARE STP | U32: QHM | V32: R0B | W32: SOUTH TYNESIDE AND SUNDERLAND NHS FOUNDATION TRUST | X32: R0B01 | Y32: Sunderland Royal Hospital | AA32: REF | AB32: GUY'S AND ST THOMAS' NHS FOUNDATION TRUST | AD32: REF | AE32: GUY'S AND ST THOMAS' NHS FOUNDATION TRUST | AF32: RC971 | AG32: East Surrey Hospital
O33: QT6 | P33: CORNWALL AND THE ISLES OF SCILLY HEALTH & SOCIAL CARE PARTNERSHIP (STP) | R33: QT6 | S33: CORNWALL AND THE ISLES OF SCILLY HEALTH & SOCIAL CARE PARTNERSHIP (STP) | U33: QHM | V33: RTD | W33: THE NEWCASTLE UPON TYNE HOSPITALS NHS FOUNDATION TRUST | X33: RTD02 | Y33: The Royal Victoria Infirmary | AA33: REP | AB33: HAMPSHIRE HOSPITALS NHS FOUNDATION TRUST | AD33: REP | AE33: HAMPSHIRE HOSPITALS NHS FOUNDATION TRUST | AF33: RC979 | AG33: Eastbourne District General Hospital
O34: QU9 | P34: BUCKINGHAMSHIRE, OXFORDSHIRE AND BERKSHIRE WEST STP | R34: QU9 | S34: BUCKINGHAMSHIRE, OXFORDSHIRE AND BERKSHIRE WEST STP | U34: QJ2 | V34: RTG | W34: UNIVERSITY HOSPITALS OF DERBY AND BURTON NHS FOUNDATION TRUST | X34: RTG02 | Y34: Queens Hospital, Burton Upon Trent | AA34: RF4 | AB34: HARROGATE AND DISTRICT NHS FOUNDATION TRUST | AD34: RF4 | AE34: HARROGATE AND DISTRICT NHS FOUNDATION TRUST | AF34: RCD01 | AG34: Epsom Hospital
O35: QUA | P35: THE BLACK COUNTRY AND WEST BIRMINGHAM STP | R35: QUA | S35: THE BLACK COUNTRY AND WEST BIRMINGHAM STP | U35: QJG | V35: RDE | W35: EAST SUFFOLK AND NORTH ESSEX NHS FOUNDATION TRUST | X35: RDEE4 | Y35: Colchester General Hospital | AA35: RFF | AB35: HOMERTON UNIVERSITY HOSPITAL NHS FOUNDATION TRUST | AD35: RFF | AE35: HOMERTON UNIVERSITY HOSPITAL NHS FOUNDATION TRUST | AF35: RCF22 | AG35: Friarage Hospital Site
O36: QUE | P36: CAMBRIDGESHIRE AND PETERBOROUGH STP | R36: QUE | S36: CAMBRIDGESHIRE AND PETERBOROUGH STP | U36: QJG | V36: RDE | W36: EAST SUFFOLK AND NORTH ESSEX NHS FOUNDATION TRUST | X36: RDE03 | Y36: Ipswich Hospital | AA36: RFR | AB36: HULL UNIVERSITY TEACHING HOSPITALS NHS TRUST | AD36: RFR | AE36: HULL UNIVERSITY TEACHING HOSPITALS NHS TRUST | AF36: RCX66 | AG36: Frimley Park Hospital
O37: QUY | P37: BRISTOL, NORTH SOMERSET AND SOUTH GLOUCESTERSHIRE STP | R37: QUY | S37: BRISTOL, NORTH SOMERSET AND SOUTH GLOUCESTERSHIRE STP | U37: QJG | V37: RGR | W37: WEST SUFFOLK NHS FOUNDATION TRUST | X37: RGR50 | Y37: West Suffolk Hospital | AA37: RGN | AB37: IMPERIAL COLLEGE HEALTHCARE NHS TRUST | AD37: RGN | AE37: IMPERIAL COLLEGE HEALTHCARE NHS TRUST | AF37: RCX70 | AG37: George Eliot Hospital - Acute Services
O38: QVV | P38: DORSET STP | R38: QVV | S38: DORSET STP | U38: QJK | V38: RBZ | W38: NORTHERN DEVON HEALTHCARE NHS TRUST | X38: RBZ12 | Y38: North Devon District Hospital | AA38: RGP | AB38: ISLE OF WIGHT NHS TRUST | AD38: RGP | AE38: ISLE OF WIGHT NHS TRUST | AF38: RCXXXX | AG38: Gloucestershire Royal Hospital
O39: QWE | P39: SOUTH WEST LONDON HEALTH & CARE PARTNERSHIP (STP) | R39: QWE | S39: SOUTH WEST LONDON HEALTH & CARE PARTNERSHIP (STP) | U39: QJK | V39: RH8 | W39: ROYAL DEVON AND EXETER NHS FOUNDATION TRUST | X39: RH854 | Y39: Honiton Hospital - RH 854 | AA39: RGR | AB39: JAMES PAGET UNIVERSITY HOSPITALS NHS FOUNDATION TRUST | AD39: RGR | AE39: JAMES PAGET UNIVERSITY HOSPITALS NHS FOUNDATION TRUST | AF39: RD108 | AG39: Good Hope Hospital
O40: QWO | P40: WEST YORKSHIRE AND HARROGATE HEALTH & CARE PARTNERSHIP (STP) | R40: QWO | S40: WEST YORKSHIRE AND HARROGATE HEALTH & CARE PARTNERSHIP (STP) | U40: QJK | V40: RH8 | W40: ROYAL DEVON AND EXETER NHS FOUNDATION TRUST | X40: RH801 | Y40: Royal Devon and Exeter Hospital (Wonford) | AA40: RGT | AB40: KETTERING GENERAL HOSPITAL NHS FOUNDATION TRUST | AD40: RGT | AE40: KETTERING GENERAL HOSPITAL NHS FOUNDATION TRUST | AF40: RD816 | AG40: Gosport War Memorial Hospital
O41: QWU | P41: COVENTRY AND WARWICKSHIRE STP | R41: QWU | S41: COVENTRY AND WARWICKSHIRE STP | U41: QJK | V41: RA9 | W41: TORBAY AND SOUTH DEVON NHS FOUNDATION TRUST | X41: RA901 | Y41: Torbay Hospital | AA41: RH5 | AB41: KING'S COLLEGE HOSPITAL NHS FOUNDATION TRUST | AD41: RH5 | AE41: KING'S COLLEGE HOSPITAL NHS FOUNDATION TRUST | AF41: RDE03 | AG41: Grantham and District Hospital
O42: QXU | P42: SURREY HEARTLANDS HEALTH & CARE PARTNERSHIP (STP) | R42: QXU | S42: SURREY HEARTLANDS HEALTH & CARE PARTNERSHIP (STP) | U42: QJK | V42: RK9 | W42: UNIVERSITY HOSPITALS PLYMOUTH NHS TRUST | X42: RK950 | Y42: Derriford Hospital | AA42: RH8 | AB42: KINGSTON HOSPITAL NHS FOUNDATION TRUST | AD42: RH8 | AE42: KINGSTON HOSPITAL NHS FOUNDATION TRUST | AF42: RDEE4 | AG42: Harrogate District Hospital
O43: QYG | P43: CHESHIRE AND MERSEYSIDE STP | R43: QYG | S43: CHESHIRE AND MERSEYSIDE STP | U43: QJK | V43: RK9 | W43: UNIVERSITY HOSPITALS PLYMOUTH NHS TRUST | X43: RK9XXX | Y43: Non-hospital site | AA43: RHM | AB43: LANCASHIRE TEACHING HOSPITALS NHS FOUNDATION TRUST | AD43: RHM | AE43: LANCASHIRE TEACHING HOSPITALS NHS FOUNDATION TRUST | AF43: RDU01 | AG43: Heartlands Hospital
O44: zIS1 | P44: Independent Sector Provider | R44: zIS1 | S44: Independent Sector Provider | U44: QJM | V44: RWD | W44: UNITED LINCOLNSHIRE HOSPITALS NHS TRUST | X44: RWDLP | Y44: Grantham and District Hospital | AA44: RHQ | AB44: LEEDS TEACHING HOSPITALS NHS TRUST | AD44: RHQ | AE44: LEEDS TEACHING HOSPITALS NHS TRUST | AF44: REF12 | AG44: Hereford County Hospital
U45: QJM | V45: RWD | W45: UNITED LINCOLNSHIRE HOSPITALS NHS TRUST | X45: RWDDA | Y45: Lincoln County Hospital | AA45: RHU | AB45: LEWISHAM AND GREENWICH NHS TRUST | AD45: RHU | AE45: LEWISHAM AND GREENWICH NHS TRUST | AF45: REFXXX | AG45: Hillingdon Hospital
U46: QJM | V46: RWD | W46: UNITED LINCOLNSHIRE HOSPITALS NHS TRUST | X46: RWDLA | Y46: Pilgrim Hospital | AA46: RHW | AB46: LIVERPOOL WOMEN'S NHS FOUNDATION TRUST | AD46: RHW | AE46: LIVERPOOL WOMEN'S NHS FOUNDATION TRUST | AF46: REP01 | AG46: Hinchingbrooke Hospital
U47: QK1 | V47: RWE | W47: UNIVERSITY HOSPITALS OF LEICESTER NHS TRUST | X47: RWEAK | Y47: Leicester General Hospital | AA47: RJ1 | AB47: LONDON NORTH WEST UNIVERSITY HEALTHCARE NHS TRUST | AD47: RJ1 | AE47: LONDON NORTH WEST UNIVERSITY HEALTHCARE NHS TRUST | AF47: RF4XXX | AG47: Homerton University Hospital
U48: QK1 | V48: RWE | W48: UNIVERSITY HOSPITALS OF LEICESTER NHS TRUST | X48: RWEAA | Y48: Leicester Royal Infirmary | AA48: RJ2 | AB48: MAIDSTONE AND TUNBRIDGE WELLS NHS TRUST | AD48: RJ2 | AE48: MAIDSTONE AND TUNBRIDGE WELLS NHS TRUST | AF48: RFFAA | AG48: Honiton Hospital - RH 854
U49: QK1 | V49: RWE | W49: UNIVERSITY HOSPITALS OF LEICESTER NHS TRUST | X49: RWEXXX | Y49: Non-hospital site | AA49: RJ6 | AB49: MANCHESTER UNIVERSITY NHS FOUNDATION TRUST | AD49: RJ6 | AE49: MANCHESTER UNIVERSITY NHS FOUNDATION TRUST | AF49: RFRPA | AG49: Horton General Hospital
U50: QKK | V50: RJ1 | W50: GUY'S AND ST THOMAS' NHS FOUNDATION TRUST | X50: RJ122 | Y50: St Thomas' Hospital | AA50: RJ7 | AB50: MEDWAY NHS FOUNDATION TRUST | AD50: RJ7 | AE50: MEDWAY NHS FOUNDATION TRUST | AF50: RGN80 | AG50: Hospital Of St Cross
U51: QKK | V51: RJZ | W51: KING'S COLLEGE HOSPITAL NHS FOUNDATION TRUST | X51: RJZ01 | Y51: King's College Hospital (Denmark Hill) | AA51: RJC | AB51: MID AND SOUTH ESSEX NHS FOUNDATION TRUST | AD51: RJC | AE51: MID AND SOUTH ESSEX NHS FOUNDATION TRUST | AF51: RGN90 | AG51: Huddersfield Royal Infirmary
U52: QKK | V52: RJZ | W52: KING'S COLLEGE HOSPITAL NHS FOUNDATION TRUST | X52: RJZ30 | Y52: Princess Royal University Hospital | AA52: RJE | AB52: MID CHESHIRE HOSPITALS NHS FOUNDATION TRUST | AD52: RJE | AE52: MID CHESHIRE HOSPITALS NHS FOUNDATION TRUST | AF52: RGP75 | AG52: Hull Royal Infirmary
U53: QKK | V53: RJ2 | W53: LEWISHAM AND GREENWICH NHS TRUST | X53: RJ2XXX | Y53: Non-hospital site | AA53: RJL | AB53: MID YORKSHIRE HOSPITALS NHS TRUST | AD53: RJL | AE53: MID YORKSHIRE HOSPITALS NHS TRUST | AF53: RGR50 | AG53: Ipswich Hospital
U54: QKK | V54: RJ2 | W54: LEWISHAM AND GREENWICH NHS TRUST | X54: RJ231 | Y54: Queen Elizabeth Hospital | AA54: RJN | AB54: MILTON KEYNES UNIVERSITY HOSPITAL NHS FOUNDATION TRUST | AD54: RJN | AE54: MILTON KEYNES UNIVERSITY HOSPITAL NHS FOUNDATION TRUST | AF54: RGT32 | AG54: James Paget University Hospital
U55: QKK | V55: RJ2 | W55: LEWISHAM AND GREENWICH NHS TRUST | X55: RJ224 | Y55: University Hospital Lewisham | AA55: RJZ | AB55: NORFOLK AND NORWICH UNIVERSITY HOSPITALS NHS FOUNDATION TRUST | AD55: RJZ | AE55: NORFOLK AND NORWICH UNIVERSITY HOSPITALS NHS FOUNDATION TRUST | AF55: RH5A8 | AG55: John Radcliffe Hospital
U56: QKS | V56: RN7 | W56: DARTFORD AND GRAVESHAM NHS TRUST | X56: RN707 | Y56: Darent Valley Hospital | AA56: RK5 | AB56: NORTH BRISTOL NHS TRUST | AD56: RK5 | AE56: NORTH BRISTOL NHS TRUST | AF56: RH5K6 | AG56: Kettering General Hospital
U57: QKS | V57: RVV | W57: EAST KENT HOSPITALS UNIVERSITY NHS FOUNDATION TRUST | X57: RVV01 | Y57: William Harvey Hospital (Ashford) | AA57: RK9 | AB57: NORTH CUMBRIA INTEGRATED CARE NHS FOUNDATION TRUST | AD57: RK9 | AE57: NORTH CUMBRIA INTEGRATED CARE NHS FOUNDATION TRUST | AF57: RH5XXX | AG57: Kidderminster Hospital
U58: QKS | V58: RWF | W58: MAIDSTONE AND TUNBRIDGE WELLS NHS TRUST | X58: RWF03 | Y58: Maidstone District General Hospital | AA58: RKB | AB58: NORTH MIDDLESEX UNIVERSITY HOSPITAL NHS TRUST | AD58: RKB | AE58: NORTH MIDDLESEX UNIVERSITY HOSPITAL NHS TRUST | AF58: RH801 | AG58: King's College Hospital (Denmark Hill)
U59: QKS | V59: RWF | W59: MAIDSTONE AND TUNBRIDGE WELLS NHS TRUST | X59: RWFXXX | Y59: Non-hospital site | AA59: RKE | AB59: NORTH TEES AND HARTLEPOOL NHS FOUNDATION TRUST | AD59: RKE | AE59: NORTH TEES AND HARTLEPOOL NHS FOUNDATION TRUST | AF59: RH854 | AG59: King's Mill Hospital
U60: QKS | V60: RWF | W60: MAIDSTONE AND TUNBRIDGE WELLS NHS TRUST | X60: RWFTW | Y60: The Tunbridge Wells Hospital | AA60: RL4 | AB60: NORTH WEST ANGLIA NHS FOUNDATION TRUST | AD60: RL4 | AE60: NORTH WEST ANGLIA NHS FOUNDATION TRUST | AF60: RHM12 | AG60: Kingston Hospital
U61: QKS | V61: RPA | W61: MEDWAY NHS FOUNDATION TRUST | X61: RPA02 | Y61: Medway Maritime Hospital | AA61: RLQ | AB61: NORTHAMPTON GENERAL HOSPITAL NHS TRUST | AD61: RLQ | AE61: NORTHAMPTON GENERAL HOSPITAL NHS TRUST | AF61: RHQHH | AG61: Leicester General Hospital
U62: QM7 | V62: RWH | W62: EAST AND NORTH HERTFORDSHIRE NHS TRUST | X62: RWH01 | Y62: Lister Hospital | AA62: RLT | AB62: NORTHERN DEVON HEALTHCARE NHS TRUST | AD62: RLT | AE62: NORTHERN DEVON HEALTHCARE NHS TRUST | AF62: RHU02 | AG62: Leicester Royal Infirmary
U63: QM7 | V63: RWH | W63: EAST AND NORTH HERTFORDSHIRE NHS TRUST | X63: RWHXXX | Y63: Non-hospital site | AA63: RM1 | AB63: NORTHERN LINCOLNSHIRE AND GOOLE NHS FOUNDATION TRUST | AD63: RM1 | AE63: NORTHERN LINCOLNSHIRE AND GOOLE NHS FOUNDATION TRUST | AF63: RHU03 | AG63: Leighton Hospital
U64: QM7 | V64: RWG | W64: WEST HERTFORDSHIRE TEACHING HOSPITALS NHS TRUST | X64: RWG02 | Y64: Watford General Hospital | AA64: RMC | AB64: NOTTINGHAM UNIVERSITY HOSPITALS NHS TRUST | AD64: RMC | AE64: NOTTINGHAM UNIVERSITY HOSPITALS NHS TRUST | AF64: RHU04 | AG64: Lincoln County Hospital
U65: QMF | V65: RF4 | W65: BARKING, HAVERING AND REDBRIDGE UNIVERSITY HOSPITALS NHS TRUST | X65: RF4XXX | Y65: Non-hospital site | AA65: RMP | AB65: OXFORD UNIVERSITY HOSPITALS NHS FOUNDATION TRUST | AD65: RMP | AE65: OXFORD UNIVERSITY HOSPITALS NHS FOUNDATION TRUST | AF65: RHU10 | AG65: Lister Hospital
U66: QMF | V66: R1H | W66: BARTS HEALTH NHS TRUST | X66: R1HNH | Y66: Newham General Hospital | AA66: RN3 | AB66: PORTSMOUTH HOSPITALS UNIVERSITY NATIONAL HEALTH SERVICE TRUST | AD66: RN3 | AE66: PORTSMOUTH HOSPITALS UNIVERSITY NATIONAL HEALTH SERVICE TRUST | AF66: RHW01 | AG66: Liverpool Womens Hospital
U67: QMF | V67: R1H | W67: BARTS HEALTH NHS TRUST | X67: R1H12 | Y67: The Royal London Hospital | AA67: RN5 | AB67: ROYAL BERKSHIRE NHS FOUNDATION TRUST | AD67: RN5 | AE67: ROYAL BERKSHIRE NHS FOUNDATION TRUST | AF67: RJ122 | AG67: Luton and Dunstable Hospital
U68: QMF | V68: R1H | W68: BARTS HEALTH NHS TRUST | X68: R1HKH | Y68: Whipps Cross University Hospital | AA68: RN7 | AB68: ROYAL CORNWALL HOSPITALS NHS TRUST | AD68: RN7 | AE68: ROYAL CORNWALL HOSPITALS NHS TRUST | AF68: RJ224 | AG68: Macclesfield District General Hospital
U69: QMF | V69: RQX | W69: HOMERTON UNIVERSITY HOSPITAL NHS FOUNDATION TRUST | X69: RQXM1 | Y69: Homerton University Hospital | AA69: RNA | AB69: ROYAL DEVON AND EXETER NHS FOUNDATION TRUST | AD69: RNA | AE69: ROYAL DEVON AND EXETER NHS FOUNDATION TRUST | AF69: RJ231 | AG69: Maidstone District General Hospital
U70: QMJ | V70: RAP | W70: NORTH MIDDLESEX UNIVERSITY HOSPITAL NHS TRUST | X70: RAPNM | Y70: North Middlesex Hospital | AA70: RNN | AB70: ROYAL FREE LONDON NHS FOUNDATION TRUST | AD70: RNN | AE70: ROYAL FREE LONDON NHS FOUNDATION TRUST | AF70: RJ2XXX | AG70: Manor Hospital
U71: QMJ | V71: RAL | W71: ROYAL FREE LONDON NHS FOUNDATION TRUST | X71: RAL26 | Y71: Barnet Hospital | AA71: RNQ | AB71: ROYAL SURREY COUNTY HOSPITAL NHS FOUNDATION TRUST | AD71: RNQ | AE71: ROYAL SURREY COUNTY HOSPITAL NHS FOUNDATION TRUST | AF71: RJ611 | AG71: Medway Maritime Hospital
U72: QMJ | V72: RAL | W72: ROYAL FREE LONDON NHS FOUNDATION TRUST | X72: RAL01 | Y72: Royal Free Hospital | AA72: RNS | AB72: ROYAL UNITED HOSPITALS BATH NHS FOUNDATION TRUST | AD72: RNS | AE72: ROYAL UNITED HOSPITALS BATH NHS FOUNDATION TRUST | AF72: RJ701 | AG72: Milton Keynes Hospital
U73: QMJ | V73: RKE | W73: WHITTINGTON HEALTH NHS TRUST | X73: RKEXXX | Y73: Non-hospital site | AA73: RNZ | AB73: SALISBURY NHS FOUNDATION TRUST | AD73: RNZ | AE73: SALISBURY NHS FOUNDATION TRUST | AF73: RJCXXX | AG73: MUSGROVE PARK HOSPITAL
U74: QMJ | V74: RKE | W74: WHITTINGTON HEALTH NHS TRUST | X74: RKEQ4 | Y74: The Whittington Hospital | AA74: RP5 | AB74: SHEFFIELD TEACHING HOSPITALS NHS FOUNDATION TRUST | AD74: RP5 | AE74: SHEFFIELD TEACHING HOSPITALS NHS FOUNDATION TRUST | AF74: RJE01 | AG74: New Cross Hospital
U75: QMM | V75: RGP | W75: JAMES PAGET UNIVERSITY HOSPITALS NHS FOUNDATION TRUST | X75: RGP75 | Y75: James Paget University Hospital | AA75: RPA | AB75: SHERWOOD FOREST HOSPITALS NHS FOUNDATION TRUST | AD75: RPA | AE75: SHERWOOD FOREST HOSPITALS NHS FOUNDATION TRUST | AF75: RJE09 | AG75: Newham General Hospital
U76: QMM | V76: RM1 | W76: NORFOLK AND NORWICH UNIVERSITY HOSPITALS NHS FOUNDATION TRUST | X76: RM102 | Y76: Norfolk and Norwich University Hospital | AA76: RQ3 | AB76: SOMERSET NHS FOUNDATION TRUST | AD76: RQ3 | AE76: SOMERSET NHS FOUNDATION TRUST | AF76: RJL30 | AG76: Non-hospital site
U77: QMM | V77: RCX | W77: THE QUEEN ELIZABETH HOSPITAL, KING'S LYNN, NHS FOUNDATION TRUST | X77: RCXXXX | Y77: Non-hospital site | AA77: RQM | AB77: SOUTH TEES HOSPITALS NHS FOUNDATION TRUST | AD77: RQM | AE77: SOUTH TEES HOSPITALS NHS FOUNDATION TRUST | AF77: RJL32 | AG77: Non-hospital site
U78: QMM | V78: RCX | W78: THE QUEEN ELIZABETH HOSPITAL, KING'S LYNN, NHS FOUNDATION TRUST | X78: RCX66 | Y78: North Cambridgeshire Hospital | AA78: RQX | AB78: SOUTH TYNESIDE AND SUNDERLAND NHS FOUNDATION TRUST | AD78: RQX | AE78: SOUTH TYNESIDE AND SUNDERLAND NHS FOUNDATION TRUST | AF78: RJN71 | AG78: Non-hospital site
U79: QMM | V79: RCX | W79: THE QUEEN ELIZABETH HOSPITAL, KING'S LYNN, NHS FOUNDATION TRUST | X79: RCX70 | Y79: The Queen Elizabeth Hospital | AA79: RR7 | AB79: SOUTH WARWICKSHIRE NHS FOUNDATION TRUST | AD79: RR7 | AE79: SOUTH WARWICKSHIRE NHS FOUNDATION TRUST | AF79: RJZ01 | AG79: Non-hospital site
U80: QNC | V80: RJE | W80: UNIVERSITY HOSPITALS OF NORTH MIDLANDS NHS TRUST | X80: RJE09 | Y80: County Hospital | AA80: RR8 | AB80: SOUTHPORT AND ORMSKIRK HOSPITAL NHS TRUST | AD80: RR8 | AE80: SOUTHPORT AND ORMSKIRK HOSPITAL NHS TRUST | AF80: RJZ30 | AG80: Non-hospital site
U81: QNC | V81: RJE | W81: UNIVERSITY HOSPITALS OF NORTH MIDLANDS NHS TRUST | X81: RJE01 | Y81: Royal Stoke University Hospital | AA81: RRF | AB81: ST GEORGE'S UNIVERSITY HOSPITALS NHS FOUNDATION TRUST | AD81: RRF | AE81: ST GEORGE'S UNIVERSITY HOSPITALS NHS FOUNDATION TRUST | AF81: RK5BC | AG81: Non-hospital site
U82: QNQ | V82: RDU | W82: FRIMLEY HEALTH NHS FOUNDATION TRUST | X82: RDU01 | Y82: Frimley Park Hospital | AA82: RRK | AB82: ST HELENS AND KNOWSLEY TEACHING HOSPITALS NHS TRUST | AD82: RRK | AE82: ST HELENS AND KNOWSLEY TEACHING HOSPITALS NHS TRUST | AF82: RK950 | AG82: Non-hospital site
U83: QNX | V83: RXC | W83: EAST SUSSEX HEALTHCARE NHS TRUST | X83: RXC01 | Y83: Conquest Hospital | AA83: RTD | AB83: STOCKPORT NHS FOUNDATION TRUST | AD83: RTD | AE83: STOCKPORT NHS FOUNDATION TRUST | AF83: RK9XXX | AG83: Non-hospital site
U84: QNX | V84: RXC | W84: EAST SUSSEX HEALTHCARE NHS TRUST | X84: RXC02 | Y84: Eastbourne District General Hospital | AA84: RTE | AB84: SURREY AND SUSSEX HEALTHCARE NHS TRUST | AD84: RTE | AE84: SURREY AND SUSSEX HEALTHCARE NHS TRUST | AF84: RKB02 | AG84: Non-hospital site
U85: QNX | V85: RXC | W85: EAST SUSSEX HEALTHCARE NHS TRUST | X85: RXCXXX | Y85: Non-hospital site | AA85: RTG | AB85: TAMESIDE AND GLOSSOP INTEGRATED CARE NHS FOUNDATION TRUST | AD85: RTG | AE85: TAMESIDE AND GLOSSOP INTEGRATED CARE NHS FOUNDATION TRUST | AF85: RKB03 | AG85: Non-hospital site
U86: QNX | V86: RYR | W86: UNIVERSITY HOSPITALS SUSSEX NHS FOUNDATION TRUST | X86: RYR18 | Y86: Worthing Hospital | AA86: RTH | AB86: THE DUDLEY GROUP NHS FOUNDATION TRUST | AD86: RTH | AE86: THE DUDLEY GROUP NHS FOUNDATION TRUST | AF86: RKBXXX | AG86: Non-hospital site
U87: QOC | V87: RXW | W87: THE SHREWSBURY AND TELFORD HOSPITAL NHS TRUST | X87: RXWXXX | Y87: Non-hospital site | AA87: RTK | AB87: THE HILLINGDON HOSPITALS NHS FOUNDATION TRUST | AD87: RTK | AE87: THE HILLINGDON HOSPITALS NHS FOUNDATION TRUST | AF87: RKEQ4 | AG87: Non-hospital site
U88: QOP | V88: RMC | W88: BOLTON NHS FOUNDATION TRUST | X88: RMC01 | Y88: Royal Bolton Hospital | AA88: RTP | AB88: THE NEWCASTLE UPON TYNE HOSPITALS NHS FOUNDATION TRUST | AD88: RTP | AE88: THE NEWCASTLE UPON TYNE HOSPITALS NHS FOUNDATION TRUST | AF88: RKEXXX | AG88: Non-hospital site
U89: QOP | V89: R0A | W89: MANCHESTER UNIVERSITY NHS FOUNDATION TRUST | X89: R0A05 | Y89: St Mary's Hospital | AA89: RTR | AB89: THE QUEEN ELIZABETH HOSPITAL, KING'S LYNN, NHS FOUNDATION TRUST | AD89: RTR | AE89: THE QUEEN ELIZABETH HOSPITAL, KING'S LYNN, NHS FOUNDATION TRUST | AF89: RL403 | AG89: Non-hospital site
U90: QOP | V90: RWJ | W90: STOCKPORT NHS FOUNDATION TRUST | X90: RWJ09 | Y90: Stepping Hill Hospital | AA90: RVJ | AB90: THE ROTHERHAM NHS FOUNDATION TRUST | AD90: RVJ | AE90: THE ROTHERHAM NHS FOUNDATION TRUST | AF90: RLQ01 | AG90: Non-hospital site
U91: QOP | V91: RMP | W91: TAMESIDE AND GLOSSOP INTEGRATED CARE NHS FOUNDATION TRUST | X91: RMP01 | Y91: Tameside General Hospital | AA91: RVR | AB91: THE ROYAL WOLVERHAMPTON NHS TRUST | AD91: RVR | AE91: THE ROYAL WOLVERHAMPTON NHS TRUST | AF91: RLT01 | AG91: Non-hospital site
U92: QOP | V92: RRF | W92: WRIGHTINGTON, WIGAN AND LEIGH NHS FOUNDATION TRUST | X92: RRF02 | Y92: Royal Albert Edward Infirmary | AA92: RVV | AB92: THE SHREWSBURY AND TELFORD HOSPITAL NHS TRUST | AD92: RVV | AE92: THE SHREWSBURY AND TELFORD HOSPITAL NHS TRUST | AF92: RM102 | AG92: Non-hospital site
U93: QOQ | V93: RCD | W93: HARROGATE AND DISTRICT NHS FOUNDATION TRUST | X93: RCD01 | Y93: Harrogate District Hospital | AA93: RVW | AB93: TORBAY AND SOUTH DEVON NHS FOUNDATION TRUST | AD93: RVW | AE93: TORBAY AND SOUTH DEVON NHS FOUNDATION TRUST | AF93: RMC01 | AG93: Non-hospital site
U94: QOQ | V94: RWA | W94: HULL UNIVERSITY TEACHING HOSPITALS NHS TRUST | X94: RWA01 | Y94: Hull Royal Infirmary | AA94: RVY | AB94: UNITED LINCOLNSHIRE HOSPITALS NHS TRUST | AD94: RVY | AE94: UNITED LINCOLNSHIRE HOSPITALS NHS TRUST | AF94: RMP01 | AG94: Non-hospital site
